Workbook

Sheet Quick Start Guide
B9: Envision Tomorrow™ Regional Fiscal Impact Tool (ReFIT)
B10: ="Version "&ChangeLog!B23&", Updated "&ChangeLog!C23 -> Version 3.4.0, Updated 4/14/2014
B12: What is the ReFIT?
B13: With minimal inputs, the tool will allow users to simply identify the fiscal effects of a proposed scenario on the local municipality as well as indirect impacts to the rest of the county or region.
B14: The ReFIT is intended to provide a quick analysis of the impact of proposed development projects. Its purpose is not to provide an analysis with a high level of precision, but seeks to give only a rough picture. Users can increase the precision of results by providing more-precise data and by reviewing the parameters of a project more broadly.
B16: Quick Start Guide
B17: A few quick and easy steps will get you started at modeling prototype buildings and testing land use regulations.
B19: 1. Save this file with a new name.
B21: 2. Gather data for use in the FIT
B22: - Existing municipal and unincorporated population
B23: - Local tax rates (sales, income, property)
B24: - Real Property Assessment Ratios
B26: 3. Import development scenarios
B27: Use the "Load Scenario" button to import data from your scenario spreadsheet
C29: TAB Color Definition
C30: Input Tab
C31: Output Tab
C32: Reference Tab
C33: ChangeLog
C35: CELL Color Definition
C36: Input/Override Cell
C37: Header Cell
C38: Subheader Cell
C39: Output Cell | D39: [white]
C40: Import Cell
C41: Ignore Cell

Sheet Load Scenarios
A1: SCENARIO INPUTS ◊
B4: Scenario 1 | C4: Scenario 2 | D4: Scenario 3 | E4: Scenario 4 | F4: Scenario 5
A5: Population
A6: Population - Net
A7: Population - New
A8: Development Mix (Sq. Ft.)
A9: Residential
A10: Retail
A11: Office
A12: Industrial
A13: Public / Civic
A14: Educational
A15: Hotel / Hospitality
A16: Total | B16: =SUM(B9:B15) -> 0 | C16: =SUM(C9:C15) -> 0 | D16: =SUM(D9:D15) -> 0 | E16: =SUM(E9:E15) -> 0 | F16: =SUM(F9:F15) -> 0
A17: Employment Mix - Net
A18: Retail
A19: Office
A20: Industrial
A21: Public / Civic
A22: Educational
A23: Hotel / Hospitality
A24: Total Jobs | B24: =SUM(B18:B23) -> 0 | C24: =SUM(C18:C23) -> 0 | D24: =SUM(D18:D23) -> 0 | E24: =SUM(E18:E23) -> 0 | F24: =SUM(F18:F23) -> 0
A25: Employment Mix - New
A26: Retail
A27: Office
A28: Industrial
A29: Public / Civic
A30: Educational
A31: Hotel / Hospitality
A32: Total Jobs | B32: =SUM(B26:B31) -> 0 | C32: =SUM(C26:C31) -> 0 | D32: =SUM(D26:D31) -> 0 | E32: =SUM(E26:E31) -> 0 | F32: =SUM(F26:F31) -> 0
A33: Housing Units
A34: Housing Units - Net
A35: Housing Units - New
A36: Project Value
A37: Residential
A38: Commercial
A39: Total | B39: =SUM(B37:B38) -> 0 | C39: =SUM(C37:C38) -> 0 | D39: =SUM(D37:D38) -> 0 | E39: =SUM(E37:E38) -> 0 | F39: =SUM(F37:F38) -> 0

Sheet Scenario Assumptions
A1: SCENARIO ASSUMPTIONS ◊
B4: =FIT_ScenarioName1 -> Scenario 1 | C4: =FIT_ScenarioName2 -> Scenario 2 | D4: =FIT_ScenarioName3 -> Scenario 3 | E4: =FIT_ScenarioName4 -> Scenario 4 | F4: =FIT_ScenarioName5 -> Scenario 5
A5: Scenario Horizon:
A6: Years From Up-Front to On-Going ◊ | B6: 1 | C6: 1 | D6: 1 | E6: 1 | F6: 1
A7: Discount Rate ◊ | B7: 0.03 | C7: 0.03 | D7: 0.03 | E7: 0.03 | F7: 0.03
A8: Period/Years ◊ | B8: 30 | C8: 30 | D8: 30 | E8: 30 | F8: 30
A9: Projected Inflation Rates:
A10: Govt. Revenues ◊ | B10: 0 | C10: 0 | D10: 0 | E10: 0 | F10: 0
A11: Govt. Spending on Edu. ◊ | B11: 0 | C11: 0 | D11: 0 | E11: 0 | F11: 0
A12: Govt. Spending (non-Edu) ◊ | B12: 0 | C12: 0 | D12: 0 | E12: 0 | F12: 0
A14: Share of capital costs borne by city/cities:
A15: Education ◊ | B15: 1 | C15: 1 | D15: 1 | E15: 1 | F15: 1
A16: Health Care ◊ | B16: 1 | C16: 1 | D16: 1 | E16: 1 | F16: 1
A17: Roads ◊ | B17: 1 | C17: 1 | D17: 1 | E17: 1 | F17: 1
A18: Public Safety ◊ | B18: 1 | C18: 1 | D18: 1 | E18: 1 | F18: 1
A19: Recreation ◊ | B19: 1 | C19: 1 | D19: 1 | E19: 1 | F19: 1
A20: Housing & Community Dev. ◊ | B20: 1 | C20: 1 | D20: 1 | E20: 1 | F20: 1
A21: Sewerage ◊ | B21: 1 | C21: 1 | D21: 1 | E21: 1 | F21: 1
A22: Utilities ◊ | B22: 1 | C22: 1 | D22: 1 | E22: 1 | F22: 1
A23: Other | B23: 1 | C23: 1 | D23: 1 | E23: 1 | F23: 1
A24: Share of on-going costs borne by city/cities:
A25: Education ◊ | B25: 1 | C25: 1 | D25: 1 | E25: 1 | F25: 1
A26: Health care | B26: 1 | C26: 1 | D26: 1 | E26: 1 | F26: 1
A27: Roads ◊ | B27: 1 | C27: 1 | D27: 1 | E27: 1 | F27: 1
A28: Public Safety ◊ | B28: 1 | C28: 1 | D28: 1 | E28: 1 | F28: 1
A29: Recreation | B29: 1 | C29: 1 | D29: 1 | E29: 1 | F29: 1
A30: Housing & Community Dev. ◊ | B30: 1 | C30: 1 | D30: 1 | E30: 1 | F30: 1
A31: Sewerage ◊ | B31: 1 | C31: 1 | D31: 1 | E31: 1 | F31: 1
A32: Utilities ◊ | B32: 1 | C32: 1 | D32: 1 | E32: 1 | F32: 1
A33: Other | B33: 1 | C33: 1 | D33: 1 | E33: 1 | F33: 1
A34: Share of newly generated ongoing costs
A35: Utilities, Highways, Sewerage & Waste ◊ | B35: 1 | C35: 1 | D35: 1 | E35: 1 | F35: 1
A37: Additional Revenue (beyond sales, prop., and util. taxes)
A38: One-time ◊ | B38: 0 | C38: 0 | D38: 0 | E38: 0 | F38: 0
A39: % to City/Cities ◊ | B39: 0 | C39: 0 | D39: 0 | E39: 0 | F39: 0
A40: Ongoing ◊ | B40: 0 | C40: 0 | D40: 0 | E40: 0 | F40: 0
A41: % to City/Cities ◊ | B41: 0 | C41: 0 | D41: 0 | E41: 0 | F41: 0
A42: Est. share of new residential invest. in city ◊ | B42: 1 | C42: 1 | D42: 1 | E42: 1 | F42: 1
A44: Ratio: Wages (salary X empl) to Sales ◊
A45: Non-Manufacturing | B45: =IF(B61+B62+B64+B65+B66>0,0.5,0) -> 0 | C45: =IF(C61+C62+C64+C65+C66>0,0.5,0) -> 0 | D45: =IF(D61+D62+D64+D65+D66>0,0.5,0) -> 0 | E45: =IF(E61+E62+E64+E65+E66>0,0.5,0) -> 0 | F45: =IF(F61+F62+F64+F65+F66>0,0.5,0) -> 0
A46: Industrial/Manufacturing | B46: =IF(B63>0,0.2,0) -> 0 | C46: =IF(C63>0,0.2,0) -> 0 | D46: =IF(D63>0,0.2,0) -> 0 | E46: =IF(E63>0,0.2,0) -> 0 | F46: =IF(F63>0,0.2,0) -> 0
A47: Ratio: $s subject to sales tax ◊
A48: Service | B48: =IF(B61+B62+B64+B65+B66>0,0.1,0) -> 0 | C48: =IF(C61+C62+C64+C65+C66>0,0.1,0) -> 0 | D48: =IF(D61+D62+D64+D65+D66>0,0.1,0) -> 0 | E48: =IF(E61+E62+E64+E65+E66>0,0.1,0) -> 0 | F48: =IF(F61+F62+F64+F65+F66>0,0.1,0) -> 0
A49: Manufacturing | B49: =IF(B63>0,0.01,0) -> 0 | C49: =IF(C63>0,0.01,0) -> 0 | D49: =IF(D63>0,0.01,0) -> 0 | E49: =IF(E63>0,0.01,0) -> 0 | F49: =IF(F63>0,0.01,0) -> 0
A50: Ratio: Energy costs to Sales ◊
A51: Service | B51: =IF(B61+B62+B64+B65+B66>0,0.005,0) -> 0 | C51: =IF(C61+C62+C64+C65+C66>0,0.005,0) -> 0 | D51: =IF(D61+D62+D64+D65+D66>0,0.005,0) -> 0 | E51: =IF(E61+E62+E64+E65+E66>0,0.005,0) -> 0 | F51: =IF(F61+F62+F64+F65+F66>0,0.005,0) -> 0
A52: Manufacturing | B52: =IF(B63>0,0.02,0) -> 0 | C52: =IF(C63>0,0.02,0) -> 0 | D52: =IF(D63>0,0.02,0) -> 0 | E52: =IF(E63>0,0.02,0) -> 0 | F52: =IF(F63>0,0.02,0) -> 0
A53: Est. new sales ◊
A54: Service | B54: =IFERROR(((B61+B62+B64+B65+B66)/B45),0) -> 0 | C54: =IFERROR(((C61+C62+C64+C65+C66)/C45),0) -> 0 | D54: =IFERROR(((D61+D62+D64+D65+D66)/D45),0) -> 0 | E54: =IFERROR(((E61+E62+E64+E65+E66)/E45),0) -> 0 | F54: =IFERROR(((F61+F62+F64+F65+F66)/F45),0) -> 0
A55: Manufacturing | B55: =IFERROR(B63/#REF!,0) -> 0 | C55: =IFERROR(C63/#REF!,0) -> 0 | D55: =IFERROR(D63/#REF!,0) -> 0 | E55: =IFERROR(E63/#REF!,0) -> 0 | F55: =IFERROR(F63/#REF!,0) -> 0
A56: Est. project energy costs ◊
A57: Service | B57: =B51*B54 -> 0 | C57: 0 | D57: 0 | E57: 0 | F57: 0
A58: Manufacturing | B58: 0 | C58: 0 | D58: 0 | E58: 0 | F58: 0
A59: Est. purchases subject to sales tax ◊ | B59: =(B54*B48)+(B55*B49) -> 0 | C59: =(C54*C48)+(C55*C49) -> 0 | D59: =(D54*D48)+(D55*D49) -> 0 | E59: =(E54*E48)+(E55*E49) -> 0 | F59: =(F54*F48)+(F55*F49) -> 0
A60: Est. Annual Wages
A61: Retail | B61: ='Load Scenarios'!B18*Census!$AC$63 -> 0 | C61: ='Load Scenarios'!C18*Census!$AC$63 -> 0 | D61: ='Load Scenarios'!D18*Census!$AC$63 -> 0 | E61: ='Load Scenarios'!E18*Census!$AC$63 -> 0 | F61: ='Load Scenarios'!F18*Census!$AC$63 -> 0
A62: Office | B62: ='Load Scenarios'!B19*Census!$AC$64 -> 0 | C62: ='Load Scenarios'!C19*Census!$AC$64 -> 0 | D62: ='Load Scenarios'!D19*Census!$AC$64 -> 0 | E62: ='Load Scenarios'!E19*Census!$AC$64 -> 0 | F62: ='Load Scenarios'!F19*Census!$AC$64 -> 0
A63: Industrial | B63: ='Load Scenarios'!B20*Census!$AC$65 -> 0 | C63: ='Load Scenarios'!C20*Census!$AC$65 -> 0 | D63: ='Load Scenarios'!D20*Census!$AC$65 -> 0 | E63: ='Load Scenarios'!E20*Census!$AC$65 -> 0 | F63: ='Load Scenarios'!F20*Census!$AC$65 -> 0
A64: Public / Civic | B64: ='Load Scenarios'!B21*Census!$AC$66 -> 0 | C64: ='Load Scenarios'!C21*Census!$AC$66 -> 0 | D64: ='Load Scenarios'!D21*Census!$AC$66 -> 0 | E64: ='Load Scenarios'!E21*Census!$AC$66 -> 0 | F64: ='Load Scenarios'!F21*Census!$AC$66 -> 0
A65: Educational | B65: ='Load Scenarios'!B22*Census!$AC$67 -> 0 | C65: ='Load Scenarios'!C22*Census!$AC$67 -> 0 | D65: ='Load Scenarios'!D22*Census!$AC$67 -> 0 | E65: ='Load Scenarios'!E22*Census!$AC$67 -> 0 | F65: ='Load Scenarios'!F22*Census!$AC$67 -> 0
A66: Hotel / Hospitality | B66: ='Load Scenarios'!B23*Census!$AC$68 -> 0 | C66: ='Load Scenarios'!C23*Census!$AC$68 -> 0 | D66: ='Load Scenarios'!D23*Census!$AC$68 -> 0 | E66: ='Load Scenarios'!E23*Census!$AC$68 -> 0 | F66: ='Load Scenarios'!F23*Census!$AC$68 -> 0
A67: Total | B67: =SUM(B61:B66) -> 0 | C67: =SUM(C61:C63) -> 0 | D67: =SUM(D61:D63) -> 0 | E67: =SUM(E61:E63) -> 0 | F67: =SUM(F61:F63) -> 0

Sheet Local Inputs
A1: LOCAL INPUTS & ASSUMPTIONS ◊
A4: County Name (List): ◊
A5: Autauga County, Alabama
B7: Base Assumption | C7: Override | D7: Model Input
A8: County Pop. | B8: =Census!E6400 -> 51663 | D8: =IF(C8>0,C8,B8) -> 51663
A9: 24/7 County Pop. | B9: =Census!F6400 -> 41387 | D9: =IF(C9>0,C9,B9) -> 41387
A10: County Employment | B10: =SUM(Census!M3158:AF3158) -> 8990 | D10: =IF(C10>0,C10,B10) -> 8990
A11: County Housing Units ◊ | B11: =Census!AF6400 -> 21530 | D11: =IF(C11>0,C11,B11) -> 21530
A12: City Pop. ◊
A13: 24/7 City Pop. ◊ | B13: =(D9/D8)*D12 -> 0 | C13: =IF(SUM(C14:C17)>0,(D12*Census!AK53)+(C14*Census!AK57)+(C15*Census!AK59)+(C16*Census!AK55)+(C17*Census!AK60),0) -> 0 | D13: =IF(C13>0,C13,B13) -> 0
A14: Retail Employees ◊
A15: Office Employees ◊
A16: Industrial Employees ◊
A17: Hotel Employees ◊
A19: Property Tax Rates (per $1000 assessment)
A20: Residential | B20: Rate
A21: County ◊
A22: Municipal Average ◊
A23: Schools Average ◊
A24: Other ◊
A25: Residential Total | B25: =SUM(B22,B23,B21,B24) -> 0
A26: Commercial | B26: Rate
A27: County ◊
A28: Municipal Average ◊
A29: Schools Average ◊
A30: Other ◊
A31: Commercial Total | B31: =SUM(B29,B28,B27,B30) -> 0
A33: Assessment Ratios ◊ | B33: Ratio
A34: Residential Property | B34: 1
A35: Commercial Property | B35: 1
A37: Income Tax Rates ◊ | B37: Rate | C37: Per/24/7 County Pop.
A38: County | C38: -
A39: Municipality | C39: -
A40: Weighted Average ◊ | B40: =B38*(1-(D12/D8))+(B39*(D12/D8)) -> 0 | C40: ='Cost Module'!C34 -> 0
A42: Sales Tax Rates | B42: Rate
A43: State ◊
A44: County ◊
A45: Municipal Average ◊
A46: Total | B46: =SUM(B43:B45) -> 0
A48: Annual Taxable Sales in City ($) | B48: Base Assumption | C48: Override | D48: Model Input
A49: County ◊ | B49: =Census!H3158*1000 -> 598175000 | D49: =IF(C49>0,C49,B49) -> 598175000
A50: City ◊ | B50: =B49*(D12/D8) -> 0 | D50: =IF(C50>0,C50,B50) -> 0
A52: Distribution of Sales Tax | B52: Base Assumption | C52: Override | D52: Model Input
A53: % of Taxable Sales in City ◊ | B53: =D50/D49 -> 0 | D53: =IF(C53>0,C53,B53) -> 0
A54: % of Consumer $ Subject to Sales Tax ◊ | B54: 0.3 | D54: =IF(C54>0,C54,B54) -> 0.3
A55: % Retail Leakage Out of County ◊ | B55: =Census!K8 -> 0.565116 | D55: =IF(C55>0,C55,B55) -> 0.565116
A57: Utility Franchise Fee | B57: Base Assumption | C57: Override | D57: Model Input
A58: Tax on Gas and Electrical Service | B58: 0 | D58: =IF(C58>0,C58,B58) -> 0
A60: Estimated Economic Impact Multiplier | B60: Base Assumption | C60: Override | D60: Model Input
A61: Economic Impact Multiplier ◊ | B61: =SUMIF(Census!$AH$41:$AH$49,1,Census!AI41:AI49) -> 1.05 | C61: 1 | D61: =IF(C61>0,C61,B61) -> 1
A62: Investment as Tot. % of Impact Mult. ◊ | B62: 0.2 | D62: =IF(C62>0,C62,B62) -> 0.2
A64: Share of New Project | B64: Base Assumption | C64: Override | D64: Model Input
A65: Investment in City Limits ◊ | B65: 1 | D65: =IF(C65>0,C65,B65) -> 1
A66: Spending in City vs County ◊ | B66: 1 | D66: =IF(C66>0,C66,B66) -> 1
A67: In Utilities Bought from City ◊ | B67: 1 | D67: =IF(C67>0,C67,B67) -> 1
A69: Government Finance Data - Expenditure ◊ | B69: Local Expenditure | C69: Override | D69: Per/24-7 County Pop.
A70: Direct expenditure | B70: =Census!AC3 -> 135189000 | D70: =IF(C70=0,Census!AD3,C70/Census!AJ$69) -> 3266.460483
A71: Current operations | B71: =Census!AC4 -> 117770000 | D71: =IF(C71=0,Census!AD4,C71/Census!AJ$69) -> 2845.57953
A72: Capital outlay | B72: =Census!AC5 -> 11148000 | D72: =IF(C72=0,Census!AD5,C72/Census!AJ$69) -> 269.3599439
A73: Education | B73: =Census!AC6 -> 80101000 | D73: =IF(C73=0,Census!AD6,C73/Census!AJ$69) -> 1550.451968
A74: Capital outlay | B74: =Census!AC7 -> 4954000 | D74: =IF(C74=0,Census!AD7,C74/Census!AJ$69) -> 119.6994225
A75: Hospitals | B75: =Census!AC8 -> 0 | D75: =IF(C75=0,Census!AD8,C75/Census!AJ$69) -> 0
A76: Capital outlay | B76: =Census!AC9 -> 0 | D76: =IF(C76=0,Census!AD9,C76/Census!AJ$69) -> 0
A77: Roads | B77: =Census!AC10 -> 5163000 | D77: =IF(C77=0,Census!AD10,C77/Census!AJ$69) -> 124.7493174
A78: Capital outlay | B78: =Census!AC11 -> 489000 | D78: =IF(C78=0,Census!AD11,C78/Census!AJ$69) -> 11.81530432
A79: Police protection | B79: =Census!AC12 -> 8717000 | D79: =IF(C79=0,Census!AD12,C79/Census!AJ$69) -> 210.6216928
A80: Fire protection | B80: =Census!AC13 -> 7195000 | D80: =IF(C80=0,Census!AD13,C80/Census!AJ$69) -> 173.8468601
A81: Parks and recreation | B81: =Census!AC14 -> 3145000 | D81: =IF(C81=0,Census!AD14,C81/Census!AJ$69) -> 75.99004518
A82: Capital outlay | B82: =Census!AC15 -> 115000 | D82: =IF(C82=0,Census!AD15,C82/Census!AJ$69) -> 2.778650301
A83: Housing / Community Dev. | B83: =Census!AC16 -> 0 | D83: =IF(C83=0,Census!AD16,C83/Census!AJ$69) -> 0
A84: Sewerage | B84: =Census!AC17 -> 2269000 | D84: =IF(C84=0,Census!AD17,C84/Census!AJ$69) -> 54.82397854
A85: Capital outlay | B85: =Census!AC18 -> 70000 | D85: =IF(C85=0,Census!AD18,C85/Census!AJ$69) -> 1.691352357
A86: Solid waste management | B86: =Census!AC19 -> 2087000 | D86: =IF(C86=0,Census!AD19,C86/Census!AJ$69) -> 50.42646242
A87: Capital outlay | B87: =Census!AC20 -> 283000 | D87: =IF(C87=0,Census!AD20,C87/Census!AJ$69) -> 6.837895958
A88: Utility expenditure | B88: =Census!AC21 -> 2058000 | D88: =IF(C88=0,Census!AD21,C88/Census!AJ$69) -> 49.7257593
A89: Capital outlay | B89: =Census!AC22 -> 1426000 | D89: =IF(C89=0,Census!AD22,C89/Census!AJ$69) -> 34.45526373
A90: Water supply | B90: =Census!AC23 -> 2058000 | D90: =IF(C90=0,Census!AD23,C90/Census!AJ$69) -> 49.7257593
A91: Electric power | B91: =Census!AC24 -> 0 | D91: =IF(C91=0,Census!AD24,C91/Census!AJ$69) -> 0
A92: Gas supply | B92: =Census!AC25 -> 0 | D92: =IF(C92=0,Census!AD25,C92/Census!AJ$69) -> 0
A94: Government Finance Data - Revenue ◊ | B94: Local Revenue | C94: Override | D94: Per/24-7 County Pop.
A95: General Revenue | B95: =Census!AH3 -> 122997000 | D95: =IF(C95=0,Census!AI3,C95/Census!AJ$69) -> 2971.875227
A96: Intergovernmental Transfers | B96: =Census!AH4 -> 69947000 | D96: =IF(C96=0,Census!AI4,C96/Census!AJ$69) -> 1690.071762
A97: Sewerage Revenue | B97: =Census!AH5 -> 2162000 | D97: =IF(C97=0,Census!AI5,C97/Census!AJ$69) -> 52.23862566
A98: Solid Waste Management Revenue | B98: =Census!AH6 -> 1608000 | D98: =IF(C98=0,Census!AI6,C98/Census!AJ$69) -> 38.85277986
A99: Utility Revenue | B99: =Census!AH7 -> 1334000 | D99: =IF(C99=0,Census!AI7,C99/Census!AJ$69) -> 32.23234349
A100: Individual Tax Income | B100: =Census!AH9 -> 0 | D100: =IF(C100=0,Census!AI9,C100/Census!AJ$69) -> 0
A101: Corporate Income Tax | B101: =Census!AH10 -> 0 | D101: =IF(C101=0,Census!AI10,C101/Census!AJ$69) -> 0
A102: Income Tax Total | B102: =Census!AH11 -> 0 | D102: =IF(C102=0,Census!AI11,C102/Census!AJ$69) -> 0

Sheet Summary New
A1: County Total ◊ | B1: ='Load Scenarios'!B4 -> Scenario 1 | D1: ='Load Scenarios'!C4 -> Scenario 2 | F1: ='Load Scenarios'!D4 -> Scenario 3 | H1: ='Load Scenarios'!E4 -> Scenario 4 | J1: ='Load Scenarios'!F4 -> Scenario 5
A2: ='Scenario Assumptions'!B8&"-Year Revenues and Expenditures" -> 30-Year Revenues and Expenditures | B2: Revenue | C2: Expenditure | D2: Revenue | E2: Expenditure | F2: Revenue | G2: Expenditure | H2: Revenue | I2: Expenditure | J2: Revenue | K2: Expenditure
A3: Stream Value of chosen time horizon, in years: | B3: =SUMIF('NPV CountyCity'!$Q$6:$Q$55,'Scenario Assumptions'!$B$8,'NPV CountyCity'!$S$6:$S$55) -> 0 | C3: =SUMIF('NPV CountyCity'!$Q$6:$Q$55,'Scenario Assumptions'!$B$8,'NPV CountyCity'!$T$6:$T$55) -> 0 | D3: =SUMIF('NPV CountyCity'!$Q$60:$Q$109,'Scenario Assumptions'!$C$8,'NPV CountyCity'!$S$60:$S109) -> 0 | E3: =SUMIF('NPV CountyCity'!$Q$60:$Q$109,'Scenario Assumptions'!$C$8,'NPV CountyCity'!$T$60:$T$109) -> 0 | F3: =SUMIF('NPV CountyCity'!$Q$114:$Q$163,'Scenario Assumptions'!$D$8,'NPV CountyCity'!$S$114:$S$163) -> 0 | G3: =SUMIF('NPV CountyCity'!$Q$114:$Q$163,'Scenario Assumptions'!$D$8,'NPV CountyCity'!$T$114:$T$163) -> 0 | H3: =SUMIF('NPV CountyCity'!$Q$168:$Q$217,'Scenario Assumptions'!$E$8,'NPV CountyCity'!$S$168:$S$217) -> 0 | I3: =SUMIF('NPV CountyCity'!$Q$168:$Q$217,'Scenario Assumptions'!$E$8,'NPV CountyCity'!$T$168:$T$217) -> 0 | J3: =SUMIF('NPV CountyCity'!$Q$222:$Q$271,'Scenario Assumptions'!$F$8,'NPV CountyCity'!$S$222:$S$271) -> 0 | K3: =SUMIF('NPV CountyCity'!$Q$222:$Q$251,'Scenario Assumptions'!$F$8,'NPV CountyCity'!$T$222:$T$271) -> 0
A4: Total, One-Time and Ongoing | B4: =B3+B50 -> 0 | C4: =C3+B79 -> 0 | D4: =D3+D50 -> 0 | E4: =E3+D79 -> 0 | F4: =F3+F50 -> 0 | G4: =G3+F79 -> 0 | H4: =H3+H50 -> 0 | I4: =I3+H79 -> 0 | J4: =J3+J50 -> 0 | K4: =K3+J79 -> 0
A5: Cost -to-Revenue Ratio | B5: =IFERROR((B4/C4)-1,0) -> 0 | D5: =IFERROR((D4/E4)-1,0) -> 0 | F5: =IFERROR((F4/G4)-1,0) -> 0 | H5: =IFERROR((H4/I4)-1,0) -> 0 | J5: =IFERROR((J4/K4)-1,0) -> 0
J8: County Total ◊ ◊
J9: Municipal Only ◊
A45: Total Annual Revenue | B45: One-time | C45: On-Going | D45: One-Time | E45: On-Going | F45: One-Time | G45: On-Going | H45: One-Time | I45: On-Going | J45: One-Time | K45: On-Going
A46: Property Tax | B46: - | C46: =IF($A$1="County Total ◊",SUM('Cost Module'!D86:D87),'Cost Module'!B88) -> 0 | D46: - | E46: =IF($A$1="County Total ◊",SUM('Cost Module'!G86:G87),'Cost Module'!E88) -> 0 | F46: - | G46: =IF($A$1="County Total ◊",SUM('Cost Module'!J86:J87),'Cost Module'!H88) -> 0 | H46: - | I46: =IF($A$1="County Total ◊",SUM('Cost Module'!M86:M87),'Cost Module'!K88) -> 0 | J46: - | K46: =IF($A$1="County Total ◊",SUM('Cost Module'!P86:P87),'Cost Module'!N88) -> 0
A47: Sales Tax | B47: - | C47: =IF($A$1="County Total ◊",SUM('Cost Module'!D90:D92),SUM('Cost Module'!B90:B92)) -> 0 | D47: - | E47: =IF($A$1="County Total ◊",SUM('Cost Module'!G90:G92),SUM('Cost Module'!E90:E92)) -> 0 | F47: - | G47: =IF($A$1="County Total ◊",SUM('Cost Module'!J90:J92),SUM('Cost Module'!H90:H92)) -> 0 | H47: - | I47: =IF($A$1="County Total ◊",SUM('Cost Module'!M90:M92),SUM('Cost Module'!K90:K92)) -> 0 | J47: - | K47: =IF($A$1="County Total ◊",SUM('Cost Module'!P90:P92),SUM('Cost Module'!N90:N92)) -> 0
A48: Income Tax | B48: - | C48: =IF($A$1="County Total ◊",'Cost Module'!D93,'Cost Module'!B93) -> 0 | D48: - | E48: =IF($A$1="County Total ◊",'Cost Module'!G93,'Cost Module'!E93) -> 0 | F48: - | G48: =IF($A$1="County Total ◊",'Cost Module'!J93,'Cost Module'!H93) -> 0 | H48: - | I48: =IF($A$1="County Total ◊",'Cost Module'!M93,'Cost Module'!K93) -> 0 | J48: - | K48: =IF($A$1="County Total ◊",'Cost Module'!P93,'Cost Module'!N93) -> 0
A49: Non-Tax Revenue | B49: - | C49: =IF($A$1="County Total ◊",'Cost Module'!D102,'Cost Module'!B102) -> 0 | D49: - | E49: =IF($A$1="County Total ◊",'Cost Module'!G102,'Cost Module'!E102) -> 0 | F49: - | G49: =IF($A$1="County Total ◊",'Cost Module'!J102,'Cost Module'!H102) -> 0 | H49: - | I49: =IF($A$1="County Total ◊",'Cost Module'!M102,'Cost Module'!K102) -> 0 | J49: - | K49: =IF($A$1="County Total ◊",'Cost Module'!P102,'Cost Module'!N102) -> 0
A50: Total | B50: =IF($A$1="County Total ◊",'Cost Module'!D82,'Cost Module'!B82) -> 0 | C50: =IF($A$1="County Total ◊",('Cost Module'!D95+'Cost Module'!D102),('Cost Module'!B95+'Cost Module'!B102)) -> 0 | D50: =IF($A$1="County Total ◊",'Cost Module'!G82,'Cost Module'!E82) -> 0 | E50: =IF($A$1="County Total ◊",('Cost Module'!G95+'Cost Module'!G102),('Cost Module'!E95+'Cost Module'!E102)) -> 0 | F50: =IF($A$1="County Total ◊",'Cost Module'!J82,'Cost Module'!H82) -> 0 | G50: =IF($A$1="County Total ◊",('Cost Module'!J95+'Cost Module'!J102),('Cost Module'!H95+'Cost Module'!H102)) -> 0 | H50: =IF($A$1="County Total ◊",'Cost Module'!M82,'Cost Module'!K82) -> 0 | I50: =IF($A$1="County Total ◊",('Cost Module'!M95+'Cost Module'!M102),('Cost Module'!K95+'Cost Module'!K102)) -> 0 | J50: =IF($A$1="County Total ◊",'Cost Module'!P82,'Cost Module'!N82) -> 0 | K50: =IF($A$1="County Total ◊",('Cost Module'!P95+'Cost Module'!P102),('Cost Module'!N95+'Cost Module'!N102)) -> 0
A69: Total Annual Expenditure | B69: One-Time | C69: On-Going | D69: One-Time | E69: On-Going | F69: One-Time | G69: On-Going | H69: One-Time | I69: On-Going | J69: One-Time | K69: On-Going
A70: Education | B70: =IF($A$1="County Total ◊",'Cost Module'!D117,'Cost Module'!B117) -> 0 | C70: =IF($A$1="County Total ◊",'Cost Module'!D105,'Cost Module'!B105) -> 0 | D70: =IF($A$1="County Total ◊",'Cost Module'!G117,'Cost Module'!E117) -> 0 | E70: =IF($A$1="County Total ◊",'Cost Module'!G105,'Cost Module'!E105) -> 0 | F70: =IF($A$1="County Total ◊",'Cost Module'!J117,'Cost Module'!H117) -> 0 | G70: =IF($A$1="County Total ◊",'Cost Module'!J105,'Cost Module'!H105) -> 0 | H70: =IF($A$1="County Total ◊",'Cost Module'!M117,'Cost Module'!K117) -> 0 | I70: =IF($A$1="County Total ◊",'Cost Module'!M105,'Cost Module'!K105) -> 0 | J70: =IF($A$1="County Total ◊",'Cost Module'!P117,'Cost Module'!N117) -> 0 | K70: =IF($A$1="County Total ◊",'Cost Module'!P105,'Cost Module'!N105) -> 0
A71: Health Care | B71: =IF($A$1="County Total ◊",'Cost Module'!D118,'Cost Module'!B118) -> 0 | C71: =IF($A$1="County Total ◊",'Cost Module'!D106,'Cost Module'!B106) -> 0 | D71: =IF($A$1="County Total ◊",'Cost Module'!G118,'Cost Module'!E118) -> 0 | E71: =IF($A$1="County Total ◊",'Cost Module'!G106,'Cost Module'!E106) -> 0 | F71: =IF($A$1="County Total ◊",'Cost Module'!J118,'Cost Module'!H118) -> 0 | G71: =IF($A$1="County Total ◊",'Cost Module'!J106,'Cost Module'!H106) -> 0 | H71: =IF($A$1="County Total ◊",'Cost Module'!M118,'Cost Module'!K118) -> 0 | I71: =IF($A$1="County Total ◊",'Cost Module'!M106,'Cost Module'!K106) -> 0 | J71: =IF($A$1="County Total ◊",'Cost Module'!P118,'Cost Module'!N118) -> 0 | K71: =IF($A$1="County Total ◊",'Cost Module'!P106,'Cost Module'!N106) -> 0
A72: Highways | B72: =IF($A$1="County Total ◊",'Cost Module'!D119,'Cost Module'!B119) -> 0 | C72: =IF($A$1="County Total ◊",'Cost Module'!D107,'Cost Module'!B107) -> 0 | D72: =IF($A$1="County Total ◊",'Cost Module'!G119,'Cost Module'!E119) -> 0 | E72: =IF($A$1="County Total ◊",'Cost Module'!G107,'Cost Module'!E107) -> 0 | F72: =IF($A$1="County Total ◊",'Cost Module'!J119,'Cost Module'!H119) -> 0 | G72: =IF($A$1="County Total ◊",'Cost Module'!J107,'Cost Module'!H107) -> 0 | H72: =IF($A$1="County Total ◊",'Cost Module'!M119,'Cost Module'!K119) -> 0 | I72: =IF($A$1="County Total ◊",'Cost Module'!M107,'Cost Module'!K107) -> 0 | J72: =IF($A$1="County Total ◊",'Cost Module'!P119,'Cost Module'!N119) -> 0 | K72: =IF($A$1="County Total ◊",'Cost Module'!P107,'Cost Module'!N107) -> 0
A73: Public Safety | B73: =IF($A$1="County Total ◊",'Cost Module'!D120,'Cost Module'!B120) -> 0 | C73: =IF($A$1="County Total ◊",'Cost Module'!D108,'Cost Module'!B108) -> 0 | D73: =IF($A$1="County Total ◊",'Cost Module'!G120,'Cost Module'!E120) -> 0 | E73: =IF($A$1="County Total ◊",'Cost Module'!G108,'Cost Module'!E108) -> 0 | F73: =IF($A$1="County Total ◊",'Cost Module'!J120,'Cost Module'!H120) -> 0 | G73: =IF($A$1="County Total ◊",'Cost Module'!J108,'Cost Module'!H108) -> 0 | H73: =IF($A$1="County Total ◊",'Cost Module'!M120,'Cost Module'!K120) -> 0 | I73: =IF($A$1="County Total ◊",'Cost Module'!M108,'Cost Module'!K108) -> 0 | J73: =IF($A$1="County Total ◊",'Cost Module'!P120,'Cost Module'!N120) -> 0 | K73: =IF($A$1="County Total ◊",'Cost Module'!P108,'Cost Module'!N108) -> 0
A74: Recreation | B74: =IF($A$1="County Total ◊",'Cost Module'!D121,'Cost Module'!B121) -> 0 | C74: =IF($A$1="County Total ◊",'Cost Module'!D109,'Cost Module'!B109) -> 0 | D74: =IF($A$1="County Total ◊",'Cost Module'!G121,'Cost Module'!E121) -> 0 | E74: =IF($A$1="County Total ◊",'Cost Module'!G109,'Cost Module'!E109) -> 0 | F74: =IF($A$1="County Total ◊",'Cost Module'!J121,'Cost Module'!H121) -> 0 | G74: =IF($A$1="County Total ◊",'Cost Module'!J109,'Cost Module'!H109) -> 0 | H74: =IF($A$1="County Total ◊",'Cost Module'!M121,'Cost Module'!K121) -> 0 | I74: =IF($A$1="County Total ◊",'Cost Module'!M109,'Cost Module'!K109) -> 0 | J74: =IF($A$1="County Total ◊",'Cost Module'!P121,'Cost Module'!N121) -> 0 | K74: =IF($A$1="County Total ◊",'Cost Module'!P109,'Cost Module'!N109) -> 0
A75: Housing & Community Dev. | B75: =IF($A$1="County Total ◊",'Cost Module'!D122,'Cost Module'!B122) -> 0 | C75: =IF($A$1="County Total ◊",'Cost Module'!D110,'Cost Module'!B110) -> 0 | D75: =IF($A$1="County Total ◊",'Cost Module'!G122,'Cost Module'!E122) -> 0 | E75: =IF($A$1="County Total ◊",'Cost Module'!G110,'Cost Module'!E110) -> 0 | F75: =IF($A$1="County Total ◊",'Cost Module'!J122,'Cost Module'!H122) -> 0 | G75: =IF($A$1="County Total ◊",'Cost Module'!J110,'Cost Module'!H110) -> 0 | H75: =IF($A$1="County Total ◊",'Cost Module'!M122,'Cost Module'!K122) -> 0 | I75: =IF($A$1="County Total ◊",'Cost Module'!M110,'Cost Module'!K110) -> 0 | J75: =IF($A$1="County Total ◊",'Cost Module'!P122,'Cost Module'!N122) -> 0 | K75: =IF($A$1="County Total ◊",'Cost Module'!P110,'Cost Module'!N110) -> 0
A76: Sewerage & Waste | B76: =IF($A$1="County Total ◊",'Cost Module'!D123,'Cost Module'!B123) -> 0 | C76: =IF($A$1="County Total ◊",'Cost Module'!D111,'Cost Module'!B111) -> 0 | D76: =IF($A$1="County Total ◊",'Cost Module'!G123,'Cost Module'!E123) -> 0 | E76: =IF($A$1="County Total ◊",'Cost Module'!G111,'Cost Module'!E111) -> 0 | F76: =IF($A$1="County Total ◊",'Cost Module'!J123,'Cost Module'!H123) -> 0 | G76: =IF($A$1="County Total ◊",'Cost Module'!J111,'Cost Module'!H111) -> 0 | H76: =IF($A$1="County Total ◊",'Cost Module'!M123,'Cost Module'!K123) -> 0 | I76: =IF($A$1="County Total ◊",'Cost Module'!M111,'Cost Module'!K111) -> 0 | J76: =IF($A$1="County Total ◊",'Cost Module'!P123,'Cost Module'!N123) -> 0 | K76: =IF($A$1="County Total ◊",'Cost Module'!P111,'Cost Module'!N111) -> 0
A77: Utilities | B77: =IF($A$1="County Total ◊",'Cost Module'!D124,'Cost Module'!B124) -> 0 | C77: =IF($A$1="County Total ◊",'Cost Module'!D112,'Cost Module'!B112) -> 0 | D77: =IF($A$1="County Total ◊",'Cost Module'!G124,'Cost Module'!E124) -> 0 | E77: =IF($A$1="County Total ◊",'Cost Module'!G112,'Cost Module'!E112) -> 0 | F77: =IF($A$1="County Total ◊",'Cost Module'!J124,'Cost Module'!H124) -> 0 | G77: =IF($A$1="County Total ◊",'Cost Module'!J112,'Cost Module'!H112) -> 0 | H77: =IF($A$1="County Total ◊",'Cost Module'!M124,'Cost Module'!K124) -> 0 | I77: =IF($A$1="County Total ◊",'Cost Module'!M112,'Cost Module'!K112) -> 0 | J77: =IF($A$1="County Total ◊",'Cost Module'!P124,'Cost Module'!N124) -> 0 | K77: =IF($A$1="County Total ◊",'Cost Module'!P112,'Cost Module'!N112) -> 0
A78: Other | B78: =IF($A$1="County Total ◊",'Cost Module'!D125,'Cost Module'!B125) -> 0 | C78: =IF($A$1="County Total ◊",'Cost Module'!D113,'Cost Module'!B113) -> 0 | D78: =IF($A$1="County Total ◊",'Cost Module'!G125,'Cost Module'!E125) -> 0 | E78: =IF($A$1="County Total ◊",'Cost Module'!G113,'Cost Module'!E113) -> 0 | F78: =IF($A$1="County Total ◊",'Cost Module'!J125,'Cost Module'!H125) -> 0 | G78: =IF($A$1="County Total ◊",'Cost Module'!J113,'Cost Module'!H113) -> 0 | H78: =IF($A$1="County Total ◊",'Cost Module'!M125,'Cost Module'!K125) -> 0 | I78: =IF($A$1="County Total ◊",'Cost Module'!M113,'Cost Module'!K113) -> 0 | J78: =IF($A$1="County Total ◊",'Cost Module'!P125,'Cost Module'!N125) -> 0 | K78: =IF($A$1="County Total ◊",'Cost Module'!P113,'Cost Module'!N113) -> 0
A79: Total | B79: =SUM(B70:B78) -> 0 | C79: 0 | D79: 0 | E79: 0 | F79: 0 | G79: 0 | H79: 0 | I79: 0 | J79: 0 | K79: 0
B81: Total: | D81: Per Capita | F81: Per Capita | H81: Per Capita | J81: Per Capita
B82: Education | C82: =C70/'Cost Module'!C$50 ->  | E82: =E70/'Cost Module'!E$50 ->  | G82: =G70/'Cost Module'!G$50 ->  | I82: =I70/'Cost Module'!I$50 ->  | J82: =J70+K70 -> 0 | K82: =K70/'Cost Module'!K$50 -> 
B83: Health Care | C83: =C71/'Cost Module'!C$50 ->  | E83: =E71/'Cost Module'!E$50 ->  | G83: =G71/'Cost Module'!G$50 ->  | I83: =I71/'Cost Module'!I$50 ->  | J83: 0 | K83: =K71/'Cost Module'!K$50 -> 
B84: Highways | C84: =C72/'Cost Module'!C$50 ->  | E84: =E72/'Cost Module'!E$50 ->  | G84: =G72/'Cost Module'!G$50 ->  | I84: =I72/'Cost Module'!I$50 ->  | J84: 0 | K84: =K72/'Cost Module'!K$50 -> 
B85: Public Safety | C85: =C73/'Cost Module'!C$50 ->  | E85: =E73/'Cost Module'!E$50 ->  | G85: =G73/'Cost Module'!G$50 ->  | I85: =I73/'Cost Module'!I$50 ->  | J85: 0 | K85: =K73/'Cost Module'!K$50 -> 
B86: Recreation | C86: =C74/'Cost Module'!C$50 ->  | E86: =E74/'Cost Module'!E$50 ->  | G86: =G74/'Cost Module'!G$50 ->  | I86: =I74/'Cost Module'!I$50 ->  | J86: 0 | K86: =K74/'Cost Module'!K$50 -> 
B87: Housing & Community Dev. | C87: =C75/'Cost Module'!C$50 ->  | E87: =E75/'Cost Module'!E$50 ->  | G87: =G75/'Cost Module'!G$50 ->  | I87: =I75/'Cost Module'!I$50 ->  | J87: 0 | K87: =K75/'Cost Module'!K$50 -> 
B88: Sewerage & Waste | C88: =C76/'Cost Module'!C$50 ->  | E88: =E76/'Cost Module'!E$50 ->  | G88: =G76/'Cost Module'!G$50 ->  | I88: =I76/'Cost Module'!I$50 ->  | J88: 0 | K88: =K76/'Cost Module'!K$50 -> 
B89: Utilities | C89: =C77/'Cost Module'!C$50 ->  | E89: =E77/'Cost Module'!E$50 ->  | G89: =G77/'Cost Module'!G$50 ->  | I89: =I77/'Cost Module'!I$50 ->  | J89: 0 | K89: =K77/'Cost Module'!K$50 -> 
B90: Other | C90: =C78/'Cost Module'!C$50 ->  | E90: =E78/'Cost Module'!E$50 ->  | G90: =G78/'Cost Module'!G$50 ->  | I90: =I78/'Cost Module'!I$50 ->  | J90: 0 | K90: =K78/'Cost Module'!K$50 -> 
B91: Total | C91: =C79/'Cost Module'!C$50 ->  | E91: =E79/'Cost Module'!E$50 ->  | G91: =G79/'Cost Module'!G$50 ->  | I91: =I79/'Cost Module'!I$50 ->  | J91: 0 | K91: =K79/'Cost Module'!K$50 -> 
A118: Annual Tax Revenue Performance | B118: per New HU | C118: per New Job | D118: per New HU | E118: per New Job | F118: per New HU | G118: per New Job | H118: per New HU | I118: per New Job | J118: per New HU | K118: per New Job
A119: Property Tax | B119: =IFERROR($C46/FIT_NEW_HU_1,0) -> 0 | C119: =IFERROR($C46/'Load Scenarios'!B$32,0) -> 0 | D119: =IFERROR(E46/FIT_NEW_HU_2,0) -> 0 | E119: =IFERROR(E46/'Load Scenarios'!C$32,0) -> 0 | F119: =IFERROR(G46/FIT_NEW_HU_3,0) -> 0 | G119: =IFERROR(G46/'Load Scenarios'!D$32,0) -> 0 | H119: =IFERROR(I46/FIT_NEW_HU_4,0) -> 0 | I119: =IFERROR(I46/'Load Scenarios'!E$32,0) -> 0 | J119: =IFERROR(K46/FIT_NEW_HU_5,0) -> 0 | K119: =IFERROR(K46/'Load Scenarios'!F$32,0) -> 0
A120: Sales Tax | B120: =IFERROR($C47/FIT_NEW_HU_1,0) -> 0 | C120: =IFERROR($C47/'Load Scenarios'!B$32,0) -> 0 | D120: =IFERROR(E47/FIT_NEW_HU_2,0) -> 0 | E120: =IFERROR(E47/'Load Scenarios'!C$32,0) -> 0 | F120: =IFERROR(G47/FIT_NEW_HU_3,0) -> 0 | G120: =IFERROR(G47/'Load Scenarios'!D$32,0) -> 0 | H120: =IFERROR(I47/FIT_NEW_HU_4,0) -> 0 | I120: =IFERROR(I47/'Load Scenarios'!E$32,0) -> 0 | J120: =IFERROR(K47/FIT_NEW_HU_5,0) -> 0 | K120: =IFERROR(K47/'Load Scenarios'!F$32,0) -> 0
A121: Income Tax | B121: =IFERROR($C48/FIT_NEW_HU_1,0) -> 0 | C121: =IFERROR($C48/'Load Scenarios'!B$32,0) -> 0 | D121: =IFERROR(E48/FIT_NEW_HU_2,0) -> 0 | E121: =IFERROR(E48/'Load Scenarios'!C$32,0) -> 0 | F121: =IFERROR(G48/FIT_NEW_HU_3,0) -> 0 | G121: =IFERROR(G48/'Load Scenarios'!D$32,0) -> 0 | H121: =IFERROR(I48/FIT_NEW_HU_4,0) -> 0 | I121: =IFERROR(I48/'Load Scenarios'!E$32,0) -> 0 | J121: =IFERROR(K48/FIT_NEW_HU_5,0) -> 0 | K121: =IFERROR(K48/'Load Scenarios'!F$32,0) -> 0
A180: Net New Project Value ◊ | B180: Market | C180: Assessed | D180: Market | E180: Assessed | F180: Market | G180: Assessed | H180: Market | I180: Assessed | J180: Market | K180: Assessed
A181: Value of Residential | B181: =FIT_RES_Val_1 -> 0 | C181: =B181*'Local Inputs'!$B$34 -> 0 | D181: =FIT_RES_Val_2 -> 0 | E181: =D181*'Local Inputs'!$B$34 -> 0 | F181: =FIT_RES_Val_3 -> 0 | G181: =F181*'Local Inputs'!$B$34 -> 0 | H181: =FIT_RES_Val_4 -> 0 | I181: =H181*'Local Inputs'!$B$34 -> 0 | J181: =FIT_RES_Val_5 -> 0 | K181: =J181*'Local Inputs'!$B$34 -> 0
A182: Value of Commercial | B182: =FIT_COM_Val_1 -> 0 | C182: =B182*'Local Inputs'!$B$35 -> 0 | D182: =FIT_COM_Val_2 -> 0 | E182: =D182*'Local Inputs'!$B$35 -> 0 | F182: =FIT_COM_Val_3 -> 0 | G182: =F182*'Local Inputs'!$B$35 -> 0 | H182: =FIT_COM_Val_4 -> 0 | I182: =H182*'Local Inputs'!$B$35 -> 0 | J182: =FIT_COM_Val_5 -> 0 | K182: =J182*'Local Inputs'!$B$35 -> 0
A183: Value per New Housing Unit
A184: Value per New Job

Sheet Summary Total
A1: Summary Total | B1: Existing | D1: ='Load Scenarios'!B4 -> Scenario 1 | F1: ='Load Scenarios'!C4 -> Scenario 2 | H1: ='Load Scenarios'!D4 -> Scenario 3 | J1: ='Load Scenarios'!E4 -> Scenario 4 | L1: ='Load Scenarios'!F4 -> Scenario 5
A2: ='Scenario Assumptions'!B8&"-Year Revenues and Expenditures" -> 30-Year Revenues and Expenditures | B2: Revenue | C2: Expenditure | D2: Revenue | E2: Expenditure | F2: Revenue | G2: Expenditure | H2: Revenue | I2: Expenditure | J2: Revenue | K2: Expenditure | L2: Revenue | M2: Expenditure
A3: Stream Value of chosen time horizon, in years: | B3: - | C3: - | D3: =SUMIF('NPV County'!$Q$6:$Q$55,'Scenario Assumptions'!$B$8,'NPV County'!$S$6:$S$55)+B4 -> 122997000 | E3: =SUMIF('NPV County'!$Q$6:$Q$55,'Scenario Assumptions'!$B$8,'NPV County'!$T$6:$T$55)+C4 -> 135189000 | F3: =SUMIF('NPV County'!$Q$60:$Q$109,'Scenario Assumptions'!$C$8,'NPV County'!$S$60:$S109)+B4 -> 122997000 | G3: =SUMIF('NPV County'!$Q$60:$Q$109,'Scenario Assumptions'!$C$8,'NPV County'!$T$60:$T$109)+C4 -> 135189000 | H3: =SUMIF('NPV County'!$Q$114:$Q$163,'Scenario Assumptions'!$D$8,'NPV County'!$S$114:$S$163)+B4 -> 122997000 | I3: =SUMIF('NPV County'!$Q$114:$Q$163,'Scenario Assumptions'!$D$8,'NPV County'!$T$114:$T$163)+C4 -> 135189000 | J3: =SUMIF('NPV County'!$Q$168:$Q$217,'Scenario Assumptions'!$E$8,'NPV County'!$S$168:$S$217)+B4 -> 122997000 | K3: =SUMIF('NPV County'!$Q$168:$Q$217,'Scenario Assumptions'!$E$8,'NPV County'!$T$168:$T$217)+C4 -> 135189000 | L3: =SUMIF('NPV County'!$Q$222:$Q$271,'Scenario Assumptions'!$F$8,'NPV County'!$S$222:$S$271)+B4 -> 122997000 | M3: =SUMIF('NPV County'!$Q$222:$Q$271,'Scenario Assumptions'!$F$8,'NPV County'!$T$222:$T$271)+C4 -> 135189000
A4: Total, One-Time and Ongoing | B4: =Census!AH3 -> 122997000 | C4: =Census!AC3 -> 135189000 | D4: =D3+'Cost Module'!D82 -> 122997000 | E4: =E3+'Cost Module'!D126 -> 135189000 | F4: =F3+'Cost Module'!G82 -> 122997000 | G4: =G3+'Cost Module'!G126 -> 135189000 | H4: =H3+'Cost Module'!J82 -> 122997000 | I4: =I3+'Cost Module'!J126 -> 135189000 | J4: =J3+'Cost Module'!M82 -> 122997000 | K4: =K3+'Cost Module'!M126 -> 135189000 | L4: =L3+'Cost Module'!P82 -> 122997000 | M4: =M3+'Cost Module'!P126 -> 135189000
A5: Cost -to-Revenue Ratio | B5: =(B4/C4)-1 -> -0.09018485232 | D5: =IFERROR((D4/E4)-1,0) -> -0.09018485232 | F5: =IFERROR((F4/G4)-1,0) -> -0.09018485232 | H5: =IFERROR((H4/I4)-1,0) -> -0.09018485232 | J5: =IFERROR((J4/K4)-1,0) -> -0.09018485232 | L5: =IFERROR((L4/M4)-1,0) -> -0.09018485232
A45: Annual Level of Service | B45: Revenue | C45: Expenditure | D45: Revenue | E45: Expenditure | F45: Revenue | G45: Expenditure | H45: Revenue | I45: Expenditure | J45: Revenue | K45: Expenditure | L45: Revenue | M45: Expenditure
A46: Per Housing Unit | B46: =IFERROR(B4/'Local Inputs'!D11,0) -> 5712.819322 | C46: =IFERROR(C4/'Local Inputs'!D11,0) -> 6279.098932 | D46: =IFERROR(D4/('Local Inputs'!$D$11+FIT_NET_HU_1),0) -> 5712.819322 | E46: =IFERROR(E4/('Local Inputs'!$D$11+FIT_NET_HU_1),0) -> 6279.098932 | F46: =IFERROR(F4/('Local Inputs'!$D$11+FIT_NET_HU_2),0) -> 5712.819322 | G46: =IFERROR(G4/('Local Inputs'!$D$11+FIT_NET_HU_2),0) -> 6279.098932 | H46: =IFERROR(H4/('Local Inputs'!$D$11+FIT_NET_HU_3),0) -> 5712.819322 | I46: =IFERROR(I4/('Local Inputs'!$D$11+FIT_NET_HU_3),0) -> 6279.098932 | J46: =IFERROR(J4/('Local Inputs'!$D$11+FIT_NET_HU_4),0) -> 5712.819322 | K46: =IFERROR(K4/('Local Inputs'!$D$11+FIT_NET_HU_4),0) -> 6279.098932 | L46: =IFERROR(L4/('Local Inputs'!$D$11+FIT_NET_HU_5),0) -> 5712.819322 | M46: =IFERROR(M4/('Local Inputs'!$D$11+FIT_NET_HU_5),0) -> 6279.098932
A47: Per 24/7 Population | B47: =Census!AI3 -> 2971.875227 | C47: =Census!AD3 -> 3266.460483 | D47: =D4/SUM('Local Inputs'!$D$9+'Cost Module'!C50) -> 2971.875227 | E47: =E4/SUM('Local Inputs'!$D$9+'Cost Module'!C50) -> 3266.460483 | F47: =F4/SUM('Local Inputs'!$D$9+'Cost Module'!E50) -> 2971.875227 | G47: =G4/SUM('Local Inputs'!$D$9+'Cost Module'!E50) -> 3266.460483 | H47: =H4/SUM('Local Inputs'!$D$9+'Cost Module'!G50) -> 2971.875227 | I47: =I4/SUM('Local Inputs'!$D$9+'Cost Module'!G50) -> 3266.460483 | J47: =J4/SUM('Local Inputs'!$D$9+'Cost Module'!I50) -> 2971.875227 | K47: =K4/SUM('Local Inputs'!$D$9+'Cost Module'!I50) -> 3266.460483 | L47: =L4/SUM('Local Inputs'!$D$9+'Cost Module'!K50) -> 2971.875227 | M47: =M4/SUM('Local Inputs'!$D$9+'Cost Module'!K50) -> 3266.460483
A48: Per Employee | B48: =IFERROR(B4/'Local Inputs'!D10,0) -> 13681.53504 | C48: =IFERROR(C4/'Local Inputs'!D10,0) -> 15037.70857 | D48: =D4/SUM('Local Inputs'!$D$10+'Load Scenarios'!B24) -> 13681.53504 | E48: =E4/SUM('Local Inputs'!$D$10+'Load Scenarios'!B24) -> 15037.70857 | F48: =F4/SUM('Local Inputs'!$D$10+'Load Scenarios'!C24) -> 13681.53504 | G48: =G4/SUM('Local Inputs'!$D$10+'Load Scenarios'!C24) -> 15037.70857 | H48: =H4/SUM('Local Inputs'!$D$10+'Load Scenarios'!D24) -> 13681.53504 | I48: =I4/SUM('Local Inputs'!$D$10+'Load Scenarios'!D24) -> 15037.70857 | J48: =J4/SUM('Local Inputs'!$D$10+'Load Scenarios'!E24) -> 13681.53504 | K48: =K4/SUM('Local Inputs'!$D$10+'Load Scenarios'!E24) -> 15037.70857 | L48: =L4/SUM('Local Inputs'!$D$10+'Load Scenarios'!F24) -> 13681.53504 | M48: =M4/SUM('Local Inputs'!$D$10+'Load Scenarios'!F24) -> 15037.70857
A100: Annual Revenue and Expenditure | B100: One-Time | C100: On-Going | D100: One-Time | E100: On-Going | F100: One-Time | G100: On-Going | H100: One-Time | I100: On-Going | J100: One-Time | K100: On-Going | L100: One-Time | M100: On-Going
A101: Revenue: | B101: - | C101: - | D101: - | E101: - | F101: - | G101: - | H101: - | I101: - | J101: - | K101: - | L101: - | M101: -
A102: Tax | B102: - | C102: =Census!AH3-SUM(Census!AH4:AH7) -> 47946000 | D102: 0 | E102: =$C102+'Cost Module'!D95 -> 47946000 | F102: 0 | G102: =$C102+'Cost Module'!G95 -> 47946000 | H102: 0 | I102: =$C102+'Cost Module'!J95 -> 47946000 | J102: 0 | K102: =$C102+'Cost Module'!M95 -> 47946000 | L102: 0 | M102: =$C102+'Cost Module'!P95 -> 47946000
A103: Non-Tax | B103: - | C103: =SUM(Census!AH4:AH7) -> 75051000 | D103: ='Cost Module'!D82 -> 0 | E103: =$C103+'Cost Module'!D102 -> 75051000 | F103: ='Cost Module'!G82 -> 0 | G103: =$C103+'Cost Module'!G102 -> 75051000 | H103: ='Cost Module'!J82 -> 0 | I103: =$C103+'Cost Module'!J102 -> 75051000 | J103: ='Cost Module'!M82 -> 0 | K103: =$C103+'Cost Module'!M102 -> 75051000 | L103: ='Cost Module'!P82 -> 0 | M103: =$C103+'Cost Module'!P102 -> 75051000
A104: Total | B104: - | C104: =Census!AH3 -> 122997000 | D104: =SUM(D102:D103) -> 0 | E104: 122997000 | F104: 0 | G104: 122997000 | H104: 0 | I104: 122997000 | J104: 0 | K104: 122997000 | L104: 0 | M104: 122997000
A105: Expenditure: | B105: - | C105: - | D105: - | E105: - | F105: - | G105: - | H105: - | I105: - | J105: - | K105: - | L105: - | M105: -
A106: Education | B106: =Census!AC7 -> 4954000 | C106: =Census!AC6-Census!AC7 -> 75147000 | D106: ='Cost Module'!D117+$B106 -> 4954000 | E106: ='Cost Module'!D105+$C106 -> 75147000 | F106: ='Cost Module'!G117+$B106 -> 4954000 | G106: ='Cost Module'!G105+$C106 -> 75147000 | H106: ='Cost Module'!J117+$B106 -> 4954000 | I106: ='Cost Module'!J105+$C106 -> 75147000 | J106: ='Cost Module'!M117+$B106 -> 4954000 | K106: ='Cost Module'!M105+$C106 -> 75147000 | L106: ='Cost Module'!P117+$B106 -> 4954000 | M106: ='Cost Module'!P105+$C106 -> 75147000
A107: Health Care | B107: =Census!AC9 -> 0 | C107: =Census!AC8-Census!AC9 -> 0 | D107: ='Cost Module'!D118+$B107 -> 0 | E107: ='Cost Module'!D106+$C107 -> 0 | F107: ='Cost Module'!G118+$B107 -> 0 | G107: ='Cost Module'!G106+$C107 -> 0 | H107: ='Cost Module'!J118+$B107 -> 0 | I107: ='Cost Module'!J106+$C107 -> 0 | J107: ='Cost Module'!M118+$B107 -> 0 | K107: ='Cost Module'!M106+$C107 -> 0 | L107: ='Cost Module'!P118+$B107 -> 0 | M107: ='Cost Module'!P106+$C107 -> 0
A108: Highways | B108: =Census!AC11 -> 489000 | C108: =Census!AC10-Census!AC11 -> 4674000 | D108: ='Cost Module'!D119+$B108 -> 489000 | E108: ='Cost Module'!D107+$D108 -> 489000 | F108: ='Cost Module'!G119+$B108 -> 489000 | G108: ='Cost Module'!G107+$C108 -> 4674000 | H108: ='Cost Module'!J119+$B108 -> 489000 | I108: ='Cost Module'!J107+$C108 -> 4674000 | J108: ='Cost Module'!M119+$B108 -> 489000 | K108: ='Cost Module'!M107+$C108 -> 4674000 | L108: ='Cost Module'!P119+$B108 -> 489000 | M108: ='Cost Module'!P107+$C108 -> 4674000
A109: Public Safety | C109: =Census!AC12+Census!AC13 -> 15912000 | D109: ='Cost Module'!D120+$B109 -> 0 | E109: ='Cost Module'!D108+$C109 -> 15912000 | F109: ='Cost Module'!G120+$B109 -> 0 | G109: ='Cost Module'!G108+$C109 -> 15912000 | H109: ='Cost Module'!J120+$B109 -> 0 | I109: ='Cost Module'!J108+$C109 -> 15912000 | J109: ='Cost Module'!M120+$B109 -> 0 | K109: ='Cost Module'!M108+$C109 -> 15912000 | L109: ='Cost Module'!P120+$B109 -> 0 | M109: ='Cost Module'!P108+$C109 -> 15912000
A110: Recreation | B110: =Census!AC15 -> 115000 | C110: =Census!AC14-Census!AC15 -> 3030000 | D110: ='Cost Module'!D121+$B110 -> 115000 | E110: ='Cost Module'!D109+$C110 -> 3030000 | F110: ='Cost Module'!G121+$B110 -> 115000 | G110: ='Cost Module'!G109+$C110 -> 3030000 | H110: ='Cost Module'!J121+$B110 -> 115000 | I110: ='Cost Module'!J109+$C110 -> 3030000 | J110: ='Cost Module'!M121+$B110 -> 115000 | K110: ='Cost Module'!M109+$C110 -> 3030000 | L110: ='Cost Module'!P121+$B110 -> 115000 | M110: ='Cost Module'!P109+$C110 -> 3030000
A111: Housing & Community Dev. | C111: =Census!AC16 -> 0 | D111: ='Cost Module'!D122+$B111 -> 0 | E111: ='Cost Module'!D110+$C111 -> 0 | F111: ='Cost Module'!G122+$B111 -> 0 | G111: ='Cost Module'!G110+$C111 -> 0 | H111: ='Cost Module'!J122+$B111 -> 0 | I111: ='Cost Module'!J110+$C111 -> 0 | J111: ='Cost Module'!M122+$B111 -> 0 | K111: ='Cost Module'!M110+$C111 -> 0 | L111: ='Cost Module'!P122+$B111 -> 0 | M111: ='Cost Module'!P110+$C111 -> 0
A112: Sewerage & Waste | B112: =Census!AC18+Census!AC20 -> 353000 | C112: =(Census!AC17+Census!AC19)-(Census!AC18+Census!AC20) -> 4003000 | D112: ='Cost Module'!D123+$B112 -> 353000 | E112: ='Cost Module'!D111+$C112 -> 4003000 | F112: ='Cost Module'!G123+$B112 -> 353000 | G112: ='Cost Module'!G111+$C112 -> 4003000 | H112: ='Cost Module'!J123+$B112 -> 353000 | I112: ='Cost Module'!J111+$C112 -> 4003000 | J112: ='Cost Module'!M123+$B112 -> 353000 | K112: ='Cost Module'!M111+$C112 -> 4003000 | L112: ='Cost Module'!P123+$B112 -> 353000 | M112: ='Cost Module'!P111+$C112 -> 4003000
A113: Utilities | B113: =Census!AC22 -> 1426000 | C113: =Census!AC21-Census!AC22 -> 632000 | D113: ='Cost Module'!D124+$B113 -> 1426000 | E113: ='Cost Module'!D112+$C113 -> 632000 | F113: ='Cost Module'!G124+$B113 -> 1426000 | G113: ='Cost Module'!G112+$C113 -> 632000 | H113: ='Cost Module'!J124+$B113 -> 1426000 | I113: ='Cost Module'!J112+$C113 -> 632000 | J113: ='Cost Module'!M124+$B113 -> 1426000 | K113: ='Cost Module'!M112+$C113 -> 632000 | L113: ='Cost Module'!P124+$B113 -> 1426000 | M113: ='Cost Module'!P112+$C113 -> 632000
A114: Other | B114: =B115-SUM(B106:B113) -> 3811000 | C114: =C115-SUM(C106:C113) -> 20643000 | D114: ='Cost Module'!D125+$B114 -> 3811000 | E114: ='Cost Module'!D113+$C114 -> 20643000 | F114: ='Cost Module'!G125+$B114 -> 3811000 | G114: ='Cost Module'!G113+$C114 -> 20643000 | H114: ='Cost Module'!J125+$B114 -> 3811000 | I114: ='Cost Module'!J113+$C114 -> 20643000 | J114: ='Cost Module'!M125+$B114 -> 3811000 | K114: ='Cost Module'!M113+$C114 -> 20643000 | L114: ='Cost Module'!P125+$B114 -> 3811000 | M114: ='Cost Module'!P113+$C114 -> 20643000
A115: Total | B115: =IF(Census!$AC$5>SUM(B106:B113),Census!$AC$5,SUM(B106:B113)) -> 11148000 | C115: =Census!AC3-Census!AC5 -> 124041000 | D115: ='Cost Module'!D126+$B115 -> 11148000 | E115: ='Cost Module'!D114+$C115 -> 124041000 | F115: ='Cost Module'!G126+$B115 -> 11148000 | G115: ='Cost Module'!G114+$C115 -> 124041000 | H115: ='Cost Module'!J126+$B115 -> 11148000 | I115: ='Cost Module'!J114+$C115 -> 124041000 | J115: ='Cost Module'!M126+$B115 -> 11148000 | K115: ='Cost Module'!M114+$C115 -> 124041000 | L115: ='Cost Module'!P126+$B115 -> 11148000 | M115: ='Cost Module'!P114+$C115 -> 124041000
A117: Annual Operations and Maintenance | B117: Total | C117: Per 24/7 Pop | D117: Total | E117: Per 24/7 Pop | F117: Total | G117: Per 24/7 Pop | H117: One-Time | I117: On-Going | J117: One-Time | K117: On-Going | L117: One-Time | M117: On-Going
A118: Roads | B118: =Census!AC10-Census!AC11 -> 4674000 | C118: =Census!AD10-Census!AD11 -> 112.9340131 | D118: ='Summary Total'!E108 -> 489000 | E118: ='Cost Module'!C14 -> 112.9340131 | F118: ='Summary Total'!G108 -> 4674000 | G118: ='Cost Module'!E14 -> 112.9340131 | H118: ='Summary Total'!I108 -> 4674000 | I118: ='Cost Module'!G14 -> 112.9340131 | J118: ='Summary Total'!K108 -> 4674000 | K118: ='Cost Module'!I14 -> 112.9340131 | L118: ='Summary Total'!M108 -> 4674000 | M118: ='Cost Module'!K14 -> 112.9340131
A119: Sewerage | B119: =Census!AC17-Census!AC18 -> 2199000 | C119: =Census!AD17-Census!AD18 -> 53.13262619 | D119: =E112 -> 4003000 | E119: ='Cost Module'!C24 -> 53.13262619 | F119: =G112 -> 4003000 | G119: ='Cost Module'!E24 -> 53.13262619 | H119: =I112 -> 4003000 | I119: ='Cost Module'!G24 -> 53.13262619 | J119: =K112 -> 4003000 | K119: ='Cost Module'!I24 -> 53.13262619 | L119: =M112 -> 4003000 | M119: ='Cost Module'!K24 -> 53.13262619
A120: Utilities | B120: =Census!AC21-Census!AC22 -> 632000 | C120: =Census!AD21-Census!AD22 -> 15.27049557 | D120: =E113 -> 632000 | E120: ='Cost Module'!C31 -> 15.27049557 | F120: =G113 -> 632000 | G120: ='Cost Module'!E31 -> 15.27049557 | H120: =I113 -> 632000 | I120: ='Cost Module'!G31 -> 15.27049557 | J120: =K113 -> 632000 | K120: ='Cost Module'!I31 -> 15.27049557 | L120: =M113 -> 632000 | M120: ='Cost Module'!K31 -> 15.27049557

Sheet Tax Output
A1: ESTIMATED TOTAL TAX RECEIPTS
B3: Scenario 1 | F3: Scenario 2 | J3: Scenario 3 | N3: Scenario 4 | R3: Scenario 5
B4: Direct | C4: Indirect | D4: Total | F4: Direct | G4: Indirect | H4: Total | J4: Direct | K4: Indirect | L4: Total | N4: Direct | O4: Indirect | P4: Total | R4: Direct | S4: Indirect | T4: Total
A6: Total Tax Receipts | B6: =SUM(B7:B12) -> 0 | C6: =SUM(C7:C12) -> 0 | D6: =SUM(D7:D12) -> 0 | F6: =SUM(F7:F12) -> 0 | G6: =SUM(G7:G12) -> 0 | H6: =SUM(H7:H12) -> 0 | J6: =SUM(J7:J12) -> 0 | K6: =SUM(K7:K12) -> 0 | L6: =SUM(L7:L12) -> 0 | N6: =SUM(N7:N12) -> 0 | O6: =SUM(O7:O12) -> 0 | P6: =SUM(P7:P12) -> 0 | R6: =SUM(R7:R12) -> 0 | S6: =SUM(S7:S12) -> 0 | T6: =SUM(T7:T12) -> 0
A7: Sales tax receipts in city | B7: =B31+B32 -> 0 | C7: =C31+C32 -> 0 | D7: =B7+C7 -> 0 | F7: =F31+F32 -> 0 | G7: =G31+G32 -> 0 | H7: =F7+G7 -> 0 | J7: =J31+J32 -> 0 | K7: =K31+K32 -> 0 | L7: =J7+K7 -> 0 | N7: =N31+N32 -> 0 | O7: =O31+O32 -> 0 | P7: =N7+O7 -> 0 | R7: =R31+R32 -> 0 | S7: =S31+S32 -> 0 | T7: =R7+S7 -> 0
A8: Franchise fees in city from project | B8: =B49*'Local Inputs'!$D$58 -> 0 | C8: 0 | D8: =B8 -> 0 | F8: =F49*'Local Inputs'!$D$58 -> 0 | G8: 0 | H8: =F8 -> 0 | J8: =J49*'Local Inputs'!$D$58 -> 0 | K8: 0 | L8: =J8 -> 0 | N8: =N49*'Local Inputs'!$D$58 -> 0 | O8: 0 | P8: =N8 -> 0 | R8: =R49*'Local Inputs'!$D$58 -> 0 | S8: 0 | T8: =R8 -> 0
A9: Sales taxes in other cities | B9: =B34+B35 -> 0 | C9: =C34+C35 -> 0 | D9: =B9+C9 -> 0 | F9: =F34+F35 -> 0 | G9: =G34+G35 -> 0 | H9: =F9+G9 -> 0 | J9: =J34+J35 -> 0 | K9: =K34+K35 -> 0 | L9: =J9+K9 -> 0 | N9: =N34+N35 -> 0 | O9: =O34+O35 -> 0 | P9: =N9+O9 -> 0 | R9: =R34+R35 -> 0 | S9: =S34+S35 -> 0 | T9: =R9+S9 -> 0
A10: Sales taxes for county | B10: =B28+B29 -> 0 | C10: =C28+C29 -> 0 | D10: =B10+C10 -> 0 | F10: =F28+F29 -> 0 | G10: =G28+G29 -> 0 | H10: =F10+G10 -> 0 | J10: =J28+J29 -> 0 | K10: =K28+K29 -> 0 | L10: =J10+K10 -> 0 | N10: =N28+N29 -> 0 | O10: =O28+O29 -> 0 | P10: =N10+O10 -> 0 | R10: =R28+R29 -> 0 | S10: =S28+S29 -> 0 | T10: =R10+S10 -> 0
A11: Property tax receipts in county | B11: =B22+B23+B24 -> 0 | C11: =C22+C23+C24 -> 0 | D11: =B11+C11 -> 0 | F11: =F22+F23+F24 -> 0 | G11: =G22+G23+G24 -> 0 | H11: =F11+G11 -> 0 | J11: =J22+J23+J24 -> 0 | K11: =K22+K23+K24 -> 0 | L11: =J11+K11 -> 0 | N11: =N22+N23+N24 -> 0 | O11: =O22+O23+O24 -> 0 | P11: =N11+O11 -> 0 | R11: =R22+R23+R24 -> 0 | S11: =S22+S23+S24 -> 0 | T11: =R11+S11 -> 0
A12: Other ongoing taxes in county | B12: =IF(B37="na",0,B37+B38) -> 0 | C12: =IFERROR(C37+C38,0) -> 0 | D12: =B12+C12 -> 0 | F12: =IF(F37="na",0,F37+F38) -> 0 | G12: =IFERROR(G37+G38,0) -> 0 | H12: =F12+G12 -> 0 | J12: =IF(J37="na",0,J37+J38) -> 0 | K12: =IFERROR(K37+K38,0) -> 0 | L12: =J12+K12 -> 0 | N12: =IF(N37="na",0,N37+N38) -> 0 | O12: =IFERROR(O37+O38,0) -> 0 | P12: =N12+O12 -> 0 | R12: =IF(R37="na",0,R37+R38) -> 0 | S12: =IFERROR(S37+S38,0) -> 0 | T12: =R12+S12 -> 0
A14: Effects on Tax Receipts
B15: Direct | C15: Indirect | D15: Total | F15: Direct | G15: Indirect | H15: Total | J15: Direct | K15: Indirect | L15: Total | N15: Direct | O15: Indirect | P15: Total | R15: Direct | S15: Indirect | T15: Total
A16: Property tax receipts
A17: Project Investment
A18: Residential | B18: =B45*'Local Inputs'!$B$25*'Local Inputs'!$B$34/1000 -> 0 | C18: na | D18: =B18 -> 0 | F18: =F45*'Local Inputs'!$B$25*'Local Inputs'!$B$34/1000 -> 0 | G18: na | H18: =F18 -> 0 | J18: =J45*'Local Inputs'!$B$25*'Local Inputs'!$B$34/1000 -> 0 | K18: na | L18: =J18 -> 0 | N18: =N45*'Local Inputs'!$B$25*'Local Inputs'!$B$34/1000 -> 0 | O18: na | P18: =N18 -> 0 | R18: =R45*'Local Inputs'!$B$25*'Local Inputs'!$B$34/1000 -> 0 | S18: na | T18: =R18 -> 0
A19: Commercial | B19: =B46*'Local Inputs'!$B$31*'Local Inputs'!$B$35/1000 -> 0 | C19: =B19*('Local Inputs'!$D$61-1)*'Local Inputs'!$D$62 -> 0 | D19: =B19+C19 -> 0 | F19: =F46*'Local Inputs'!$B$31*'Local Inputs'!$B$35/1000 -> 0 | G19: =F19*('Local Inputs'!$D$61-1)*'Local Inputs'!$D$62 -> 0 | H19: =F19+G19 -> 0 | J19: =J46*'Local Inputs'!$B$31*'Local Inputs'!$B$35/1000 -> 0 | K19: =J19*('Local Inputs'!$D$61-1)*'Local Inputs'!$D$62 -> 0 | L19: =J19+K19 -> 0 | N19: =N46*'Local Inputs'!$B$31*'Local Inputs'!$B$35/1000 -> 0 | O19: =N19*('Local Inputs'!$D$61-1)*'Local Inputs'!$D$62 -> 0 | P19: =N19+O19 -> 0 | R19: =R46*'Local Inputs'!$B$31*'Local Inputs'!$B$35/1000 -> 0 | S19: =R19*('Local Inputs'!$D$61-1)*'Local Inputs'!$D$62 -> 0 | T19: =R19+S19 -> 0
A20: Total Real | B20: =SUM(B19:B19) -> 0 | C20: =SUM(C19:C19) -> 0 | D20: =B20+C20 -> 0 | F20: =SUM(F19:F19) -> 0 | G20: =SUM(G19:G19) -> 0 | H20: =F20+G20 -> 0 | J20: =SUM(J19:J19) -> 0 | K20: =SUM(K19:K19) -> 0 | L20: =J20+K20 -> 0 | N20: =SUM(N19:N19) -> 0 | O20: =SUM(O19:O19) -> 0 | P20: =N20+O20 -> 0 | R20: =SUM(R19:R19) -> 0 | S20: =SUM(S19:S19) -> 0 | T20: =R20+S20 -> 0
A21: Distribution of property tax receipts
A22: to county | B22: =IFERROR(SUM(B$18:B$19)*'Local Inputs'!$B21/'Local Inputs'!$B$31,0) -> 0 | C22: =IFERROR(SUM(C$18:C$19)*'Local Inputs'!$B21/'Local Inputs'!$B$31,0) -> 0 | D22: =B22+C22 -> 0 | F22: =IFERROR(SUM(F$18:F$19)*'Local Inputs'!$B21/'Local Inputs'!$B$31,0) -> 0 | G22: =IFERROR(SUM(G$18:G$19)*'Local Inputs'!$B21/'Local Inputs'!$B$31,0) -> 0 | H22: =F22+G22 -> 0 | J22: =IFERROR(SUM(J$18:J$19)*'Local Inputs'!$B21/'Local Inputs'!$B$31,0) -> 0 | K22: =IFERROR(SUM(K$18:K$19)*'Local Inputs'!$B21/'Local Inputs'!$B$31,0) -> 0 | L22: =J22+K22 -> 0 | N22: =IFERROR(SUM(N$18:N$19)*'Local Inputs'!$B21/'Local Inputs'!$B$31,0) -> 0 | O22: =IFERROR(SUM(O$18:O$19)*'Local Inputs'!$B21/'Local Inputs'!$B$31,0) -> 0 | P22: =N22+O22 -> 0 | R22: =IFERROR(SUM(R$18:R$19)*'Local Inputs'!$B21/'Local Inputs'!$B$31,0) -> 0 | S22: =IFERROR(SUM(S$18:S$19)*'Local Inputs'!$B21/'Local Inputs'!$B$31,0) -> 0 | T22: =R22+S22 -> 0
A23: to city | B23: =IFERROR(SUM(B$18:B$19)*'Local Inputs'!$B22/'Local Inputs'!$B$31,0) -> 0 | C23: =IFERROR(SUM(C$18:C$19)*'Local Inputs'!$B22/'Local Inputs'!$B$31,0) -> 0 | D23: =B23+C23 -> 0 | F23: =IFERROR(SUM(F$18:F$19)*'Local Inputs'!$B22/'Local Inputs'!$B$31,0) -> 0 | G23: =IFERROR(SUM(G$18:G$19)*'Local Inputs'!$B22/'Local Inputs'!$B$31,0) -> 0 | H23: =F23+G23 -> 0 | J23: =IFERROR(SUM(J$18:J$19)*'Local Inputs'!$B22/'Local Inputs'!$B$31,0) -> 0 | K23: =IFERROR(SUM(K$18:K$19)*'Local Inputs'!$B22/'Local Inputs'!$B$31,0) -> 0 | L23: =J23+K23 -> 0 | N23: =IFERROR(SUM(N$18:N$19)*'Local Inputs'!$B22/'Local Inputs'!$B$31,0) -> 0 | O23: =IFERROR(SUM(O$18:O$19)*'Local Inputs'!$B22/'Local Inputs'!$B$31,0) -> 0 | P23: =N23+O23 -> 0 | R23: =IFERROR(SUM(R$18:R$19)*'Local Inputs'!$B22/'Local Inputs'!$B$31,0) -> 0 | S23: =IFERROR(SUM(S$18:S$19)*'Local Inputs'!$B22/'Local Inputs'!$B$31,0) -> 0 | T23: =R23+S23 -> 0
A24: to schools | B24: =IFERROR(SUM(B$18:B$19)*'Local Inputs'!$B23/'Local Inputs'!$B$31,0) -> 0 | C24: =IFERROR(SUM(C$18:C$19)*'Local Inputs'!$B23/'Local Inputs'!$B$31,0) -> 0 | D24: =B24+C24 -> 0 | F24: =IFERROR(SUM(F$18:F$19)*'Local Inputs'!$B23/'Local Inputs'!$B$31,0) -> 0 | G24: =IFERROR(SUM(G$18:G$19)*'Local Inputs'!$B23/'Local Inputs'!$B$31,0) -> 0 | H24: =F24+G24 -> 0 | J24: =IFERROR(SUM(J$18:J$19)*'Local Inputs'!$B23/'Local Inputs'!$B$31,0) -> 0 | K24: =IFERROR(SUM(K$18:K$19)*'Local Inputs'!$B23/'Local Inputs'!$B$31,0) -> 0 | L24: =J24+K24 -> 0 | N24: =IFERROR(SUM(N$18:N$19)*'Local Inputs'!$B23/'Local Inputs'!$B$31,0) -> 0 | O24: =IFERROR(SUM(O$18:O$19)*'Local Inputs'!$B23/'Local Inputs'!$B$31,0) -> 0 | P24: =N24+O24 -> 0 | R24: =IFERROR(SUM(R$18:R$19)*'Local Inputs'!$B23/'Local Inputs'!$B$31,0) -> 0 | S24: =IFERROR(SUM(S$18:S$19)*'Local Inputs'!$B23/'Local Inputs'!$B$31,0) -> 0 | T24: =R24+S24 -> 0
A25: Elsewhere | B25: =SUM(B18:B19)-SUM(B22:B24) -> 0 | C25: =SUM(C18:C19)-SUM(C22:C24) -> 0 | D25: =B25+C25 -> 0 | F25: =SUM(F18:F19)-SUM(F22:F24) -> 0 | G25: =SUM(G18:G19)-SUM(G22:G24) -> 0 | H25: =F25+G25 -> 0 | J25: =SUM(J18:J19)-SUM(J22:J24) -> 0 | K25: =SUM(K18:K19)-SUM(K22:K24) -> 0 | L25: =J25+K25 -> 0 | N25: =SUM(N18:N19)-SUM(N22:N24) -> 0 | O25: =SUM(O18:O19)-SUM(O22:O24) -> 0 | P25: =N25+O25 -> 0 | R25: =SUM(R18:R19)-SUM(R22:R24) -> 0 | S25: =SUM(S18:S19)-SUM(S22:S24) -> 0 | T25: =R25+S25 -> 0
A26: Sales tax receipts
A27: to county from
A28: Project spending | B28: =B48*'Local Inputs'!$B$44 -> 0 | C28: =ABS(B28*('Local Inputs'!$D$61-1)) -> 0 | D28: =B28+C28 -> 0 | F28: =F48*'Local Inputs'!$B$44 -> 0 | G28: =ABS(F28*('Local Inputs'!$D$61-1)) -> 0 | H28: =F28+G28 -> 0 | J28: =J48*'Local Inputs'!$B$44 -> 0 | K28: =ABS(J28*('Local Inputs'!$D$61-1)) -> 0 | L28: =J28+K28 -> 0 | N28: =N48*'Local Inputs'!$B$44 -> 0 | O28: =ABS(N28*('Local Inputs'!$D$61-1)) -> 0 | P28: =N28+O28 -> 0 | R28: =R48*'Local Inputs'!$B$44 -> 0 | S28: =ABS(R28*('Local Inputs'!$D$61-1)) -> 0 | T28: =R28+S28 -> 0
A29: Consumer spending | B29: =B51*'Local Inputs'!$B$44 -> 0 | C29: =B29*('Local Inputs'!$D$61-1) -> 0 | D29: =B29+C29 -> 0 | F29: =F51*'Local Inputs'!$B$44 -> 0 | G29: =F29*('Local Inputs'!$D$61-1) -> 0 | H29: =F29+G29 -> 0 | J29: =J51*'Local Inputs'!$B$44 -> 0 | K29: =J29*('Local Inputs'!$D$61-1) -> 0 | L29: =J29+K29 -> 0 | N29: =N51*'Local Inputs'!$B$44 -> 0 | O29: =N29*('Local Inputs'!$D$61-1) -> 0 | P29: =N29+O29 -> 0 | R29: =R51*'Local Inputs'!$B$44 -> 0 | S29: =R29*('Local Inputs'!$D$61-1) -> 0 | T29: =R29+S29 -> 0
A30: to specific city/town from
A31: Business spending | B31: =B48*'Local Inputs'!$B$45*'Local Inputs'!$D$66 -> 0 | C31: =B31*('Local Inputs'!$D$61-1) -> 0 | D31: =B31+C31 -> 0 | F31: =F48*'Local Inputs'!$B$45*'Local Inputs'!$D$66 -> 0 | G31: =F31*('Local Inputs'!$D$61-1) -> 0 | H31: =F31+G31 -> 0 | J31: =J48*'Local Inputs'!$B$45*'Local Inputs'!$D$66 -> 0 | K31: =J31*('Local Inputs'!$D$61-1) -> 0 | L31: =J31+K31 -> 0 | N31: =N48*'Local Inputs'!$B$45*'Local Inputs'!$D$66 -> 0 | O31: =N31*('Local Inputs'!$D$61-1) -> 0 | P31: =N31+O31 -> 0 | R31: =R48*'Local Inputs'!$B$45*'Local Inputs'!$D$66 -> 0 | S31: =R31*('Local Inputs'!$D$61-1) -> 0 | T31: =R31+S31 -> 0
A32: Consumer spending | B32: =B51*'Local Inputs'!$B$45*'Local Inputs'!$D$53 -> 0 | C32: =B32*('Local Inputs'!$D$61-1) -> 0 | D32: =B32+C32 -> 0 | F32: =F51*'Local Inputs'!$B$45*'Local Inputs'!$D$53 -> 0 | G32: =F32*('Local Inputs'!$D$61-1) -> 0 | H32: =F32+G32 -> 0 | J32: =J51*'Local Inputs'!$B$45*'Local Inputs'!$D$53 -> 0 | K32: =J32*('Local Inputs'!$D$61-1) -> 0 | L32: =J32+K32 -> 0 | N32: =N51*'Local Inputs'!$B$45*'Local Inputs'!$D$53 -> 0 | O32: =N32*('Local Inputs'!$D$61-1) -> 0 | P32: =N32+O32 -> 0 | R32: =R51*'Local Inputs'!$B$45*'Local Inputs'!$D$53 -> 0 | S32: =R32*('Local Inputs'!$D$61-1) -> 0 | T32: =R32+S32 -> 0
A33: to all other cities/towns in county from
A34: Business spending | B34: =B48*(1-'Local Inputs'!$D$66)*'Local Inputs'!$B$45 -> 0 | C34: =B34*('Local Inputs'!$D$61-1) -> 0 | D34: =B34+C34 -> 0 | F34: =F48*(1-'Local Inputs'!$D$66)*'Local Inputs'!$B$45 -> 0 | G34: =F34*('Local Inputs'!$D$61-1) -> 0 | H34: =F34+G34 -> 0 | J34: =J48*(1-'Local Inputs'!$D$66)*'Local Inputs'!$B$45 -> 0 | K34: =J34*('Local Inputs'!$D$61-1) -> 0 | L34: =J34+K34 -> 0 | N34: =N48*(1-'Local Inputs'!$D$66)*'Local Inputs'!$B$45 -> 0 | O34: =N34*('Local Inputs'!$D$61-1) -> 0 | P34: =N34+O34 -> 0 | R34: =R48*(1-'Local Inputs'!$D$66)*'Local Inputs'!$B$45 -> 0 | S34: =R34*('Local Inputs'!$D$61-1) -> 0 | T34: =R34+S34 -> 0
A35: Consumer spending | B35: =(B51-B52)*'Local Inputs'!$B$45 -> 0 | C35: =B35*('Local Inputs'!$D$61-1) -> 0 | D35: =B35+C35 -> 0 | F35: =(F51-F52)*'Local Inputs'!$B$45 -> 0 | G35: =F35*('Local Inputs'!$D$61-1) -> 0 | H35: =F35+G35 -> 0 | J35: =(J51-J52)*'Local Inputs'!$B$45 -> 0 | K35: =J35*('Local Inputs'!$D$61-1) -> 0 | L35: =J35+K35 -> 0 | N35: =(N51-N52)*'Local Inputs'!$B$45 -> 0 | O35: =N35*('Local Inputs'!$D$61-1) -> 0 | P35: =N35+O35 -> 0 | R35: =(R51-R52)*'Local Inputs'!$B$45 -> 0 | S35: =R35*('Local Inputs'!$D$61-1) -> 0 | T35: =R35+S35 -> 0
A36: Other ongoing tax receipts
A37: in specific city/town | B37: =IF('Scenario Assumptions'!B40=0,"na",'Scenario Assumptions'!B40*'Scenario Assumptions'!B41) -> na | C37: =IF(B37="na","na",B37*('Local Inputs'!$D$61-1)) -> na | D37: =IF(B37="na","na",B37+C37) -> na | F37: =IF('Scenario Assumptions'!F40=0,"na",'Scenario Assumptions'!F40*'Scenario Assumptions'!F41) -> na | G37: =IF(F37="na","na",F37*('Local Inputs'!$D$61-1)) -> na | H37: =IF(F37="na","na",F37+G37) -> na | J37: =IF('Scenario Assumptions'!J40=0,"na",'Scenario Assumptions'!J40*'Scenario Assumptions'!J41) -> na | K37: =IF(J37="na","na",J37*('Local Inputs'!$D$61-1)) -> na | L37: =IF(J37="na","na",J37+K37) -> na | N37: =IF('Load Scenarios'!N45=0,"na",'Load Scenarios'!N45*'Load Scenarios'!N46) -> na | O37: =IF(N37="na","na",N37*('Local Inputs'!$D$61-1)) -> na | P37: =IF(N37="na","na",N37+O37) -> na | R37: =IF('Load Scenarios'!R45=0,"na",'Load Scenarios'!R45*'Load Scenarios'!R46) -> na | S37: =IF(R37="na","na",R37*('Local Inputs'!$D$61-1)) -> na | T37: =IF(R37="na","na",R37+S37) -> na
A38: elsewhere in region | B38: =IF('Scenario Assumptions'!B40=0,"na",'Scenario Assumptions'!B40-'Tax Output'!B37) -> na | C38: =IF(B38="na","na",B38*('Local Inputs'!$D$61-1)) -> na | D38: =IF(B38="na","na",B38+C38) -> na | F38: =IF('Scenario Assumptions'!F40=0,"na",'Scenario Assumptions'!F40-'Tax Output'!F37) -> na | G38: =IF(F38="na","na",F38*('Local Inputs'!$D$61-1)) -> na | H38: =IF(F38="na","na",F38+G38) -> na | J38: =IF('Scenario Assumptions'!J40=0,"na",'Scenario Assumptions'!J40-'Tax Output'!J37) -> na | K38: =IF(J38="na","na",J38*('Local Inputs'!$D$61-1)) -> na | L38: =IF(J38="na","na",J38+K38) -> na | N38: =IF('Load Scenarios'!N45=0,"na",'Load Scenarios'!N45-'Tax Output'!N37) -> na | O38: =IF(N38="na","na",N38*('Local Inputs'!$D$61-1)) -> na | P38: =IF(N38="na","na",N38+O38) -> na | R38: =IF('Load Scenarios'!R45=0,"na",'Load Scenarios'!R45-'Tax Output'!R37) -> na | S38: =IF(R38="na","na",R38*('Local Inputs'!$D$61-1)) -> na | T38: =IF(R38="na","na",R38+S38) -> na
A40: Effects on Employment, Investment, and Spending
B41: Direct | C41: Indirect | D41: Total | F41: Direct | G41: Indirect | H41: Total | J41: Direct | K41: Indirect | L41: Total | N41: Direct | O41: Indirect | P41: Total | R41: Direct | S41: Indirect | T41: Total
A42: Employment | B42: ='Load Scenarios'!B24 -> 0 | C42: =B42*('Local Inputs'!$D$61-1) -> 0 | D42: =B42+C42 -> 0 | F42: ='Load Scenarios'!C24 -> 0 | G42: =F42*('Local Inputs'!$D$61-1) -> 0 | H42: =F42+G42 -> 0 | J42: ='Load Scenarios'!D24 -> 0 | K42: =J42*('Local Inputs'!$D$61-1) -> 0 | L42: =J42+K42 -> 0 | N42: ='Load Scenarios'!E24 -> 0 | O42: =N42*('Local Inputs'!$D$61-1) -> 0 | P42: =N42+O42 -> 0 | R42: ='Load Scenarios'!F24 -> 0 | S42: =R42*('Local Inputs'!$D$61-1) -> 0 | T42: =R42+S42 -> 0
A43: Total payroll | B43: =+'Scenario Assumptions'!B67 -> 0 | C43: =B43*('Local Inputs'!$D$61-1) -> 0 | D43: =B43+C43 -> 0 | F43: =+'Scenario Assumptions'!C67 -> 0 | G43: =F43*('Local Inputs'!$D$61-1) -> 0 | H43: =F43+G43 -> 0 | J43: =+'Scenario Assumptions'!D67 -> 0 | K43: =J43*('Local Inputs'!$D$61-1) -> 0 | L43: =J43+K43 -> 0 | N43: =+'Scenario Assumptions'!E67 -> 0 | O43: =N43*('Local Inputs'!$D$61-1) -> 0 | P43: =N43+O43 -> 0 | R43: =+'Scenario Assumptions'!F67 -> 0 | S43: =R43*('Local Inputs'!$D$61-1) -> 0 | T43: =R43+S43 -> 0
A44: Investment
A45: Residential | B45: ='Load Scenarios'!B37 -> 0 | C45: na | D45: =B45 -> 0 | F45: ='Load Scenarios'!C37 -> 0 | G45: na | H45: =F45 -> 0 | J45: ='Load Scenarios'!D37 -> 0 | K45: na | L45: =J45 -> 0 | N45: ='Load Scenarios'!E37 -> 0 | O45: na | P45: =N45 -> 0 | R45: ='Load Scenarios'!F37 -> 0 | S45: na | T45: =R45 -> 0
A46: Commercial | B46: ='Load Scenarios'!B38 -> 0 | C46: =B46*('Local Inputs'!$D$61-1)*'Local Inputs'!$D$62 -> 0 | D46: =B46+C46 -> 0 | F46: ='Load Scenarios'!C38 -> 0 | G46: =F46*('Local Inputs'!$D$61-1)*'Local Inputs'!$D$62 -> 0 | H46: =F46+G46 -> 0 | J46: ='Load Scenarios'!D38 -> 0 | K46: =J46*('Local Inputs'!$D$61-1)*'Local Inputs'!$D$62 -> 0 | L46: =J46+K46 -> 0 | N46: ='Load Scenarios'!E38 -> 0 | O46: =N46*('Local Inputs'!$D$61-1)*'Local Inputs'!$D$62 -> 0 | P46: =N46+O46 -> 0 | R46: ='Load Scenarios'!F38 -> 0 | S46: =R46*('Local Inputs'!$D$61-1)*'Local Inputs'!$D$62 -> 0 | T46: =R46+S46 -> 0
A47: Spending subject to sales or franchise tax
A48: Sales tax in county from project | B48: ='Scenario Assumptions'!B59 -> 0 | C48: na | D48: =B48 -> 0 | F48: ='Scenario Assumptions'!C59 -> 0 | G48: na | H48: =F48 -> 0 | J48: ='Scenario Assumptions'!D59 -> 0 | K48: na | L48: =J48 -> 0 | N48: ='Scenario Assumptions'!E59 -> 0 | O48: na | P48: =N48 -> 0 | R48: ='Scenario Assumptions'!F59 -> 0 | S48: na | T48: =R48 -> 0
A49: Franchise tax from project | B49: =('Scenario Assumptions'!B57+'Scenario Assumptions'!B58)*'Local Inputs'!$D$58 -> 0 | C49: na | D49: =B49 -> 0 | F49: =('Scenario Assumptions'!C57+'Scenario Assumptions'!C58)*'Local Inputs'!$D$58 -> 0 | G49: na | H49: =F49 -> 0 | J49: =('Scenario Assumptions'!D57+'Scenario Assumptions'!D58)*'Local Inputs'!$D$58 -> 0 | K49: na | L49: =J49 -> 0 | N49: =('Scenario Assumptions'!E57+'Scenario Assumptions'!E58)*'Local Inputs'!$D$58 -> 0 | O49: na | P49: =N49 -> 0 | R49: =('Scenario Assumptions'!F57+'Scenario Assumptions'!F58)*'Local Inputs'!$D$58 -> 0 | S49: na | T49: =R49 -> 0
A50: Consumers, total: | B50: =B43*'Local Inputs'!$B$54 -> 0 | C50: na | D50: =B50 -> 0 | F50: =F43*'Local Inputs'!$B$54 -> 0 | G50: na | H50: =F50 -> 0 | J50: =J43*'Local Inputs'!$B$54 -> 0 | K50: na | L50: =J50 -> 0 | N50: =N43*'Local Inputs'!$B$54 -> 0 | O50: na | P50: =N50 -> 0 | R50: =R43*'Local Inputs'!$B$54 -> 0 | S50: na | T50: =R50 -> 0
A51: in county | B51: =B50*(1-'Local Inputs'!$D$55) -> 0 | C51: =B51*('Local Inputs'!$D$61-1) -> 0 | D51: =B51+C51 -> 0 | F51: =F50*(1-'Local Inputs'!$D$55) -> 0 | G51: =F51*('Local Inputs'!$D$61-1) -> 0 | H51: =F51+G51 -> 0 | J51: =J50*(1-'Local Inputs'!$D$55) -> 0 | K51: =J51*('Local Inputs'!$D$61-1) -> 0 | L51: =J51+K51 -> 0 | N51: =N50*(1-'Local Inputs'!$D$55) -> 0 | O51: =N51*('Local Inputs'!$D$61-1) -> 0 | P51: =N51+O51 -> 0 | R51: =R50*(1-'Local Inputs'!$D$55) -> 0 | S51: =R51*('Local Inputs'!$D$61-1) -> 0 | T51: =R51+S51 -> 0
A52: in city/town | B52: =B51*'Local Inputs'!$D$53 -> 0 | C52: =B52*('Local Inputs'!$D$61-1) -> 0 | D52: =B52+C52 -> 0 | F52: =F51*'Local Inputs'!$D$53 -> 0 | G52: =F52*('Local Inputs'!$D$61-1) -> 0 | H52: =F52+G52 -> 0 | J52: =J51*'Local Inputs'!$D$53 -> 0 | K52: =J52*('Local Inputs'!$D$61-1) -> 0 | L52: =J52+K52 -> 0 | N52: =N51*'Local Inputs'!$D$53 -> 0 | O52: =N52*('Local Inputs'!$D$61-1) -> 0 | P52: =N52+O52 -> 0 | R52: =R51*'Local Inputs'!$D$53 -> 0 | S52: =R52*('Local Inputs'!$D$61-1) -> 0 | T52: =R52+S52 -> 0

Sheet Cost Module
A2: 2010 GOVERNMENT FINANCE BY CATEGORY
B3: Scenario 1 | D3: Scenario 2 | F3: Scenario 3 | H3: Scenario 4 | J3: Scenario 5
B4: Override | C4: Per 24/7 Pop. | D4: Override | E4: Per 24/7 Pop. | F4: Override | G4: Per 24/7 Pop. | H4: Override | I4: Per 24/7 Pop. | J4: Override | K4: Per 24/7 Pop.
A5: Direct expenditure
A6: Education | B6: 0 | C6: =IF(B6=0,Census!$AD$6,B6) -> 1550.451968 | D6: 0 | E6: =IF(D6=0,Census!$AD$6,D6) -> 1550.451968 | F6: 0 | G6: =IF(F6=0,Census!$AD$6,F6) -> 1550.451968 | H6: 0 | I6: =IF(H6=0,Census!$AD$6,H6) -> 1550.451968 | J6: 0 | K6: =IF(J6=0,Census!$AD$6,J6) -> 1550.451968
A7: Capital outlay | B7: 0 | C7: =IF(B7=0,Census!$AD$7,B7) -> 119.6994225 | D7: 0 | E7: =IF(D7=0,Census!$AD$7,D7) -> 119.6994225 | F7: 0 | G7: =IF(F7=0,Census!$AD$7,F7) -> 119.6994225 | H7: 0 | I7: =IF(H7=0,Census!$AD$7,H7) -> 119.6994225 | J7: 0 | K7: =IF(J7=0,Census!$AD$7,J7) -> 119.6994225
A8: Hospitals | B8: 0 | C8: =IF(B8=0,Census!$AD$8,B8) -> 0 | D8: 0 | E8: =IF(D8=0,Census!$AD$8,D8) -> 0 | F8: 0 | G8: =IF(F8=0,Census!$AD$8,F8) -> 0 | H8: 0 | I8: =IF(H8=0,Census!$AD$8,H8) -> 0 | J8: 0 | K8: =IF(J8=0,Census!$AD$8,J8) -> 0
A9: Capital outlay | B9: 0 | C9: =IF(B9=0,Census!$AD$9,B9) -> 0 | D9: 0 | E9: =IF(D9=0,Census!$AD$9,D9) -> 0 | F9: 0 | G9: =IF(F9=0,Census!$AD$9,F9) -> 0 | H9: 0 | I9: =IF(H9=0,Census!$AD$9,H9) -> 0 | J9: 0 | K9: =IF(J9=0,Census!$AD$9,J9) -> 0
A10: Roads | B10: 0 | C10: =IF(B10=0,IF(B59=0,C13+C11,C12+C14),B10) -> 124.7493174 | D10: 0 | E10: =IF(D10=0,IF(D59=0,E13+E11,E12+E14),D10) -> 124.7493174 | F10: 0 | G10: =IF(F10=0,IF(F59=0,G13+G11,G12+G14),F10) -> 124.7493174 | H10: 0 | I10: =IF(H10=0,IF(H59=0,I13+I11,I12+I14),H10) -> 124.7493174 | J10: 0 | K10: =IF(J10=0,IF(J59=0,K13+K11,K12+K14),J10) -> 124.7493174
A11: Baseline capital outlay | B11: 0 | C11: =IF(B11=0,Census!$AD$11,B11) -> 11.81530432 | D11: 0 | E11: =IF(D11=0,Census!$AD$11,D11) -> 11.81530432 | F11: 0 | G11: =IF(F11=0,Census!$AD$11,F11) -> 11.81530432 | H11: 0 | I11: =IF(H11=0,Census!$AD$11,H11) -> 11.81530432 | J11: 0 | K11: =IF(J11=0,Census!$AD$11,J11) -> 11.81530432
A12: Scenario capital outlay | B12: 0 | C12: =IF(B12=0,Census!$AD$11+(B60/'Scenario Assumptions'!B8/Census!$AJ$67),B12) -> 11.81530432 | D12: 0 | E12: =IF(D12=0,Census!$AD$11+(D60/'Scenario Assumptions'!C8/Census!$AJ$67),D12) -> 11.81530432 | F12: 0 | G12: =IF(F12=0,Census!$AD$11+(F60/'Scenario Assumptions'!D8/Census!$AJ$67),F12) -> 11.81530432 | H12: 0 | I12: =IF(H12=0,Census!$AD$11+(H60/'Scenario Assumptions'!E8/Census!$AJ$67),H12) -> 11.81530432 | J12: 0 | K12: =IF(J12=0,Census!$AD$11+(J60/'Scenario Assumptions'!F8/Census!$AJ$67),J12) -> 11.81530432
A13: Baseline O&M | B13: 0 | C13: =IF(B13=0,Census!$AD$10-Census!$AD$11,B13) -> 112.9340131 | D13: 0 | E13: =IF(D13=0,Census!$AD$10-Census!$AD$11,D13) -> 112.9340131 | F13: 0 | G13: =IF(F13=0,Census!$AD$10-Census!$AD$11,F13) -> 112.9340131 | H13: 0 | I13: =IF(H13=0,Census!$AD$10-Census!$AD$11,H13) -> 112.9340131 | J13: 0 | K13: =IF(J13=0,Census!$AD$10-Census!$AD$11,J13) -> 112.9340131
A14: Scenario O&M | B14: 0 | C14: =IF(B14=0,C13*(((B59*'Scenario Assumptions'!B35/'Scenario Assumptions'!B8)+(Census!$AC$11))/(Census!$AC$11)),B14) -> 112.9340131 | D14: 0 | E14: =IF(D14=0,E13*(((D59*'Scenario Assumptions'!C35/'Scenario Assumptions'!C8)+(Census!$AC$11))/(Census!$AC$11)),D14) -> 112.9340131 | F14: 0 | G14: =IF(F14=0,G13*(((F59*'Scenario Assumptions'!D35/'Scenario Assumptions'!D8)+(Census!$AC$11))/(Census!$AC$11)),F14) -> 112.9340131 | H14: 0 | I14: =IF(H14=0,I13*(((H59*'Scenario Assumptions'!E35/'Scenario Assumptions'!E8)+(Census!$AC$11))/(Census!$AC$11)),H14) -> 112.9340131 | J14: 0 | K14: =IF(J14=0,K13*(((J59*'Scenario Assumptions'!F35/'Scenario Assumptions'!F8)+(Census!$AC$11))/(Census!$AC$11)),J14) -> 112.9340131
A15: Police protection | B15: 0 | C15: =IF(B15=0,Census!$AD$12,B15) -> 210.6216928 | D15: 0 | E15: =IF(D15=0,Census!$AD$12,D15) -> 210.6216928 | F15: 0 | G15: =IF(F15=0,Census!$AD$12,F15) -> 210.6216928 | H15: 0 | I15: =IF(H15=0,Census!$AD$12,H15) -> 210.6216928 | J15: 0 | K15: =IF(J15=0,Census!$AD$12,J15) -> 210.6216928
A16: Fire protection | B16: 0 | C16: =IF(B16=0,Census!$AD$13,B16) -> 173.8468601 | D16: 0 | E16: =IF(D16=0,Census!$AD$13,D16) -> 173.8468601 | F16: 0 | G16: =IF(F16=0,Census!$AD$13,F16) -> 173.8468601 | H16: 0 | I16: =IF(H16=0,Census!$AD$13,H16) -> 173.8468601 | J16: 0 | K16: =IF(J16=0,Census!$AD$13,J16) -> 173.8468601
A17: Parks and recreation | B17: 0 | C17: =IF(B17=0,Census!$AD$14,B17) -> 75.99004518 | D17: 0 | E17: =IF(D17=0,Census!$AD$14,D17) -> 75.99004518 | F17: 0 | G17: =IF(F17=0,Census!$AD$14,F17) -> 75.99004518 | H17: 0 | I17: =IF(H17=0,Census!$AD$14,H17) -> 75.99004518 | J17: 0 | K17: =IF(J17=0,Census!$AD$14,J17) -> 75.99004518
A18: Capital outlay | B18: 0 | C18: =IF(B18=0,Census!$AD$15,B18) -> 2.778650301 | D18: 0 | E18: =IF(D18=0,Census!$AD$15,D18) -> 2.778650301 | F18: 0 | G18: =IF(F18=0,Census!$AD$15,F18) -> 2.778650301 | H18: 0 | I18: =IF(H18=0,Census!$AD$15,H18) -> 2.778650301 | J18: 0 | K18: =IF(J18=0,Census!$AD$15,J18) -> 2.778650301
B19: 0 | C19: =IF(B19=0,Census!$AD$16,B19) -> 0 | D19: 0 | E19: =IF(D19=0,Census!$AD$16,D19) -> 0 | F19: 0 | G19: =IF(F19=0,Census!$AD$16,F19) -> 0 | H19: 0 | I19: =IF(H19=0,Census!$AD$16,H19) -> 0 | J19: 0 | K19: =IF(J19=0,Census!$AD$16,J19) -> 0
A20: Sewerage | B20: 0 | C20: =IF(B20=0,IF(B64=0,C23+C21,C22+C24),B20) -> 54.82397854 | D20: 0 | E20: =IF(D20=0,IF(D64=0,E23+E21,E22+E24),D20) -> 54.82397854 | F20: 0 | G20: =IF(F20=0,IF(F64=0,G23+G21,G22+G24),F20) -> 54.82397854 | H20: 0 | I20: =IF(H20=0,IF(H64=0,I23+I21,I22+I24),H20) -> 54.82397854 | J20: 0 | K20: =IF(J20=0,IF(J64=0,K23+K21,K22+K24),J20) -> 54.82397854
A21: Baseline capital outlay | B21: 0 | C21: =IF(B21=0,Census!$AD$18,B21) -> 1.691352357 | D21: 0 | E21: =IF(D21=0,Census!$AD$18,D21) -> 1.691352357 | F21: 0 | G21: =IF(F21=0,Census!$AD$18,F21) -> 1.691352357 | H21: 0 | I21: =IF(H21=0,Census!$AD$18,H21) -> 1.691352357 | J21: 0 | K21: =IF(J21=0,Census!$AD$18,J21) -> 1.691352357
A22: Scenario capital outlay | B22: 0 | C22: =IF(B22=0,Census!$AD$18+('Cost Module'!B64/'Scenario Assumptions'!B8/Census!$AJ$67),B22) -> 1.691352357 | D22: 0 | E22: =IF(D22=0,Census!$AD$18+('Cost Module'!D64/'Scenario Assumptions'!C8/Census!$AJ$67),D22) -> 1.691352357 | F22: 0 | G22: =IF(F22=0,Census!$AD$18+('Cost Module'!F64/'Scenario Assumptions'!D8/Census!$AJ$67),F22) -> 1.691352357 | H22: 0.001 | I22: =IF(H22=0,Census!$AD$18+('Cost Module'!H64/'Scenario Assumptions'!E8/Census!$AJ$67),H22) -> 0.001 | J22: 0.001 | K22: =IF(J22=0,Census!$AD$18+('Cost Module'!J64/'Scenario Assumptions'!F8/Census!$AJ$67),J22) -> 0.001
A23: Baseline O&M | B23: 0 | C23: =IF(B23=0,Census!$AD$17-Census!$AD$18,B23) -> 53.13262619 | D23: 0 | E23: =IF(D23=0,Census!$AD$17-Census!$AD$18,D23) -> 53.13262619 | F23: 0 | G23: =IF(F23=0,Census!$AD$17-Census!$AD$18,F23) -> 53.13262619 | H23: 0 | I23: =IF(H23=0,Census!$AD$17-Census!$AD$18,H23) -> 53.13262619 | J23: 0 | K23: =IF(J23=0,Census!$AD$17-Census!$AD$18,J23) -> 53.13262619
A24: Scenario O&M | B24: 0 | C24: =IF(B24=0,C23*((B64*'Scenario Assumptions'!B35/'Scenario Assumptions'!B8+(Census!$AC$17))/(Census!$AC$17)),B24) -> 53.13262619 | D24: 0 | E24: =IF(D24=0,E23*((D64*'Scenario Assumptions'!C35/'Scenario Assumptions'!C8+(Census!$AC$17))/(Census!$AC$17)),D24) -> 53.13262619 | F24: 0 | G24: =IF(F24=0,G23*((F64*'Scenario Assumptions'!D35/'Scenario Assumptions'!D8+(Census!$AC$17))/(Census!$AC$17)),F24) -> 53.13262619 | H24: 0 | I24: =IF(H24=0,I23*((H64*'Scenario Assumptions'!E35/'Scenario Assumptions'!E8+(Census!$AC$17))/(Census!$AC$17)),H24) -> 53.13262619 | J24: 0 | K24: =IF(J24=0,K23*((J64*'Scenario Assumptions'!F35/'Scenario Assumptions'!F8+(Census!$AC$17))/(Census!$AC$17)),J24) -> 53.13262619
A25: Solid waste management | B25: 0 | C25: =IF(B25=0,Census!$AD$19,B25) -> 50.42646242 | D25: 0 | E25: =IF(D25=0,Census!$AD$19,D25) -> 50.42646242 | F25: 0 | G25: =IF(F25=0,Census!$AD$19,F25) -> 50.42646242 | H25: 0 | I25: =IF(H25=0,Census!$AD$19,H25) -> 50.42646242 | J25: 0 | K25: =IF(J25=0,Census!$AD$19,J25) -> 50.42646242
A26: Capital outlay | B26: 0 | C26: =IF(B26=0,Census!$AD$20,B26) -> 6.837895958 | D26: 0 | E26: =IF(D26=0,Census!$AD$20,D26) -> 6.837895958 | F26: 0 | G26: =IF(F26=0,Census!$AD$20,F26) -> 6.837895958 | H26: 0 | I26: =IF(H26=0,Census!$AD$20,H26) -> 6.837895958 | J26: 0 | K26: =IF(J26=0,Census!$AD$20,J26) -> 6.837895958
A27: Utility | B27: 0 | C27: =IF(B27=0,IF(B65=0,C30+C28,C29+C31),B27) -> 49.7257593 | D27: 0 | E27: =IF(D27=0,IF(D65=0,E30+E28,E29+E31),D27) -> 49.7257593 | F27: 0 | G27: =IF(F27=0,IF(F65=0,G30+G28,G29+G31),F27) -> 49.7257593 | H27: 0 | I27: =IF(H27=0,IF(H65=0,I30+I28,I29+I31),H27) -> 49.7257593 | J27: 0 | K27: =IF(J27=0,IF(J65=0,K30+K28,K29+K31),J27) -> 49.7257593
A28: Baseline capital outlay | B28: 0 | C28: =IF(B28=0,Census!$AD$22,B28) -> 34.45526373 | D28: 0 | E28: =IF(D28=0,Census!$AD$22,D28) -> 34.45526373 | F28: 0 | G28: =IF(F28=0,Census!$AD$22,F28) -> 34.45526373 | H28: 0 | I28: =IF(H28=0,Census!$AD$22,H28) -> 34.45526373 | J28: 0 | K28: =IF(J28=0,Census!$AD$22,J28) -> 34.45526373
A29: Scenario capital outlay | B29: 0 | C29: =IF(B29=0,Census!$AD$22+('Cost Module'!B65/'Scenario Assumptions'!B8/Census!$AJ$67),B29) -> 34.45526373 | D29: 0 | E29: =IF(D29=0,Census!$AD$22+('Cost Module'!D65/'Scenario Assumptions'!C8/Census!$AJ$67),D29) -> 34.45526373 | F29: 0 | G29: =IF(F29=0,Census!$AD$22+('Cost Module'!F65/'Scenario Assumptions'!D8/Census!$AJ$67),F29) -> 34.45526373 | H29: 0 | I29: =IF(H29=0,Census!$AD$22+('Cost Module'!H65/'Scenario Assumptions'!E8/Census!$AJ$67),H29) -> 34.45526373 | J29: 0 | K29: =IF(J29=0,Census!$AD$22+('Cost Module'!J65/'Scenario Assumptions'!F8/Census!$AJ$67),J29) -> 34.45526373
A30: Baseline O&M | B30: 0 | C30: =IF(B30=0,Census!$AD$21-Census!$AD$22,B30) -> 15.27049557 | D30: 0 | E30: =IF(D30=0,Census!$AD$21-Census!$AD$22,D30) -> 15.27049557 | F30: 0 | G30: =IF(F30=0,Census!$AD$21-Census!$AD$22,F30) -> 15.27049557 | H30: 0 | I30: =IF(H30=0,Census!$AD$21-Census!$AD$22,H30) -> 15.27049557 | J30: 0 | K30: =IF(J30=0,Census!$AD$21-Census!$AD$22,J30) -> 15.27049557
A31: Scenario O&M | B31: 0 | C31: =IF(B31=0,C30*((B65*'Scenario Assumptions'!B35/'Scenario Assumptions'!B8+(Census!$AC$21))/(Census!$AC$21)),B31) -> 15.27049557 | D31: 0 | E31: =IF(D31=0,E30*((D65*'Scenario Assumptions'!C35/'Scenario Assumptions'!C8+(Census!$AC$21))/(Census!$AC$21)),D31) -> 15.27049557 | F31: 0 | G31: =IF(F31=0,G30*((F65*'Scenario Assumptions'!D35/'Scenario Assumptions'!D8+(Census!$AC$21))/(Census!$AC$21)),F31) -> 15.27049557 | H31: 0 | I31: =IF(H31=0,I30*((H65*'Scenario Assumptions'!E35/'Scenario Assumptions'!E8+(Census!$AC$21))/(Census!$AC$21)),H31) -> 15.27049557 | J31: 0 | K31: =IF(J31=0,K30*((J65*'Scenario Assumptions'!F35/'Scenario Assumptions'!F8+(Census!$AC$21))/(Census!$AC$21)),J31) -> 15.27049557
A32: Direct revenue
A33: Intergovernmental Revenue | B33: 0 | C33: =IF(B33=0,Census!$AI$4,B33) -> 1690.071762 | D33: 0 | E33: =IF(D33=0,Census!$AI$4,D33) -> 1690.071762 | F33: 0 | G33: =IF(F33=0,Census!$AI$4,F33) -> 1690.071762 | H33: 0 | I33: =IF(H33=0,Census!$AI$4,H33) -> 1690.071762 | J33: 0 | K33: =IF(J33=0,Census!$AI$4,J33) -> 1690.071762
A34: Individual Income Tax Revenue | B34: 0 | C34: =IF(B34>0,B34,IFERROR(SUMPRODUCT(C35:C40,'Load Scenarios'!B18:B23)/SUM('Load Scenarios'!B18:B23),AVERAGE(C35:C40))) -> 0 | D34: 0 | E34: =IF(D34>0,D34,IFERROR(SUMPRODUCT(E35:E40,'Load Scenarios'!C18:C23)/SUM('Load Scenarios'!C18:C23),AVERAGE(E35:E40))) -> 0 | F34: 0 | G34: =IF(F34>0,F34,IFERROR(SUMPRODUCT(G35:G40,'Load Scenarios'!D18:D23)/SUM('Load Scenarios'!D18:D23),AVERAGE(G35:G40))) -> 0 | H34: 0 | I34: =IF(H34>0,H34,IFERROR(SUMPRODUCT(I35:I40,'Load Scenarios'!E18:E23)/SUM('Load Scenarios'!E18:E23),AVERAGE(I35:I40))) -> 0 | J34: 0 | K34: =IF(J34>0,J34,IFERROR(SUMPRODUCT(K35:K40,'Load Scenarios'!F18:F23)/SUM('Load Scenarios'!F18:F23),AVERAGE(K35:K40))) -> 0
A35: Retail | B35: 0 | C35: =IFERROR(IF(B35>0,B35,IF(AND('Local Inputs'!$B$38+'Local Inputs'!$B$39>0,C$50>0),('Load Scenarios'!B18*Census!$AC63*'Local Inputs'!$B$40)/C$50,Census!$AI$11)),0) -> 0 | D35: 0 | E35: =IFERROR(IF(D35>0,D35,IF(AND('Local Inputs'!$B$38+'Local Inputs'!$B$39>0,E$50>0),('Load Scenarios'!C18*Census!$AC63*'Local Inputs'!$B$40)/E$50,Census!$AI$11)),0) -> 0 | F35: 0 | G35: =IFERROR(IF(F35>0,F35,IF(AND('Local Inputs'!$B$38+'Local Inputs'!$B$39>0,G$50>0),('Load Scenarios'!D18*Census!$AC63*'Local Inputs'!$B$40)/G$50,Census!$AI$11)),0) -> 0 | H35: 0 | I35: =IFERROR(IF(H35>0,H35,IF(AND('Local Inputs'!$B$38+'Local Inputs'!$B$39>0,I$50>0),('Load Scenarios'!E18*Census!$AC63*'Local Inputs'!$B$40)/I$50,Census!$AI$11)),0) -> 0 | J35: 0 | K35: =IFERROR(IF(J35>0,J35,IF(AND('Local Inputs'!$B$38+'Local Inputs'!$B$39>0,K$50>0),('Load Scenarios'!F18*Census!$AC63*'Local Inputs'!$B$40)/K$50,Census!$AI$11)),0) -> 0
A36: Office | B36: 0 | C36: =IFERROR(IF(B36>0,B36,IF(AND('Local Inputs'!$B$38+'Local Inputs'!$B$39>0,C$50>0),('Load Scenarios'!B19*Census!$AC64*'Local Inputs'!$B$40)/C$50,Census!$AI$11)),0) -> 0 | D36: 0 | E36: =IFERROR(IF(D36>0,D36,IF(AND('Local Inputs'!$B$38+'Local Inputs'!$B$39>0,E$50>0),('Load Scenarios'!C19*Census!$AC64*'Local Inputs'!$B$40)/E$50,Census!$AI$11)),0) -> 0 | F36: 0 | G36: =IFERROR(IF(F36>0,F36,IF(AND('Local Inputs'!$B$38+'Local Inputs'!$B$39>0,G$50>0),('Load Scenarios'!D19*Census!$AC64*'Local Inputs'!$B$40)/G$50,Census!$AI$11)),0) -> 0 | H36: 0 | I36: =IFERROR(IF(H36>0,H36,IF(AND('Local Inputs'!$B$38+'Local Inputs'!$B$39>0,I$50>0),('Load Scenarios'!E19*Census!$AC64*'Local Inputs'!$B$40)/I$50,Census!$AI$11)),0) -> 0 | J36: 0 | K36: =IFERROR(IF(J36>0,J36,IF(AND('Local Inputs'!$B$38+'Local Inputs'!$B$39>0,K$50>0),('Load Scenarios'!F19*Census!$AC64*'Local Inputs'!$B$40)/K$50,Census!$AI$11)),0) -> 0
A37: Industrial | B37: 0 | C37: =IFERROR(IF(B37>0,B37,IF(AND('Local Inputs'!$B$38+'Local Inputs'!$B$39>0,C$50>0),('Load Scenarios'!B20*Census!$AC65*'Local Inputs'!$B$40)/C$50,Census!$AI$11)),0) -> 0 | D37: 0 | E37: =IFERROR(IF(D37>0,D37,IF(AND('Local Inputs'!$B$38+'Local Inputs'!$B$39>0,E$50>0),('Load Scenarios'!C20*Census!$AC65*'Local Inputs'!$B$40)/E$50,Census!$AI$11)),0) -> 0 | F37: 0 | G37: =IFERROR(IF(F37>0,F37,IF(AND('Local Inputs'!$B$38+'Local Inputs'!$B$39>0,G$50>0),('Load Scenarios'!D20*Census!$AC65*'Local Inputs'!$B$40)/G$50,Census!$AI$11)),0) -> 0 | H37: 0 | I37: =IFERROR(IF(H37>0,H37,IF(AND('Local Inputs'!$B$38+'Local Inputs'!$B$39>0,I$50>0),('Load Scenarios'!E20*Census!$AC65*'Local Inputs'!$B$40)/I$50,Census!$AI$11)),0) -> 0 | J37: 0 | K37: =IFERROR(IF(J37>0,J37,IF(AND('Local Inputs'!$B$38+'Local Inputs'!$B$39>0,K$50>0),('Load Scenarios'!F20*Census!$AC65*'Local Inputs'!$B$40)/K$50,Census!$AI$11)),0) -> 0
A38: Public/Civic | B38: 0 | C38: =IFERROR(IF(B38>0,B38,IF(AND('Local Inputs'!$B$38+'Local Inputs'!$B$39>0,C$50>0),('Load Scenarios'!B21*Census!$AC66*'Local Inputs'!$B$40)/C$50,Census!$AI$11)),0) -> 0 | D38: 0 | E38: =IFERROR(IF(D38>0,D38,IF(AND('Local Inputs'!$B$38+'Local Inputs'!$B$39>0,E$50>0),('Load Scenarios'!C21*Census!$AC66*'Local Inputs'!$B$40)/E$50,Census!$AI$11)),0) -> 0 | F38: 0 | G38: =IFERROR(IF(F38>0,F38,IF(AND('Local Inputs'!$B$38+'Local Inputs'!$B$39>0,G$50>0),('Load Scenarios'!D21*Census!$AC66*'Local Inputs'!$B$40)/G$50,Census!$AI$11)),0) -> 0 | H38: 0 | I38: =IFERROR(IF(H38>0,H38,IF(AND('Local Inputs'!$B$38+'Local Inputs'!$B$39>0,I$50>0),('Load Scenarios'!E21*Census!$AC66*'Local Inputs'!$B$40)/I$50,Census!$AI$11)),0) -> 0 | J38: 0 | K38: =IFERROR(IF(J38>0,J38,IF(AND('Local Inputs'!$B$38+'Local Inputs'!$B$39>0,K$50>0),('Load Scenarios'!F21*Census!$AC66*'Local Inputs'!$B$40)/K$50,Census!$AI$11)),0) -> 0
A39: Education | B39: 0 | C39: =IFERROR(IF(B39>0,B39,IF(AND('Local Inputs'!$B$38+'Local Inputs'!$B$39>0,C$50>0),('Load Scenarios'!B22*Census!$AC67*'Local Inputs'!$B$40)/C$50,Census!$AI$11)),0) -> 0 | D39: 0 | E39: =IFERROR(IF(D39>0,D39,IF(AND('Local Inputs'!$B$38+'Local Inputs'!$B$39>0,E$50>0),('Load Scenarios'!C22*Census!$AC67*'Local Inputs'!$B$40)/E$50,Census!$AI$11)),0) -> 0 | F39: 0 | G39: =IFERROR(IF(F39>0,F39,IF(AND('Local Inputs'!$B$38+'Local Inputs'!$B$39>0,G$50>0),('Load Scenarios'!D22*Census!$AC67*'Local Inputs'!$B$40)/G$50,Census!$AI$11)),0) -> 0 | H39: 0 | I39: =IFERROR(IF(H39>0,H39,IF(AND('Local Inputs'!$B$38+'Local Inputs'!$B$39>0,I$50>0),('Load Scenarios'!E22*Census!$AC67*'Local Inputs'!$B$40)/I$50,Census!$AI$11)),0) -> 0 | J39: 0 | K39: =IFERROR(IF(J39>0,J39,IF(AND('Local Inputs'!$B$38+'Local Inputs'!$B$39>0,K$50>0),('Load Scenarios'!F22*Census!$AC67*'Local Inputs'!$B$40)/K$50,Census!$AI$11)),0) -> 0
A40: Hotel | B40: 0 | C40: =IFERROR(IF(B40>0,B40,IF(AND('Local Inputs'!$B$38+'Local Inputs'!$B$39>0,C$50>0),('Load Scenarios'!B23*Census!$AC68*'Local Inputs'!$B$40)/C$50,Census!$AI$11)),0) -> 0 | D40: 0 | E40: =IFERROR(IF(D40>0,D40,IF(AND('Local Inputs'!$B$38+'Local Inputs'!$B$39>0,E$50>0),('Load Scenarios'!C23*Census!$AC68*'Local Inputs'!$B$40)/E$50,Census!$AI$11)),0) -> 0 | F40: 0 | G40: =IFERROR(IF(F40>0,F40,IF(AND('Local Inputs'!$B$38+'Local Inputs'!$B$39>0,G$50>0),('Load Scenarios'!D23*Census!$AC68*'Local Inputs'!$B$40)/G$50,Census!$AI$11)),0) -> 0 | H40: 0 | I40: =IFERROR(IF(H40>0,H40,IF(AND('Local Inputs'!$B$38+'Local Inputs'!$B$39>0,I$50>0),('Load Scenarios'!E23*Census!$AC68*'Local Inputs'!$B$40)/I$50,Census!$AI$11)),0) -> 0 | J40: 0 | K40: =IFERROR(IF(J40>0,J40,IF(AND('Local Inputs'!$B$38+'Local Inputs'!$B$39>0,K$50>0),('Load Scenarios'!F23*Census!$AC68*'Local Inputs'!$B$40)/K$50,Census!$AI$11)),0) -> 0
A41: Sewerage Revenue | B41: 0 | C41: =IF(B41=0,Census!$AI$5,B41) -> 52.23862566 | D41: 0 | E41: =IF(D41=0,Census!$AI$5,D41) -> 52.23862566 | F41: 0 | G41: =IF(F41=0,Census!$AI$5,F41) -> 52.23862566 | H41: 0 | I41: =IF(H41=0,Census!$AI$5,H41) -> 52.23862566 | J41: 0 | K41: =IF(J41=0,Census!$AI$5,J41) -> 52.23862566
A42: Solid Waste Revenue | B42: 0 | C42: =IF(B42=0,Census!$AI$6,B42) -> 38.85277986 | D42: 0 | E42: =IF(D42=0,Census!$AI$6,D42) -> 38.85277986 | F42: 0 | G42: =IF(F42=0,Census!$AI$6,F42) -> 38.85277986 | H42: 0 | I42: =IF(H42=0,Census!$AI$6,H42) -> 38.85277986 | J42: 0 | K42: =IF(J42=0,Census!$AI$6,J42) -> 38.85277986
A43: Utility Revenue* | B43: 0 | C43: =IF(B43=0,Census!$AI$7,B43) -> 32.23234349 | D43: 0 | E43: =IF(D43=0,Census!$AI$7,D43) -> 32.23234349 | F43: 0 | G43: =IF(F43=0,Census!$AI$7,F43) -> 32.23234349 | H43: 0 | I43: =IF(H43=0,Census!$AI$7,H43) -> 32.23234349 | J43: 0 | K43: =IF(J43=0,Census!$AI$7,J43) -> 32.23234349
A44: *Includes Water, Electric, Gas.
A46: SCENARIO INPUTS
B48: Scenario 1 | D48: Scenario 2 | F48: Scenario 3 | H48: Scenario 4 | J48: Scenario 5
B49: Total Pop. | C49: 24/7 Pop. | D49: Total Pop. | E49: 24/7 Pop. | F49: Total Pop. | G49: 24/7 Pop. | H49: Total Pop. | I49: 24/7 Pop. | J49: Total Pop. | K49: 24/7 Pop.
A50: Population - Net | B50: ='Load Scenarios'!B6 -> 0 | C50: =(B50*Census!$AK$53)+('Load Scenarios'!B18*Census!$AK$57)+('Load Scenarios'!B19*Census!$AK$59)+('Load Scenarios'!B20*Census!$AK$55)+('Load Scenarios'!B21*Census!$AK$59)+('Load Scenarios'!B22*Census!$AK$59)+('Load Scenarios'!B23*Census!$AK$60) -> 0 | D50: ='Load Scenarios'!C6 -> 0 | E50: =(D50*Census!$AK$53)+('Load Scenarios'!C18*Census!$AK$57)+('Load Scenarios'!C19*Census!$AK$59)+('Load Scenarios'!C20*Census!$AK$55)+('Load Scenarios'!C21*Census!$AK$59)+('Load Scenarios'!C22*Census!$AK$59)+('Load Scenarios'!C23*Census!$AK$60) -> 0 | F50: ='Load Scenarios'!D6 -> 0 | G50: =(F50*Census!$AK$53)+('Load Scenarios'!D18*Census!$AK$57)+('Load Scenarios'!D19*Census!$AK$59)+('Load Scenarios'!D20*Census!$AK$55)+('Load Scenarios'!D21*Census!$AK$59)+('Load Scenarios'!D22*Census!$AK$59)+('Load Scenarios'!D23*Census!$AK$60) -> 0 | H50: ='Load Scenarios'!E6 -> 0 | I50: =(H50*Census!$AK$53)+('Load Scenarios'!E18*Census!$AK$57)+('Load Scenarios'!E19*Census!$AK$59)+('Load Scenarios'!E20*Census!$AK$55)+('Load Scenarios'!E21*Census!$AK$59)+('Load Scenarios'!E22*Census!$AK$59)+('Load Scenarios'!E23*Census!$AK$60) -> 0 | J50: ='Load Scenarios'!F6 -> 0 | K50: =(J50*Census!$AK$53)+('Load Scenarios'!F18*Census!$AK$57)+('Load Scenarios'!F19*Census!$AK$59)+('Load Scenarios'!F20*Census!$AK$55)+('Load Scenarios'!F21*Census!$AK$59)+('Load Scenarios'!F22*Census!$AK$59)+('Load Scenarios'!F23*Census!$AK$60) -> 0
A51: Population - Growth Only | B51: ='Load Scenarios'!B7 -> 0 | C51: =(B51*Census!$AK$53)+('Load Scenarios'!B26*Census!$AK$57)+('Load Scenarios'!B27*Census!$AK$59)+('Load Scenarios'!B28*Census!$AK$55)+('Load Scenarios'!B29*Census!$AK$59)+('Load Scenarios'!B30*Census!$AK$59)+('Load Scenarios'!B31*Census!$AK$60) -> 0 | D51: ='Load Scenarios'!C7 -> 0 | E51: =(D51*Census!$AK$53)+('Load Scenarios'!C18*Census!$AK$57)+('Load Scenarios'!C19*Census!$AK$59)+('Load Scenarios'!C20*Census!$AK$55)+('Load Scenarios'!C21*Census!$AK$59)+('Load Scenarios'!C22*Census!$AK$59)+('Load Scenarios'!C23*Census!$AK$60) -> 0 | F51: ='Load Scenarios'!D7 -> 0 | G51: =(F51*Census!$AK$53)+('Load Scenarios'!D18*Census!$AK$57)+('Load Scenarios'!D19*Census!$AK$59)+('Load Scenarios'!D20*Census!$AK$55)+('Load Scenarios'!D21*Census!$AK$59)+('Load Scenarios'!D22*Census!$AK$59)+('Load Scenarios'!D23*Census!$AK$60) -> 0 | H51: ='Load Scenarios'!E7 -> 0 | I51: =(H51*Census!$AK$53)+('Load Scenarios'!E18*Census!$AK$57)+('Load Scenarios'!E19*Census!$AK$59)+('Load Scenarios'!E20*Census!$AK$55)+('Load Scenarios'!E21*Census!$AK$59)+('Load Scenarios'!E22*Census!$AK$59)+('Load Scenarios'!E23*Census!$AK$60) -> 0 | J51: ='Load Scenarios'!F7 -> 0 | K51: =(J50*Census!$AK$53)+('Load Scenarios'!F18*Census!$AK$57)+('Load Scenarios'!F19*Census!$AK$59)+('Load Scenarios'!F20*Census!$AK$55)+('Load Scenarios'!F21*Census!$AK$59)+('Load Scenarios'!F22*Census!$AK$59)+('Load Scenarios'!F23*Census!$AK$60) -> 0
A53: Cost Estimates | B53: Possible | C53: 24/7 Pop. | D53: Possible | E53: 24/7 Pop. | F53: Possible | G53: 24/7 Pop. | H53: Possible | I53: 24/7 Pop. | J53: Possible | K53: 24/7 Pop.
B54: one-time | C54: Default | D54: one-time | E54: Default | F54: one-time | G54: Default | H54: one-time | I54: Default | J54: one-time | K54: Default
B55: capital | C55: annual new | D55: capital | E55: annual new | F55: capital | G55: annual new | H55: capital | I55: annual new | J55: capital | K55: annual new
B56: outlays | C56: expenses | D56: outlays | E56: expenses | F56: outlays | G56: expenses | H56: outlays | I56: expenses | J56: outlays | K56: expenses
A57: Education | B57: 0 | C57: =IF(B50<0,0,C$6*B50) -> 0 | D57: 0 | E57: =IF(D50<0,0,E$6*D50) -> 0 | F57: 0 | G57: =IF(F50<0,0,G$6*F50) -> 0 | H57: 0 | I57: =IF(H50<0,0,I$6*H50) -> 0 | J57: 0 | K57: =IF(J50<0,0,K$6*J50) -> 0
A58: Health Care | B58: 0 | C58: =$C$8*C51 -> 0 | D58: 0 | E58: =$E$8*E50 -> 0 | F58: 0 | G58: =$G$8*G50 -> 0 | H58: 0 | I58: =$I$8*I50 -> 0 | J58: 0 | K58: =$K$8*K50 -> 0
A59: Highways - Total | C59: =$C$10*C51 -> 0 | E59: =$E$10*E50 -> 0 | G59: =$G$10*G50 -> 0 | I59: =$I$10*I50 -> 0 | K59: =$K$10*K50 -> 0
A60: Highways - Publicly Financed | C60: 0 | E60: 0 | G60: 0 | I60: 0 | K60: 0
A61: Public Safety | B61: 0 | C61: =($C$15+$C$16)*C51 -> 0 | D61: 0 | E61: =($E$15+$E$16)*E50 -> 0 | F61: 0 | G61: =($G$15+$G$16)*G50 -> 0 | H61: 0 | I61: =($I$15+$I$16)*I50 -> 0 | J61: 0 | K61: =($K$15+$K$16)*K50 -> 0
A62: Parks | B62: 0 | C62: =$C$17*C51 -> 0 | D62: 0 | E62: =$E$17*E50 -> 0 | F62: 0 | G62: =$G$17*G50 -> 0 | H62: 0 | I62: =$I$17*I50 -> 0 | J62: 0 | K62: =$K$17*K50 -> 0
A63: Housing & Community Dev. | B63: 0 | C63: =$C$19*C51 -> 0 | D63: 0 | E63: =$E$19*E50 -> 0 | F63: 0 | G63: =$G$19*G50 -> 0 | H63: 0 | I63: =$I$19*I50 -> 0 | J63: 0 | K63: =$K$19*K50 -> 0
A64: Sewerage & Waste | C64: =($C$20+$C$25)*C51 -> 0 | E64: =($E$20+$E$25)*E50 -> 0 | G64: =($G$20+$G$25)*G50 -> 0 | I64: =($I$20+$I$25)*I50 -> 0 | K64: =($K$20+$K$25)*K50 -> 0
A65: Utilities | C65: =$C$27*C51 -> 0 | E65: =$E$27*E50 -> 0 | G65: =$G$27*G50 -> 0 | I65: =$I$27*I50 -> 0 | K65: =$K$27*K50 -> 0
A66: Other | B66: 0 | C66: 0 | D66: 0 | E66: 0 | F66: 0 | G66: 0 | H66: 0 | I66: 0 | J66: 0 | K66: 0
A67: TOTAL | B67: =SUM(B57:B58,B60:B66) -> 0 | C67: =SUM(C57:C59,C61:C66) -> 0 | D67: =SUM(D57:D58,D60:D66) -> 0 | E67: =SUM(E57:E59,E61:E66) -> 0 | F67: 0 | G67: =SUM(G57:G59,G61:G66) -> 0 | H67: 0 | I67: =SUM(I57:I59,I61:I66) -> 0 | J67: 0 | K67: =SUM(K57:K59,K61:K66) -> 0
A68: Revenue Estimates
A69: Intergovernmental Revenue | C69: =C33*C50 -> 0 | E69: =E33*E50 -> 0 | G69: =G33*G50 -> 0 | I69: =I33*I50 -> 0 | K69: =K33*K50 -> 0
A70: Income Tax Revenue | C70: =C34*C50 -> 0 | E70: =E34*E50 -> 0 | G70: =G34*G50 -> 0 | I70: =I34*I50 -> 0 | K70: =K34*K50 -> 0
A71: Sewerage Revenue | C71: =$C$41*C50 -> 0 | E71: =$C$41*E50 -> 0 | G71: =$C$41*G50 -> 0 | I71: =$C$41*I50 -> 0 | K71: =$C$41*K50 -> 0
A72: Solid Waste Revenue | C72: =$C$42*C50 -> 0 | E72: =$C$42*E50 -> 0 | G72: =$C$42*G50 -> 0 | I72: =$C$42*I50 -> 0 | K72: =$C$42*K50 -> 0
A73: Utility Revenue | C73: =$C$43*C50 -> 0 | E73: =$C$43*E50 -> 0 | G73: =$C$43*G50 -> 0 | I73: =$C$43*I50 -> 0 | K73: =$C$43*K50 -> 0
A74: TOTAL | C74: =SUM(C69:C73) -> 0 | E74: =SUM(E69:E73) -> 0 | G74: =SUM(G69:G73) -> 0 | I74: =SUM(I69:I73) -> 0 | K74: =SUM(K69:K73) -> 0
A76: GEOGRAPHIC DISTRIBUTION OF TAX REVENUE AND COSTS
B78: Scenario 1 | E78: Scenario 2 | H78: Scenario 3 | K78: Scenario 4 | N78: Scenario 5
B79: In area | C79: Rest of County | D79: Total | E79: In area | F79: Rest of County | G79: Total | H79: In area | I79: Rest of County | J79: Total | K79: In area | L79: Rest of County | M79: Total | N79: In area | O79: Rest of County | P79: Total
A81: Total One-Time Revenues
B82: ='Scenario Assumptions'!B38*'Scenario Assumptions'!B39 -> 0 | C82: =D82-B82 -> 0 | D82: ='Scenario Assumptions'!B38 -> 0 | E82: ='Scenario Assumptions'!C38*'Scenario Assumptions'!C39 -> 0 | F82: =G82-E82 -> 0 | G82: ='Scenario Assumptions'!C38 -> 0 | H82: ='Scenario Assumptions'!D38*'Scenario Assumptions'!D39 -> 0 | I82: =J82-H82 -> 0 | J82: ='Scenario Assumptions'!D38 -> 0 | K82: ='Scenario Assumptions'!E38*'Scenario Assumptions'!E39 -> 0 | L82: =M82-K82 -> 0 | M82: ='Scenario Assumptions'!E38 -> 0 | N82: ='Scenario Assumptions'!F38*'Scenario Assumptions'!F39 -> 0 | O82: =P82-N82 -> 0 | P82: ='Scenario Assumptions'!F38 -> 0
A84: Tax Revenue
A85: Property tax
A86: Bus. investment | B86: =D86*'Local Inputs'!$D$65 -> 0 | C86: =+D86-B86 -> 0 | D86: ='Tax Output'!D20 -> 0 | E86: =G86*'Local Inputs'!$D$65 -> 0 | F86: =+G86-E86 -> 0 | G86: ='Tax Output'!H20 -> 0 | H86: =J86*'Local Inputs'!$D$65 -> 0 | I86: =+J86-H86 -> 0 | J86: ='Tax Output'!L20 -> 0 | K86: =M86*'Local Inputs'!$D$65 -> 0 | L86: =+M86-K86 -> 0 | M86: ='Tax Output'!P20 -> 0 | N86: =P86*'Local Inputs'!$D$65 -> 0 | O86: =+P86-N86 -> 0 | P86: ='Tax Output'!T20 -> 0
A87: Residential | B87: =D87*'Scenario Assumptions'!B42 -> 0 | C87: =D87-B87 -> 0 | D87: ='Tax Output'!D18 -> 0 | E87: =G87*'Scenario Assumptions'!C42 -> 0 | F87: =G87-E87 -> 0 | G87: ='Tax Output'!H18 -> 0 | H87: =J87*'Scenario Assumptions'!D42 -> 0 | I87: =J87-H87 -> 0 | J87: ='Tax Output'!L18 -> 0 | K87: =M87*'Scenario Assumptions'!E42 -> 0 | L87: =M87-K87 -> 0 | M87: ='Tax Output'!P18 -> 0 | N87: =P87*'Scenario Assumptions'!F42 -> 0 | O87: =P87-N87 -> 0 | P87: ='Tax Output'!T18 -> 0
A88: City's share | B88: =IFERROR((B86*('Local Inputs'!$B$28/SUM('Local Inputs'!$B$28,'Local Inputs'!$B$27)))+(B87*('Local Inputs'!$B$22/SUM('Local Inputs'!$B$21,'Local Inputs'!$B$22))),0) -> 0 | E88: =IFERROR((E86*('Local Inputs'!$B$28/SUM('Local Inputs'!$B$28,'Local Inputs'!$B$27)))+(E87*('Local Inputs'!$B$22/SUM('Local Inputs'!$B$21,'Local Inputs'!$B$22))),0) -> 0 | H88: =IFERROR((H86*('Local Inputs'!$B$28/SUM('Local Inputs'!$B$28,'Local Inputs'!$B$27)))+(H87*('Local Inputs'!$B$22/SUM('Local Inputs'!$B$21,'Local Inputs'!$B$22))),0) -> 0 | K88: =IFERROR((K86*('Local Inputs'!$B$28/SUM('Local Inputs'!$B$28,'Local Inputs'!$B$27)))+(K87*('Local Inputs'!$B$22/SUM('Local Inputs'!$B$21,'Local Inputs'!$B$22))),0) -> 0 | N88: =IFERROR((N86*('Local Inputs'!$B$28/SUM('Local Inputs'!$B$28,'Local Inputs'!$B$27)))+(N87*('Local Inputs'!$B$22/SUM('Local Inputs'!$B$21,'Local Inputs'!$B$22))),0) -> 0
A89: City sales tax
A90: Bus. spending | B90: ='Tax Output'!D31 -> 0 | C90: ='Tax Output'!D34 -> 0 | D90: =B90+C90 -> 0 | E90: ='Tax Output'!H31 -> 0 | F90: ='Tax Output'!H34 -> 0 | G90: =E90+F90 -> 0 | H90: ='Tax Output'!L31 -> 0 | I90: ='Tax Output'!L34 -> 0 | J90: =H90+I90 -> 0 | K90: ='Tax Output'!P31 -> 0 | L90: ='Tax Output'!P34 -> 0 | M90: =K90+L90 -> 0 | N90: ='Tax Output'!T31 -> 0 | O90: ='Tax Output'!T34 -> 0 | P90: =N90+O90 -> 0
A91: Cons. spending | B91: ='Tax Output'!D32 -> 0 | C91: ='Tax Output'!D35 -> 0 | D91: =B91+C91 -> 0 | E91: ='Tax Output'!H32 -> 0 | F91: ='Tax Output'!H35 -> 0 | G91: =E91+F91 -> 0 | H91: ='Tax Output'!L32 -> 0 | I91: ='Tax Output'!L35 -> 0 | J91: =H91+I91 -> 0 | K91: ='Tax Output'!P32 -> 0 | L91: ='Tax Output'!P35 -> 0 | M91: =K91+L91 -> 0 | N91: ='Tax Output'!T32 -> 0 | O91: ='Tax Output'!T35 -> 0 | P91: =N91+O91 -> 0
A92: county sales tax | B92: na | C92: ='Tax Output'!D28+'Tax Output'!D29 -> 0 | D92: =C92 -> 0 | E92: na | F92: ='Tax Output'!H28+'Tax Output'!H29 -> 0 | G92: =F92 -> 0 | H92: na | I92: ='Tax Output'!L28+'Tax Output'!L29 -> 0 | J92: =I92 -> 0 | K92: na | L92: ='Tax Output'!P28+'Tax Output'!P29 -> 0 | M92: =L92 -> 0 | N92: na | O92: ='Tax Output'!T28+'Tax Output'!T29 -> 0 | P92: =O92 -> 0
A93: Income tax | B93: =IFERROR(C70*(('Local Inputs'!$B$39*'Local Inputs'!$D$65)/(('Local Inputs'!$B$39*'Local Inputs'!$D$65)+('Local Inputs'!$B$38*(1-'Local Inputs'!$D$65)))),0) -> 0 | C93: =C70-B93 -> 0 | D93: =SUM(B93:C93) -> 0 | E93: =IFERROR(E70*(('Local Inputs'!$B$39*'Local Inputs'!$D$65)/(('Local Inputs'!$B$39*'Local Inputs'!$D$65)+('Local Inputs'!$B$38*(1-'Local Inputs'!$D$65)))),0) -> 0 | F93: =E70-E93 -> 0 | G93: =SUM(E93:F93) -> 0 | H93: =IFERROR(G70*(('Local Inputs'!$B$39*'Local Inputs'!$D$65)/(('Local Inputs'!$B$39*'Local Inputs'!$D$65)+('Local Inputs'!$B$38*(1-'Local Inputs'!$D$65)))),0) -> 0 | I93: =G70-H93 -> 0 | J93: =SUM(H93:I93) -> 0 | K93: =IFERROR(I70*(('Local Inputs'!$B$39*'Local Inputs'!$D$65)/(('Local Inputs'!$B$39*'Local Inputs'!$D$65)+('Local Inputs'!$B$38*(1-'Local Inputs'!$D$65)))),0) -> 0 | L93: =I70-K93 -> 0 | M93: =SUM(K93:L93) -> 0 | N93: =IFERROR(K70*(('Local Inputs'!$B$39*'Local Inputs'!$D$65)/(('Local Inputs'!$B$39*'Local Inputs'!$D$65)+('Local Inputs'!$B$38*(1-'Local Inputs'!$D$65)))),0) -> 0 | O93: =K70-N93 -> 0 | P93: =SUM(N93:O93) -> 0
A94: Util. franchise fee | B94: =D94*'Local Inputs'!$D$67 -> 0 | C94: =+D94-B94 -> 0 | D94: ='Tax Output'!D8 -> 0 | E94: =G94*'Local Inputs'!$D$67 -> 0 | F94: =+G94-E94 -> 0 | G94: ='Tax Output'!H8 -> 0 | H94: =J94*'Local Inputs'!$D$67 -> 0 | I94: =+J94-H94 -> 0 | J94: ='Tax Output'!L8 -> 0 | K94: =M94*'Local Inputs'!$D$67 -> 0 | L94: =+M94-K94 -> 0 | M94: ='Tax Output'!P8 -> 0 | N94: =P94*'Local Inputs'!$D$67 -> 0 | O94: =+P94-N94 -> 0 | P94: ='Tax Output'!T8 -> 0
A95: TOTAL | B95: =B94+B91+B93+B90+B88 -> 0 | C95: =D95-B95 -> 0 | D95: =D94+D93+D92+D91+D90+D87+D86 -> 0 | E95: =E94+E91+E93+E90+E88 -> 0 | F95: =G95-E95 -> 0 | G95: =G94+G93+G92+G91+G90+G87+G86 -> 0 | H95: =H94+H91+H93+H90+H88 -> 0 | I95: =J95-H95 -> 0 | J95: =J94+J93+J92+J91+J90+J87+J86 -> 0 | K95: =K94+K91+K93+K90+K88 -> 0 | L95: =M95-K95 -> 0 | M95: =M94+M93+M92+M91+M90+M87+M86 -> 0 | N95: =N94+N91+N93+N90+N88 -> 0 | O95: =P95-N95 -> 0 | P95: =P94+P93+P92+P91+P90+P87+P86 -> 0
A97: Non-Tax Revenue
A98: Sewerage Revenue | B98: =D98*'Scenario Assumptions'!B$32 -> 0 | C98: =D98-B98 -> 0 | D98: =C71 -> 0 | E98: =G98*'Scenario Assumptions'!C$32 -> 0 | F98: =G98-E98 -> 0 | G98: =E71 -> 0 | H98: =J98*'Scenario Assumptions'!D$32 -> 0 | I98: =J98-H98 -> 0 | J98: =G71 -> 0 | K98: =M98*'Scenario Assumptions'!E$32 -> 0 | L98: =M98-K98 -> 0 | M98: =I71 -> 0 | N98: =P98*'Scenario Assumptions'!F$32 -> 0 | O98: =P98-N98 -> 0 | P98: =K71 -> 0
A99: Solid Waste Revenue | B99: =D99*'Scenario Assumptions'!B$32 -> 0 | C99: =D99-B99 -> 0 | D99: =C72 -> 0 | E99: =G99*'Scenario Assumptions'!C$32 -> 0 | F99: =G99-E99 -> 0 | G99: =E72 -> 0 | H99: =J99*'Scenario Assumptions'!D$32 -> 0 | I99: =J99-H99 -> 0 | J99: =G72 -> 0 | K99: =M99*'Scenario Assumptions'!E$32 -> 0 | L99: =M99-K99 -> 0 | M99: =I72 -> 0 | N99: =P99*'Scenario Assumptions'!F$32 -> 0 | O99: =P99-N99 -> 0 | P99: =K72 -> 0
A100: Utility Revenue | B100: =D100*'Scenario Assumptions'!B$32 -> 0 | C100: =D100-B100 -> 0 | D100: =C73 -> 0 | E100: =G100*'Scenario Assumptions'!C$32 -> 0 | F100: =G100-E100 -> 0 | G100: =E73 -> 0 | H100: =J100*'Scenario Assumptions'!D$32 -> 0 | I100: =J100-H100 -> 0 | J100: =G73 -> 0 | K100: =M100*'Scenario Assumptions'!E$32 -> 0 | L100: =M100-K100 -> 0 | M100: =I73 -> 0 | N100: =P100*'Scenario Assumptions'!F$32 -> 0 | O100: =P100-N100 -> 0 | P100: =K73 -> 0
A101: Intergovernmental Revenue | B101: =D101 -> 0 | C101: =D101-B101 -> 0 | D101: =C69 -> 0 | E101: =G101 -> 0 | F101: =G101-E101 -> 0 | G101: =E69 -> 0 | H101: =J101 -> 0 | I101: =J101-H101 -> 0 | J101: =G69 -> 0 | K101: =M101 -> 0 | L101: =M101-K101 -> 0 | M101: =I69 -> 0 | N101: =P101 -> 0 | O101: =P101-N101 -> 0 | P101: =K69 -> 0
A102: TOTAL | B102: =SUM(B98:B101) -> 0 | C102: 0 | D102: 0 | E102: 0 | F102: 0 | G102: 0 | H102: 0 | I102: 0 | J102: 0 | K102: =SUM(K98:K101) -> 0 | L102: 0 | M102: 0 | N102: 0 | O102: 0 | P102: 0
A104: Ongoing Costs
A105: Education | B105: =+D105*'Scenario Assumptions'!B25 -> 0 | C105: =+D105-B105 -> 0 | D105: =C57 -> 0 | E105: =+G105*'Scenario Assumptions'!C25 -> 0 | F105: =+G105-E105 -> 0 | G105: =E57 -> 0 | H105: =+J105*'Scenario Assumptions'!D25 -> 0 | I105: =+J105-H105 -> 0 | J105: =G57 -> 0 | K105: =+M105*'Scenario Assumptions'!E25 -> 0 | L105: =+M105-K105 -> 0 | M105: =I57 -> 0 | N105: =+P105*'Scenario Assumptions'!F25 -> 0 | O105: =+P105-N105 -> 0 | P105: =K57 -> 0
A106: Health Care | B106: =+D106*'Scenario Assumptions'!B26 -> 0 | C106: 0 | D106: =C58 -> 0 | E106: =+G106*'Scenario Assumptions'!C26 -> 0 | F106: 0 | G106: =E58 -> 0 | H106: =+J106*'Scenario Assumptions'!D26 -> 0 | I106: 0 | J106: =G58 -> 0 | K106: =+M106*'Scenario Assumptions'!E26 -> 0 | L106: 0 | M106: =I58 -> 0 | N106: =+P106*'Scenario Assumptions'!F26 -> 0 | O106: 0 | P106: =K58 -> 0
A107: Highways | B107: =+D107*'Scenario Assumptions'!B27 -> 0 | C107: 0 | D107: =C59 -> 0 | E107: =+G107*'Scenario Assumptions'!C27 -> 0 | F107: 0 | G107: =E59 -> 0 | H107: =+J107*'Scenario Assumptions'!D27 -> 0 | I107: 0 | J107: =G59 -> 0 | K107: =+M107*'Scenario Assumptions'!E27 -> 0 | L107: 0 | M107: =I59 -> 0 | N107: =+P107*'Scenario Assumptions'!F27 -> 0 | O107: 0 | P107: =K59 -> 0
A108: Public Safety | B108: =+D108*'Scenario Assumptions'!B28 -> 0 | C108: 0 | D108: =C61 -> 0 | E108: =+G108*'Scenario Assumptions'!C28 -> 0 | F108: 0 | G108: =E61 -> 0 | H108: =+J108*'Scenario Assumptions'!D28 -> 0 | I108: 0 | J108: =G61 -> 0 | K108: =+M108*'Scenario Assumptions'!E28 -> 0 | L108: 0 | M108: =I61 -> 0 | N108: =+P108*'Scenario Assumptions'!F28 -> 0 | O108: 0 | P108: =K61 -> 0
A109: Recreation | B109: =+D109*'Scenario Assumptions'!B29 -> 0 | C109: 0 | D109: =C62 -> 0 | E109: =+G109*'Scenario Assumptions'!C29 -> 0 | F109: 0 | G109: =E62 -> 0 | H109: =+J109*'Scenario Assumptions'!D29 -> 0 | I109: 0 | J109: =G62 -> 0 | K109: =+M109*'Scenario Assumptions'!E29 -> 0 | L109: 0 | M109: =I62 -> 0 | N109: =+P109*'Scenario Assumptions'!F29 -> 0 | O109: 0 | P109: =K62 -> 0
A110: Housing & Community Dev. | B110: =+D110*'Scenario Assumptions'!B30 -> 0 | C110: 0 | D110: =C63 -> 0 | E110: =+G110*'Scenario Assumptions'!C30 -> 0 | F110: =+G110-E110 -> 0 | G110: =E63 -> 0 | H110: =+J110*'Scenario Assumptions'!D30 -> 0 | I110: =+J110-H110 -> 0 | J110: =G63 -> 0 | K110: =+M110*'Scenario Assumptions'!E30 -> 0 | L110: =+M110-K110 -> 0 | M110: =I63 -> 0 | N110: =+P110*'Scenario Assumptions'!F30 -> 0 | O110: =+P110-N110 -> 0 | P110: =K63 -> 0
A111: Sewerage & Waste | B111: =+D111*'Scenario Assumptions'!B31 -> 0 | C111: 0 | D111: 0 | E111: =+G111*'Scenario Assumptions'!C31 -> 0 | F111: 0 | G111: 0 | H111: =+J111*'Scenario Assumptions'!D31 -> 0 | I111: 0 | J111: 0 | K111: =+M111*'Scenario Assumptions'!E31 -> 0 | L111: 0 | M111: 0 | N111: =+P111*'Scenario Assumptions'!F31 -> 0 | O111: 0 | P111: 0
A112: Utilities | B112: =+D112*'Scenario Assumptions'!B32 -> 0 | C112: 0 | D112: =C65 -> 0 | E112: =+G112*'Scenario Assumptions'!C32 -> 0 | F112: 0 | G112: =E65 -> 0 | H112: =+J112*'Scenario Assumptions'!D32 -> 0 | I112: 0 | J112: =G65 -> 0 | K112: =+M112*'Scenario Assumptions'!E32 -> 0 | L112: 0 | M112: =I65 -> 0 | N112: =+P112*'Scenario Assumptions'!F32 -> 0 | O112: 0 | P112: =K65 -> 0
A113: Other | B113: =+D113*'Scenario Assumptions'!B33 -> 0 | C113: 0 | D113: =C66 -> 0 | E113: =+G113*'Scenario Assumptions'!C33 -> 0 | F113: 0 | G113: =E66 -> 0 | H113: =+J113*'Scenario Assumptions'!D33 -> 0 | I113: 0 | J113: =G66 -> 0 | K113: =+M113*'Scenario Assumptions'!E33 -> 0 | L113: 0 | M113: =I66 -> 0 | N113: =+P113*'Scenario Assumptions'!F33 -> 0 | O113: 0 | P113: =K66 -> 0
A114: TOTAL | B114: =SUM(B105:B113) -> 0 | C114: 0 | D114: 0 | E114: 0 | F114: 0 | G114: 0 | H114: 0 | I114: 0 | J114: 0 | K114: 0 | L114: 0 | M114: 0 | N114: 0 | O114: 0 | P114: 0
A116: Total One-Time Costs
A117: Education | B117: =D117*'Scenario Assumptions'!B15 -> 0 | C117: =D117-B117 -> 0 | D117: =B57 -> 0 | E117: =G117*'Scenario Assumptions'!C15 -> 0 | F117: =G117-E117 -> 0 | G117: =D57 -> 0 | H117: =J117*'Scenario Assumptions'!D15 -> 0 | I117: =J117-H117 -> 0 | J117: =F57 -> 0 | K117: =M117*'Scenario Assumptions'!E15 -> 0 | L117: =M117-K117 -> 0 | M117: =H57 -> 0 | N117: =P117*'Scenario Assumptions'!F15 -> 0 | O117: =P117-N117 -> 0 | P117: =J57 -> 0
A118: Health Care | B118: =D118*'Scenario Assumptions'!B16 -> 0 | C118: 0 | D118: =B58 -> 0 | E118: =G118*'Scenario Assumptions'!C16 -> 0 | F118: 0 | G118: =D58 -> 0 | H118: =J118*'Scenario Assumptions'!D16 -> 0 | I118: 0 | J118: =F58 -> 0 | K118: =M118*'Scenario Assumptions'!E16 -> 0 | L118: 0 | M118: =H58 -> 0 | N118: =P118*'Scenario Assumptions'!F16 -> 0 | O118: 0 | P118: =J58 -> 0
A119: Highways | B119: =D119*'Scenario Assumptions'!B17 -> 0 | C119: 0 | D119: =B60 -> 0 | E119: =G119*'Scenario Assumptions'!C17 -> 0 | F119: 0 | G119: =D60 -> 0 | H119: =J119*'Scenario Assumptions'!D17 -> 0 | I119: 0 | J119: =F60 -> 0 | K119: =M119*'Scenario Assumptions'!E17 -> 0 | L119: 0 | M119: =H60 -> 0 | N119: =P119*'Scenario Assumptions'!F17 -> 0 | O119: 0 | P119: =J60 -> 0
A120: Public Safety | B120: =D120*'Scenario Assumptions'!B18 -> 0 | C120: 0 | D120: =B61 -> 0 | E120: =G120*'Scenario Assumptions'!C18 -> 0 | F120: 0 | G120: =D61 -> 0 | H120: =J120*'Scenario Assumptions'!D18 -> 0 | I120: 0 | J120: =F61 -> 0 | K120: =M120*'Scenario Assumptions'!E18 -> 0 | L120: 0 | M120: =H61 -> 0 | N120: =P120*'Scenario Assumptions'!F18 -> 0 | O120: 0 | P120: =J61 -> 0
A121: Recreation | B121: =D121*'Scenario Assumptions'!B19 -> 0 | C121: 0 | D121: =B62 -> 0 | E121: =G121*'Scenario Assumptions'!C19 -> 0 | F121: 0 | G121: =D62 -> 0 | H121: =J121*'Scenario Assumptions'!D19 -> 0 | I121: 0 | J121: =F62 -> 0 | K121: =M121*'Scenario Assumptions'!E19 -> 0 | L121: 0 | M121: =H62 -> 0 | N121: =P121*'Scenario Assumptions'!F19 -> 0 | O121: 0 | P121: =J62 -> 0
A122: Housing & Community Dev. | B122: =D122*'Scenario Assumptions'!B20 -> 0 | C122: =D122-B122 -> 0 | D122: =B63 -> 0 | E122: =G122*'Scenario Assumptions'!C20 -> 0 | F122: =G122-E122 -> 0 | G122: =D63 -> 0 | H122: =J122*'Scenario Assumptions'!D20 -> 0 | I122: =J122-H122 -> 0 | J122: =F63 -> 0 | K122: =M122*'Scenario Assumptions'!E20 -> 0 | L122: =M122-K122 -> 0 | M122: =H63 -> 0 | N122: =P122*'Scenario Assumptions'!F20 -> 0 | O122: =P122-N122 -> 0 | P122: =J63 -> 0
A123: Sewerage & Waste | B123: =D123*'Scenario Assumptions'!B21 -> 0 | C123: 0 | D123: 0 | E123: =G123*'Scenario Assumptions'!C21 -> 0 | F123: 0 | G123: 0 | H123: =J123*'Scenario Assumptions'!D21 -> 0 | I123: 0 | J123: 0 | K123: =M123*'Scenario Assumptions'!E21 -> 0 | L123: 0 | M123: 0 | N123: =P123*'Scenario Assumptions'!F21 -> 0 | O123: 0 | P123: 0
A124: Utilities | B124: =D124*'Scenario Assumptions'!B22 -> 0 | C124: 0 | D124: =B65+B64 -> 0 | E124: =G124*'Scenario Assumptions'!C22 -> 0 | F124: 0 | G124: =D65+D64 -> 0 | H124: =J124*'Scenario Assumptions'!D22 -> 0 | I124: 0 | J124: =F65+F64 -> 0 | K124: =M124*'Scenario Assumptions'!E22 -> 0 | L124: 0 | M124: =H65+H64 -> 0 | N124: =P124*'Scenario Assumptions'!F22 -> 0 | O124: 0 | P124: =J65+J64 -> 0
A125: Other | B125: =D125*'Scenario Assumptions'!B23 -> 0 | C125: 0 | D125: =B66 -> 0 | E125: =G125*'Scenario Assumptions'!C23 -> 0 | F125: 0 | G125: =D66 -> 0 | H125: =J125*'Scenario Assumptions'!D23 -> 0 | I125: 0 | J125: =F66 -> 0 | K125: =M125*'Scenario Assumptions'!E23 -> 0 | L125: 0 | M125: =H66 -> 0 | N125: =P125*'Scenario Assumptions'!F23 -> 0 | O125: 0 | P125: =J66 -> 0
A126: TOTAL | B126: =SUM(B117:B125) -> 0 | C126: 0 | D126: 0 | E126: 0 | F126: 0 | G126: 0 | H126: 0 | I126: 0 | J126: 0 | K126: 0 | L126: 0 | M126: 0 | N126: 0 | O126: 0 | P126: 0

Sheet NPV CountyCity
F1: Benefits: | J1: Costs: | N1: Inflation and Discount Adjusted Stream: | S1: Cumulative:
F2: Raw | G2: Inflated | H2: Discounted | J2: Raw | K2: Inflated | L2: Discounted | N2: Benefit | O2: Cost | P2: Net PV | S2: Benefit | T2: Cost | U2: Net Ben
A5: Scen 1 | D5: Ramp-Up path:
B6: Year 1 | D6: =1/'Scenario Assumptions'!B$8 -> 0.03333333333 | F6: =D6*'Summary New'!$C$50 -> 0 | G6: =(F6*(1+'Scenario Assumptions'!$B$10)^'Scenario Assumptions'!$B$6) -> 0 | H6: =(G6/(1+'Scenario Assumptions'!$B$7)^('Scenario Assumptions'!$B$6)) -> 0 | J6: =D6*'Summary New'!$C$79 -> 0 | K6: =D6*('Summary New'!$C$70*(1+'Scenario Assumptions'!$B$11)^'Scenario Assumptions'!$B$6+('Summary New'!$C$79-'Summary New'!$C$70)*(1+'Scenario Assumptions'!$B$12)^'Scenario Assumptions'!$B$6) -> 0 | L6: =(K6/(1+'Scenario Assumptions'!$B$7)^('Scenario Assumptions'!$B$6)) -> 0 | N6: =H6 -> 0 | O6: =L6 -> 0 | P6: =N6-O6 -> 0 | Q6: 1 | S6: =N6 -> 0 | T6: =O6 -> 0 | U6: =P6 -> 0
B7: Year 2 | D7: =D6+$D$6 -> 0.06666666667 | F7: =D7*'Summary New'!$C$50 -> 0 | G7: =(F7*(1+'Scenario Assumptions'!$B$10)^('Scenario Assumptions'!$B$6+Q6)) -> 0 | H7: =(G7/(1+'Scenario Assumptions'!$B$7)^('Scenario Assumptions'!$B$6+Q6)) -> 0 | J7: =D7*'Summary New'!$C$79 -> 0 | K7: =D7*('Summary New'!$C$70*(1+'Scenario Assumptions'!$B$11)^('Scenario Assumptions'!$B$6+1)+('Summary New'!$C$79-'Summary New'!$C$70)*(1+'Scenario Assumptions'!$B$12)^('Scenario Assumptions'!$B$6+Q6)) -> 0 | L7: =(K7/(1+'Scenario Assumptions'!$B$7)^('Scenario Assumptions'!$B$6+Q6)) -> 0 | N7: =H7 -> 0 | O7: 0 | P7: 0 | Q7: 2 | S7: =N7+S6 -> 0 | T7: 0 | U7: 0
B8: Year 3 | D8: =D7+$D$6 -> 0.1 | F8: =D8*'Summary New'!$C$50 -> 0 | G8: =(F8*(1+'Scenario Assumptions'!$B$10)^('Scenario Assumptions'!$B$6+Q7)) -> 0 | H8: =(G8/(1+'Scenario Assumptions'!$B$7)^('Scenario Assumptions'!$B$6+Q7)) -> 0 | J8: =D8*'Summary New'!$C$79 -> 0 | K8: =D8*('Summary New'!$C$70*(1+'Scenario Assumptions'!$B$11)^('Scenario Assumptions'!$B$6+1)+('Summary New'!$C$79-'Summary New'!$C$70)*(1+'Scenario Assumptions'!$B$12)^('Scenario Assumptions'!$B$6+Q7)) -> 0 | L8: =(K8/(1+'Scenario Assumptions'!$B$7)^('Scenario Assumptions'!$B$6+Q7)) -> 0 | N8: 0 | O8: 0 | P8: 0 | Q8: 3 | S8: 0 | T8: 0 | U8: 0
B9: Year 4 | D9: 0.1333333333 | F9: =D9*'Summary New'!$C$50 -> 0 | G9: =(F9*(1+'Scenario Assumptions'!$B$10)^('Scenario Assumptions'!$B$6+Q8)) -> 0 | H9: =(G9/(1+'Scenario Assumptions'!$B$7)^('Scenario Assumptions'!$B$6+Q8)) -> 0 | J9: =D9*'Summary New'!$C$79 -> 0 | K9: =D9*('Summary New'!$C$70*(1+'Scenario Assumptions'!$B$11)^('Scenario Assumptions'!$B$6+1)+('Summary New'!$C$79-'Summary New'!$C$70)*(1+'Scenario Assumptions'!$B$12)^('Scenario Assumptions'!$B$6+Q8)) -> 0 | L9: =(K9/(1+'Scenario Assumptions'!$B$7)^('Scenario Assumptions'!$B$6+Q8)) -> 0 | N9: 0 | O9: 0 | P9: 0 | Q9: 4 | S9: 0 | T9: 0 | U9: 0
B10: Year 5 | D10: 0.1666666667 | F10: =D10*'Summary New'!$C$50 -> 0 | G10: =(F10*(1+'Scenario Assumptions'!$B$10)^('Scenario Assumptions'!$B$6+Q9)) -> 0 | H10: =(G10/(1+'Scenario Assumptions'!$B$7)^('Scenario Assumptions'!$B$6+Q9)) -> 0 | J10: =D10*'Summary New'!$C$79 -> 0 | K10: =D10*('Summary New'!$C$70*(1+'Scenario Assumptions'!$B$11)^('Scenario Assumptions'!$B$6+1)+('Summary New'!$C$79-'Summary New'!$C$70)*(1+'Scenario Assumptions'!$B$12)^('Scenario Assumptions'!$B$6+Q9)) -> 0 | L10: =(K10/(1+'Scenario Assumptions'!$B$7)^('Scenario Assumptions'!$B$6+Q9)) -> 0 | N10: 0 | O10: 0 | P10: 0 | Q10: 5 | S10: 0 | T10: 0 | U10: 0
B11: Year 6 | D11: 0.2 | F11: =D11*'Summary New'!$C$50 -> 0 | G11: =(F11*(1+'Scenario Assumptions'!$B$10)^('Scenario Assumptions'!$B$6+Q10)) -> 0 | H11: =(G11/(1+'Scenario Assumptions'!$B$7)^('Scenario Assumptions'!$B$6+Q10)) -> 0 | J11: =D11*'Summary New'!$C$79 -> 0 | K11: =D11*('Summary New'!$C$70*(1+'Scenario Assumptions'!$B$11)^('Scenario Assumptions'!$B$6+1)+('Summary New'!$C$79-'Summary New'!$C$70)*(1+'Scenario Assumptions'!$B$12)^('Scenario Assumptions'!$B$6+Q10)) -> 0 | L11: =(K11/(1+'Scenario Assumptions'!$B$7)^('Scenario Assumptions'!$B$6+Q10)) -> 0 | N11: 0 | O11: 0 | P11: 0 | Q11: 6 | S11: 0 | T11: 0 | U11: 0
B12: Year 7 | D12: 0.2333333333 | F12: =D12*'Summary New'!$C$50 -> 0 | G12: =(F12*(1+'Scenario Assumptions'!$B$10)^('Scenario Assumptions'!$B$6+Q11)) -> 0 | H12: =(G12/(1+'Scenario Assumptions'!$B$7)^('Scenario Assumptions'!$B$6+Q11)) -> 0 | J12: =D12*'Summary New'!$C$79 -> 0 | K12: =D12*('Summary New'!$C$70*(1+'Scenario Assumptions'!$B$11)^('Scenario Assumptions'!$B$6+1)+('Summary New'!$C$79-'Summary New'!$C$70)*(1+'Scenario Assumptions'!$B$12)^('Scenario Assumptions'!$B$6+Q11)) -> 0 | L12: =(K12/(1+'Scenario Assumptions'!$B$7)^('Scenario Assumptions'!$B$6+Q11)) -> 0 | N12: 0 | O12: 0 | P12: 0 | Q12: 7 | S12: 0 | T12: 0 | U12: 0
B13: Year 8 | D13: 0.2666666667 | F13: =D13*'Summary New'!$C$50 -> 0 | G13: =(F13*(1+'Scenario Assumptions'!$B$10)^('Scenario Assumptions'!$B$6+Q12)) -> 0 | H13: =(G13/(1+'Scenario Assumptions'!$B$7)^('Scenario Assumptions'!$B$6+Q12)) -> 0 | J13: =D13*'Summary New'!$C$79 -> 0 | K13: =D13*('Summary New'!$C$70*(1+'Scenario Assumptions'!$B$11)^('Scenario Assumptions'!$B$6+1)+('Summary New'!$C$79-'Summary New'!$C$70)*(1+'Scenario Assumptions'!$B$12)^('Scenario Assumptions'!$B$6+Q12)) -> 0 | L13: =(K13/(1+'Scenario Assumptions'!$B$7)^('Scenario Assumptions'!$B$6+Q12)) -> 0 | N13: 0 | O13: 0 | P13: 0 | Q13: 8 | S13: 0 | T13: 0 | U13: 0
B14: Year 9 | D14: 0.3 | F14: =D14*'Summary New'!$C$50 -> 0 | G14: =(F14*(1+'Scenario Assumptions'!$B$10)^('Scenario Assumptions'!$B$6+Q13)) -> 0 | H14: =(G14/(1+'Scenario Assumptions'!$B$7)^('Scenario Assumptions'!$B$6+Q13)) -> 0 | J14: =D14*'Summary New'!$C$79 -> 0 | K14: =D14*('Summary New'!$C$70*(1+'Scenario Assumptions'!$B$11)^('Scenario Assumptions'!$B$6+1)+('Summary New'!$C$79-'Summary New'!$C$70)*(1+'Scenario Assumptions'!$B$12)^('Scenario Assumptions'!$B$6+Q13)) -> 0 | L14: =(K14/(1+'Scenario Assumptions'!$B$7)^('Scenario Assumptions'!$B$6+Q13)) -> 0 | N14: 0 | O14: 0 | P14: 0 | Q14: 9 | S14: 0 | T14: 0 | U14: 0
B15: Year 10 | D15: 0.3333333333 | F15: =D15*'Summary New'!$C$50 -> 0 | G15: =(F15*(1+'Scenario Assumptions'!$B$10)^('Scenario Assumptions'!$B$6+Q14)) -> 0 | H15: =(G15/(1+'Scenario Assumptions'!$B$7)^('Scenario Assumptions'!$B$6+Q14)) -> 0 | J15: =D15*'Summary New'!$C$79 -> 0 | K15: =D15*('Summary New'!$C$70*(1+'Scenario Assumptions'!$B$11)^('Scenario Assumptions'!$B$6+1)+('Summary New'!$C$79-'Summary New'!$C$70)*(1+'Scenario Assumptions'!$B$12)^('Scenario Assumptions'!$B$6+Q14)) -> 0 | L15: =(K15/(1+'Scenario Assumptions'!$B$7)^('Scenario Assumptions'!$B$6+Q14)) -> 0 | N15: 0 | O15: 0 | P15: 0 | Q15: 10 | S15: 0 | T15: 0 | U15: 0
B16: Year 11 | D16: 0.3666666667 | F16: =D16*'Summary New'!$C$50 -> 0 | G16: =(F16*(1+'Scenario Assumptions'!$B$10)^('Scenario Assumptions'!$B$6+Q15)) -> 0 | H16: =(G16/(1+'Scenario Assumptions'!$B$7)^('Scenario Assumptions'!$B$6+Q15)) -> 0 | J16: =D16*'Summary New'!$C$79 -> 0 | K16: =D16*('Summary New'!$C$70*(1+'Scenario Assumptions'!$B$11)^('Scenario Assumptions'!$B$6+1)+('Summary New'!$C$79-'Summary New'!$C$70)*(1+'Scenario Assumptions'!$B$12)^('Scenario Assumptions'!$B$6+Q15)) -> 0 | L16: =(K16/(1+'Scenario Assumptions'!$B$7)^('Scenario Assumptions'!$B$6+Q15)) -> 0 | N16: 0 | O16: 0 | P16: 0 | Q16: 11 | S16: 0 | T16: 0 | U16: 0
B17: Year 12 | D17: 0.4 | F17: =D17*'Summary New'!$C$50 -> 0 | G17: =(F17*(1+'Scenario Assumptions'!$B$10)^('Scenario Assumptions'!$B$6+Q16)) -> 0 | H17: =(G17/(1+'Scenario Assumptions'!$B$7)^('Scenario Assumptions'!$B$6+Q16)) -> 0 | J17: =D17*'Summary New'!$C$79 -> 0 | K17: =D17*('Summary New'!$C$70*(1+'Scenario Assumptions'!$B$11)^('Scenario Assumptions'!$B$6+1)+('Summary New'!$C$79-'Summary New'!$C$70)*(1+'Scenario Assumptions'!$B$12)^('Scenario Assumptions'!$B$6+Q16)) -> 0 | L17: =(K17/(1+'Scenario Assumptions'!$B$7)^('Scenario Assumptions'!$B$6+Q16)) -> 0 | N17: 0 | O17: 0 | P17: 0 | Q17: 12 | S17: 0 | T17: 0 | U17: 0
B18: Year 13 | D18: 0.4333333333 | F18: =D18*'Summary New'!$C$50 -> 0 | G18: =(F18*(1+'Scenario Assumptions'!$B$10)^('Scenario Assumptions'!$B$6+Q17)) -> 0 | H18: =(G18/(1+'Scenario Assumptions'!$B$7)^('Scenario Assumptions'!$B$6+Q17)) -> 0 | J18: =D18*'Summary New'!$C$79 -> 0 | K18: =D18*('Summary New'!$C$70*(1+'Scenario Assumptions'!$B$11)^('Scenario Assumptions'!$B$6+1)+('Summary New'!$C$79-'Summary New'!$C$70)*(1+'Scenario Assumptions'!$B$12)^('Scenario Assumptions'!$B$6+Q17)) -> 0 | L18: =(K18/(1+'Scenario Assumptions'!$B$7)^('Scenario Assumptions'!$B$6+Q17)) -> 0 | N18: 0 | O18: 0 | P18: 0 | Q18: 13 | S18: 0 | T18: 0 | U18: 0
B19: Year 14 | D19: 0.4666666667 | F19: =D19*'Summary New'!$C$50 -> 0 | G19: =(F19*(1+'Scenario Assumptions'!$B$10)^('Scenario Assumptions'!$B$6+Q18)) -> 0 | H19: =(G19/(1+'Scenario Assumptions'!$B$7)^('Scenario Assumptions'!$B$6+Q18)) -> 0 | J19: =D19*'Summary New'!$C$79 -> 0 | K19: =D19*('Summary New'!$C$70*(1+'Scenario Assumptions'!$B$11)^('Scenario Assumptions'!$B$6+1)+('Summary New'!$C$79-'Summary New'!$C$70)*(1+'Scenario Assumptions'!$B$12)^('Scenario Assumptions'!$B$6+Q18)) -> 0 | L19: =(K19/(1+'Scenario Assumptions'!$B$7)^('Scenario Assumptions'!$B$6+Q18)) -> 0 | N19: 0 | O19: 0 | P19: 0 | Q19: 14 | S19: 0 | T19: 0 | U19: 0
B20: Year 15 | D20: 0.5 | F20: =D20*'Summary New'!$C$50 -> 0 | G20: =(F20*(1+'Scenario Assumptions'!$B$10)^('Scenario Assumptions'!$B$6+Q19)) -> 0 | H20: =(G20/(1+'Scenario Assumptions'!$B$7)^('Scenario Assumptions'!$B$6+Q19)) -> 0 | J20: =D20*'Summary New'!$C$79 -> 0 | K20: =D20*('Summary New'!$C$70*(1+'Scenario Assumptions'!$B$11)^('Scenario Assumptions'!$B$6+1)+('Summary New'!$C$79-'Summary New'!$C$70)*(1+'Scenario Assumptions'!$B$12)^('Scenario Assumptions'!$B$6+Q19)) -> 0 | L20: =(K20/(1+'Scenario Assumptions'!$B$7)^('Scenario Assumptions'!$B$6+Q19)) -> 0 | N20: 0 | O20: 0 | P20: 0 | Q20: 15 | S20: 0 | T20: 0 | U20: 0
B21: Year 16 | D21: 0.5333333333 | F21: =D21*'Summary New'!$C$50 -> 0 | G21: =(F21*(1+'Scenario Assumptions'!$B$10)^('Scenario Assumptions'!$B$6+Q20)) -> 0 | H21: =(G21/(1+'Scenario Assumptions'!$B$7)^('Scenario Assumptions'!$B$6+Q20)) -> 0 | J21: =D21*'Summary New'!$C$79 -> 0 | K21: =D21*('Summary New'!$C$70*(1+'Scenario Assumptions'!$B$11)^('Scenario Assumptions'!$B$6+1)+('Summary New'!$C$79-'Summary New'!$C$70)*(1+'Scenario Assumptions'!$B$12)^('Scenario Assumptions'!$B$6+Q20)) -> 0 | L21: =(K21/(1+'Scenario Assumptions'!$B$7)^('Scenario Assumptions'!$B$6+Q20)) -> 0 | N21: 0 | O21: 0 | P21: 0 | Q21: 16 | S21: 0 | T21: 0 | U21: 0
B22: Year 17 | D22: 0.5666666667 | F22: =D22*'Summary New'!$C$50 -> 0 | G22: =(F22*(1+'Scenario Assumptions'!$B$10)^('Scenario Assumptions'!$B$6+Q21)) -> 0 | H22: =(G22/(1+'Scenario Assumptions'!$B$7)^('Scenario Assumptions'!$B$6+Q21)) -> 0 | J22: =D22*'Summary New'!$C$79 -> 0 | K22: =D22*('Summary New'!$C$70*(1+'Scenario Assumptions'!$B$11)^('Scenario Assumptions'!$B$6+1)+('Summary New'!$C$79-'Summary New'!$C$70)*(1+'Scenario Assumptions'!$B$12)^('Scenario Assumptions'!$B$6+Q21)) -> 0 | L22: =(K22/(1+'Scenario Assumptions'!$B$7)^('Scenario Assumptions'!$B$6+Q21)) -> 0 | N22: 0 | O22: 0 | P22: 0 | Q22: 17 | S22: 0 | T22: 0 | U22: 0
B23: Year 18 | D23: 0.6 | F23: =D23*'Summary New'!$C$50 -> 0 | G23: =(F23*(1+'Scenario Assumptions'!$B$10)^('Scenario Assumptions'!$B$6+Q22)) -> 0 | H23: =(G23/(1+'Scenario Assumptions'!$B$7)^('Scenario Assumptions'!$B$6+Q22)) -> 0 | J23: =D23*'Summary New'!$C$79 -> 0 | K23: =D23*('Summary New'!$C$70*(1+'Scenario Assumptions'!$B$11)^('Scenario Assumptions'!$B$6+1)+('Summary New'!$C$79-'Summary New'!$C$70)*(1+'Scenario Assumptions'!$B$12)^('Scenario Assumptions'!$B$6+Q22)) -> 0 | L23: =(K23/(1+'Scenario Assumptions'!$B$7)^('Scenario Assumptions'!$B$6+Q22)) -> 0 | N23: 0 | O23: 0 | P23: 0 | Q23: 18 | S23: =N23+S22 -> 0 | T23: 0 | U23: 0
B24: Year 19 | D24: 0.6333333333 | F24: =D24*'Summary New'!$C$50 -> 0 | G24: =(F24*(1+'Scenario Assumptions'!$B$10)^('Scenario Assumptions'!$B$6+Q23)) -> 0 | H24: =(G24/(1+'Scenario Assumptions'!$B$7)^('Scenario Assumptions'!$B$6+Q23)) -> 0 | J24: =D24*'Summary New'!$C$79 -> 0 | K24: =D24*('Summary New'!$C$70*(1+'Scenario Assumptions'!$B$11)^('Scenario Assumptions'!$B$6+1)+('Summary New'!$C$79-'Summary New'!$C$70)*(1+'Scenario Assumptions'!$B$12)^('Scenario Assumptions'!$B$6+Q23)) -> 0 | L24: =(K24/(1+'Scenario Assumptions'!$B$7)^('Scenario Assumptions'!$B$6+Q23)) -> 0 | N24: 0 | O24: 0 | P24: 0 | Q24: 19 | S24: 0 | T24: 0 | U24: 0
B25: Year 20 | D25: 0.6666666667 | F25: =D25*'Summary New'!$C$50 -> 0 | G25: =(F25*(1+'Scenario Assumptions'!$B$10)^('Scenario Assumptions'!$B$6+Q24)) -> 0 | H25: =(G25/(1+'Scenario Assumptions'!$B$7)^('Scenario Assumptions'!$B$6+Q24)) -> 0 | J25: =D25*'Summary New'!$C$79 -> 0 | K25: =D25*('Summary New'!$C$70*(1+'Scenario Assumptions'!$B$11)^('Scenario Assumptions'!$B$6+1)+('Summary New'!$C$79-'Summary New'!$C$70)*(1+'Scenario Assumptions'!$B$12)^('Scenario Assumptions'!$B$6+Q24)) -> 0 | L25: =(K25/(1+'Scenario Assumptions'!$B$7)^('Scenario Assumptions'!$B$6+Q24)) -> 0 | N25: 0 | O25: 0 | P25: 0 | Q25: 20 | S25: 0 | T25: 0 | U25: 0
B26: Year 21 | D26: 0.7 | F26: =D26*'Summary New'!$C$50 -> 0 | G26: =(F26*(1+'Scenario Assumptions'!$B$10)^('Scenario Assumptions'!$B$6+Q25)) -> 0 | H26: =(G26/(1+'Scenario Assumptions'!$B$7)^('Scenario Assumptions'!$B$6+Q25)) -> 0 | J26: =D26*'Summary New'!$C$79 -> 0 | K26: =D26*('Summary New'!$C$70*(1+'Scenario Assumptions'!$B$11)^('Scenario Assumptions'!$B$6+1)+('Summary New'!$C$79-'Summary New'!$C$70)*(1+'Scenario Assumptions'!$B$12)^('Scenario Assumptions'!$B$6+Q25)) -> 0 | L26: =(K26/(1+'Scenario Assumptions'!$B$7)^('Scenario Assumptions'!$B$6+Q25)) -> 0 | N26: 0 | O26: 0 | P26: 0 | Q26: 21 | S26: 0 | T26: 0 | U26: 0
B27: Year 22 | D27: 0.7333333333 | F27: =D27*'Summary New'!$C$50 -> 0 | G27: =(F27*(1+'Scenario Assumptions'!$B$10)^('Scenario Assumptions'!$B$6+Q26)) -> 0 | H27: =(G27/(1+'Scenario Assumptions'!$B$7)^('Scenario Assumptions'!$B$6+Q26)) -> 0 | J27: =D27*'Summary New'!$C$79 -> 0 | K27: =D27*('Summary New'!$C$70*(1+'Scenario Assumptions'!$B$11)^('Scenario Assumptions'!$B$6+1)+('Summary New'!$C$79-'Summary New'!$C$70)*(1+'Scenario Assumptions'!$B$12)^('Scenario Assumptions'!$B$6+Q26)) -> 0 | L27: =(K27/(1+'Scenario Assumptions'!$B$7)^('Scenario Assumptions'!$B$6+Q26)) -> 0 | N27: 0 | O27: 0 | P27: 0 | Q27: 22 | S27: 0 | T27: 0 | U27: 0
B28: Year 23 | D28: 0.7666666667 | F28: =D28*'Summary New'!$C$50 -> 0 | G28: =(F28*(1+'Scenario Assumptions'!$B$10)^('Scenario Assumptions'!$B$6+Q27)) -> 0 | H28: =(G28/(1+'Scenario Assumptions'!$B$7)^('Scenario Assumptions'!$B$6+Q27)) -> 0 | J28: =D28*'Summary New'!$C$79 -> 0 | K28: =D28*('Summary New'!$C$70*(1+'Scenario Assumptions'!$B$11)^('Scenario Assumptions'!$B$6+1)+('Summary New'!$C$79-'Summary New'!$C$70)*(1+'Scenario Assumptions'!$B$12)^('Scenario Assumptions'!$B$6+Q27)) -> 0 | L28: =(K28/(1+'Scenario Assumptions'!$B$7)^('Scenario Assumptions'!$B$6+Q27)) -> 0 | N28: 0 | O28: 0 | P28: 0 | Q28: 23 | S28: 0 | T28: 0 | U28: 0
B29: Year 24 | D29: 0.8 | F29: =D29*'Summary New'!$C$50 -> 0 | G29: =(F29*(1+'Scenario Assumptions'!$B$10)^('Scenario Assumptions'!$B$6+Q28)) -> 0 | H29: =(G29/(1+'Scenario Assumptions'!$B$7)^('Scenario Assumptions'!$B$6+Q28)) -> 0 | J29: =D29*'Summary New'!$C$79 -> 0 | K29: =D29*('Summary New'!$C$70*(1+'Scenario Assumptions'!$B$11)^('Scenario Assumptions'!$B$6+1)+('Summary New'!$C$79-'Summary New'!$C$70)*(1+'Scenario Assumptions'!$B$12)^('Scenario Assumptions'!$B$6+Q28)) -> 0 | L29: =(K29/(1+'Scenario Assumptions'!$B$7)^('Scenario Assumptions'!$B$6+Q28)) -> 0 | N29: 0 | O29: 0 | P29: 0 | Q29: 24 | S29: 0 | T29: 0 | U29: 0
B30: Year 25 | D30: 0.8333333333 | F30: =D30*'Summary New'!$C$50 -> 0 | G30: =(F30*(1+'Scenario Assumptions'!$B$10)^('Scenario Assumptions'!$B$6+Q29)) -> 0 | H30: =(G30/(1+'Scenario Assumptions'!$B$7)^('Scenario Assumptions'!$B$6+Q29)) -> 0 | J30: =D30*'Summary New'!$C$79 -> 0 | K30: =D30*('Summary New'!$C$70*(1+'Scenario Assumptions'!$B$11)^('Scenario Assumptions'!$B$6+1)+('Summary New'!$C$79-'Summary New'!$C$70)*(1+'Scenario Assumptions'!$B$12)^('Scenario Assumptions'!$B$6+Q29)) -> 0 | L30: =(K30/(1+'Scenario Assumptions'!$B$7)^('Scenario Assumptions'!$B$6+Q29)) -> 0 | N30: 0 | O30: 0 | P30: 0 | Q30: 25 | S30: 0 | T30: 0 | U30: 0
B31: Year 26 | D31: 0.8666666667 | F31: =D31*'Summary New'!$C$50 -> 0 | G31: =(F31*(1+'Scenario Assumptions'!$B$10)^('Scenario Assumptions'!$B$6+Q30)) -> 0 | H31: =(G31/(1+'Scenario Assumptions'!$B$7)^('Scenario Assumptions'!$B$6+Q30)) -> 0 | J31: =D31*'Summary New'!$C$79 -> 0 | K31: =D31*('Summary New'!$C$70*(1+'Scenario Assumptions'!$B$11)^('Scenario Assumptions'!$B$6+1)+('Summary New'!$C$79-'Summary New'!$C$70)*(1+'Scenario Assumptions'!$B$12)^('Scenario Assumptions'!$B$6+Q30)) -> 0 | L31: =(K31/(1+'Scenario Assumptions'!$B$7)^('Scenario Assumptions'!$B$6+Q30)) -> 0 | N31: 0 | O31: 0 | P31: 0 | Q31: 26 | S31: 0 | T31: 0 | U31: 0
B32: Year 27 | D32: 0.9 | F32: =D32*'Summary New'!$C$50 -> 0 | G32: =(F32*(1+'Scenario Assumptions'!$B$10)^('Scenario Assumptions'!$B$6+Q31)) -> 0 | H32: =(G32/(1+'Scenario Assumptions'!$B$7)^('Scenario Assumptions'!$B$6+Q31)) -> 0 | J32: =D32*'Summary New'!$C$79 -> 0 | K32: =D32*('Summary New'!$C$70*(1+'Scenario Assumptions'!$B$11)^('Scenario Assumptions'!$B$6+1)+('Summary New'!$C$79-'Summary New'!$C$70)*(1+'Scenario Assumptions'!$B$12)^('Scenario Assumptions'!$B$6+Q31)) -> 0 | L32: =(K32/(1+'Scenario Assumptions'!$B$7)^('Scenario Assumptions'!$B$6+Q31)) -> 0 | N32: 0 | O32: 0 | P32: 0 | Q32: 27 | S32: 0 | T32: 0 | U32: 0
B33: Year 28 | D33: 0.9333333333 | F33: =D33*'Summary New'!$C$50 -> 0 | G33: =(F33*(1+'Scenario Assumptions'!$B$10)^('Scenario Assumptions'!$B$6+Q32)) -> 0 | H33: =(G33/(1+'Scenario Assumptions'!$B$7)^('Scenario Assumptions'!$B$6+Q32)) -> 0 | J33: =D33*'Summary New'!$C$79 -> 0 | K33: =D33*('Summary New'!$C$70*(1+'Scenario Assumptions'!$B$11)^('Scenario Assumptions'!$B$6+1)+('Summary New'!$C$79-'Summary New'!$C$70)*(1+'Scenario Assumptions'!$B$12)^('Scenario Assumptions'!$B$6+Q32)) -> 0 | L33: =(K33/(1+'Scenario Assumptions'!$B$7)^('Scenario Assumptions'!$B$6+Q32)) -> 0 | N33: 0 | O33: 0 | P33: 0 | Q33: 28 | S33: 0 | T33: 0 | U33: 0
B34: Year 29 | D34: 0.9666666667 | F34: =D34*'Summary New'!$C$50 -> 0 | G34: =(F34*(1+'Scenario Assumptions'!$B$10)^('Scenario Assumptions'!$B$6+Q33)) -> 0 | H34: =(G34/(1+'Scenario Assumptions'!$B$7)^('Scenario Assumptions'!$B$6+Q33)) -> 0 | J34: =D34*'Summary New'!$C$79 -> 0 | K34: =D34*('Summary New'!$C$70*(1+'Scenario Assumptions'!$B$11)^('Scenario Assumptions'!$B$6+1)+('Summary New'!$C$79-'Summary New'!$C$70)*(1+'Scenario Assumptions'!$B$12)^('Scenario Assumptions'!$B$6+Q33)) -> 0 | L34: =(K34/(1+'Scenario Assumptions'!$B$7)^('Scenario Assumptions'!$B$6+Q33)) -> 0 | N34: 0 | O34: 0 | P34: 0 | Q34: 29 | S34: 0 | T34: 0 | U34: 0
B35: Year 30 | D35: 1 | F35: =D35*'Summary New'!$C$50 -> 0 | G35: =(F35*(1+'Scenario Assumptions'!$B$10)^('Scenario Assumptions'!$B$6+Q34)) -> 0 | H35: =(G35/(1+'Scenario Assumptions'!$B$7)^('Scenario Assumptions'!$B$6+Q34)) -> 0 | J35: =D35*'Summary New'!$C$79 -> 0 | K35: =D35*('Summary New'!$C$70*(1+'Scenario Assumptions'!$B$11)^('Scenario Assumptions'!$B$6+1)+('Summary New'!$C$79-'Summary New'!$C$70)*(1+'Scenario Assumptions'!$B$12)^('Scenario Assumptions'!$B$6+Q34)) -> 0 | L35: =(K35/(1+'Scenario Assumptions'!$B$7)^('Scenario Assumptions'!$B$6+Q34)) -> 0 | N35: 0 | O35: 0 | P35: 0 | Q35: 30 | S35: 0 | T35: 0 | U35: 0
B36: Year 31 | D36: 1.033333333 | F36: =D36*'Summary New'!$C$50 -> 0 | G36: =(F36*(1+'Scenario Assumptions'!$B$10)^('Scenario Assumptions'!$B$6+Q35)) -> 0 | H36: =(G36/(1+'Scenario Assumptions'!$B$7)^('Scenario Assumptions'!$B$6+Q35)) -> 0 | J36: =D36*'Summary New'!$C$79 -> 0 | K36: =D36*('Summary New'!$C$70*(1+'Scenario Assumptions'!$B$11)^('Scenario Assumptions'!$B$6+1)+('Summary New'!$C$79-'Summary New'!$C$70)*(1+'Scenario Assumptions'!$B$12)^('Scenario Assumptions'!$B$6+Q35)) -> 0 | L36: =(K36/(1+'Scenario Assumptions'!$B$7)^('Scenario Assumptions'!$B$6+Q35)) -> 0 | N36: =H36 -> 0 | O36: =L36 -> 0 | P36: =N36-O36 -> 0 | Q36: 31 | S36: =N36+S35 -> 0 | T36: =O36+T35 -> 0 | U36: =P36+U35 -> 0
B37: Year 32 | D37: 1.066666667 | F37: =D37*'Summary New'!$C$50 -> 0 | G37: =(F37*(1+'Scenario Assumptions'!$B$10)^('Scenario Assumptions'!$B$6+Q36)) -> 0 | H37: =(G37/(1+'Scenario Assumptions'!$B$7)^('Scenario Assumptions'!$B$6+Q36)) -> 0 | J37: =D37*'Summary New'!$C$79 -> 0 | K37: =D37*('Summary New'!$C$70*(1+'Scenario Assumptions'!$B$11)^('Scenario Assumptions'!$B$6+1)+('Summary New'!$C$79-'Summary New'!$C$70)*(1+'Scenario Assumptions'!$B$12)^('Scenario Assumptions'!$B$6+Q36)) -> 0 | L37: =(K37/(1+'Scenario Assumptions'!$B$7)^('Scenario Assumptions'!$B$6+Q36)) -> 0 | N37: 0 | O37: 0 | P37: 0 | Q37: 32 | S37: 0 | T37: 0 | U37: 0
B38: Year 33 | D38: 1.1 | F38: =D38*'Summary New'!$C$50 -> 0 | G38: =(F38*(1+'Scenario Assumptions'!$B$10)^('Scenario Assumptions'!$B$6+Q37)) -> 0 | H38: =(G38/(1+'Scenario Assumptions'!$B$7)^('Scenario Assumptions'!$B$6+Q37)) -> 0 | J38: =D38*'Summary New'!$C$79 -> 0 | K38: =D38*('Summary New'!$C$70*(1+'Scenario Assumptions'!$B$11)^('Scenario Assumptions'!$B$6+1)+('Summary New'!$C$79-'Summary New'!$C$70)*(1+'Scenario Assumptions'!$B$12)^('Scenario Assumptions'!$B$6+Q37)) -> 0 | L38: =(K38/(1+'Scenario Assumptions'!$B$7)^('Scenario Assumptions'!$B$6+Q37)) -> 0 | N38: 0 | O38: 0 | P38: 0 | Q38: 33 | S38: 0 | T38: 0 | U38: 0
B39: Year 34 | D39: 1.133333333 | F39: =D39*'Summary New'!$C$50 -> 0 | G39: =(F39*(1+'Scenario Assumptions'!$B$10)^('Scenario Assumptions'!$B$6+Q38)) -> 0 | H39: =(G39/(1+'Scenario Assumptions'!$B$7)^('Scenario Assumptions'!$B$6+Q38)) -> 0 | J39: =D39*'Summary New'!$C$79 -> 0 | K39: =D39*('Summary New'!$C$70*(1+'Scenario Assumptions'!$B$11)^('Scenario Assumptions'!$B$6+1)+('Summary New'!$C$79-'Summary New'!$C$70)*(1+'Scenario Assumptions'!$B$12)^('Scenario Assumptions'!$B$6+Q38)) -> 0 | L39: =(K39/(1+'Scenario Assumptions'!$B$7)^('Scenario Assumptions'!$B$6+Q38)) -> 0 | N39: 0 | O39: 0 | P39: 0 | Q39: 34 | S39: 0 | T39: 0 | U39: 0
B40: Year 35 | D40: 1.166666667 | F40: =D40*'Summary New'!$C$50 -> 0 | G40: =(F40*(1+'Scenario Assumptions'!$B$10)^('Scenario Assumptions'!$B$6+Q39)) -> 0 | H40: =(G40/(1+'Scenario Assumptions'!$B$7)^('Scenario Assumptions'!$B$6+Q39)) -> 0 | J40: =D40*'Summary New'!$C$79 -> 0 | K40: =D40*('Summary New'!$C$70*(1+'Scenario Assumptions'!$B$11)^('Scenario Assumptions'!$B$6+1)+('Summary New'!$C$79-'Summary New'!$C$70)*(1+'Scenario Assumptions'!$B$12)^('Scenario Assumptions'!$B$6+Q39)) -> 0 | L40: =(K40/(1+'Scenario Assumptions'!$B$7)^('Scenario Assumptions'!$B$6+Q39)) -> 0 | N40: 0 | O40: 0 | P40: 0 | Q40: 35 | S40: 0 | T40: 0 | U40: 0
B41: Year 36 | D41: 1.2 | F41: =D41*'Summary New'!$C$50 -> 0 | G41: =(F41*(1+'Scenario Assumptions'!$B$10)^('Scenario Assumptions'!$B$6+Q40)) -> 0 | H41: =(G41/(1+'Scenario Assumptions'!$B$7)^('Scenario Assumptions'!$B$6+Q40)) -> 0 | J41: =D41*'Summary New'!$C$79 -> 0 | K41: =D41*('Summary New'!$C$70*(1+'Scenario Assumptions'!$B$11)^('Scenario Assumptions'!$B$6+1)+('Summary New'!$C$79-'Summary New'!$C$70)*(1+'Scenario Assumptions'!$B$12)^('Scenario Assumptions'!$B$6+Q40)) -> 0 | L41: =(K41/(1+'Scenario Assumptions'!$B$7)^('Scenario Assumptions'!$B$6+Q40)) -> 0 | N41: 0 | O41: 0 | P41: 0 | Q41: 36 | S41: 0 | T41: 0 | U41: 0
B42: Year 37 | D42: 1.233333333 | F42: =D42*'Summary New'!$C$50 -> 0 | G42: =(F42*(1+'Scenario Assumptions'!$B$10)^('Scenario Assumptions'!$B$6+Q41)) -> 0 | H42: =(G42/(1+'Scenario Assumptions'!$B$7)^('Scenario Assumptions'!$B$6+Q41)) -> 0 | J42: =D42*'Summary New'!$C$79 -> 0 | K42: =D42*('Summary New'!$C$70*(1+'Scenario Assumptions'!$B$11)^('Scenario Assumptions'!$B$6+1)+('Summary New'!$C$79-'Summary New'!$C$70)*(1+'Scenario Assumptions'!$B$12)^('Scenario Assumptions'!$B$6+Q41)) -> 0 | L42: =(K42/(1+'Scenario Assumptions'!$B$7)^('Scenario Assumptions'!$B$6+Q41)) -> 0 | N42: 0 | O42: 0 | P42: 0 | Q42: 37 | S42: 0 | T42: 0 | U42: 0
B43: Year 38 | D43: 1.266666667 | F43: =D43*'Summary New'!$C$50 -> 0 | G43: =(F43*(1+'Scenario Assumptions'!$B$10)^('Scenario Assumptions'!$B$6+Q42)) -> 0 | H43: =(G43/(1+'Scenario Assumptions'!$B$7)^('Scenario Assumptions'!$B$6+Q42)) -> 0 | J43: =D43*'Summary New'!$C$79 -> 0 | K43: =D43*('Summary New'!$C$70*(1+'Scenario Assumptions'!$B$11)^('Scenario Assumptions'!$B$6+1)+('Summary New'!$C$79-'Summary New'!$C$70)*(1+'Scenario Assumptions'!$B$12)^('Scenario Assumptions'!$B$6+Q42)) -> 0 | L43: =(K43/(1+'Scenario Assumptions'!$B$7)^('Scenario Assumptions'!$B$6+Q42)) -> 0 | N43: 0 | O43: 0 | P43: 0 | Q43: 38 | S43: 0 | T43: 0 | U43: 0
B44: Year 39 | D44: 1.3 | F44: =D44*'Summary New'!$C$50 -> 0 | G44: =(F44*(1+'Scenario Assumptions'!$B$10)^('Scenario Assumptions'!$B$6+Q43)) -> 0 | H44: =(G44/(1+'Scenario Assumptions'!$B$7)^('Scenario Assumptions'!$B$6+Q43)) -> 0 | J44: =D44*'Summary New'!$C$79 -> 0 | K44: =D44*('Summary New'!$C$70*(1+'Scenario Assumptions'!$B$11)^('Scenario Assumptions'!$B$6+1)+('Summary New'!$C$79-'Summary New'!$C$70)*(1+'Scenario Assumptions'!$B$12)^('Scenario Assumptions'!$B$6+Q43)) -> 0 | L44: =(K44/(1+'Scenario Assumptions'!$B$7)^('Scenario Assumptions'!$B$6+Q43)) -> 0 | N44: 0 | O44: 0 | P44: 0 | Q44: 39 | S44: 0 | T44: 0 | U44: 0
B45: Year 40 | D45: 1.333333333 | F45: =D45*'Summary New'!$C$50 -> 0 | G45: =(F45*(1+'Scenario Assumptions'!$B$10)^('Scenario Assumptions'!$B$6+Q44)) -> 0 | H45: =(G45/(1+'Scenario Assumptions'!$B$7)^('Scenario Assumptions'!$B$6+Q44)) -> 0 | J45: =D45*'Summary New'!$C$79 -> 0 | K45: =D45*('Summary New'!$C$70*(1+'Scenario Assumptions'!$B$11)^('Scenario Assumptions'!$B$6+1)+('Summary New'!$C$79-'Summary New'!$C$70)*(1+'Scenario Assumptions'!$B$12)^('Scenario Assumptions'!$B$6+Q44)) -> 0 | L45: =(K45/(1+'Scenario Assumptions'!$B$7)^('Scenario Assumptions'!$B$6+Q44)) -> 0 | N45: 0 | O45: 0 | P45: 0 | Q45: 40 | S45: 0 | T45: 0 | U45: 0
B46: Year 41 | D46: 1.366666667 | F46: =D46*'Summary New'!$C$50 -> 0 | G46: =(F46*(1+'Scenario Assumptions'!$B$10)^('Scenario Assumptions'!$B$6+Q45)) -> 0 | H46: =(G46/(1+'Scenario Assumptions'!$B$7)^('Scenario Assumptions'!$B$6+Q45)) -> 0 | J46: =D46*'Summary New'!$C$79 -> 0 | K46: =D46*('Summary New'!$C$70*(1+'Scenario Assumptions'!$B$11)^('Scenario Assumptions'!$B$6+1)+('Summary New'!$C$79-'Summary New'!$C$70)*(1+'Scenario Assumptions'!$B$12)^('Scenario Assumptions'!$B$6+Q45)) -> 0 | L46: =(K46/(1+'Scenario Assumptions'!$B$7)^('Scenario Assumptions'!$B$6+Q45)) -> 0 | N46: 0 | O46: 0 | P46: 0 | Q46: 41 | S46: 0 | T46: 0 | U46: 0
B47: Year 42 | D47: 1.4 | F47: =D47*'Summary New'!$C$50 -> 0 | G47: =(F47*(1+'Scenario Assumptions'!$B$10)^('Scenario Assumptions'!$B$6+Q46)) -> 0 | H47: =(G47/(1+'Scenario Assumptions'!$B$7)^('Scenario Assumptions'!$B$6+Q46)) -> 0 | J47: =D47*'Summary New'!$C$79 -> 0 | K47: =D47*('Summary New'!$C$70*(1+'Scenario Assumptions'!$B$11)^('Scenario Assumptions'!$B$6+1)+('Summary New'!$C$79-'Summary New'!$C$70)*(1+'Scenario Assumptions'!$B$12)^('Scenario Assumptions'!$B$6+Q46)) -> 0 | L47: =(K47/(1+'Scenario Assumptions'!$B$7)^('Scenario Assumptions'!$B$6+Q46)) -> 0 | N47: 0 | O47: 0 | P47: 0 | Q47: 42 | S47: 0 | T47: 0 | U47: 0
B48: Year 43 | D48: 1.433333333 | F48: =D48*'Summary New'!$C$50 -> 0 | G48: =(F48*(1+'Scenario Assumptions'!$B$10)^('Scenario Assumptions'!$B$6+Q47)) -> 0 | H48: =(G48/(1+'Scenario Assumptions'!$B$7)^('Scenario Assumptions'!$B$6+Q47)) -> 0 | J48: =D48*'Summary New'!$C$79 -> 0 | K48: =D48*('Summary New'!$C$70*(1+'Scenario Assumptions'!$B$11)^('Scenario Assumptions'!$B$6+1)+('Summary New'!$C$79-'Summary New'!$C$70)*(1+'Scenario Assumptions'!$B$12)^('Scenario Assumptions'!$B$6+Q47)) -> 0 | L48: =(K48/(1+'Scenario Assumptions'!$B$7)^('Scenario Assumptions'!$B$6+Q47)) -> 0 | N48: 0 | O48: 0 | P48: 0 | Q48: 43 | S48: 0 | T48: 0 | U48: 0
B49: Year 44 | D49: 1.466666667 | F49: =D49*'Summary New'!$C$50 -> 0 | G49: =(F49*(1+'Scenario Assumptions'!$B$10)^('Scenario Assumptions'!$B$6+Q48)) -> 0 | H49: =(G49/(1+'Scenario Assumptions'!$B$7)^('Scenario Assumptions'!$B$6+Q48)) -> 0 | J49: =D49*'Summary New'!$C$79 -> 0 | K49: =D49*('Summary New'!$C$70*(1+'Scenario Assumptions'!$B$11)^('Scenario Assumptions'!$B$6+1)+('Summary New'!$C$79-'Summary New'!$C$70)*(1+'Scenario Assumptions'!$B$12)^('Scenario Assumptions'!$B$6+Q48)) -> 0 | L49: =(K49/(1+'Scenario Assumptions'!$B$7)^('Scenario Assumptions'!$B$6+Q48)) -> 0 | N49: 0 | O49: 0 | P49: 0 | Q49: 44 | S49: 0 | T49: 0 | U49: 0
B50: Year 45 | D50: 1.5 | F50: =D50*'Summary New'!$C$50 -> 0 | G50: =(F50*(1+'Scenario Assumptions'!$B$10)^('Scenario Assumptions'!$B$6+Q49)) -> 0 | H50: =(G50/(1+'Scenario Assumptions'!$B$7)^('Scenario Assumptions'!$B$6+Q49)) -> 0 | J50: =D50*'Summary New'!$C$79 -> 0 | K50: =D50*('Summary New'!$C$70*(1+'Scenario Assumptions'!$B$11)^('Scenario Assumptions'!$B$6+1)+('Summary New'!$C$79-'Summary New'!$C$70)*(1+'Scenario Assumptions'!$B$12)^('Scenario Assumptions'!$B$6+Q49)) -> 0 | L50: =(K50/(1+'Scenario Assumptions'!$B$7)^('Scenario Assumptions'!$B$6+Q49)) -> 0 | N50: 0 | O50: 0 | P50: 0 | Q50: 45 | S50: 0 | T50: 0 | U50: 0
B51: Year 46 | D51: 1.533333333 | F51: =D51*'Summary New'!$C$50 -> 0 | G51: =(F51*(1+'Scenario Assumptions'!$B$10)^('Scenario Assumptions'!$B$6+Q50)) -> 0 | H51: =(G51/(1+'Scenario Assumptions'!$B$7)^('Scenario Assumptions'!$B$6+Q50)) -> 0 | J51: =D51*'Summary New'!$C$79 -> 0 | K51: =D51*('Summary New'!$C$70*(1+'Scenario Assumptions'!$B$11)^('Scenario Assumptions'!$B$6+1)+('Summary New'!$C$79-'Summary New'!$C$70)*(1+'Scenario Assumptions'!$B$12)^('Scenario Assumptions'!$B$6+Q50)) -> 0 | L51: =(K51/(1+'Scenario Assumptions'!$B$7)^('Scenario Assumptions'!$B$6+Q50)) -> 0 | N51: 0 | O51: 0 | P51: 0 | Q51: 46 | S51: 0 | T51: 0 | U51: 0
B52: Year 47 | D52: 1.566666667 | F52: =D52*'Summary New'!$C$50 -> 0 | G52: =(F52*(1+'Scenario Assumptions'!$B$10)^('Scenario Assumptions'!$B$6+Q51)) -> 0 | H52: =(G52/(1+'Scenario Assumptions'!$B$7)^('Scenario Assumptions'!$B$6+Q51)) -> 0 | J52: =D52*'Summary New'!$C$79 -> 0 | K52: =D52*('Summary New'!$C$70*(1+'Scenario Assumptions'!$B$11)^('Scenario Assumptions'!$B$6+1)+('Summary New'!$C$79-'Summary New'!$C$70)*(1+'Scenario Assumptions'!$B$12)^('Scenario Assumptions'!$B$6+Q51)) -> 0 | L52: =(K52/(1+'Scenario Assumptions'!$B$7)^('Scenario Assumptions'!$B$6+Q51)) -> 0 | N52: 0 | O52: 0 | P52: 0 | Q52: 47 | S52: 0 | T52: 0 | U52: 0
B53: Year 48 | D53: 1.6 | F53: =D53*'Summary New'!$C$50 -> 0 | G53: =(F53*(1+'Scenario Assumptions'!$B$10)^('Scenario Assumptions'!$B$6+Q52)) -> 0 | H53: =(G53/(1+'Scenario Assumptions'!$B$7)^('Scenario Assumptions'!$B$6+Q52)) -> 0 | J53: =D53*'Summary New'!$C$79 -> 0 | K53: =D53*('Summary New'!$C$70*(1+'Scenario Assumptions'!$B$11)^('Scenario Assumptions'!$B$6+1)+('Summary New'!$C$79-'Summary New'!$C$70)*(1+'Scenario Assumptions'!$B$12)^('Scenario Assumptions'!$B$6+Q52)) -> 0 | L53: =(K53/(1+'Scenario Assumptions'!$B$7)^('Scenario Assumptions'!$B$6+Q52)) -> 0 | N53: 0 | O53: 0 | P53: 0 | Q53: 48 | S53: 0 | T53: 0 | U53: 0
B54: Year 49 | D54: 1.633333333 | F54: =D54*'Summary New'!$C$50 -> 0 | G54: =(F54*(1+'Scenario Assumptions'!$B$10)^('Scenario Assumptions'!$B$6+Q53)) -> 0 | H54: =(G54/(1+'Scenario Assumptions'!$B$7)^('Scenario Assumptions'!$B$6+Q53)) -> 0 | J54: =D54*'Summary New'!$C$79 -> 0 | K54: =D54*('Summary New'!$C$70*(1+'Scenario Assumptions'!$B$11)^('Scenario Assumptions'!$B$6+1)+('Summary New'!$C$79-'Summary New'!$C$70)*(1+'Scenario Assumptions'!$B$12)^('Scenario Assumptions'!$B$6+Q53)) -> 0 | L54: =(K54/(1+'Scenario Assumptions'!$B$7)^('Scenario Assumptions'!$B$6+Q53)) -> 0 | N54: 0 | O54: 0 | P54: 0 | Q54: 49 | S54: 0 | T54: 0 | U54: 0
B55: Year 50 | D55: 1.666666667 | F55: =D55*'Summary New'!$C$50 -> 0 | G55: =(F55*(1+'Scenario Assumptions'!$B$10)^('Scenario Assumptions'!$B$6+Q54)) -> 0 | H55: =(G55/(1+'Scenario Assumptions'!$B$7)^('Scenario Assumptions'!$B$6+Q54)) -> 0 | J55: =D55*'Summary New'!$C$79 -> 0 | K55: =D55*('Summary New'!$C$70*(1+'Scenario Assumptions'!$B$11)^('Scenario Assumptions'!$B$6+1)+('Summary New'!$C$79-'Summary New'!$C$70)*(1+'Scenario Assumptions'!$B$12)^('Scenario Assumptions'!$B$6+Q54)) -> 0 | L55: =(K55/(1+'Scenario Assumptions'!$B$7)^('Scenario Assumptions'!$B$6+Q54)) -> 0 | N55: 0 | O55: 0 | P55: 0 | Q55: 50 | S55: 0 | T55: 0 | U55: 0
A59: Scen 2 | D59: Ramp-Up path:
B60: Year 1 | D60: =1/'Scenario Assumptions'!C$8 -> 0.03333333333 | F60: =D60*'Summary New'!$E$50 -> 0 | G60: =(F60*(1+'Scenario Assumptions'!$C$10)^'Scenario Assumptions'!$C$6) -> 0 | H60: =(G60/(1+'Scenario Assumptions'!$C$7)^('Scenario Assumptions'!$C$6)) -> 0 | J60: =D60*'Summary New'!$E$79 -> 0 | K60: =D60*('Summary New'!$E$70*(1+'Scenario Assumptions'!$C$11)^'Scenario Assumptions'!$C$6+('Summary New'!$E$79-'Summary New'!$E$70)*(1+'Scenario Assumptions'!$C$12)^'Scenario Assumptions'!$C$6) -> 0 | L60: =(K60/(1+'Scenario Assumptions'!$C$7)^('Scenario Assumptions'!$C$6)) -> 0 | N60: =H60 -> 0 | O60: =L60 -> 0 | P60: =N60-O60 -> 0 | Q60: 1 | S60: =N60 -> 0 | T60: =O60 -> 0 | U60: =P60 -> 0
B61: Year 2 | D61: =D60+$D$6 -> 0.06666666667 | F61: =D61*'Summary New'!$E$50 -> 0 | G61: =(F61*(1+'Scenario Assumptions'!$C$10)^('Scenario Assumptions'!$C$6+Q60)) -> 0 | H61: =(G61/(1+'Scenario Assumptions'!$C$7)^('Scenario Assumptions'!$C$6+Q60)) -> 0 | J61: =D61*'Summary New'!$E$79 -> 0 | K61: =D61*('Summary New'!$E$70*(1+'Scenario Assumptions'!$C$11)^('Scenario Assumptions'!$C$6+1)+('Summary New'!$E$79-'Summary New'!$E$70)*(1+'Scenario Assumptions'!$C$12)^('Scenario Assumptions'!$C$6+Q60)) -> 0 | L61: =(K61/(1+'Scenario Assumptions'!$C$7)^('Scenario Assumptions'!$C$6+Q60)) -> 0 | N61: 0 | O61: 0 | P61: 0 | Q61: 2 | S61: =N61+S60 -> 0 | T61: 0 | U61: 0
B62: Year 3 | D62: =D61+$D$6 -> 0.1 | F62: =D62*'Summary New'!$E$50 -> 0 | G62: =(F62*(1+'Scenario Assumptions'!$C$10)^('Scenario Assumptions'!$C$6+2)) -> 0 | H62: =(G62/(1+'Scenario Assumptions'!$C$7)^('Scenario Assumptions'!$C$6+Q61)) -> 0 | J62: =D62*'Summary New'!$E$79 -> 0 | K62: =D62*('Summary New'!$E$70*(1+'Scenario Assumptions'!$C$11)^('Scenario Assumptions'!$C$6+1)+('Summary New'!$E$79-'Summary New'!$E$70)*(1+'Scenario Assumptions'!$C$12)^('Scenario Assumptions'!$C$6+Q61)) -> 0 | L62: =(K62/(1+'Scenario Assumptions'!$C$7)^('Scenario Assumptions'!$C$6+Q61)) -> 0 | N62: 0 | O62: 0 | P62: 0 | Q62: 3 | S62: 0 | T62: 0 | U62: 0
B63: Year 4 | D63: 0.1333333333 | F63: =D63*'Summary New'!$E$50 -> 0 | G63: =(F63*(1+'Scenario Assumptions'!$C$10)^('Scenario Assumptions'!$C$6+3)) -> 0 | H63: =(G63/(1+'Scenario Assumptions'!$C$7)^('Scenario Assumptions'!$C$6+Q62)) -> 0 | J63: =D63*'Summary New'!$E$79 -> 0 | K63: =D63*('Summary New'!$E$70*(1+'Scenario Assumptions'!$C$11)^('Scenario Assumptions'!$C$6+1)+('Summary New'!$E$79-'Summary New'!$E$70)*(1+'Scenario Assumptions'!$C$12)^('Scenario Assumptions'!$C$6+Q62)) -> 0 | L63: =(K63/(1+'Scenario Assumptions'!$C$7)^('Scenario Assumptions'!$C$6+Q62)) -> 0 | N63: 0 | O63: 0 | P63: 0 | Q63: 4 | S63: 0 | T63: 0 | U63: 0
B64: Year 5 | D64: 0.1666666667 | F64: =D64*'Summary New'!$E$50 -> 0 | G64: =(F64*(1+'Scenario Assumptions'!$C$10)^('Scenario Assumptions'!$C$6+4)) -> 0 | H64: =(G64/(1+'Scenario Assumptions'!$C$7)^('Scenario Assumptions'!$C$6+Q63)) -> 0 | J64: =D64*'Summary New'!$E$79 -> 0 | K64: =D64*('Summary New'!$E$70*(1+'Scenario Assumptions'!$C$11)^('Scenario Assumptions'!$C$6+1)+('Summary New'!$E$79-'Summary New'!$E$70)*(1+'Scenario Assumptions'!$C$12)^('Scenario Assumptions'!$C$6+Q63)) -> 0 | L64: =(K64/(1+'Scenario Assumptions'!$C$7)^('Scenario Assumptions'!$C$6+Q63)) -> 0 | N64: 0 | O64: 0 | P64: 0 | Q64: 5 | S64: 0 | T64: 0 | U64: 0
B65: Year 6 | D65: 0.2 | F65: =D65*'Summary New'!$E$50 -> 0 | G65: =(F65*(1+'Scenario Assumptions'!$C$10)^('Scenario Assumptions'!$C$6+5)) -> 0 | H65: =(G65/(1+'Scenario Assumptions'!$C$7)^('Scenario Assumptions'!$C$6+Q64)) -> 0 | J65: =D65*'Summary New'!$E$79 -> 0 | K65: =D65*('Summary New'!$E$70*(1+'Scenario Assumptions'!$C$11)^('Scenario Assumptions'!$C$6+1)+('Summary New'!$E$79-'Summary New'!$E$70)*(1+'Scenario Assumptions'!$C$12)^('Scenario Assumptions'!$C$6+Q64)) -> 0 | L65: =(K65/(1+'Scenario Assumptions'!$C$7)^('Scenario Assumptions'!$C$6+Q64)) -> 0 | N65: 0 | O65: 0 | P65: 0 | Q65: 6 | S65: 0 | T65: 0 | U65: 0
B66: Year 7 | D66: 0.2333333333 | F66: =D66*'Summary New'!$E$50 -> 0 | G66: =(F66*(1+'Scenario Assumptions'!$C$10)^('Scenario Assumptions'!$C$6+6)) -> 0 | H66: =(G66/(1+'Scenario Assumptions'!$C$7)^('Scenario Assumptions'!$C$6+Q65)) -> 0 | J66: =D66*'Summary New'!$E$79 -> 0 | K66: =D66*('Summary New'!$E$70*(1+'Scenario Assumptions'!$C$11)^('Scenario Assumptions'!$C$6+1)+('Summary New'!$E$79-'Summary New'!$E$70)*(1+'Scenario Assumptions'!$C$12)^('Scenario Assumptions'!$C$6+Q65)) -> 0 | L66: =(K66/(1+'Scenario Assumptions'!$C$7)^('Scenario Assumptions'!$C$6+Q65)) -> 0 | N66: 0 | O66: 0 | P66: 0 | Q66: 7 | S66: 0 | T66: 0 | U66: 0
B67: Year 8 | D67: 0.2666666667 | F67: =D67*'Summary New'!$E$50 -> 0 | G67: =(F67*(1+'Scenario Assumptions'!$C$10)^('Scenario Assumptions'!$C$6+7)) -> 0 | H67: =(G67/(1+'Scenario Assumptions'!$C$7)^('Scenario Assumptions'!$C$6+Q66)) -> 0 | J67: =D67*'Summary New'!$E$79 -> 0 | K67: =D67*('Summary New'!$E$70*(1+'Scenario Assumptions'!$C$11)^('Scenario Assumptions'!$C$6+1)+('Summary New'!$E$79-'Summary New'!$E$70)*(1+'Scenario Assumptions'!$C$12)^('Scenario Assumptions'!$C$6+Q66)) -> 0 | L67: =(K67/(1+'Scenario Assumptions'!$C$7)^('Scenario Assumptions'!$C$6+Q66)) -> 0 | N67: 0 | O67: 0 | P67: 0 | Q67: 8 | S67: 0 | T67: 0 | U67: 0
B68: Year 9 | D68: 0.3 | F68: =D68*'Summary New'!$E$50 -> 0 | G68: =(F68*(1+'Scenario Assumptions'!$C$10)^('Scenario Assumptions'!$C$6+8)) -> 0 | H68: =(G68/(1+'Scenario Assumptions'!$C$7)^('Scenario Assumptions'!$C$6+Q67)) -> 0 | J68: =D68*'Summary New'!$E$79 -> 0 | K68: =D68*('Summary New'!$E$70*(1+'Scenario Assumptions'!$C$11)^('Scenario Assumptions'!$C$6+1)+('Summary New'!$E$79-'Summary New'!$E$70)*(1+'Scenario Assumptions'!$C$12)^('Scenario Assumptions'!$C$6+Q67)) -> 0 | L68: =(K68/(1+'Scenario Assumptions'!$C$7)^('Scenario Assumptions'!$C$6+Q67)) -> 0 | N68: 0 | O68: 0 | P68: 0 | Q68: 9 | S68: 0 | T68: 0 | U68: 0
B69: Year 10 | D69: 0.3333333333 | F69: =D69*'Summary New'!$E$50 -> 0 | G69: =(F69*(1+'Scenario Assumptions'!$C$10)^('Scenario Assumptions'!$C$6+9)) -> 0 | H69: =(G69/(1+'Scenario Assumptions'!$C$7)^('Scenario Assumptions'!$C$6+Q68)) -> 0 | J69: =D69*'Summary New'!$E$79 -> 0 | K69: =D69*('Summary New'!$E$70*(1+'Scenario Assumptions'!$C$11)^('Scenario Assumptions'!$C$6+1)+('Summary New'!$E$79-'Summary New'!$E$70)*(1+'Scenario Assumptions'!$C$12)^('Scenario Assumptions'!$C$6+Q68)) -> 0 | L69: =(K69/(1+'Scenario Assumptions'!$C$7)^('Scenario Assumptions'!$C$6+Q68)) -> 0 | N69: 0 | O69: 0 | P69: 0 | Q69: 10 | S69: 0 | T69: 0 | U69: 0
B70: Year 11 | D70: 0.3666666667 | F70: =D70*'Summary New'!$E$50 -> 0 | G70: =(F70*(1+'Scenario Assumptions'!$C$10)^('Scenario Assumptions'!$C$6+10)) -> 0 | H70: =(G70/(1+'Scenario Assumptions'!$C$7)^('Scenario Assumptions'!$C$6+Q69)) -> 0 | J70: =D70*'Summary New'!$E$79 -> 0 | K70: =D70*('Summary New'!$E$70*(1+'Scenario Assumptions'!$C$11)^('Scenario Assumptions'!$C$6+1)+('Summary New'!$E$79-'Summary New'!$E$70)*(1+'Scenario Assumptions'!$C$12)^('Scenario Assumptions'!$C$6+Q69)) -> 0 | L70: =(K70/(1+'Scenario Assumptions'!$C$7)^('Scenario Assumptions'!$C$6+Q69)) -> 0 | N70: 0 | O70: 0 | P70: 0 | Q70: 11 | S70: 0 | T70: 0 | U70: 0
B71: Year 12 | D71: 0.4 | F71: =D71*'Summary New'!$E$50 -> 0 | G71: =(F71*(1+'Scenario Assumptions'!$C$10)^('Scenario Assumptions'!$C$6+11)) -> 0 | H71: =(G71/(1+'Scenario Assumptions'!$C$7)^('Scenario Assumptions'!$C$6+Q70)) -> 0 | J71: =D71*'Summary New'!$E$79 -> 0 | K71: =D71*('Summary New'!$E$70*(1+'Scenario Assumptions'!$C$11)^('Scenario Assumptions'!$C$6+1)+('Summary New'!$E$79-'Summary New'!$E$70)*(1+'Scenario Assumptions'!$C$12)^('Scenario Assumptions'!$C$6+Q70)) -> 0 | L71: =(K71/(1+'Scenario Assumptions'!$C$7)^('Scenario Assumptions'!$C$6+Q70)) -> 0 | N71: 0 | O71: 0 | P71: 0 | Q71: 12 | S71: 0 | T71: 0 | U71: 0
B72: Year 13 | D72: 0.4333333333 | F72: =D72*'Summary New'!$E$50 -> 0 | G72: =(F72*(1+'Scenario Assumptions'!$C$10)^('Scenario Assumptions'!$C$6+12)) -> 0 | H72: =(G72/(1+'Scenario Assumptions'!$C$7)^('Scenario Assumptions'!$C$6+Q71)) -> 0 | J72: =D72*'Summary New'!$E$79 -> 0 | K72: =D72*('Summary New'!$E$70*(1+'Scenario Assumptions'!$C$11)^('Scenario Assumptions'!$C$6+1)+('Summary New'!$E$79-'Summary New'!$E$70)*(1+'Scenario Assumptions'!$C$12)^('Scenario Assumptions'!$C$6+Q71)) -> 0 | L72: =(K72/(1+'Scenario Assumptions'!$C$7)^('Scenario Assumptions'!$C$6+Q71)) -> 0 | N72: 0 | O72: 0 | P72: 0 | Q72: 13 | S72: 0 | T72: 0 | U72: 0
B73: Year 14 | D73: 0.4666666667 | F73: =D73*'Summary New'!$E$50 -> 0 | G73: =(F73*(1+'Scenario Assumptions'!$C$10)^('Scenario Assumptions'!$C$6+13)) -> 0 | H73: =(G73/(1+'Scenario Assumptions'!$C$7)^('Scenario Assumptions'!$C$6+Q72)) -> 0 | J73: =D73*'Summary New'!$E$79 -> 0 | K73: =D73*('Summary New'!$E$70*(1+'Scenario Assumptions'!$C$11)^('Scenario Assumptions'!$C$6+1)+('Summary New'!$E$79-'Summary New'!$E$70)*(1+'Scenario Assumptions'!$C$12)^('Scenario Assumptions'!$C$6+Q72)) -> 0 | L73: =(K73/(1+'Scenario Assumptions'!$C$7)^('Scenario Assumptions'!$C$6+Q72)) -> 0 | N73: 0 | O73: 0 | P73: 0 | Q73: 14 | S73: 0 | T73: 0 | U73: 0
B74: Year 15 | D74: 0.5 | F74: =D74*'Summary New'!$E$50 -> 0 | G74: =(F74*(1+'Scenario Assumptions'!$C$10)^('Scenario Assumptions'!$C$6+14)) -> 0 | H74: =(G74/(1+'Scenario Assumptions'!$C$7)^('Scenario Assumptions'!$C$6+Q73)) -> 0 | J74: =D74*'Summary New'!$E$79 -> 0 | K74: =D74*('Summary New'!$E$70*(1+'Scenario Assumptions'!$C$11)^('Scenario Assumptions'!$C$6+1)+('Summary New'!$E$79-'Summary New'!$E$70)*(1+'Scenario Assumptions'!$C$12)^('Scenario Assumptions'!$C$6+Q73)) -> 0 | L74: =(K74/(1+'Scenario Assumptions'!$C$7)^('Scenario Assumptions'!$C$6+Q73)) -> 0 | N74: 0 | O74: 0 | P74: 0 | Q74: 15 | S74: 0 | T74: 0 | U74: 0
B75: Year 16 | D75: 0.5333333333 | F75: =D75*'Summary New'!$E$50 -> 0 | G75: =(F75*(1+'Scenario Assumptions'!$C$10)^('Scenario Assumptions'!$C$6+15)) -> 0 | H75: =(G75/(1+'Scenario Assumptions'!$C$7)^('Scenario Assumptions'!$C$6+Q74)) -> 0 | J75: =D75*'Summary New'!$E$79 -> 0 | K75: =D75*('Summary New'!$E$70*(1+'Scenario Assumptions'!$C$11)^('Scenario Assumptions'!$C$6+1)+('Summary New'!$E$79-'Summary New'!$E$70)*(1+'Scenario Assumptions'!$C$12)^('Scenario Assumptions'!$C$6+Q74)) -> 0 | L75: =(K75/(1+'Scenario Assumptions'!$C$7)^('Scenario Assumptions'!$C$6+Q74)) -> 0 | N75: 0 | O75: 0 | P75: 0 | Q75: 16 | S75: 0 | T75: 0 | U75: 0
B76: Year 17 | D76: 0.5666666667 | F76: =D76*'Summary New'!$E$50 -> 0 | G76: =(F76*(1+'Scenario Assumptions'!$C$10)^('Scenario Assumptions'!$C$6+16)) -> 0 | H76: =(G76/(1+'Scenario Assumptions'!$C$7)^('Scenario Assumptions'!$C$6+Q75)) -> 0 | J76: =D76*'Summary New'!$E$79 -> 0 | K76: =D76*('Summary New'!$E$70*(1+'Scenario Assumptions'!$C$11)^('Scenario Assumptions'!$C$6+1)+('Summary New'!$E$79-'Summary New'!$E$70)*(1+'Scenario Assumptions'!$C$12)^('Scenario Assumptions'!$C$6+Q75)) -> 0 | L76: =(K76/(1+'Scenario Assumptions'!$C$7)^('Scenario Assumptions'!$C$6+Q75)) -> 0 | N76: 0 | O76: 0 | P76: 0 | Q76: 17 | S76: 0 | T76: 0 | U76: 0
B77: Year 18 | D77: 0.6 | F77: =D77*'Summary New'!$E$50 -> 0 | G77: =(F77*(1+'Scenario Assumptions'!$C$10)^('Scenario Assumptions'!$C$6+17)) -> 0 | H77: =(G77/(1+'Scenario Assumptions'!$C$7)^('Scenario Assumptions'!$C$6+Q76)) -> 0 | J77: =D77*'Summary New'!$E$79 -> 0 | K77: =D77*('Summary New'!$E$70*(1+'Scenario Assumptions'!$C$11)^('Scenario Assumptions'!$C$6+1)+('Summary New'!$E$79-'Summary New'!$E$70)*(1+'Scenario Assumptions'!$C$12)^('Scenario Assumptions'!$C$6+Q76)) -> 0 | L77: =(K77/(1+'Scenario Assumptions'!$C$7)^('Scenario Assumptions'!$C$6+Q76)) -> 0 | N77: 0 | O77: 0 | P77: 0 | Q77: 18 | S77: =N77+S76 -> 0 | T77: 0 | U77: 0
B78: Year 19 | D78: 0.6333333333 | F78: =D78*'Summary New'!$E$50 -> 0 | G78: =(F78*(1+'Scenario Assumptions'!$C$10)^('Scenario Assumptions'!$C$6+18)) -> 0 | H78: =(G78/(1+'Scenario Assumptions'!$C$7)^('Scenario Assumptions'!$C$6+Q77)) -> 0 | J78: =D78*'Summary New'!$E$79 -> 0 | K78: =D78*('Summary New'!$E$70*(1+'Scenario Assumptions'!$C$11)^('Scenario Assumptions'!$C$6+1)+('Summary New'!$E$79-'Summary New'!$E$70)*(1+'Scenario Assumptions'!$C$12)^('Scenario Assumptions'!$C$6+Q77)) -> 0 | L78: =(K78/(1+'Scenario Assumptions'!$C$7)^('Scenario Assumptions'!$C$6+Q77)) -> 0 | N78: 0 | O78: 0 | P78: 0 | Q78: 19 | S78: 0 | T78: 0 | U78: 0
B79: Year 20 | D79: 0.6666666667 | F79: =D79*'Summary New'!$E$50 -> 0 | G79: =(F79*(1+'Scenario Assumptions'!$C$10)^('Scenario Assumptions'!$C$6+19)) -> 0 | H79: =(G79/(1+'Scenario Assumptions'!$C$7)^('Scenario Assumptions'!$C$6+Q78)) -> 0 | J79: =D79*'Summary New'!$E$79 -> 0 | K79: =D79*('Summary New'!$E$70*(1+'Scenario Assumptions'!$C$11)^('Scenario Assumptions'!$C$6+1)+('Summary New'!$E$79-'Summary New'!$E$70)*(1+'Scenario Assumptions'!$C$12)^('Scenario Assumptions'!$C$6+Q78)) -> 0 | L79: =(K79/(1+'Scenario Assumptions'!$C$7)^('Scenario Assumptions'!$C$6+Q78)) -> 0 | N79: 0 | O79: 0 | P79: 0 | Q79: 20 | S79: 0 | T79: 0 | U79: 0
B80: Year 21 | D80: 0.7 | F80: =D80*'Summary New'!$E$50 -> 0 | G80: =(F80*(1+'Scenario Assumptions'!$C$10)^('Scenario Assumptions'!$C$6+20)) -> 0 | H80: =(G80/(1+'Scenario Assumptions'!$C$7)^('Scenario Assumptions'!$C$6+Q79)) -> 0 | J80: =D80*'Summary New'!$E$79 -> 0 | K80: =D80*('Summary New'!$E$70*(1+'Scenario Assumptions'!$C$11)^('Scenario Assumptions'!$C$6+1)+('Summary New'!$E$79-'Summary New'!$E$70)*(1+'Scenario Assumptions'!$C$12)^('Scenario Assumptions'!$C$6+Q79)) -> 0 | L80: =(K80/(1+'Scenario Assumptions'!$C$7)^('Scenario Assumptions'!$C$6+Q79)) -> 0 | N80: 0 | O80: 0 | P80: 0 | Q80: 21 | S80: 0 | T80: 0 | U80: 0
B81: Year 22 | D81: 0.7333333333 | F81: =D81*'Summary New'!$E$50 -> 0 | G81: =(F81*(1+'Scenario Assumptions'!$C$10)^('Scenario Assumptions'!$C$6+21)) -> 0 | H81: =(G81/(1+'Scenario Assumptions'!$C$7)^('Scenario Assumptions'!$C$6+Q80)) -> 0 | J81: =D81*'Summary New'!$E$79 -> 0 | K81: =D81*('Summary New'!$E$70*(1+'Scenario Assumptions'!$C$11)^('Scenario Assumptions'!$C$6+1)+('Summary New'!$E$79-'Summary New'!$E$70)*(1+'Scenario Assumptions'!$C$12)^('Scenario Assumptions'!$C$6+Q80)) -> 0 | L81: =(K81/(1+'Scenario Assumptions'!$C$7)^('Scenario Assumptions'!$C$6+Q80)) -> 0 | N81: 0 | O81: 0 | P81: 0 | Q81: 22 | S81: 0 | T81: 0 | U81: 0
B82: Year 23 | D82: 0.7666666667 | F82: =D82*'Summary New'!$E$50 -> 0 | G82: =(F82*(1+'Scenario Assumptions'!$C$10)^('Scenario Assumptions'!$C$6+22)) -> 0 | H82: =(G82/(1+'Scenario Assumptions'!$C$7)^('Scenario Assumptions'!$C$6+Q81)) -> 0 | J82: =D82*'Summary New'!$E$79 -> 0 | K82: =D82*('Summary New'!$E$70*(1+'Scenario Assumptions'!$C$11)^('Scenario Assumptions'!$C$6+1)+('Summary New'!$E$79-'Summary New'!$E$70)*(1+'Scenario Assumptions'!$C$12)^('Scenario Assumptions'!$C$6+Q81)) -> 0 | L82: =(K82/(1+'Scenario Assumptions'!$C$7)^('Scenario Assumptions'!$C$6+Q81)) -> 0 | N82: 0 | O82: 0 | P82: 0 | Q82: 23 | S82: 0 | T82: 0 | U82: 0
B83: Year 24 | D83: 0.8 | F83: =D83*'Summary New'!$E$50 -> 0 | G83: =(F83*(1+'Scenario Assumptions'!$C$10)^('Scenario Assumptions'!$C$6+23)) -> 0 | H83: =(G83/(1+'Scenario Assumptions'!$C$7)^('Scenario Assumptions'!$C$6+Q82)) -> 0 | J83: =D83*'Summary New'!$E$79 -> 0 | K83: =D83*('Summary New'!$E$70*(1+'Scenario Assumptions'!$C$11)^('Scenario Assumptions'!$C$6+1)+('Summary New'!$E$79-'Summary New'!$E$70)*(1+'Scenario Assumptions'!$C$12)^('Scenario Assumptions'!$C$6+Q82)) -> 0 | L83: =(K83/(1+'Scenario Assumptions'!$C$7)^('Scenario Assumptions'!$C$6+Q82)) -> 0 | N83: 0 | O83: 0 | P83: 0 | Q83: 24 | S83: 0 | T83: 0 | U83: 0
B84: Year 25 | D84: 0.8333333333 | F84: =D84*'Summary New'!$E$50 -> 0 | G84: =(F84*(1+'Scenario Assumptions'!$C$10)^('Scenario Assumptions'!$C$6+24)) -> 0 | H84: =(G84/(1+'Scenario Assumptions'!$C$7)^('Scenario Assumptions'!$C$6+Q83)) -> 0 | J84: =D84*'Summary New'!$E$79 -> 0 | K84: =D84*('Summary New'!$E$70*(1+'Scenario Assumptions'!$C$11)^('Scenario Assumptions'!$C$6+1)+('Summary New'!$E$79-'Summary New'!$E$70)*(1+'Scenario Assumptions'!$C$12)^('Scenario Assumptions'!$C$6+Q83)) -> 0 | L84: =(K84/(1+'Scenario Assumptions'!$C$7)^('Scenario Assumptions'!$C$6+Q83)) -> 0 | N84: 0 | O84: 0 | P84: 0 | Q84: 25 | S84: 0 | T84: 0 | U84: 0
B85: Year 26 | D85: 0.8666666667 | F85: =D85*'Summary New'!$E$50 -> 0 | G85: =(F85*(1+'Scenario Assumptions'!$C$10)^('Scenario Assumptions'!$C$6+25)) -> 0 | H85: =(G85/(1+'Scenario Assumptions'!$C$7)^('Scenario Assumptions'!$C$6+Q84)) -> 0 | J85: =D85*'Summary New'!$E$79 -> 0 | K85: =D85*('Summary New'!$E$70*(1+'Scenario Assumptions'!$C$11)^('Scenario Assumptions'!$C$6+1)+('Summary New'!$E$79-'Summary New'!$E$70)*(1+'Scenario Assumptions'!$C$12)^('Scenario Assumptions'!$C$6+Q84)) -> 0 | L85: =(K85/(1+'Scenario Assumptions'!$C$7)^('Scenario Assumptions'!$C$6+Q84)) -> 0 | N85: 0 | O85: 0 | P85: 0 | Q85: 26 | S85: 0 | T85: 0 | U85: 0
B86: Year 27 | D86: 0.9 | F86: =D86*'Summary New'!$E$50 -> 0 | G86: =(F86*(1+'Scenario Assumptions'!$C$10)^('Scenario Assumptions'!$C$6+26)) -> 0 | H86: =(G86/(1+'Scenario Assumptions'!$C$7)^('Scenario Assumptions'!$C$6+Q85)) -> 0 | J86: =D86*'Summary New'!$E$79 -> 0 | K86: =D86*('Summary New'!$E$70*(1+'Scenario Assumptions'!$C$11)^('Scenario Assumptions'!$C$6+1)+('Summary New'!$E$79-'Summary New'!$E$70)*(1+'Scenario Assumptions'!$C$12)^('Scenario Assumptions'!$C$6+Q85)) -> 0 | L86: =(K86/(1+'Scenario Assumptions'!$C$7)^('Scenario Assumptions'!$C$6+Q85)) -> 0 | N86: 0 | O86: 0 | P86: 0 | Q86: 27 | S86: 0 | T86: 0 | U86: 0
B87: Year 28 | D87: 0.9333333333 | F87: =D87*'Summary New'!$E$50 -> 0 | G87: =(F87*(1+'Scenario Assumptions'!$C$10)^('Scenario Assumptions'!$C$6+27)) -> 0 | H87: =(G87/(1+'Scenario Assumptions'!$C$7)^('Scenario Assumptions'!$C$6+Q86)) -> 0 | J87: =D87*'Summary New'!$E$79 -> 0 | K87: =D87*('Summary New'!$E$70*(1+'Scenario Assumptions'!$C$11)^('Scenario Assumptions'!$C$6+1)+('Summary New'!$E$79-'Summary New'!$E$70)*(1+'Scenario Assumptions'!$C$12)^('Scenario Assumptions'!$C$6+Q86)) -> 0 | L87: =(K87/(1+'Scenario Assumptions'!$C$7)^('Scenario Assumptions'!$C$6+Q86)) -> 0 | N87: 0 | O87: 0 | P87: 0 | Q87: 28 | S87: 0 | T87: 0 | U87: 0
B88: Year 29 | D88: 0.9666666667 | F88: =D88*'Summary New'!$E$50 -> 0 | G88: =(F88*(1+'Scenario Assumptions'!$C$10)^('Scenario Assumptions'!$C$6+28)) -> 0 | H88: =(G88/(1+'Scenario Assumptions'!$C$7)^('Scenario Assumptions'!$C$6+Q87)) -> 0 | J88: =D88*'Summary New'!$E$79 -> 0 | K88: =D88*('Summary New'!$E$70*(1+'Scenario Assumptions'!$C$11)^('Scenario Assumptions'!$C$6+1)+('Summary New'!$E$79-'Summary New'!$E$70)*(1+'Scenario Assumptions'!$C$12)^('Scenario Assumptions'!$C$6+Q87)) -> 0 | L88: =(K88/(1+'Scenario Assumptions'!$C$7)^('Scenario Assumptions'!$C$6+Q87)) -> 0 | N88: 0 | O88: 0 | P88: 0 | Q88: 29 | S88: 0 | T88: 0 | U88: 0
B89: Year 30 | D89: 1 | F89: =D89*'Summary New'!$E$50 -> 0 | G89: =(F89*(1+'Scenario Assumptions'!$C$10)^('Scenario Assumptions'!$C$6+29)) -> 0 | H89: =(G89/(1+'Scenario Assumptions'!$C$7)^('Scenario Assumptions'!$C$6+Q88)) -> 0 | J89: =D89*'Summary New'!$E$79 -> 0 | K89: =D89*('Summary New'!$E$70*(1+'Scenario Assumptions'!$C$11)^('Scenario Assumptions'!$C$6+1)+('Summary New'!$E$79-'Summary New'!$E$70)*(1+'Scenario Assumptions'!$C$12)^('Scenario Assumptions'!$C$6+Q88)) -> 0 | L89: =(K89/(1+'Scenario Assumptions'!$C$7)^('Scenario Assumptions'!$C$6+Q88)) -> 0 | N89: 0 | O89: 0 | P89: 0 | Q89: 30 | S89: 0 | T89: 0 | U89: 0
B90: Year 31 | D90: 1.033333333 | F90: =D90*'Summary New'!$E$50 -> 0 | G90: =(F90*(1+'Scenario Assumptions'!$C$10)^('Scenario Assumptions'!$C$6+29)) -> 0 | H90: =(G90/(1+'Scenario Assumptions'!$C$7)^('Scenario Assumptions'!$C$6+Q89)) -> 0 | J90: =D90*'Summary New'!$E$79 -> 0 | K90: =D90*('Summary New'!$E$70*(1+'Scenario Assumptions'!$C$11)^('Scenario Assumptions'!$C$6+1)+('Summary New'!$E$79-'Summary New'!$E$70)*(1+'Scenario Assumptions'!$C$12)^('Scenario Assumptions'!$C$6+Q89)) -> 0 | L90: =(K90/(1+'Scenario Assumptions'!$C$7)^('Scenario Assumptions'!$C$6+Q89)) -> 0 | N90: =H90 -> 0 | O90: =L90 -> 0 | P90: =N90-O90 -> 0 | Q90: 31 | S90: =N90+S89 -> 0 | T90: =O90+T89 -> 0 | U90: =P90+U89 -> 0
B91: Year 32 | D91: 1.066666667 | F91: =D91*'Summary New'!$E$50 -> 0 | G91: =(F91*(1+'Scenario Assumptions'!$C$10)^('Scenario Assumptions'!$C$6+29)) -> 0 | H91: =(G91/(1+'Scenario Assumptions'!$C$7)^('Scenario Assumptions'!$C$6+Q90)) -> 0 | J91: =D91*'Summary New'!$E$79 -> 0 | K91: =D91*('Summary New'!$E$70*(1+'Scenario Assumptions'!$C$11)^('Scenario Assumptions'!$C$6+1)+('Summary New'!$E$79-'Summary New'!$E$70)*(1+'Scenario Assumptions'!$C$12)^('Scenario Assumptions'!$C$6+Q90)) -> 0 | L91: =(K91/(1+'Scenario Assumptions'!$C$7)^('Scenario Assumptions'!$C$6+Q90)) -> 0 | N91: 0 | O91: 0 | P91: 0 | Q91: 32 | S91: 0 | T91: 0 | U91: 0
B92: Year 33 | D92: 1.1 | F92: =D92*'Summary New'!$E$50 -> 0 | G92: =(F92*(1+'Scenario Assumptions'!$C$10)^('Scenario Assumptions'!$C$6+29)) -> 0 | H92: =(G92/(1+'Scenario Assumptions'!$C$7)^('Scenario Assumptions'!$C$6+Q91)) -> 0 | J92: =D92*'Summary New'!$E$79 -> 0 | K92: =D92*('Summary New'!$E$70*(1+'Scenario Assumptions'!$C$11)^('Scenario Assumptions'!$C$6+1)+('Summary New'!$E$79-'Summary New'!$E$70)*(1+'Scenario Assumptions'!$C$12)^('Scenario Assumptions'!$C$6+Q91)) -> 0 | L92: =(K92/(1+'Scenario Assumptions'!$C$7)^('Scenario Assumptions'!$C$6+Q91)) -> 0 | N92: 0 | O92: 0 | P92: 0 | Q92: 33 | S92: 0 | T92: 0 | U92: 0
B93: Year 34 | D93: 1.133333333 | F93: =D93*'Summary New'!$E$50 -> 0 | G93: =(F93*(1+'Scenario Assumptions'!$C$10)^('Scenario Assumptions'!$C$6+29)) -> 0 | H93: =(G93/(1+'Scenario Assumptions'!$C$7)^('Scenario Assumptions'!$C$6+Q92)) -> 0 | J93: =D93*'Summary New'!$E$79 -> 0 | K93: =D93*('Summary New'!$E$70*(1+'Scenario Assumptions'!$C$11)^('Scenario Assumptions'!$C$6+1)+('Summary New'!$E$79-'Summary New'!$E$70)*(1+'Scenario Assumptions'!$C$12)^('Scenario Assumptions'!$C$6+Q92)) -> 0 | L93: =(K93/(1+'Scenario Assumptions'!$C$7)^('Scenario Assumptions'!$C$6+Q92)) -> 0 | N93: 0 | O93: 0 | P93: 0 | Q93: 34 | S93: 0 | T93: 0 | U93: 0
B94: Year 35 | D94: 1.166666667 | F94: =D94*'Summary New'!$E$50 -> 0 | G94: =(F94*(1+'Scenario Assumptions'!$C$10)^('Scenario Assumptions'!$C$6+29)) -> 0 | H94: =(G94/(1+'Scenario Assumptions'!$C$7)^('Scenario Assumptions'!$C$6+Q93)) -> 0 | J94: =D94*'Summary New'!$E$79 -> 0 | K94: =D94*('Summary New'!$E$70*(1+'Scenario Assumptions'!$C$11)^('Scenario Assumptions'!$C$6+1)+('Summary New'!$E$79-'Summary New'!$E$70)*(1+'Scenario Assumptions'!$C$12)^('Scenario Assumptions'!$C$6+Q93)) -> 0 | L94: =(K94/(1+'Scenario Assumptions'!$C$7)^('Scenario Assumptions'!$C$6+Q93)) -> 0 | N94: 0 | O94: 0 | P94: 0 | Q94: 35 | S94: 0 | T94: 0 | U94: 0
B95: Year 36 | D95: 1.2 | F95: =D95*'Summary New'!$E$50 -> 0 | G95: =(F95*(1+'Scenario Assumptions'!$C$10)^('Scenario Assumptions'!$C$6+29)) -> 0 | H95: =(G95/(1+'Scenario Assumptions'!$C$7)^('Scenario Assumptions'!$C$6+Q94)) -> 0 | J95: =D95*'Summary New'!$E$79 -> 0 | K95: =D95*('Summary New'!$E$70*(1+'Scenario Assumptions'!$C$11)^('Scenario Assumptions'!$C$6+1)+('Summary New'!$E$79-'Summary New'!$E$70)*(1+'Scenario Assumptions'!$C$12)^('Scenario Assumptions'!$C$6+Q94)) -> 0 | L95: =(K95/(1+'Scenario Assumptions'!$C$7)^('Scenario Assumptions'!$C$6+Q94)) -> 0 | N95: 0 | O95: 0 | P95: 0 | Q95: 36 | S95: 0 | T95: 0 | U95: 0
B96: Year 37 | D96: 1.233333333 | F96: =D96*'Summary New'!$E$50 -> 0 | G96: =(F96*(1+'Scenario Assumptions'!$C$10)^('Scenario Assumptions'!$C$6+29)) -> 0 | H96: =(G96/(1+'Scenario Assumptions'!$C$7)^('Scenario Assumptions'!$C$6+Q95)) -> 0 | J96: =D96*'Summary New'!$E$79 -> 0 | K96: =D96*('Summary New'!$E$70*(1+'Scenario Assumptions'!$C$11)^('Scenario Assumptions'!$C$6+1)+('Summary New'!$E$79-'Summary New'!$E$70)*(1+'Scenario Assumptions'!$C$12)^('Scenario Assumptions'!$C$6+Q95)) -> 0 | L96: =(K96/(1+'Scenario Assumptions'!$C$7)^('Scenario Assumptions'!$C$6+Q95)) -> 0 | N96: 0 | O96: 0 | P96: 0 | Q96: 37 | S96: 0 | T96: 0 | U96: 0
B97: Year 38 | D97: 1.266666667 | F97: =D97*'Summary New'!$E$50 -> 0 | G97: =(F97*(1+'Scenario Assumptions'!$C$10)^('Scenario Assumptions'!$C$6+29)) -> 0 | H97: =(G97/(1+'Scenario Assumptions'!$C$7)^('Scenario Assumptions'!$C$6+Q96)) -> 0 | J97: =D97*'Summary New'!$E$79 -> 0 | K97: =D97*('Summary New'!$E$70*(1+'Scenario Assumptions'!$C$11)^('Scenario Assumptions'!$C$6+1)+('Summary New'!$E$79-'Summary New'!$E$70)*(1+'Scenario Assumptions'!$C$12)^('Scenario Assumptions'!$C$6+Q96)) -> 0 | L97: =(K97/(1+'Scenario Assumptions'!$C$7)^('Scenario Assumptions'!$C$6+Q96)) -> 0 | N97: 0 | O97: 0 | P97: 0 | Q97: 38 | S97: 0 | T97: 0 | U97: 0
B98: Year 39 | D98: 1.3 | F98: =D98*'Summary New'!$E$50 -> 0 | G98: =(F98*(1+'Scenario Assumptions'!$C$10)^('Scenario Assumptions'!$C$6+29)) -> 0 | H98: =(G98/(1+'Scenario Assumptions'!$C$7)^('Scenario Assumptions'!$C$6+Q97)) -> 0 | J98: =D98*'Summary New'!$E$79 -> 0 | K98: =D98*('Summary New'!$E$70*(1+'Scenario Assumptions'!$C$11)^('Scenario Assumptions'!$C$6+1)+('Summary New'!$E$79-'Summary New'!$E$70)*(1+'Scenario Assumptions'!$C$12)^('Scenario Assumptions'!$C$6+Q97)) -> 0 | L98: =(K98/(1+'Scenario Assumptions'!$C$7)^('Scenario Assumptions'!$C$6+Q97)) -> 0 | N98: 0 | O98: 0 | P98: 0 | Q98: 39 | S98: 0 | T98: 0 | U98: 0
B99: Year 40 | D99: 1.333333333 | F99: =D99*'Summary New'!$E$50 -> 0 | G99: =(F99*(1+'Scenario Assumptions'!$C$10)^('Scenario Assumptions'!$C$6+29)) -> 0 | H99: =(G99/(1+'Scenario Assumptions'!$C$7)^('Scenario Assumptions'!$C$6+Q98)) -> 0 | J99: =D99*'Summary New'!$E$79 -> 0 | K99: =D99*('Summary New'!$E$70*(1+'Scenario Assumptions'!$C$11)^('Scenario Assumptions'!$C$6+1)+('Summary New'!$E$79-'Summary New'!$E$70)*(1+'Scenario Assumptions'!$C$12)^('Scenario Assumptions'!$C$6+Q98)) -> 0 | L99: =(K99/(1+'Scenario Assumptions'!$C$7)^('Scenario Assumptions'!$C$6+Q98)) -> 0 | N99: 0 | O99: 0 | P99: 0 | Q99: 40 | S99: 0 | T99: 0 | U99: 0
B100: Year 41 | D100: 1.366666667 | F100: =D100*'Summary New'!$E$50 -> 0 | G100: =(F100*(1+'Scenario Assumptions'!$C$10)^('Scenario Assumptions'!$C$6+29)) -> 0 | H100: =(G100/(1+'Scenario Assumptions'!$C$7)^('Scenario Assumptions'!$C$6+Q99)) -> 0 | J100: =D100*'Summary New'!$E$79 -> 0 | K100: =D100*('Summary New'!$E$70*(1+'Scenario Assumptions'!$C$11)^('Scenario Assumptions'!$C$6+1)+('Summary New'!$E$79-'Summary New'!$E$70)*(1+'Scenario Assumptions'!$C$12)^('Scenario Assumptions'!$C$6+Q99)) -> 0 | L100: =(K100/(1+'Scenario Assumptions'!$C$7)^('Scenario Assumptions'!$C$6+Q99)) -> 0 | N100: 0 | O100: 0 | P100: 0 | Q100: 41 | S100: 0 | T100: 0 | U100: 0
B101: Year 42 | D101: 1.4 | F101: =D101*'Summary New'!$E$50 -> 0 | G101: =(F101*(1+'Scenario Assumptions'!$C$10)^('Scenario Assumptions'!$C$6+29)) -> 0 | H101: =(G101/(1+'Scenario Assumptions'!$C$7)^('Scenario Assumptions'!$C$6+Q100)) -> 0 | J101: =D101*'Summary New'!$E$79 -> 0 | K101: =D101*('Summary New'!$E$70*(1+'Scenario Assumptions'!$C$11)^('Scenario Assumptions'!$C$6+1)+('Summary New'!$E$79-'Summary New'!$E$70)*(1+'Scenario Assumptions'!$C$12)^('Scenario Assumptions'!$C$6+Q100)) -> 0 | L101: =(K101/(1+'Scenario Assumptions'!$C$7)^('Scenario Assumptions'!$C$6+Q100)) -> 0 | N101: 0 | O101: 0 | P101: 0 | Q101: 42 | S101: 0 | T101: 0 | U101: 0
B102: Year 43 | D102: 1.433333333 | F102: =D102*'Summary New'!$E$50 -> 0 | G102: =(F102*(1+'Scenario Assumptions'!$C$10)^('Scenario Assumptions'!$C$6+29)) -> 0 | H102: =(G102/(1+'Scenario Assumptions'!$C$7)^('Scenario Assumptions'!$C$6+Q101)) -> 0 | J102: =D102*'Summary New'!$E$79 -> 0 | K102: =D102*('Summary New'!$E$70*(1+'Scenario Assumptions'!$C$11)^('Scenario Assumptions'!$C$6+1)+('Summary New'!$E$79-'Summary New'!$E$70)*(1+'Scenario Assumptions'!$C$12)^('Scenario Assumptions'!$C$6+Q101)) -> 0 | L102: =(K102/(1+'Scenario Assumptions'!$C$7)^('Scenario Assumptions'!$C$6+Q101)) -> 0 | N102: 0 | O102: 0 | P102: 0 | Q102: 43 | S102: 0 | T102: 0 | U102: 0
B103: Year 44 | D103: 1.466666667 | F103: =D103*'Summary New'!$E$50 -> 0 | G103: =(F103*(1+'Scenario Assumptions'!$C$10)^('Scenario Assumptions'!$C$6+29)) -> 0 | H103: =(G103/(1+'Scenario Assumptions'!$C$7)^('Scenario Assumptions'!$C$6+Q102)) -> 0 | J103: =D103*'Summary New'!$E$79 -> 0 | K103: =D103*('Summary New'!$E$70*(1+'Scenario Assumptions'!$C$11)^('Scenario Assumptions'!$C$6+1)+('Summary New'!$E$79-'Summary New'!$E$70)*(1+'Scenario Assumptions'!$C$12)^('Scenario Assumptions'!$C$6+Q102)) -> 0 | L103: =(K103/(1+'Scenario Assumptions'!$C$7)^('Scenario Assumptions'!$C$6+Q102)) -> 0 | N103: 0 | O103: 0 | P103: 0 | Q103: 44 | S103: 0 | T103: 0 | U103: 0
B104: Year 45 | D104: 1.5 | F104: =D104*'Summary New'!$E$50 -> 0 | G104: =(F104*(1+'Scenario Assumptions'!$C$10)^('Scenario Assumptions'!$C$6+29)) -> 0 | H104: =(G104/(1+'Scenario Assumptions'!$C$7)^('Scenario Assumptions'!$C$6+Q103)) -> 0 | J104: =D104*'Summary New'!$E$79 -> 0 | K104: =D104*('Summary New'!$E$70*(1+'Scenario Assumptions'!$C$11)^('Scenario Assumptions'!$C$6+1)+('Summary New'!$E$79-'Summary New'!$E$70)*(1+'Scenario Assumptions'!$C$12)^('Scenario Assumptions'!$C$6+Q103)) -> 0 | L104: =(K104/(1+'Scenario Assumptions'!$C$7)^('Scenario Assumptions'!$C$6+Q103)) -> 0 | N104: 0 | O104: 0 | P104: 0 | Q104: 45 | S104: 0 | T104: 0 | U104: 0
B105: Year 46 | D105: 1.533333333 | F105: =D105*'Summary New'!$E$50 -> 0 | G105: =(F105*(1+'Scenario Assumptions'!$C$10)^('Scenario Assumptions'!$C$6+29)) -> 0 | H105: =(G105/(1+'Scenario Assumptions'!$C$7)^('Scenario Assumptions'!$C$6+Q104)) -> 0 | J105: =D105*'Summary New'!$E$79 -> 0 | K105: =D105*('Summary New'!$E$70*(1+'Scenario Assumptions'!$C$11)^('Scenario Assumptions'!$C$6+1)+('Summary New'!$E$79-'Summary New'!$E$70)*(1+'Scenario Assumptions'!$C$12)^('Scenario Assumptions'!$C$6+Q104)) -> 0 | L105: =(K105/(1+'Scenario Assumptions'!$C$7)^('Scenario Assumptions'!$C$6+Q104)) -> 0 | N105: 0 | O105: 0 | P105: 0 | Q105: 46 | S105: 0 | T105: 0 | U105: 0
B106: Year 47 | D106: 1.566666667 | F106: =D106*'Summary New'!$E$50 -> 0 | G106: =(F106*(1+'Scenario Assumptions'!$C$10)^('Scenario Assumptions'!$C$6+29)) -> 0 | H106: =(G106/(1+'Scenario Assumptions'!$C$7)^('Scenario Assumptions'!$C$6+Q105)) -> 0 | J106: =D106*'Summary New'!$E$79 -> 0 | K106: =D106*('Summary New'!$E$70*(1+'Scenario Assumptions'!$C$11)^('Scenario Assumptions'!$C$6+1)+('Summary New'!$E$79-'Summary New'!$E$70)*(1+'Scenario Assumptions'!$C$12)^('Scenario Assumptions'!$C$6+Q105)) -> 0 | L106: =(K106/(1+'Scenario Assumptions'!$C$7)^('Scenario Assumptions'!$C$6+Q105)) -> 0 | N106: 0 | O106: 0 | P106: 0 | Q106: 47 | S106: 0 | T106: 0 | U106: 0
B107: Year 48 | D107: 1.6 | F107: =D107*'Summary New'!$E$50 -> 0 | G107: =(F107*(1+'Scenario Assumptions'!$C$10)^('Scenario Assumptions'!$C$6+29)) -> 0 | H107: =(G107/(1+'Scenario Assumptions'!$C$7)^('Scenario Assumptions'!$C$6+Q106)) -> 0 | J107: =D107*'Summary New'!$E$79 -> 0 | K107: =D107*('Summary New'!$E$70*(1+'Scenario Assumptions'!$C$11)^('Scenario Assumptions'!$C$6+1)+('Summary New'!$E$79-'Summary New'!$E$70)*(1+'Scenario Assumptions'!$C$12)^('Scenario Assumptions'!$C$6+Q106)) -> 0 | L107: =(K107/(1+'Scenario Assumptions'!$C$7)^('Scenario Assumptions'!$C$6+Q106)) -> 0 | N107: 0 | O107: 0 | P107: 0 | Q107: 48 | S107: 0 | T107: 0 | U107: 0
B108: Year 49 | D108: 1.633333333 | F108: =D108*'Summary New'!$E$50 -> 0 | G108: =(F108*(1+'Scenario Assumptions'!$C$10)^('Scenario Assumptions'!$C$6+29)) -> 0 | H108: =(G108/(1+'Scenario Assumptions'!$C$7)^('Scenario Assumptions'!$C$6+Q107)) -> 0 | J108: =D108*'Summary New'!$E$79 -> 0 | K108: =D108*('Summary New'!$E$70*(1+'Scenario Assumptions'!$C$11)^('Scenario Assumptions'!$C$6+1)+('Summary New'!$E$79-'Summary New'!$E$70)*(1+'Scenario Assumptions'!$C$12)^('Scenario Assumptions'!$C$6+Q107)) -> 0 | L108: =(K108/(1+'Scenario Assumptions'!$C$7)^('Scenario Assumptions'!$C$6+Q107)) -> 0 | N108: 0 | O108: 0 | P108: 0 | Q108: 49 | S108: 0 | T108: 0 | U108: 0
B109: Year 50 | D109: 1.666666667 | F109: =D109*'Summary New'!$E$50 -> 0 | G109: =(F109*(1+'Scenario Assumptions'!$C$10)^('Scenario Assumptions'!$C$6+29)) -> 0 | H109: =(G109/(1+'Scenario Assumptions'!$C$7)^('Scenario Assumptions'!$C$6+Q108)) -> 0 | J109: =D109*'Summary New'!$E$79 -> 0 | K109: =D109*('Summary New'!$E$70*(1+'Scenario Assumptions'!$C$11)^('Scenario Assumptions'!$C$6+1)+('Summary New'!$E$79-'Summary New'!$E$70)*(1+'Scenario Assumptions'!$C$12)^('Scenario Assumptions'!$C$6+Q108)) -> 0 | L109: =(K109/(1+'Scenario Assumptions'!$C$7)^('Scenario Assumptions'!$C$6+Q108)) -> 0 | N109: 0 | O109: 0 | P109: 0 | Q109: 50 | S109: 0 | T109: 0 | U109: 0
A113: Scen 3 | D113: Ramp-Up path:
B114: Year 1 | D114: =1/'Scenario Assumptions'!D$8 -> 0.03333333333 | F114: =D114*'Summary New'!$G$50 -> 0 | G114: =(F114*(1+'Scenario Assumptions'!$D$10)^'Scenario Assumptions'!$D$6) -> 0 | H114: =(G114/(1+'Scenario Assumptions'!$D$7)^('Scenario Assumptions'!$D$6)) -> 0 | J114: =D114*'Summary New'!$G$79 -> 0 | K114: =D114*('Summary New'!$G$70*(1+'Scenario Assumptions'!$D$11)^'Scenario Assumptions'!$D$6+('Summary New'!$G$79-'Summary New'!$G$70)*(1+'Scenario Assumptions'!$D$12)^'Scenario Assumptions'!$D$6) -> 0 | L114: =(K114/(1+'Scenario Assumptions'!$D$7)^('Scenario Assumptions'!$D$6)) -> 0 | N114: =H114 -> 0 | O114: =L114 -> 0 | P114: =N114-O114 -> 0 | Q114: 1 | S114: =N114 -> 0 | T114: =O114 -> 0 | U114: =P114 -> 0
B115: Year 2 | D115: =D114+$D$6 -> 0.06666666667 | F115: =D115*'Summary New'!$G$50 -> 0 | G115: =(F115*(1+'Scenario Assumptions'!$D$10)^('Scenario Assumptions'!$D$6+Q114)) -> 0 | H115: =(G115/(1+'Scenario Assumptions'!$D$7)^('Scenario Assumptions'!$D$6+Q114)) -> 0 | J115: =D115*'Summary New'!$G$79 -> 0 | K115: =D115*('Summary New'!$G$70*(1+'Scenario Assumptions'!$D$11)^('Scenario Assumptions'!$D$6+1)+('Summary New'!$G$79-'Summary New'!$G$70)*(1+'Scenario Assumptions'!$D$12)^('Scenario Assumptions'!$D$6+Q114)) -> 0 | L115: =(K115/(1+'Scenario Assumptions'!$D$7)^('Scenario Assumptions'!$D$6+Q114)) -> 0 | N115: 0 | O115: 0 | P115: 0 | Q115: 2 | S115: =N115+S114 -> 0 | T115: 0 | U115: 0
B116: Year 3 | D116: =D115+$D$6 -> 0.1 | F116: =D116*'Summary New'!$G$50 -> 0 | G116: =(F116*(1+'Scenario Assumptions'!$D$10)^('Scenario Assumptions'!$D$6+Q115)) -> 0 | H116: =(G116/(1+'Scenario Assumptions'!$D$7)^('Scenario Assumptions'!$D$6+Q115)) -> 0 | J116: =D116*'Summary New'!$G$79 -> 0 | K116: =D116*('Summary New'!$G$70*(1+'Scenario Assumptions'!$D$11)^('Scenario Assumptions'!$D$6+1)+('Summary New'!$G$79-'Summary New'!$G$70)*(1+'Scenario Assumptions'!$D$12)^('Scenario Assumptions'!$D$6+Q115)) -> 0 | L116: =(K116/(1+'Scenario Assumptions'!$D$7)^('Scenario Assumptions'!$D$6+Q115)) -> 0 | N116: 0 | O116: 0 | P116: 0 | Q116: 3 | S116: 0 | T116: 0 | U116: 0
B117: Year 4 | D117: 0.1333333333 | F117: =D117*'Summary New'!$G$50 -> 0 | G117: =(F117*(1+'Scenario Assumptions'!$D$10)^('Scenario Assumptions'!$D$6+Q116)) -> 0 | H117: =(G117/(1+'Scenario Assumptions'!$D$7)^('Scenario Assumptions'!$D$6+Q116)) -> 0 | J117: =D117*'Summary New'!$G$79 -> 0 | K117: =D117*('Summary New'!$G$70*(1+'Scenario Assumptions'!$D$11)^('Scenario Assumptions'!$D$6+1)+('Summary New'!$G$79-'Summary New'!$G$70)*(1+'Scenario Assumptions'!$D$12)^('Scenario Assumptions'!$D$6+Q116)) -> 0 | L117: =(K117/(1+'Scenario Assumptions'!$D$7)^('Scenario Assumptions'!$D$6+Q116)) -> 0 | N117: 0 | O117: 0 | P117: 0 | Q117: 4 | S117: 0 | T117: 0 | U117: 0
B118: Year 5 | D118: 0.1666666667 | F118: =D118*'Summary New'!$G$50 -> 0 | G118: =(F118*(1+'Scenario Assumptions'!$D$10)^('Scenario Assumptions'!$D$6+Q117)) -> 0 | H118: =(G118/(1+'Scenario Assumptions'!$D$7)^('Scenario Assumptions'!$D$6+Q117)) -> 0 | J118: =D118*'Summary New'!$G$79 -> 0 | K118: =D118*('Summary New'!$G$70*(1+'Scenario Assumptions'!$D$11)^('Scenario Assumptions'!$D$6+1)+('Summary New'!$G$79-'Summary New'!$G$70)*(1+'Scenario Assumptions'!$D$12)^('Scenario Assumptions'!$D$6+Q117)) -> 0 | L118: =(K118/(1+'Scenario Assumptions'!$D$7)^('Scenario Assumptions'!$D$6+Q117)) -> 0 | N118: 0 | O118: 0 | P118: 0 | Q118: 5 | S118: 0 | T118: 0 | U118: 0
B119: Year 6 | D119: 0.2 | F119: =D119*'Summary New'!$G$50 -> 0 | G119: =(F119*(1+'Scenario Assumptions'!$D$10)^('Scenario Assumptions'!$D$6+Q118)) -> 0 | H119: =(G119/(1+'Scenario Assumptions'!$D$7)^('Scenario Assumptions'!$D$6+Q118)) -> 0 | J119: =D119*'Summary New'!$G$79 -> 0 | K119: =D119*('Summary New'!$G$70*(1+'Scenario Assumptions'!$D$11)^('Scenario Assumptions'!$D$6+1)+('Summary New'!$G$79-'Summary New'!$G$70)*(1+'Scenario Assumptions'!$D$12)^('Scenario Assumptions'!$D$6+Q118)) -> 0 | L119: =(K119/(1+'Scenario Assumptions'!$D$7)^('Scenario Assumptions'!$D$6+Q118)) -> 0 | N119: 0 | O119: 0 | P119: 0 | Q119: 6 | S119: 0 | T119: 0 | U119: 0
B120: Year 7 | D120: 0.2333333333 | F120: =D120*'Summary New'!$G$50 -> 0 | G120: =(F120*(1+'Scenario Assumptions'!$D$10)^('Scenario Assumptions'!$D$6+Q119)) -> 0 | H120: =(G120/(1+'Scenario Assumptions'!$D$7)^('Scenario Assumptions'!$D$6+Q119)) -> 0 | J120: =D120*'Summary New'!$G$79 -> 0 | K120: =D120*('Summary New'!$G$70*(1+'Scenario Assumptions'!$D$11)^('Scenario Assumptions'!$D$6+1)+('Summary New'!$G$79-'Summary New'!$G$70)*(1+'Scenario Assumptions'!$D$12)^('Scenario Assumptions'!$D$6+Q119)) -> 0 | L120: =(K120/(1+'Scenario Assumptions'!$D$7)^('Scenario Assumptions'!$D$6+Q119)) -> 0 | N120: 0 | O120: 0 | P120: 0 | Q120: 7 | S120: 0 | T120: 0 | U120: 0
B121: Year 8 | D121: 0.2666666667 | F121: =D121*'Summary New'!$G$50 -> 0 | G121: =(F121*(1+'Scenario Assumptions'!$D$10)^('Scenario Assumptions'!$D$6+Q120)) -> 0 | H121: =(G121/(1+'Scenario Assumptions'!$D$7)^('Scenario Assumptions'!$D$6+Q120)) -> 0 | J121: =D121*'Summary New'!$G$79 -> 0 | K121: =D121*('Summary New'!$G$70*(1+'Scenario Assumptions'!$D$11)^('Scenario Assumptions'!$D$6+1)+('Summary New'!$G$79-'Summary New'!$G$70)*(1+'Scenario Assumptions'!$D$12)^('Scenario Assumptions'!$D$6+Q120)) -> 0 | L121: =(K121/(1+'Scenario Assumptions'!$D$7)^('Scenario Assumptions'!$D$6+Q120)) -> 0 | N121: 0 | O121: 0 | P121: 0 | Q121: 8 | S121: 0 | T121: 0 | U121: 0
B122: Year 9 | D122: 0.3 | F122: =D122*'Summary New'!$G$50 -> 0 | G122: =(F122*(1+'Scenario Assumptions'!$D$10)^('Scenario Assumptions'!$D$6+Q121)) -> 0 | H122: =(G122/(1+'Scenario Assumptions'!$D$7)^('Scenario Assumptions'!$D$6+Q121)) -> 0 | J122: =D122*'Summary New'!$G$79 -> 0 | K122: =D122*('Summary New'!$G$70*(1+'Scenario Assumptions'!$D$11)^('Scenario Assumptions'!$D$6+1)+('Summary New'!$G$79-'Summary New'!$G$70)*(1+'Scenario Assumptions'!$D$12)^('Scenario Assumptions'!$D$6+Q121)) -> 0 | L122: =(K122/(1+'Scenario Assumptions'!$D$7)^('Scenario Assumptions'!$D$6+Q121)) -> 0 | N122: 0 | O122: 0 | P122: 0 | Q122: 9 | S122: 0 | T122: 0 | U122: 0
B123: Year 10 | D123: 0.3333333333 | F123: =D123*'Summary New'!$G$50 -> 0 | G123: =(F123*(1+'Scenario Assumptions'!$D$10)^('Scenario Assumptions'!$D$6+Q122)) -> 0 | H123: =(G123/(1+'Scenario Assumptions'!$D$7)^('Scenario Assumptions'!$D$6+Q122)) -> 0 | J123: =D123*'Summary New'!$G$79 -> 0 | K123: =D123*('Summary New'!$G$70*(1+'Scenario Assumptions'!$D$11)^('Scenario Assumptions'!$D$6+1)+('Summary New'!$G$79-'Summary New'!$G$70)*(1+'Scenario Assumptions'!$D$12)^('Scenario Assumptions'!$D$6+Q122)) -> 0 | L123: =(K123/(1+'Scenario Assumptions'!$D$7)^('Scenario Assumptions'!$D$6+Q122)) -> 0 | N123: 0 | O123: 0 | P123: 0 | Q123: 10 | S123: 0 | T123: 0 | U123: 0
B124: Year 11 | D124: 0.3666666667 | F124: =D124*'Summary New'!$G$50 -> 0 | G124: =(F124*(1+'Scenario Assumptions'!$D$10)^('Scenario Assumptions'!$D$6+Q123)) -> 0 | H124: =(G124/(1+'Scenario Assumptions'!$D$7)^('Scenario Assumptions'!$D$6+Q123)) -> 0 | J124: =D124*'Summary New'!$G$79 -> 0 | K124: =D124*('Summary New'!$G$70*(1+'Scenario Assumptions'!$D$11)^('Scenario Assumptions'!$D$6+1)+('Summary New'!$G$79-'Summary New'!$G$70)*(1+'Scenario Assumptions'!$D$12)^('Scenario Assumptions'!$D$6+Q123)) -> 0 | L124: =(K124/(1+'Scenario Assumptions'!$D$7)^('Scenario Assumptions'!$D$6+Q123)) -> 0 | N124: 0 | O124: 0 | P124: 0 | Q124: 11 | S124: 0 | T124: 0 | U124: 0
B125: Year 12 | D125: 0.4 | F125: =D125*'Summary New'!$G$50 -> 0 | G125: =(F125*(1+'Scenario Assumptions'!$D$10)^('Scenario Assumptions'!$D$6+Q124)) -> 0 | H125: =(G125/(1+'Scenario Assumptions'!$D$7)^('Scenario Assumptions'!$D$6+Q124)) -> 0 | J125: =D125*'Summary New'!$G$79 -> 0 | K125: =D125*('Summary New'!$G$70*(1+'Scenario Assumptions'!$D$11)^('Scenario Assumptions'!$D$6+1)+('Summary New'!$G$79-'Summary New'!$G$70)*(1+'Scenario Assumptions'!$D$12)^('Scenario Assumptions'!$D$6+Q124)) -> 0 | L125: =(K125/(1+'Scenario Assumptions'!$D$7)^('Scenario Assumptions'!$D$6+Q124)) -> 0 | N125: 0 | O125: 0 | P125: 0 | Q125: 12 | S125: 0 | T125: 0 | U125: 0
B126: Year 13 | D126: 0.4333333333 | F126: =D126*'Summary New'!$G$50 -> 0 | G126: =(F126*(1+'Scenario Assumptions'!$D$10)^('Scenario Assumptions'!$D$6+Q125)) -> 0 | H126: =(G126/(1+'Scenario Assumptions'!$D$7)^('Scenario Assumptions'!$D$6+Q125)) -> 0 | J126: =D126*'Summary New'!$G$79 -> 0 | K126: =D126*('Summary New'!$G$70*(1+'Scenario Assumptions'!$D$11)^('Scenario Assumptions'!$D$6+1)+('Summary New'!$G$79-'Summary New'!$G$70)*(1+'Scenario Assumptions'!$D$12)^('Scenario Assumptions'!$D$6+Q125)) -> 0 | L126: =(K126/(1+'Scenario Assumptions'!$D$7)^('Scenario Assumptions'!$D$6+Q125)) -> 0 | N126: 0 | O126: 0 | P126: 0 | Q126: 13 | S126: 0 | T126: 0 | U126: 0
B127: Year 14 | D127: 0.4666666667 | F127: =D127*'Summary New'!$G$50 -> 0 | G127: =(F127*(1+'Scenario Assumptions'!$D$10)^('Scenario Assumptions'!$D$6+Q126)) -> 0 | H127: =(G127/(1+'Scenario Assumptions'!$D$7)^('Scenario Assumptions'!$D$6+Q126)) -> 0 | J127: =D127*'Summary New'!$G$79 -> 0 | K127: =D127*('Summary New'!$G$70*(1+'Scenario Assumptions'!$D$11)^('Scenario Assumptions'!$D$6+1)+('Summary New'!$G$79-'Summary New'!$G$70)*(1+'Scenario Assumptions'!$D$12)^('Scenario Assumptions'!$D$6+Q126)) -> 0 | L127: =(K127/(1+'Scenario Assumptions'!$D$7)^('Scenario Assumptions'!$D$6+Q126)) -> 0 | N127: 0 | O127: 0 | P127: 0 | Q127: 14 | S127: 0 | T127: 0 | U127: 0
B128: Year 15 | D128: 0.5 | F128: =D128*'Summary New'!$G$50 -> 0 | G128: =(F128*(1+'Scenario Assumptions'!$D$10)^('Scenario Assumptions'!$D$6+Q127)) -> 0 | H128: =(G128/(1+'Scenario Assumptions'!$D$7)^('Scenario Assumptions'!$D$6+Q127)) -> 0 | J128: =D128*'Summary New'!$G$79 -> 0 | K128: =D128*('Summary New'!$G$70*(1+'Scenario Assumptions'!$D$11)^('Scenario Assumptions'!$D$6+1)+('Summary New'!$G$79-'Summary New'!$G$70)*(1+'Scenario Assumptions'!$D$12)^('Scenario Assumptions'!$D$6+Q127)) -> 0 | L128: =(K128/(1+'Scenario Assumptions'!$D$7)^('Scenario Assumptions'!$D$6+Q127)) -> 0 | N128: 0 | O128: 0 | P128: 0 | Q128: 15 | S128: 0 | T128: 0 | U128: 0
B129: Year 16 | D129: 0.5333333333 | F129: =D129*'Summary New'!$G$50 -> 0 | G129: =(F129*(1+'Scenario Assumptions'!$D$10)^('Scenario Assumptions'!$D$6+Q128)) -> 0 | H129: =(G129/(1+'Scenario Assumptions'!$D$7)^('Scenario Assumptions'!$D$6+Q128)) -> 0 | J129: =D129*'Summary New'!$G$79 -> 0 | K129: =D129*('Summary New'!$G$70*(1+'Scenario Assumptions'!$D$11)^('Scenario Assumptions'!$D$6+1)+('Summary New'!$G$79-'Summary New'!$G$70)*(1+'Scenario Assumptions'!$D$12)^('Scenario Assumptions'!$D$6+Q128)) -> 0 | L129: =(K129/(1+'Scenario Assumptions'!$D$7)^('Scenario Assumptions'!$D$6+Q128)) -> 0 | N129: 0 | O129: 0 | P129: 0 | Q129: 16 | S129: 0 | T129: 0 | U129: 0
B130: Year 17 | D130: 0.5666666667 | F130: =D130*'Summary New'!$G$50 -> 0 | G130: =(F130*(1+'Scenario Assumptions'!$D$10)^('Scenario Assumptions'!$D$6+Q129)) -> 0 | H130: =(G130/(1+'Scenario Assumptions'!$D$7)^('Scenario Assumptions'!$D$6+Q129)) -> 0 | J130: =D130*'Summary New'!$G$79 -> 0 | K130: =D130*('Summary New'!$G$70*(1+'Scenario Assumptions'!$D$11)^('Scenario Assumptions'!$D$6+1)+('Summary New'!$G$79-'Summary New'!$G$70)*(1+'Scenario Assumptions'!$D$12)^('Scenario Assumptions'!$D$6+Q129)) -> 0 | L130: =(K130/(1+'Scenario Assumptions'!$D$7)^('Scenario Assumptions'!$D$6+Q129)) -> 0 | N130: 0 | O130: 0 | P130: 0 | Q130: 17 | S130: 0 | T130: 0 | U130: 0
B131: Year 18 | D131: 0.6 | F131: =D131*'Summary New'!$G$50 -> 0 | G131: =(F131*(1+'Scenario Assumptions'!$D$10)^('Scenario Assumptions'!$D$6+Q130)) -> 0 | H131: =(G131/(1+'Scenario Assumptions'!$D$7)^('Scenario Assumptions'!$D$6+Q130)) -> 0 | J131: =D131*'Summary New'!$G$79 -> 0 | K131: =D131*('Summary New'!$G$70*(1+'Scenario Assumptions'!$D$11)^('Scenario Assumptions'!$D$6+1)+('Summary New'!$G$79-'Summary New'!$G$70)*(1+'Scenario Assumptions'!$D$12)^('Scenario Assumptions'!$D$6+Q130)) -> 0 | L131: =(K131/(1+'Scenario Assumptions'!$D$7)^('Scenario Assumptions'!$D$6+Q130)) -> 0 | N131: 0 | O131: 0 | P131: 0 | Q131: 18 | S131: =N131+S130 -> 0 | T131: 0 | U131: 0
B132: Year 19 | D132: 0.6333333333 | F132: =D132*'Summary New'!$G$50 -> 0 | G132: =(F132*(1+'Scenario Assumptions'!$D$10)^('Scenario Assumptions'!$D$6+Q131)) -> 0 | H132: =(G132/(1+'Scenario Assumptions'!$D$7)^('Scenario Assumptions'!$D$6+Q131)) -> 0 | J132: =D132*'Summary New'!$G$79 -> 0 | K132: =D132*('Summary New'!$G$70*(1+'Scenario Assumptions'!$D$11)^('Scenario Assumptions'!$D$6+1)+('Summary New'!$G$79-'Summary New'!$G$70)*(1+'Scenario Assumptions'!$D$12)^('Scenario Assumptions'!$D$6+Q131)) -> 0 | L132: =(K132/(1+'Scenario Assumptions'!$D$7)^('Scenario Assumptions'!$D$6+Q131)) -> 0 | N132: 0 | O132: 0 | P132: 0 | Q132: 19 | S132: 0 | T132: 0 | U132: 0
B133: Year 20 | D133: 0.6666666667 | F133: =D133*'Summary New'!$G$50 -> 0 | G133: =(F133*(1+'Scenario Assumptions'!$D$10)^('Scenario Assumptions'!$D$6+Q132)) -> 0 | H133: =(G133/(1+'Scenario Assumptions'!$D$7)^('Scenario Assumptions'!$D$6+Q132)) -> 0 | J133: =D133*'Summary New'!$G$79 -> 0 | K133: =D133*('Summary New'!$G$70*(1+'Scenario Assumptions'!$D$11)^('Scenario Assumptions'!$D$6+1)+('Summary New'!$G$79-'Summary New'!$G$70)*(1+'Scenario Assumptions'!$D$12)^('Scenario Assumptions'!$D$6+Q132)) -> 0 | L133: =(K133/(1+'Scenario Assumptions'!$D$7)^('Scenario Assumptions'!$D$6+Q132)) -> 0 | N133: 0 | O133: 0 | P133: 0 | Q133: 20 | S133: 0 | T133: 0 | U133: 0
B134: Year 21 | D134: 0.7 | F134: =D134*'Summary New'!$G$50 -> 0 | G134: =(F134*(1+'Scenario Assumptions'!$D$10)^('Scenario Assumptions'!$D$6+Q133)) -> 0 | H134: =(G134/(1+'Scenario Assumptions'!$D$7)^('Scenario Assumptions'!$D$6+Q133)) -> 0 | J134: =D134*'Summary New'!$G$79 -> 0 | K134: =D134*('Summary New'!$G$70*(1+'Scenario Assumptions'!$D$11)^('Scenario Assumptions'!$D$6+1)+('Summary New'!$G$79-'Summary New'!$G$70)*(1+'Scenario Assumptions'!$D$12)^('Scenario Assumptions'!$D$6+Q133)) -> 0 | L134: =(K134/(1+'Scenario Assumptions'!$D$7)^('Scenario Assumptions'!$D$6+Q133)) -> 0 | N134: 0 | O134: 0 | P134: 0 | Q134: 21 | S134: 0 | T134: 0 | U134: 0
B135: Year 22 | D135: 0.7333333333 | F135: =D135*'Summary New'!$G$50 -> 0 | G135: =(F135*(1+'Scenario Assumptions'!$D$10)^('Scenario Assumptions'!$D$6+Q134)) -> 0 | H135: =(G135/(1+'Scenario Assumptions'!$D$7)^('Scenario Assumptions'!$D$6+Q134)) -> 0 | J135: =D135*'Summary New'!$G$79 -> 0 | K135: =D135*('Summary New'!$G$70*(1+'Scenario Assumptions'!$D$11)^('Scenario Assumptions'!$D$6+1)+('Summary New'!$G$79-'Summary New'!$G$70)*(1+'Scenario Assumptions'!$D$12)^('Scenario Assumptions'!$D$6+Q134)) -> 0 | L135: =(K135/(1+'Scenario Assumptions'!$D$7)^('Scenario Assumptions'!$D$6+Q134)) -> 0 | N135: 0 | O135: 0 | P135: 0 | Q135: 22 | S135: 0 | T135: 0 | U135: 0
B136: Year 23 | D136: 0.7666666667 | F136: =D136*'Summary New'!$G$50 -> 0 | G136: =(F136*(1+'Scenario Assumptions'!$D$10)^('Scenario Assumptions'!$D$6+Q135)) -> 0 | H136: =(G136/(1+'Scenario Assumptions'!$D$7)^('Scenario Assumptions'!$D$6+Q135)) -> 0 | J136: =D136*'Summary New'!$G$79 -> 0 | K136: =D136*('Summary New'!$G$70*(1+'Scenario Assumptions'!$D$11)^('Scenario Assumptions'!$D$6+1)+('Summary New'!$G$79-'Summary New'!$G$70)*(1+'Scenario Assumptions'!$D$12)^('Scenario Assumptions'!$D$6+Q135)) -> 0 | L136: =(K136/(1+'Scenario Assumptions'!$D$7)^('Scenario Assumptions'!$D$6+Q135)) -> 0 | N136: 0 | O136: 0 | P136: 0 | Q136: 23 | S136: 0 | T136: 0 | U136: 0
B137: Year 24 | D137: 0.8 | F137: =D137*'Summary New'!$G$50 -> 0 | G137: =(F137*(1+'Scenario Assumptions'!$D$10)^('Scenario Assumptions'!$D$6+Q136)) -> 0 | H137: =(G137/(1+'Scenario Assumptions'!$D$7)^('Scenario Assumptions'!$D$6+Q136)) -> 0 | J137: =D137*'Summary New'!$G$79 -> 0 | K137: =D137*('Summary New'!$G$70*(1+'Scenario Assumptions'!$D$11)^('Scenario Assumptions'!$D$6+1)+('Summary New'!$G$79-'Summary New'!$G$70)*(1+'Scenario Assumptions'!$D$12)^('Scenario Assumptions'!$D$6+Q136)) -> 0 | L137: =(K137/(1+'Scenario Assumptions'!$D$7)^('Scenario Assumptions'!$D$6+Q136)) -> 0 | N137: 0 | O137: 0 | P137: 0 | Q137: 24 | S137: 0 | T137: 0 | U137: 0
B138: Year 25 | D138: 0.8333333333 | F138: =D138*'Summary New'!$G$50 -> 0 | G138: =(F138*(1+'Scenario Assumptions'!$D$10)^('Scenario Assumptions'!$D$6+Q137)) -> 0 | H138: =(G138/(1+'Scenario Assumptions'!$D$7)^('Scenario Assumptions'!$D$6+Q137)) -> 0 | J138: =D138*'Summary New'!$G$79 -> 0 | K138: =D138*('Summary New'!$G$70*(1+'Scenario Assumptions'!$D$11)^('Scenario Assumptions'!$D$6+1)+('Summary New'!$G$79-'Summary New'!$G$70)*(1+'Scenario Assumptions'!$D$12)^('Scenario Assumptions'!$D$6+Q137)) -> 0 | L138: =(K138/(1+'Scenario Assumptions'!$D$7)^('Scenario Assumptions'!$D$6+Q137)) -> 0 | N138: 0 | O138: 0 | P138: 0 | Q138: 25 | S138: 0 | T138: 0 | U138: 0
B139: Year 26 | D139: 0.8666666667 | F139: =D139*'Summary New'!$G$50 -> 0 | G139: =(F139*(1+'Scenario Assumptions'!$D$10)^('Scenario Assumptions'!$D$6+Q138)) -> 0 | H139: =(G139/(1+'Scenario Assumptions'!$D$7)^('Scenario Assumptions'!$D$6+Q138)) -> 0 | J139: =D139*'Summary New'!$G$79 -> 0 | K139: =D139*('Summary New'!$G$70*(1+'Scenario Assumptions'!$D$11)^('Scenario Assumptions'!$D$6+1)+('Summary New'!$G$79-'Summary New'!$G$70)*(1+'Scenario Assumptions'!$D$12)^('Scenario Assumptions'!$D$6+Q138)) -> 0 | L139: =(K139/(1+'Scenario Assumptions'!$D$7)^('Scenario Assumptions'!$D$6+Q138)) -> 0 | N139: 0 | O139: 0 | P139: 0 | Q139: 26 | S139: 0 | T139: 0 | U139: 0
B140: Year 27 | D140: 0.9 | F140: =D140*'Summary New'!$G$50 -> 0 | G140: =(F140*(1+'Scenario Assumptions'!$D$10)^('Scenario Assumptions'!$D$6+Q139)) -> 0 | H140: =(G140/(1+'Scenario Assumptions'!$D$7)^('Scenario Assumptions'!$D$6+Q139)) -> 0 | J140: =D140*'Summary New'!$G$79 -> 0 | K140: =D140*('Summary New'!$G$70*(1+'Scenario Assumptions'!$D$11)^('Scenario Assumptions'!$D$6+1)+('Summary New'!$G$79-'Summary New'!$G$70)*(1+'Scenario Assumptions'!$D$12)^('Scenario Assumptions'!$D$6+Q139)) -> 0 | L140: =(K140/(1+'Scenario Assumptions'!$D$7)^('Scenario Assumptions'!$D$6+Q139)) -> 0 | N140: 0 | O140: 0 | P140: 0 | Q140: 27 | S140: 0 | T140: 0 | U140: 0
B141: Year 28 | D141: 0.9333333333 | F141: =D141*'Summary New'!$G$50 -> 0 | G141: =(F141*(1+'Scenario Assumptions'!$D$10)^('Scenario Assumptions'!$D$6+Q140)) -> 0 | H141: =(G141/(1+'Scenario Assumptions'!$D$7)^('Scenario Assumptions'!$D$6+Q140)) -> 0 | J141: =D141*'Summary New'!$G$79 -> 0 | K141: =D141*('Summary New'!$G$70*(1+'Scenario Assumptions'!$D$11)^('Scenario Assumptions'!$D$6+1)+('Summary New'!$G$79-'Summary New'!$G$70)*(1+'Scenario Assumptions'!$D$12)^('Scenario Assumptions'!$D$6+Q140)) -> 0 | L141: =(K141/(1+'Scenario Assumptions'!$D$7)^('Scenario Assumptions'!$D$6+Q140)) -> 0 | N141: 0 | O141: 0 | P141: 0 | Q141: 28 | S141: 0 | T141: 0 | U141: 0
B142: Year 29 | D142: 0.9666666667 | F142: =D142*'Summary New'!$G$50 -> 0 | G142: =(F142*(1+'Scenario Assumptions'!$D$10)^('Scenario Assumptions'!$D$6+Q141)) -> 0 | H142: =(G142/(1+'Scenario Assumptions'!$D$7)^('Scenario Assumptions'!$D$6+Q141)) -> 0 | J142: =D142*'Summary New'!$G$79 -> 0 | K142: =D142*('Summary New'!$G$70*(1+'Scenario Assumptions'!$D$11)^('Scenario Assumptions'!$D$6+1)+('Summary New'!$G$79-'Summary New'!$G$70)*(1+'Scenario Assumptions'!$D$12)^('Scenario Assumptions'!$D$6+Q141)) -> 0 | L142: =(K142/(1+'Scenario Assumptions'!$D$7)^('Scenario Assumptions'!$D$6+Q141)) -> 0 | N142: 0 | O142: 0 | P142: 0 | Q142: 29 | S142: 0 | T142: 0 | U142: 0
B143: Year 30 | D143: 1 | F143: =D143*'Summary New'!$G$50 -> 0 | G143: =(F143*(1+'Scenario Assumptions'!$D$10)^('Scenario Assumptions'!$D$6+Q142)) -> 0 | H143: =(G143/(1+'Scenario Assumptions'!$D$7)^('Scenario Assumptions'!$D$6+Q142)) -> 0 | J143: =D143*'Summary New'!$G$79 -> 0 | K143: =D143*('Summary New'!$G$70*(1+'Scenario Assumptions'!$D$11)^('Scenario Assumptions'!$D$6+1)+('Summary New'!$G$79-'Summary New'!$G$70)*(1+'Scenario Assumptions'!$D$12)^('Scenario Assumptions'!$D$6+Q142)) -> 0 | L143: =(K143/(1+'Scenario Assumptions'!$D$7)^('Scenario Assumptions'!$D$6+Q142)) -> 0 | N143: 0 | O143: 0 | P143: 0 | Q143: 30 | S143: 0 | T143: 0 | U143: 0
B144: Year 31 | D144: 1.033333333 | F144: =D144*'Summary New'!$G$50 -> 0 | G144: =(F144*(1+'Scenario Assumptions'!$D$10)^('Scenario Assumptions'!$D$6+Q143)) -> 0 | H144: =(G144/(1+'Scenario Assumptions'!$D$7)^('Scenario Assumptions'!$D$6+Q143)) -> 0 | J144: =D144*'Summary New'!$G$79 -> 0 | K144: =D144*('Summary New'!$G$70*(1+'Scenario Assumptions'!$D$11)^('Scenario Assumptions'!$D$6+1)+('Summary New'!$G$79-'Summary New'!$G$70)*(1+'Scenario Assumptions'!$D$12)^('Scenario Assumptions'!$D$6+Q143)) -> 0 | L144: =(K144/(1+'Scenario Assumptions'!$D$7)^('Scenario Assumptions'!$D$6+Q143)) -> 0 | N144: =H144 -> 0 | O144: =L144 -> 0 | P144: =N144-O144 -> 0 | Q144: 31 | S144: =N144+S143 -> 0 | T144: =O144+T143 -> 0 | U144: =P144+U143 -> 0
B145: Year 32 | D145: 1.066666667 | F145: =D145*'Summary New'!$G$50 -> 0 | G145: =(F145*(1+'Scenario Assumptions'!$D$10)^('Scenario Assumptions'!$D$6+Q144)) -> 0 | H145: =(G145/(1+'Scenario Assumptions'!$D$7)^('Scenario Assumptions'!$D$6+Q144)) -> 0 | J145: =D145*'Summary New'!$G$79 -> 0 | K145: =D145*('Summary New'!$G$70*(1+'Scenario Assumptions'!$D$11)^('Scenario Assumptions'!$D$6+1)+('Summary New'!$G$79-'Summary New'!$G$70)*(1+'Scenario Assumptions'!$D$12)^('Scenario Assumptions'!$D$6+Q144)) -> 0 | L145: =(K145/(1+'Scenario Assumptions'!$D$7)^('Scenario Assumptions'!$D$6+Q144)) -> 0 | N145: 0 | O145: 0 | P145: 0 | Q145: 32 | S145: 0 | T145: 0 | U145: 0
B146: Year 33 | D146: 1.1 | F146: =D146*'Summary New'!$G$50 -> 0 | G146: =(F146*(1+'Scenario Assumptions'!$D$10)^('Scenario Assumptions'!$D$6+Q145)) -> 0 | H146: =(G146/(1+'Scenario Assumptions'!$D$7)^('Scenario Assumptions'!$D$6+Q145)) -> 0 | J146: =D146*'Summary New'!$G$79 -> 0 | K146: =D146*('Summary New'!$G$70*(1+'Scenario Assumptions'!$D$11)^('Scenario Assumptions'!$D$6+1)+('Summary New'!$G$79-'Summary New'!$G$70)*(1+'Scenario Assumptions'!$D$12)^('Scenario Assumptions'!$D$6+Q145)) -> 0 | L146: =(K146/(1+'Scenario Assumptions'!$D$7)^('Scenario Assumptions'!$D$6+Q145)) -> 0 | N146: 0 | O146: 0 | P146: 0 | Q146: 33 | S146: 0 | T146: 0 | U146: 0
B147: Year 34 | D147: 1.133333333 | F147: =D147*'Summary New'!$G$50 -> 0 | G147: =(F147*(1+'Scenario Assumptions'!$D$10)^('Scenario Assumptions'!$D$6+Q146)) -> 0 | H147: =(G147/(1+'Scenario Assumptions'!$D$7)^('Scenario Assumptions'!$D$6+Q146)) -> 0 | J147: =D147*'Summary New'!$G$79 -> 0 | K147: =D147*('Summary New'!$G$70*(1+'Scenario Assumptions'!$D$11)^('Scenario Assumptions'!$D$6+1)+('Summary New'!$G$79-'Summary New'!$G$70)*(1+'Scenario Assumptions'!$D$12)^('Scenario Assumptions'!$D$6+Q146)) -> 0 | L147: =(K147/(1+'Scenario Assumptions'!$D$7)^('Scenario Assumptions'!$D$6+Q146)) -> 0 | N147: 0 | O147: 0 | P147: 0 | Q147: 34 | S147: 0 | T147: 0 | U147: 0
B148: Year 35 | D148: 1.166666667 | F148: =D148*'Summary New'!$G$50 -> 0 | G148: =(F148*(1+'Scenario Assumptions'!$D$10)^('Scenario Assumptions'!$D$6+Q147)) -> 0 | H148: =(G148/(1+'Scenario Assumptions'!$D$7)^('Scenario Assumptions'!$D$6+Q147)) -> 0 | J148: =D148*'Summary New'!$G$79 -> 0 | K148: =D148*('Summary New'!$G$70*(1+'Scenario Assumptions'!$D$11)^('Scenario Assumptions'!$D$6+1)+('Summary New'!$G$79-'Summary New'!$G$70)*(1+'Scenario Assumptions'!$D$12)^('Scenario Assumptions'!$D$6+Q147)) -> 0 | L148: =(K148/(1+'Scenario Assumptions'!$D$7)^('Scenario Assumptions'!$D$6+Q147)) -> 0 | N148: 0 | O148: 0 | P148: 0 | Q148: 35 | S148: 0 | T148: 0 | U148: 0
B149: Year 36 | D149: 1.2 | F149: =D149*'Summary New'!$G$50 -> 0 | G149: =(F149*(1+'Scenario Assumptions'!$D$10)^('Scenario Assumptions'!$D$6+Q148)) -> 0 | H149: =(G149/(1+'Scenario Assumptions'!$D$7)^('Scenario Assumptions'!$D$6+Q148)) -> 0 | J149: =D149*'Summary New'!$G$79 -> 0 | K149: =D149*('Summary New'!$G$70*(1+'Scenario Assumptions'!$D$11)^('Scenario Assumptions'!$D$6+1)+('Summary New'!$G$79-'Summary New'!$G$70)*(1+'Scenario Assumptions'!$D$12)^('Scenario Assumptions'!$D$6+Q148)) -> 0 | L149: =(K149/(1+'Scenario Assumptions'!$D$7)^('Scenario Assumptions'!$D$6+Q148)) -> 0 | N149: 0 | O149: 0 | P149: 0 | Q149: 36 | S149: 0 | T149: 0 | U149: 0
B150: Year 37 | D150: 1.233333333 | F150: =D150*'Summary New'!$G$50 -> 0 | G150: =(F150*(1+'Scenario Assumptions'!$D$10)^('Scenario Assumptions'!$D$6+Q149)) -> 0 | H150: =(G150/(1+'Scenario Assumptions'!$D$7)^('Scenario Assumptions'!$D$6+Q149)) -> 0 | J150: =D150*'Summary New'!$G$79 -> 0 | K150: =D150*('Summary New'!$G$70*(1+'Scenario Assumptions'!$D$11)^('Scenario Assumptions'!$D$6+1)+('Summary New'!$G$79-'Summary New'!$G$70)*(1+'Scenario Assumptions'!$D$12)^('Scenario Assumptions'!$D$6+Q149)) -> 0 | L150: =(K150/(1+'Scenario Assumptions'!$D$7)^('Scenario Assumptions'!$D$6+Q149)) -> 0 | N150: 0 | O150: 0 | P150: 0 | Q150: 37 | S150: 0 | T150: 0 | U150: 0
B151: Year 38 | D151: 1.266666667 | F151: =D151*'Summary New'!$G$50 -> 0 | G151: =(F151*(1+'Scenario Assumptions'!$D$10)^('Scenario Assumptions'!$D$6+Q150)) -> 0 | H151: =(G151/(1+'Scenario Assumptions'!$D$7)^('Scenario Assumptions'!$D$6+Q150)) -> 0 | J151: =D151*'Summary New'!$G$79 -> 0 | K151: =D151*('Summary New'!$G$70*(1+'Scenario Assumptions'!$D$11)^('Scenario Assumptions'!$D$6+1)+('Summary New'!$G$79-'Summary New'!$G$70)*(1+'Scenario Assumptions'!$D$12)^('Scenario Assumptions'!$D$6+Q150)) -> 0 | L151: =(K151/(1+'Scenario Assumptions'!$D$7)^('Scenario Assumptions'!$D$6+Q150)) -> 0 | N151: 0 | O151: 0 | P151: 0 | Q151: 38 | S151: 0 | T151: 0 | U151: 0
B152: Year 39 | D152: 1.3 | F152: =D152*'Summary New'!$G$50 -> 0 | G152: =(F152*(1+'Scenario Assumptions'!$D$10)^('Scenario Assumptions'!$D$6+Q151)) -> 0 | H152: =(G152/(1+'Scenario Assumptions'!$D$7)^('Scenario Assumptions'!$D$6+Q151)) -> 0 | J152: =D152*'Summary New'!$G$79 -> 0 | K152: =D152*('Summary New'!$G$70*(1+'Scenario Assumptions'!$D$11)^('Scenario Assumptions'!$D$6+1)+('Summary New'!$G$79-'Summary New'!$G$70)*(1+'Scenario Assumptions'!$D$12)^('Scenario Assumptions'!$D$6+Q151)) -> 0 | L152: =(K152/(1+'Scenario Assumptions'!$D$7)^('Scenario Assumptions'!$D$6+Q151)) -> 0 | N152: 0 | O152: 0 | P152: 0 | Q152: 39 | S152: 0 | T152: 0 | U152: 0
B153: Year 40 | D153: 1.333333333 | F153: =D153*'Summary New'!$G$50 -> 0 | G153: =(F153*(1+'Scenario Assumptions'!$D$10)^('Scenario Assumptions'!$D$6+Q152)) -> 0 | H153: =(G153/(1+'Scenario Assumptions'!$D$7)^('Scenario Assumptions'!$D$6+Q152)) -> 0 | J153: =D153*'Summary New'!$G$79 -> 0 | K153: =D153*('Summary New'!$G$70*(1+'Scenario Assumptions'!$D$11)^('Scenario Assumptions'!$D$6+1)+('Summary New'!$G$79-'Summary New'!$G$70)*(1+'Scenario Assumptions'!$D$12)^('Scenario Assumptions'!$D$6+Q152)) -> 0 | L153: =(K153/(1+'Scenario Assumptions'!$D$7)^('Scenario Assumptions'!$D$6+Q152)) -> 0 | N153: 0 | O153: 0 | P153: 0 | Q153: 40 | S153: 0 | T153: 0 | U153: 0
B154: Year 41 | D154: 1.366666667 | F154: =D154*'Summary New'!$G$50 -> 0 | G154: =(F154*(1+'Scenario Assumptions'!$D$10)^('Scenario Assumptions'!$D$6+Q153)) -> 0 | H154: =(G154/(1+'Scenario Assumptions'!$D$7)^('Scenario Assumptions'!$D$6+Q153)) -> 0 | J154: =D154*'Summary New'!$G$79 -> 0 | K154: =D154*('Summary New'!$G$70*(1+'Scenario Assumptions'!$D$11)^('Scenario Assumptions'!$D$6+1)+('Summary New'!$G$79-'Summary New'!$G$70)*(1+'Scenario Assumptions'!$D$12)^('Scenario Assumptions'!$D$6+Q153)) -> 0 | L154: =(K154/(1+'Scenario Assumptions'!$D$7)^('Scenario Assumptions'!$D$6+Q153)) -> 0 | N154: 0 | O154: 0 | P154: 0 | Q154: 41 | S154: 0 | T154: 0 | U154: 0
B155: Year 42 | D155: 1.4 | F155: =D155*'Summary New'!$G$50 -> 0 | G155: =(F155*(1+'Scenario Assumptions'!$D$10)^('Scenario Assumptions'!$D$6+Q154)) -> 0 | H155: =(G155/(1+'Scenario Assumptions'!$D$7)^('Scenario Assumptions'!$D$6+Q154)) -> 0 | J155: =D155*'Summary New'!$G$79 -> 0 | K155: =D155*('Summary New'!$G$70*(1+'Scenario Assumptions'!$D$11)^('Scenario Assumptions'!$D$6+1)+('Summary New'!$G$79-'Summary New'!$G$70)*(1+'Scenario Assumptions'!$D$12)^('Scenario Assumptions'!$D$6+Q154)) -> 0 | L155: =(K155/(1+'Scenario Assumptions'!$D$7)^('Scenario Assumptions'!$D$6+Q154)) -> 0 | N155: 0 | O155: 0 | P155: 0 | Q155: 42 | S155: 0 | T155: 0 | U155: 0
B156: Year 43 | D156: 1.433333333 | F156: =D156*'Summary New'!$G$50 -> 0 | G156: =(F156*(1+'Scenario Assumptions'!$D$10)^('Scenario Assumptions'!$D$6+Q155)) -> 0 | H156: =(G156/(1+'Scenario Assumptions'!$D$7)^('Scenario Assumptions'!$D$6+Q155)) -> 0 | J156: =D156*'Summary New'!$G$79 -> 0 | K156: =D156*('Summary New'!$G$70*(1+'Scenario Assumptions'!$D$11)^('Scenario Assumptions'!$D$6+1)+('Summary New'!$G$79-'Summary New'!$G$70)*(1+'Scenario Assumptions'!$D$12)^('Scenario Assumptions'!$D$6+Q155)) -> 0 | L156: =(K156/(1+'Scenario Assumptions'!$D$7)^('Scenario Assumptions'!$D$6+Q155)) -> 0 | N156: 0 | O156: 0 | P156: 0 | Q156: 43 | S156: 0 | T156: 0 | U156: 0
B157: Year 44 | D157: 1.466666667 | F157: =D157*'Summary New'!$G$50 -> 0 | G157: =(F157*(1+'Scenario Assumptions'!$D$10)^('Scenario Assumptions'!$D$6+Q156)) -> 0 | H157: =(G157/(1+'Scenario Assumptions'!$D$7)^('Scenario Assumptions'!$D$6+Q156)) -> 0 | J157: =D157*'Summary New'!$G$79 -> 0 | K157: =D157*('Summary New'!$G$70*(1+'Scenario Assumptions'!$D$11)^('Scenario Assumptions'!$D$6+1)+('Summary New'!$G$79-'Summary New'!$G$70)*(1+'Scenario Assumptions'!$D$12)^('Scenario Assumptions'!$D$6+Q156)) -> 0 | L157: =(K157/(1+'Scenario Assumptions'!$D$7)^('Scenario Assumptions'!$D$6+Q156)) -> 0 | N157: 0 | O157: 0 | P157: 0 | Q157: 44 | S157: 0 | T157: 0 | U157: 0
B158: Year 45 | D158: 1.5 | F158: =D158*'Summary New'!$G$50 -> 0 | G158: =(F158*(1+'Scenario Assumptions'!$D$10)^('Scenario Assumptions'!$D$6+Q157)) -> 0 | H158: =(G158/(1+'Scenario Assumptions'!$D$7)^('Scenario Assumptions'!$D$6+Q157)) -> 0 | J158: =D158*'Summary New'!$G$79 -> 0 | K158: =D158*('Summary New'!$G$70*(1+'Scenario Assumptions'!$D$11)^('Scenario Assumptions'!$D$6+1)+('Summary New'!$G$79-'Summary New'!$G$70)*(1+'Scenario Assumptions'!$D$12)^('Scenario Assumptions'!$D$6+Q157)) -> 0 | L158: =(K158/(1+'Scenario Assumptions'!$D$7)^('Scenario Assumptions'!$D$6+Q157)) -> 0 | N158: 0 | O158: 0 | P158: 0 | Q158: 45 | S158: 0 | T158: 0 | U158: 0
B159: Year 46 | D159: 1.533333333 | F159: =D159*'Summary New'!$G$50 -> 0 | G159: =(F159*(1+'Scenario Assumptions'!$D$10)^('Scenario Assumptions'!$D$6+Q158)) -> 0 | H159: =(G159/(1+'Scenario Assumptions'!$D$7)^('Scenario Assumptions'!$D$6+Q158)) -> 0 | J159: =D159*'Summary New'!$G$79 -> 0 | K159: =D159*('Summary New'!$G$70*(1+'Scenario Assumptions'!$D$11)^('Scenario Assumptions'!$D$6+1)+('Summary New'!$G$79-'Summary New'!$G$70)*(1+'Scenario Assumptions'!$D$12)^('Scenario Assumptions'!$D$6+Q158)) -> 0 | L159: =(K159/(1+'Scenario Assumptions'!$D$7)^('Scenario Assumptions'!$D$6+Q158)) -> 0 | N159: 0 | O159: 0 | P159: 0 | Q159: 46 | S159: 0 | T159: 0 | U159: 0
B160: Year 47 | D160: 1.566666667 | F160: =D160*'Summary New'!$G$50 -> 0 | G160: =(F160*(1+'Scenario Assumptions'!$D$10)^('Scenario Assumptions'!$D$6+Q159)) -> 0 | H160: =(G160/(1+'Scenario Assumptions'!$D$7)^('Scenario Assumptions'!$D$6+Q159)) -> 0 | J160: =D160*'Summary New'!$G$79 -> 0 | K160: =D160*('Summary New'!$G$70*(1+'Scenario Assumptions'!$D$11)^('Scenario Assumptions'!$D$6+1)+('Summary New'!$G$79-'Summary New'!$G$70)*(1+'Scenario Assumptions'!$D$12)^('Scenario Assumptions'!$D$6+Q159)) -> 0 | L160: =(K160/(1+'Scenario Assumptions'!$D$7)^('Scenario Assumptions'!$D$6+Q159)) -> 0 | N160: 0 | O160: 0 | P160: 0 | Q160: 47 | S160: 0 | T160: 0 | U160: 0
B161: Year 48 | D161: 1.6 | F161: =D161*'Summary New'!$G$50 -> 0 | G161: =(F161*(1+'Scenario Assumptions'!$D$10)^('Scenario Assumptions'!$D$6+Q160)) -> 0 | H161: =(G161/(1+'Scenario Assumptions'!$D$7)^('Scenario Assumptions'!$D$6+Q160)) -> 0 | J161: =D161*'Summary New'!$G$79 -> 0 | K161: =D161*('Summary New'!$G$70*(1+'Scenario Assumptions'!$D$11)^('Scenario Assumptions'!$D$6+1)+('Summary New'!$G$79-'Summary New'!$G$70)*(1+'Scenario Assumptions'!$D$12)^('Scenario Assumptions'!$D$6+Q160)) -> 0 | L161: =(K161/(1+'Scenario Assumptions'!$D$7)^('Scenario Assumptions'!$D$6+Q160)) -> 0 | N161: 0 | O161: 0 | P161: 0 | Q161: 48 | S161: 0 | T161: 0 | U161: 0
B162: Year 49 | D162: 1.633333333 | F162: =D162*'Summary New'!$G$50 -> 0 | G162: =(F162*(1+'Scenario Assumptions'!$D$10)^('Scenario Assumptions'!$D$6+Q161)) -> 0 | H162: =(G162/(1+'Scenario Assumptions'!$D$7)^('Scenario Assumptions'!$D$6+Q161)) -> 0 | J162: =D162*'Summary New'!$G$79 -> 0 | K162: =D162*('Summary New'!$G$70*(1+'Scenario Assumptions'!$D$11)^('Scenario Assumptions'!$D$6+1)+('Summary New'!$G$79-'Summary New'!$G$70)*(1+'Scenario Assumptions'!$D$12)^('Scenario Assumptions'!$D$6+Q161)) -> 0 | L162: =(K162/(1+'Scenario Assumptions'!$D$7)^('Scenario Assumptions'!$D$6+Q161)) -> 0 | N162: 0 | O162: 0 | P162: 0 | Q162: 49 | S162: 0 | T162: 0 | U162: 0
B163: Year 50 | D163: 1.666666667 | F163: =D163*'Summary New'!$G$50 -> 0 | G163: =(F163*(1+'Scenario Assumptions'!$D$10)^('Scenario Assumptions'!$D$6+Q162)) -> 0 | H163: =(G163/(1+'Scenario Assumptions'!$D$7)^('Scenario Assumptions'!$D$6+Q162)) -> 0 | J163: =D163*'Summary New'!$G$79 -> 0 | K163: =D163*('Summary New'!$G$70*(1+'Scenario Assumptions'!$D$11)^('Scenario Assumptions'!$D$6+1)+('Summary New'!$G$79-'Summary New'!$G$70)*(1+'Scenario Assumptions'!$D$12)^('Scenario Assumptions'!$D$6+Q162)) -> 0 | L163: =(K163/(1+'Scenario Assumptions'!$D$7)^('Scenario Assumptions'!$D$6+Q162)) -> 0 | N163: 0 | O163: 0 | P163: 0 | Q163: 50 | S163: 0 | T163: 0 | U163: 0
A167: Scen 4 | D167: Ramp-Up path:
B168: Year 1 | D168: =1/'Scenario Assumptions'!E$8 -> 0.03333333333 | F168: =D168*'Summary New'!$I$50 -> 0 | G168: =(F168*(1+'Scenario Assumptions'!$E$10)^'Scenario Assumptions'!$E$6) -> 0 | H168: =(G168/(1+'Scenario Assumptions'!$E$7)^('Scenario Assumptions'!$E$6)) -> 0 | J168: =D168*'Summary New'!$I$79 -> 0 | K168: =D168*('Summary New'!$I$70*(1+'Scenario Assumptions'!$E$11)^'Scenario Assumptions'!$E$6+('Summary New'!$I$79-'Summary New'!$I$70)*(1+'Scenario Assumptions'!$E$12)^'Scenario Assumptions'!$E$6) -> 0 | L168: =(K168/(1+'Scenario Assumptions'!$E$7)^('Scenario Assumptions'!$E$6)) -> 0 | N168: =H168 -> 0 | O168: =L168 -> 0 | P168: =N168-O168 -> 0 | Q168: 1 | S168: =N168 -> 0 | T168: =O168 -> 0 | U168: =P168 -> 0
B169: Year 2 | D169: =D168+$D$6 -> 0.06666666667 | F169: =D169*'Summary New'!$I$50 -> 0 | G169: =(F169*(1+'Scenario Assumptions'!$E$10)^('Scenario Assumptions'!$E$6+Q168)) -> 0 | H169: =(G169/(1+'Scenario Assumptions'!$E$7)^('Scenario Assumptions'!$E$6+Q168)) -> 0 | J169: =D169*'Summary New'!$I$79 -> 0 | K169: =D169*('Summary New'!$I$70*(1+'Scenario Assumptions'!$E$11)^('Scenario Assumptions'!$E$6+1)+('Summary New'!$I$79-'Summary New'!$I$70)*(1+'Scenario Assumptions'!$E$12)^('Scenario Assumptions'!$E$6+Q168)) -> 0 | L169: =(K169/(1+'Scenario Assumptions'!$E$7)^('Scenario Assumptions'!$E$6+Q168)) -> 0 | N169: 0 | O169: 0 | P169: 0 | Q169: 2 | S169: =N169+S168 -> 0 | T169: 0 | U169: 0
B170: Year 3 | D170: =D169+$D$6 -> 0.1 | F170: =D170*'Summary New'!$I$50 -> 0 | G170: =(F170*(1+'Scenario Assumptions'!$E$10)^('Scenario Assumptions'!$E$6+Q169)) -> 0 | H170: =(G170/(1+'Scenario Assumptions'!$E$7)^('Scenario Assumptions'!$E$6+Q169)) -> 0 | J170: =D170*'Summary New'!$I$79 -> 0 | K170: =D170*('Summary New'!$I$70*(1+'Scenario Assumptions'!$E$11)^('Scenario Assumptions'!$E$6+1)+('Summary New'!$I$79-'Summary New'!$I$70)*(1+'Scenario Assumptions'!$E$12)^('Scenario Assumptions'!$E$6+Q169)) -> 0 | L170: =(K170/(1+'Scenario Assumptions'!$E$7)^('Scenario Assumptions'!$E$6+Q169)) -> 0 | N170: 0 | O170: 0 | P170: 0 | Q170: 3 | S170: 0 | T170: 0 | U170: 0
B171: Year 4 | D171: 0.1333333333 | F171: =D171*'Summary New'!$I$50 -> 0 | G171: =(F171*(1+'Scenario Assumptions'!$E$10)^('Scenario Assumptions'!$E$6+Q170)) -> 0 | H171: =(G171/(1+'Scenario Assumptions'!$E$7)^('Scenario Assumptions'!$E$6+Q170)) -> 0 | J171: =D171*'Summary New'!$I$79 -> 0 | K171: =D171*('Summary New'!$I$70*(1+'Scenario Assumptions'!$E$11)^('Scenario Assumptions'!$E$6+1)+('Summary New'!$I$79-'Summary New'!$I$70)*(1+'Scenario Assumptions'!$E$12)^('Scenario Assumptions'!$E$6+Q170)) -> 0 | L171: =(K171/(1+'Scenario Assumptions'!$E$7)^('Scenario Assumptions'!$E$6+Q170)) -> 0 | N171: 0 | O171: 0 | P171: 0 | Q171: 4 | S171: 0 | T171: 0 | U171: 0
B172: Year 5 | D172: 0.1666666667 | F172: =D172*'Summary New'!$I$50 -> 0 | G172: =(F172*(1+'Scenario Assumptions'!$E$10)^('Scenario Assumptions'!$E$6+Q171)) -> 0 | H172: =(G172/(1+'Scenario Assumptions'!$E$7)^('Scenario Assumptions'!$E$6+Q171)) -> 0 | J172: =D172*'Summary New'!$I$79 -> 0 | K172: =D172*('Summary New'!$I$70*(1+'Scenario Assumptions'!$E$11)^('Scenario Assumptions'!$E$6+1)+('Summary New'!$I$79-'Summary New'!$I$70)*(1+'Scenario Assumptions'!$E$12)^('Scenario Assumptions'!$E$6+Q171)) -> 0 | L172: =(K172/(1+'Scenario Assumptions'!$E$7)^('Scenario Assumptions'!$E$6+Q171)) -> 0 | N172: 0 | O172: 0 | P172: 0 | Q172: 5 | S172: 0 | T172: 0 | U172: 0
B173: Year 6 | D173: 0.2 | F173: =D173*'Summary New'!$I$50 -> 0 | G173: =(F173*(1+'Scenario Assumptions'!$E$10)^('Scenario Assumptions'!$E$6+Q172)) -> 0 | H173: =(G173/(1+'Scenario Assumptions'!$E$7)^('Scenario Assumptions'!$E$6+Q172)) -> 0 | J173: =D173*'Summary New'!$I$79 -> 0 | K173: =D173*('Summary New'!$I$70*(1+'Scenario Assumptions'!$E$11)^('Scenario Assumptions'!$E$6+1)+('Summary New'!$I$79-'Summary New'!$I$70)*(1+'Scenario Assumptions'!$E$12)^('Scenario Assumptions'!$E$6+Q172)) -> 0 | L173: =(K173/(1+'Scenario Assumptions'!$E$7)^('Scenario Assumptions'!$E$6+Q172)) -> 0 | N173: 0 | O173: 0 | P173: 0 | Q173: 6 | S173: 0 | T173: 0 | U173: 0
B174: Year 7 | D174: 0.2333333333 | F174: =D174*'Summary New'!$I$50 -> 0 | G174: =(F174*(1+'Scenario Assumptions'!$E$10)^('Scenario Assumptions'!$E$6+Q173)) -> 0 | H174: =(G174/(1+'Scenario Assumptions'!$E$7)^('Scenario Assumptions'!$E$6+Q173)) -> 0 | J174: =D174*'Summary New'!$I$79 -> 0 | K174: =D174*('Summary New'!$I$70*(1+'Scenario Assumptions'!$E$11)^('Scenario Assumptions'!$E$6+1)+('Summary New'!$I$79-'Summary New'!$I$70)*(1+'Scenario Assumptions'!$E$12)^('Scenario Assumptions'!$E$6+Q173)) -> 0 | L174: =(K174/(1+'Scenario Assumptions'!$E$7)^('Scenario Assumptions'!$E$6+Q173)) -> 0 | N174: 0 | O174: 0 | P174: 0 | Q174: 7 | S174: 0 | T174: 0 | U174: 0
B175: Year 8 | D175: 0.2666666667 | F175: =D175*'Summary New'!$I$50 -> 0 | G175: =(F175*(1+'Scenario Assumptions'!$E$10)^('Scenario Assumptions'!$E$6+Q174)) -> 0 | H175: =(G175/(1+'Scenario Assumptions'!$E$7)^('Scenario Assumptions'!$E$6+Q174)) -> 0 | J175: =D175*'Summary New'!$I$79 -> 0 | K175: =D175*('Summary New'!$I$70*(1+'Scenario Assumptions'!$E$11)^('Scenario Assumptions'!$E$6+1)+('Summary New'!$I$79-'Summary New'!$I$70)*(1+'Scenario Assumptions'!$E$12)^('Scenario Assumptions'!$E$6+Q174)) -> 0 | L175: =(K175/(1+'Scenario Assumptions'!$E$7)^('Scenario Assumptions'!$E$6+Q174)) -> 0 | N175: 0 | O175: 0 | P175: 0 | Q175: 8 | S175: 0 | T175: 0 | U175: 0
B176: Year 9 | D176: 0.3 | F176: =D176*'Summary New'!$I$50 -> 0 | G176: =(F176*(1+'Scenario Assumptions'!$E$10)^('Scenario Assumptions'!$E$6+Q175)) -> 0 | H176: =(G176/(1+'Scenario Assumptions'!$E$7)^('Scenario Assumptions'!$E$6+Q175)) -> 0 | J176: =D176*'Summary New'!$I$79 -> 0 | K176: =D176*('Summary New'!$I$70*(1+'Scenario Assumptions'!$E$11)^('Scenario Assumptions'!$E$6+1)+('Summary New'!$I$79-'Summary New'!$I$70)*(1+'Scenario Assumptions'!$E$12)^('Scenario Assumptions'!$E$6+Q175)) -> 0 | L176: =(K176/(1+'Scenario Assumptions'!$E$7)^('Scenario Assumptions'!$E$6+Q175)) -> 0 | N176: 0 | O176: 0 | P176: 0 | Q176: 9 | S176: 0 | T176: 0 | U176: 0
B177: Year 10 | D177: 0.3333333333 | F177: =D177*'Summary New'!$I$50 -> 0 | G177: =(F177*(1+'Scenario Assumptions'!$E$10)^('Scenario Assumptions'!$E$6+Q176)) -> 0 | H177: =(G177/(1+'Scenario Assumptions'!$E$7)^('Scenario Assumptions'!$E$6+Q176)) -> 0 | J177: =D177*'Summary New'!$I$79 -> 0 | K177: =D177*('Summary New'!$I$70*(1+'Scenario Assumptions'!$E$11)^('Scenario Assumptions'!$E$6+1)+('Summary New'!$I$79-'Summary New'!$I$70)*(1+'Scenario Assumptions'!$E$12)^('Scenario Assumptions'!$E$6+Q176)) -> 0 | L177: =(K177/(1+'Scenario Assumptions'!$E$7)^('Scenario Assumptions'!$E$6+Q176)) -> 0 | N177: 0 | O177: 0 | P177: 0 | Q177: 10 | S177: 0 | T177: 0 | U177: 0
B178: Year 11 | D178: 0.3666666667 | F178: =D178*'Summary New'!$I$50 -> 0 | G178: =(F178*(1+'Scenario Assumptions'!$E$10)^('Scenario Assumptions'!$E$6+Q177)) -> 0 | H178: =(G178/(1+'Scenario Assumptions'!$E$7)^('Scenario Assumptions'!$E$6+Q177)) -> 0 | J178: =D178*'Summary New'!$I$79 -> 0 | K178: =D178*('Summary New'!$I$70*(1+'Scenario Assumptions'!$E$11)^('Scenario Assumptions'!$E$6+1)+('Summary New'!$I$79-'Summary New'!$I$70)*(1+'Scenario Assumptions'!$E$12)^('Scenario Assumptions'!$E$6+Q177)) -> 0 | L178: =(K178/(1+'Scenario Assumptions'!$E$7)^('Scenario Assumptions'!$E$6+Q177)) -> 0 | N178: 0 | O178: 0 | P178: 0 | Q178: 11 | S178: 0 | T178: 0 | U178: 0
B179: Year 12 | D179: 0.4 | F179: =D179*'Summary New'!$I$50 -> 0 | G179: =(F179*(1+'Scenario Assumptions'!$E$10)^('Scenario Assumptions'!$E$6+Q178)) -> 0 | H179: =(G179/(1+'Scenario Assumptions'!$E$7)^('Scenario Assumptions'!$E$6+Q178)) -> 0 | J179: =D179*'Summary New'!$I$79 -> 0 | K179: =D179*('Summary New'!$I$70*(1+'Scenario Assumptions'!$E$11)^('Scenario Assumptions'!$E$6+1)+('Summary New'!$I$79-'Summary New'!$I$70)*(1+'Scenario Assumptions'!$E$12)^('Scenario Assumptions'!$E$6+Q178)) -> 0 | L179: =(K179/(1+'Scenario Assumptions'!$E$7)^('Scenario Assumptions'!$E$6+Q178)) -> 0 | N179: 0 | O179: 0 | P179: 0 | Q179: 12 | S179: 0 | T179: 0 | U179: 0
B180: Year 13 | D180: 0.4333333333 | F180: =D180*'Summary New'!$I$50 -> 0 | G180: =(F180*(1+'Scenario Assumptions'!$E$10)^('Scenario Assumptions'!$E$6+Q179)) -> 0 | H180: =(G180/(1+'Scenario Assumptions'!$E$7)^('Scenario Assumptions'!$E$6+Q179)) -> 0 | J180: =D180*'Summary New'!$I$79 -> 0 | K180: =D180*('Summary New'!$I$70*(1+'Scenario Assumptions'!$E$11)^('Scenario Assumptions'!$E$6+1)+('Summary New'!$I$79-'Summary New'!$I$70)*(1+'Scenario Assumptions'!$E$12)^('Scenario Assumptions'!$E$6+Q179)) -> 0 | L180: =(K180/(1+'Scenario Assumptions'!$E$7)^('Scenario Assumptions'!$E$6+Q179)) -> 0 | N180: 0 | O180: 0 | P180: 0 | Q180: 13 | S180: 0 | T180: 0 | U180: 0
B181: Year 14 | D181: 0.4666666667 | F181: =D181*'Summary New'!$I$50 -> 0 | G181: =(F181*(1+'Scenario Assumptions'!$E$10)^('Scenario Assumptions'!$E$6+Q180)) -> 0 | H181: =(G181/(1+'Scenario Assumptions'!$E$7)^('Scenario Assumptions'!$E$6+Q180)) -> 0 | J181: =D181*'Summary New'!$I$79 -> 0 | K181: =D181*('Summary New'!$I$70*(1+'Scenario Assumptions'!$E$11)^('Scenario Assumptions'!$E$6+1)+('Summary New'!$I$79-'Summary New'!$I$70)*(1+'Scenario Assumptions'!$E$12)^('Scenario Assumptions'!$E$6+Q180)) -> 0 | L181: =(K181/(1+'Scenario Assumptions'!$E$7)^('Scenario Assumptions'!$E$6+Q180)) -> 0 | N181: 0 | O181: 0 | P181: 0 | Q181: 14 | S181: 0 | T181: 0 | U181: 0
B182: Year 15 | D182: 0.5 | F182: =D182*'Summary New'!$I$50 -> 0 | G182: =(F182*(1+'Scenario Assumptions'!$E$10)^('Scenario Assumptions'!$E$6+Q181)) -> 0 | H182: =(G182/(1+'Scenario Assumptions'!$E$7)^('Scenario Assumptions'!$E$6+Q181)) -> 0 | J182: =D182*'Summary New'!$I$79 -> 0 | K182: =D182*('Summary New'!$I$70*(1+'Scenario Assumptions'!$E$11)^('Scenario Assumptions'!$E$6+1)+('Summary New'!$I$79-'Summary New'!$I$70)*(1+'Scenario Assumptions'!$E$12)^('Scenario Assumptions'!$E$6+Q181)) -> 0 | L182: =(K182/(1+'Scenario Assumptions'!$E$7)^('Scenario Assumptions'!$E$6+Q181)) -> 0 | N182: 0 | O182: 0 | P182: 0 | Q182: 15 | S182: 0 | T182: 0 | U182: 0
B183: Year 16 | D183: 0.5333333333 | F183: =D183*'Summary New'!$I$50 -> 0 | G183: =(F183*(1+'Scenario Assumptions'!$E$10)^('Scenario Assumptions'!$E$6+Q182)) -> 0 | H183: =(G183/(1+'Scenario Assumptions'!$E$7)^('Scenario Assumptions'!$E$6+Q182)) -> 0 | J183: =D183*'Summary New'!$I$79 -> 0 | K183: =D183*('Summary New'!$I$70*(1+'Scenario Assumptions'!$E$11)^('Scenario Assumptions'!$E$6+1)+('Summary New'!$I$79-'Summary New'!$I$70)*(1+'Scenario Assumptions'!$E$12)^('Scenario Assumptions'!$E$6+Q182)) -> 0 | L183: =(K183/(1+'Scenario Assumptions'!$E$7)^('Scenario Assumptions'!$E$6+Q182)) -> 0 | N183: 0 | O183: 0 | P183: 0 | Q183: 16 | S183: 0 | T183: 0 | U183: 0
B184: Year 17 | D184: 0.5666666667 | F184: =D184*'Summary New'!$I$50 -> 0 | G184: =(F184*(1+'Scenario Assumptions'!$E$10)^('Scenario Assumptions'!$E$6+Q183)) -> 0 | H184: =(G184/(1+'Scenario Assumptions'!$E$7)^('Scenario Assumptions'!$E$6+Q183)) -> 0 | J184: =D184*'Summary New'!$I$79 -> 0 | K184: =D184*('Summary New'!$I$70*(1+'Scenario Assumptions'!$E$11)^('Scenario Assumptions'!$E$6+1)+('Summary New'!$I$79-'Summary New'!$I$70)*(1+'Scenario Assumptions'!$E$12)^('Scenario Assumptions'!$E$6+Q183)) -> 0 | L184: =(K184/(1+'Scenario Assumptions'!$E$7)^('Scenario Assumptions'!$E$6+Q183)) -> 0 | N184: 0 | O184: 0 | P184: 0 | Q184: 17 | S184: 0 | T184: 0 | U184: 0
B185: Year 18 | D185: 0.6 | F185: =D185*'Summary New'!$I$50 -> 0 | G185: =(F185*(1+'Scenario Assumptions'!$E$10)^('Scenario Assumptions'!$E$6+Q184)) -> 0 | H185: =(G185/(1+'Scenario Assumptions'!$E$7)^('Scenario Assumptions'!$E$6+Q184)) -> 0 | J185: =D185*'Summary New'!$I$79 -> 0 | K185: =D185*('Summary New'!$I$70*(1+'Scenario Assumptions'!$E$11)^('Scenario Assumptions'!$E$6+1)+('Summary New'!$I$79-'Summary New'!$I$70)*(1+'Scenario Assumptions'!$E$12)^('Scenario Assumptions'!$E$6+Q184)) -> 0 | L185: =(K185/(1+'Scenario Assumptions'!$E$7)^('Scenario Assumptions'!$E$6+Q184)) -> 0 | N185: 0 | O185: 0 | P185: 0 | Q185: 18 | S185: =N185+S184 -> 0 | T185: 0 | U185: 0
B186: Year 19 | D186: 0.6333333333 | F186: =D186*'Summary New'!$I$50 -> 0 | G186: =(F186*(1+'Scenario Assumptions'!$E$10)^('Scenario Assumptions'!$E$6+Q185)) -> 0 | H186: =(G186/(1+'Scenario Assumptions'!$E$7)^('Scenario Assumptions'!$E$6+Q185)) -> 0 | J186: =D186*'Summary New'!$I$79 -> 0 | K186: =D186*('Summary New'!$I$70*(1+'Scenario Assumptions'!$E$11)^('Scenario Assumptions'!$E$6+1)+('Summary New'!$I$79-'Summary New'!$I$70)*(1+'Scenario Assumptions'!$E$12)^('Scenario Assumptions'!$E$6+Q185)) -> 0 | L186: =(K186/(1+'Scenario Assumptions'!$E$7)^('Scenario Assumptions'!$E$6+Q185)) -> 0 | N186: 0 | O186: 0 | P186: 0 | Q186: 19 | S186: 0 | T186: 0 | U186: 0
B187: Year 20 | D187: 0.6666666667 | F187: =D187*'Summary New'!$I$50 -> 0 | G187: =(F187*(1+'Scenario Assumptions'!$E$10)^('Scenario Assumptions'!$E$6+Q186)) -> 0 | H187: =(G187/(1+'Scenario Assumptions'!$E$7)^('Scenario Assumptions'!$E$6+Q186)) -> 0 | J187: =D187*'Summary New'!$I$79 -> 0 | K187: =D187*('Summary New'!$I$70*(1+'Scenario Assumptions'!$E$11)^('Scenario Assumptions'!$E$6+1)+('Summary New'!$I$79-'Summary New'!$I$70)*(1+'Scenario Assumptions'!$E$12)^('Scenario Assumptions'!$E$6+Q186)) -> 0 | L187: =(K187/(1+'Scenario Assumptions'!$E$7)^('Scenario Assumptions'!$E$6+Q186)) -> 0 | N187: 0 | O187: 0 | P187: 0 | Q187: 20 | S187: 0 | T187: 0 | U187: 0
B188: Year 21 | D188: 0.7 | F188: =D188*'Summary New'!$I$50 -> 0 | G188: =(F188*(1+'Scenario Assumptions'!$E$10)^('Scenario Assumptions'!$E$6+Q187)) -> 0 | H188: =(G188/(1+'Scenario Assumptions'!$E$7)^('Scenario Assumptions'!$E$6+Q187)) -> 0 | J188: =D188*'Summary New'!$I$79 -> 0 | K188: =D188*('Summary New'!$I$70*(1+'Scenario Assumptions'!$E$11)^('Scenario Assumptions'!$E$6+1)+('Summary New'!$I$79-'Summary New'!$I$70)*(1+'Scenario Assumptions'!$E$12)^('Scenario Assumptions'!$E$6+Q187)) -> 0 | L188: =(K188/(1+'Scenario Assumptions'!$E$7)^('Scenario Assumptions'!$E$6+Q187)) -> 0 | N188: 0 | O188: 0 | P188: 0 | Q188: 21 | S188: 0 | T188: 0 | U188: 0
B189: Year 22 | D189: 0.7333333333 | F189: =D189*'Summary New'!$I$50 -> 0 | G189: =(F189*(1+'Scenario Assumptions'!$E$10)^('Scenario Assumptions'!$E$6+Q188)) -> 0 | H189: =(G189/(1+'Scenario Assumptions'!$E$7)^('Scenario Assumptions'!$E$6+Q188)) -> 0 | J189: =D189*'Summary New'!$I$79 -> 0 | K189: =D189*('Summary New'!$I$70*(1+'Scenario Assumptions'!$E$11)^('Scenario Assumptions'!$E$6+1)+('Summary New'!$I$79-'Summary New'!$I$70)*(1+'Scenario Assumptions'!$E$12)^('Scenario Assumptions'!$E$6+Q188)) -> 0 | L189: =(K189/(1+'Scenario Assumptions'!$E$7)^('Scenario Assumptions'!$E$6+Q188)) -> 0 | N189: 0 | O189: 0 | P189: 0 | Q189: 22 | S189: 0 | T189: 0 | U189: 0
B190: Year 23 | D190: 0.7666666667 | F190: =D190*'Summary New'!$I$50 -> 0 | G190: =(F190*(1+'Scenario Assumptions'!$E$10)^('Scenario Assumptions'!$E$6+Q189)) -> 0 | H190: =(G190/(1+'Scenario Assumptions'!$E$7)^('Scenario Assumptions'!$E$6+Q189)) -> 0 | J190: =D190*'Summary New'!$I$79 -> 0 | K190: =D190*('Summary New'!$I$70*(1+'Scenario Assumptions'!$E$11)^('Scenario Assumptions'!$E$6+1)+('Summary New'!$I$79-'Summary New'!$I$70)*(1+'Scenario Assumptions'!$E$12)^('Scenario Assumptions'!$E$6+Q189)) -> 0 | L190: =(K190/(1+'Scenario Assumptions'!$E$7)^('Scenario Assumptions'!$E$6+Q189)) -> 0 | N190: 0 | O190: 0 | P190: 0 | Q190: 23 | S190: 0 | T190: 0 | U190: 0
B191: Year 24 | D191: 0.8 | F191: =D191*'Summary New'!$I$50 -> 0 | G191: =(F191*(1+'Scenario Assumptions'!$E$10)^('Scenario Assumptions'!$E$6+Q190)) -> 0 | H191: =(G191/(1+'Scenario Assumptions'!$E$7)^('Scenario Assumptions'!$E$6+Q190)) -> 0 | J191: =D191*'Summary New'!$I$79 -> 0 | K191: =D191*('Summary New'!$I$70*(1+'Scenario Assumptions'!$E$11)^('Scenario Assumptions'!$E$6+1)+('Summary New'!$I$79-'Summary New'!$I$70)*(1+'Scenario Assumptions'!$E$12)^('Scenario Assumptions'!$E$6+Q190)) -> 0 | L191: =(K191/(1+'Scenario Assumptions'!$E$7)^('Scenario Assumptions'!$E$6+Q190)) -> 0 | N191: 0 | O191: 0 | P191: 0 | Q191: 24 | S191: 0 | T191: 0 | U191: 0
B192: Year 25 | D192: 0.8333333333 | F192: =D192*'Summary New'!$I$50 -> 0 | G192: =(F192*(1+'Scenario Assumptions'!$E$10)^('Scenario Assumptions'!$E$6+Q191)) -> 0 | H192: =(G192/(1+'Scenario Assumptions'!$E$7)^('Scenario Assumptions'!$E$6+Q191)) -> 0 | J192: =D192*'Summary New'!$I$79 -> 0 | K192: =D192*('Summary New'!$I$70*(1+'Scenario Assumptions'!$E$11)^('Scenario Assumptions'!$E$6+1)+('Summary New'!$I$79-'Summary New'!$I$70)*(1+'Scenario Assumptions'!$E$12)^('Scenario Assumptions'!$E$6+Q191)) -> 0 | L192: =(K192/(1+'Scenario Assumptions'!$E$7)^('Scenario Assumptions'!$E$6+Q191)) -> 0 | N192: 0 | O192: 0 | P192: 0 | Q192: 25 | S192: 0 | T192: 0 | U192: 0
B193: Year 26 | D193: 0.8666666667 | F193: =D193*'Summary New'!$I$50 -> 0 | G193: =(F193*(1+'Scenario Assumptions'!$E$10)^('Scenario Assumptions'!$E$6+Q192)) -> 0 | H193: =(G193/(1+'Scenario Assumptions'!$E$7)^('Scenario Assumptions'!$E$6+Q192)) -> 0 | J193: =D193*'Summary New'!$I$79 -> 0 | K193: =D193*('Summary New'!$I$70*(1+'Scenario Assumptions'!$E$11)^('Scenario Assumptions'!$E$6+1)+('Summary New'!$I$79-'Summary New'!$I$70)*(1+'Scenario Assumptions'!$E$12)^('Scenario Assumptions'!$E$6+Q192)) -> 0 | L193: =(K193/(1+'Scenario Assumptions'!$E$7)^('Scenario Assumptions'!$E$6+Q192)) -> 0 | N193: 0 | O193: 0 | P193: 0 | Q193: 26 | S193: 0 | T193: 0 | U193: 0
B194: Year 27 | D194: 0.9 | F194: =D194*'Summary New'!$I$50 -> 0 | G194: =(F194*(1+'Scenario Assumptions'!$E$10)^('Scenario Assumptions'!$E$6+Q193)) -> 0 | H194: =(G194/(1+'Scenario Assumptions'!$E$7)^('Scenario Assumptions'!$E$6+Q193)) -> 0 | J194: =D194*'Summary New'!$I$79 -> 0 | K194: =D194*('Summary New'!$I$70*(1+'Scenario Assumptions'!$E$11)^('Scenario Assumptions'!$E$6+1)+('Summary New'!$I$79-'Summary New'!$I$70)*(1+'Scenario Assumptions'!$E$12)^('Scenario Assumptions'!$E$6+Q193)) -> 0 | L194: =(K194/(1+'Scenario Assumptions'!$E$7)^('Scenario Assumptions'!$E$6+Q193)) -> 0 | N194: 0 | O194: 0 | P194: 0 | Q194: 27 | S194: 0 | T194: 0 | U194: 0
B195: Year 28 | D195: 0.9333333333 | F195: =D195*'Summary New'!$I$50 -> 0 | G195: =(F195*(1+'Scenario Assumptions'!$E$10)^('Scenario Assumptions'!$E$6+Q194)) -> 0 | H195: =(G195/(1+'Scenario Assumptions'!$E$7)^('Scenario Assumptions'!$E$6+Q194)) -> 0 | J195: =D195*'Summary New'!$I$79 -> 0 | K195: =D195*('Summary New'!$I$70*(1+'Scenario Assumptions'!$E$11)^('Scenario Assumptions'!$E$6+1)+('Summary New'!$I$79-'Summary New'!$I$70)*(1+'Scenario Assumptions'!$E$12)^('Scenario Assumptions'!$E$6+Q194)) -> 0 | L195: =(K195/(1+'Scenario Assumptions'!$E$7)^('Scenario Assumptions'!$E$6+Q194)) -> 0 | N195: 0 | O195: 0 | P195: 0 | Q195: 28 | S195: 0 | T195: 0 | U195: 0
B196: Year 29 | D196: 0.9666666667 | F196: =D196*'Summary New'!$I$50 -> 0 | G196: =(F196*(1+'Scenario Assumptions'!$E$10)^('Scenario Assumptions'!$E$6+Q195)) -> 0 | H196: =(G196/(1+'Scenario Assumptions'!$E$7)^('Scenario Assumptions'!$E$6+Q195)) -> 0 | J196: =D196*'Summary New'!$I$79 -> 0 | K196: =D196*('Summary New'!$I$70*(1+'Scenario Assumptions'!$E$11)^('Scenario Assumptions'!$E$6+1)+('Summary New'!$I$79-'Summary New'!$I$70)*(1+'Scenario Assumptions'!$E$12)^('Scenario Assumptions'!$E$6+Q195)) -> 0 | L196: =(K196/(1+'Scenario Assumptions'!$E$7)^('Scenario Assumptions'!$E$6+Q195)) -> 0 | N196: 0 | O196: 0 | P196: 0 | Q196: 29 | S196: 0 | T196: 0 | U196: 0
B197: Year 30 | D197: 1 | F197: =D197*'Summary New'!$I$50 -> 0 | G197: =(F197*(1+'Scenario Assumptions'!$E$10)^('Scenario Assumptions'!$E$6+Q196)) -> 0 | H197: =(G197/(1+'Scenario Assumptions'!$E$7)^('Scenario Assumptions'!$E$6+Q196)) -> 0 | J197: =D197*'Summary New'!$I$79 -> 0 | K197: =D197*('Summary New'!$I$70*(1+'Scenario Assumptions'!$E$11)^('Scenario Assumptions'!$E$6+1)+('Summary New'!$I$79-'Summary New'!$I$70)*(1+'Scenario Assumptions'!$E$12)^('Scenario Assumptions'!$E$6+Q196)) -> 0 | L197: =(K197/(1+'Scenario Assumptions'!$E$7)^('Scenario Assumptions'!$E$6+Q196)) -> 0 | N197: 0 | O197: 0 | P197: 0 | Q197: 30 | S197: 0 | T197: 0 | U197: 0
B198: Year 31 | D198: 1.033333333 | F198: =D198*'Summary New'!$I$50 -> 0 | G198: =(F198*(1+'Scenario Assumptions'!$E$10)^('Scenario Assumptions'!$E$6+Q197)) -> 0 | H198: =(G198/(1+'Scenario Assumptions'!$E$7)^('Scenario Assumptions'!$E$6+Q197)) -> 0 | J198: =D198*'Summary New'!$I$79 -> 0 | K198: =D198*('Summary New'!$I$70*(1+'Scenario Assumptions'!$E$11)^('Scenario Assumptions'!$E$6+1)+('Summary New'!$I$79-'Summary New'!$I$70)*(1+'Scenario Assumptions'!$E$12)^('Scenario Assumptions'!$E$6+Q197)) -> 0 | L198: =(K198/(1+'Scenario Assumptions'!$E$7)^('Scenario Assumptions'!$E$6+Q197)) -> 0 | N198: =H198 -> 0 | O198: =L198 -> 0 | P198: =N198-O198 -> 0 | Q198: 31 | S198: =N198+S197 -> 0 | T198: =O198+T197 -> 0 | U198: =P198+U197 -> 0
B199: Year 32 | D199: 1.066666667 | F199: =D199*'Summary New'!$I$50 -> 0 | G199: =(F199*(1+'Scenario Assumptions'!$E$10)^('Scenario Assumptions'!$E$6+Q198)) -> 0 | H199: =(G199/(1+'Scenario Assumptions'!$E$7)^('Scenario Assumptions'!$E$6+Q198)) -> 0 | J199: =D199*'Summary New'!$I$79 -> 0 | K199: =D199*('Summary New'!$I$70*(1+'Scenario Assumptions'!$E$11)^('Scenario Assumptions'!$E$6+1)+('Summary New'!$I$79-'Summary New'!$I$70)*(1+'Scenario Assumptions'!$E$12)^('Scenario Assumptions'!$E$6+Q198)) -> 0 | L199: =(K199/(1+'Scenario Assumptions'!$E$7)^('Scenario Assumptions'!$E$6+Q198)) -> 0 | N199: 0 | O199: 0 | P199: 0 | Q199: 32 | S199: 0 | T199: 0 | U199: 0
B200: Year 33 | D200: 1.1 | F200: =D200*'Summary New'!$I$50 -> 0 | G200: =(F200*(1+'Scenario Assumptions'!$E$10)^('Scenario Assumptions'!$E$6+Q199)) -> 0 | H200: =(G200/(1+'Scenario Assumptions'!$E$7)^('Scenario Assumptions'!$E$6+Q199)) -> 0 | J200: =D200*'Summary New'!$I$79 -> 0 | K200: =D200*('Summary New'!$I$70*(1+'Scenario Assumptions'!$E$11)^('Scenario Assumptions'!$E$6+1)+('Summary New'!$I$79-'Summary New'!$I$70)*(1+'Scenario Assumptions'!$E$12)^('Scenario Assumptions'!$E$6+Q199)) -> 0 | L200: =(K200/(1+'Scenario Assumptions'!$E$7)^('Scenario Assumptions'!$E$6+Q199)) -> 0 | N200: 0 | O200: 0 | P200: 0 | Q200: 33 | S200: 0 | T200: 0 | U200: 0
B201: Year 34 | D201: 1.133333333 | F201: =D201*'Summary New'!$I$50 -> 0 | G201: =(F201*(1+'Scenario Assumptions'!$E$10)^('Scenario Assumptions'!$E$6+Q200)) -> 0 | H201: =(G201/(1+'Scenario Assumptions'!$E$7)^('Scenario Assumptions'!$E$6+Q200)) -> 0 | J201: =D201*'Summary New'!$I$79 -> 0 | K201: =D201*('Summary New'!$I$70*(1+'Scenario Assumptions'!$E$11)^('Scenario Assumptions'!$E$6+1)+('Summary New'!$I$79-'Summary New'!$I$70)*(1+'Scenario Assumptions'!$E$12)^('Scenario Assumptions'!$E$6+Q200)) -> 0 | L201: =(K201/(1+'Scenario Assumptions'!$E$7)^('Scenario Assumptions'!$E$6+Q200)) -> 0 | N201: 0 | O201: 0 | P201: 0 | Q201: 34 | S201: 0 | T201: 0 | U201: 0
B202: Year 35 | D202: 1.166666667 | F202: =D202*'Summary New'!$I$50 -> 0 | G202: =(F202*(1+'Scenario Assumptions'!$E$10)^('Scenario Assumptions'!$E$6+Q201)) -> 0 | H202: =(G202/(1+'Scenario Assumptions'!$E$7)^('Scenario Assumptions'!$E$6+Q201)) -> 0 | J202: =D202*'Summary New'!$I$79 -> 0 | K202: =D202*('Summary New'!$I$70*(1+'Scenario Assumptions'!$E$11)^('Scenario Assumptions'!$E$6+1)+('Summary New'!$I$79-'Summary New'!$I$70)*(1+'Scenario Assumptions'!$E$12)^('Scenario Assumptions'!$E$6+Q201)) -> 0 | L202: =(K202/(1+'Scenario Assumptions'!$E$7)^('Scenario Assumptions'!$E$6+Q201)) -> 0 | N202: 0 | O202: 0 | P202: 0 | Q202: 35 | S202: 0 | T202: 0 | U202: 0
B203: Year 36 | D203: 1.2 | F203: =D203*'Summary New'!$I$50 -> 0 | G203: =(F203*(1+'Scenario Assumptions'!$E$10)^('Scenario Assumptions'!$E$6+Q202)) -> 0 | H203: =(G203/(1+'Scenario Assumptions'!$E$7)^('Scenario Assumptions'!$E$6+Q202)) -> 0 | J203: =D203*'Summary New'!$I$79 -> 0 | K203: =D203*('Summary New'!$I$70*(1+'Scenario Assumptions'!$E$11)^('Scenario Assumptions'!$E$6+1)+('Summary New'!$I$79-'Summary New'!$I$70)*(1+'Scenario Assumptions'!$E$12)^('Scenario Assumptions'!$E$6+Q202)) -> 0 | L203: =(K203/(1+'Scenario Assumptions'!$E$7)^('Scenario Assumptions'!$E$6+Q202)) -> 0 | N203: 0 | O203: 0 | P203: 0 | Q203: 36 | S203: 0 | T203: 0 | U203: 0
B204: Year 37 | D204: 1.233333333 | F204: =D204*'Summary New'!$I$50 -> 0 | G204: =(F204*(1+'Scenario Assumptions'!$E$10)^('Scenario Assumptions'!$E$6+Q203)) -> 0 | H204: =(G204/(1+'Scenario Assumptions'!$E$7)^('Scenario Assumptions'!$E$6+Q203)) -> 0 | J204: =D204*'Summary New'!$I$79 -> 0 | K204: =D204*('Summary New'!$I$70*(1+'Scenario Assumptions'!$E$11)^('Scenario Assumptions'!$E$6+1)+('Summary New'!$I$79-'Summary New'!$I$70)*(1+'Scenario Assumptions'!$E$12)^('Scenario Assumptions'!$E$6+Q203)) -> 0 | L204: =(K204/(1+'Scenario Assumptions'!$E$7)^('Scenario Assumptions'!$E$6+Q203)) -> 0 | N204: 0 | O204: 0 | P204: 0 | Q204: 37 | S204: 0 | T204: 0 | U204: 0
B205: Year 38 | D205: 1.266666667 | F205: =D205*'Summary New'!$I$50 -> 0 | G205: =(F205*(1+'Scenario Assumptions'!$E$10)^('Scenario Assumptions'!$E$6+Q204)) -> 0 | H205: =(G205/(1+'Scenario Assumptions'!$E$7)^('Scenario Assumptions'!$E$6+Q204)) -> 0 | J205: =D205*'Summary New'!$I$79 -> 0 | K205: =D205*('Summary New'!$I$70*(1+'Scenario Assumptions'!$E$11)^('Scenario Assumptions'!$E$6+1)+('Summary New'!$I$79-'Summary New'!$I$70)*(1+'Scenario Assumptions'!$E$12)^('Scenario Assumptions'!$E$6+Q204)) -> 0 | L205: =(K205/(1+'Scenario Assumptions'!$E$7)^('Scenario Assumptions'!$E$6+Q204)) -> 0 | N205: 0 | O205: 0 | P205: 0 | Q205: 38 | S205: 0 | T205: 0 | U205: 0
B206: Year 39 | D206: 1.3 | F206: =D206*'Summary New'!$I$50 -> 0 | G206: =(F206*(1+'Scenario Assumptions'!$E$10)^('Scenario Assumptions'!$E$6+Q205)) -> 0 | H206: =(G206/(1+'Scenario Assumptions'!$E$7)^('Scenario Assumptions'!$E$6+Q205)) -> 0 | J206: =D206*'Summary New'!$I$79 -> 0 | K206: =D206*('Summary New'!$I$70*(1+'Scenario Assumptions'!$E$11)^('Scenario Assumptions'!$E$6+1)+('Summary New'!$I$79-'Summary New'!$I$70)*(1+'Scenario Assumptions'!$E$12)^('Scenario Assumptions'!$E$6+Q205)) -> 0 | L206: =(K206/(1+'Scenario Assumptions'!$E$7)^('Scenario Assumptions'!$E$6+Q205)) -> 0 | N206: 0 | O206: 0 | P206: 0 | Q206: 39 | S206: 0 | T206: 0 | U206: 0
B207: Year 40 | D207: 1.333333333 | F207: =D207*'Summary New'!$I$50 -> 0 | G207: =(F207*(1+'Scenario Assumptions'!$E$10)^('Scenario Assumptions'!$E$6+Q206)) -> 0 | H207: =(G207/(1+'Scenario Assumptions'!$E$7)^('Scenario Assumptions'!$E$6+Q206)) -> 0 | J207: =D207*'Summary New'!$I$79 -> 0 | K207: =D207*('Summary New'!$I$70*(1+'Scenario Assumptions'!$E$11)^('Scenario Assumptions'!$E$6+1)+('Summary New'!$I$79-'Summary New'!$I$70)*(1+'Scenario Assumptions'!$E$12)^('Scenario Assumptions'!$E$6+Q206)) -> 0 | L207: =(K207/(1+'Scenario Assumptions'!$E$7)^('Scenario Assumptions'!$E$6+Q206)) -> 0 | N207: 0 | O207: 0 | P207: 0 | Q207: 40 | S207: 0 | T207: 0 | U207: 0
B208: Year 41 | D208: 1.366666667 | F208: =D208*'Summary New'!$I$50 -> 0 | G208: =(F208*(1+'Scenario Assumptions'!$E$10)^('Scenario Assumptions'!$E$6+Q207)) -> 0 | H208: =(G208/(1+'Scenario Assumptions'!$E$7)^('Scenario Assumptions'!$E$6+Q207)) -> 0 | J208: =D208*'Summary New'!$I$79 -> 0 | K208: =D208*('Summary New'!$I$70*(1+'Scenario Assumptions'!$E$11)^('Scenario Assumptions'!$E$6+1)+('Summary New'!$I$79-'Summary New'!$I$70)*(1+'Scenario Assumptions'!$E$12)^('Scenario Assumptions'!$E$6+Q207)) -> 0 | L208: =(K208/(1+'Scenario Assumptions'!$E$7)^('Scenario Assumptions'!$E$6+Q207)) -> 0 | N208: 0 | O208: 0 | P208: 0 | Q208: 41 | S208: 0 | T208: 0 | U208: 0
B209: Year 42 | D209: 1.4 | F209: =D209*'Summary New'!$I$50 -> 0 | G209: =(F209*(1+'Scenario Assumptions'!$E$10)^('Scenario Assumptions'!$E$6+Q208)) -> 0 | H209: =(G209/(1+'Scenario Assumptions'!$E$7)^('Scenario Assumptions'!$E$6+Q208)) -> 0 | J209: =D209*'Summary New'!$I$79 -> 0 | K209: =D209*('Summary New'!$I$70*(1+'Scenario Assumptions'!$E$11)^('Scenario Assumptions'!$E$6+1)+('Summary New'!$I$79-'Summary New'!$I$70)*(1+'Scenario Assumptions'!$E$12)^('Scenario Assumptions'!$E$6+Q208)) -> 0 | L209: =(K209/(1+'Scenario Assumptions'!$E$7)^('Scenario Assumptions'!$E$6+Q208)) -> 0 | N209: 0 | O209: 0 | P209: 0 | Q209: 42 | S209: 0 | T209: 0 | U209: 0
B210: Year 43 | D210: 1.433333333 | F210: =D210*'Summary New'!$I$50 -> 0 | G210: =(F210*(1+'Scenario Assumptions'!$E$10)^('Scenario Assumptions'!$E$6+Q209)) -> 0 | H210: =(G210/(1+'Scenario Assumptions'!$E$7)^('Scenario Assumptions'!$E$6+Q209)) -> 0 | J210: =D210*'Summary New'!$I$79 -> 0 | K210: =D210*('Summary New'!$I$70*(1+'Scenario Assumptions'!$E$11)^('Scenario Assumptions'!$E$6+1)+('Summary New'!$I$79-'Summary New'!$I$70)*(1+'Scenario Assumptions'!$E$12)^('Scenario Assumptions'!$E$6+Q209)) -> 0 | L210: =(K210/(1+'Scenario Assumptions'!$E$7)^('Scenario Assumptions'!$E$6+Q209)) -> 0 | N210: 0 | O210: 0 | P210: 0 | Q210: 43 | S210: 0 | T210: 0 | U210: 0
B211: Year 44 | D211: 1.466666667 | F211: =D211*'Summary New'!$I$50 -> 0 | G211: =(F211*(1+'Scenario Assumptions'!$E$10)^('Scenario Assumptions'!$E$6+Q210)) -> 0 | H211: =(G211/(1+'Scenario Assumptions'!$E$7)^('Scenario Assumptions'!$E$6+Q210)) -> 0 | J211: =D211*'Summary New'!$I$79 -> 0 | K211: =D211*('Summary New'!$I$70*(1+'Scenario Assumptions'!$E$11)^('Scenario Assumptions'!$E$6+1)+('Summary New'!$I$79-'Summary New'!$I$70)*(1+'Scenario Assumptions'!$E$12)^('Scenario Assumptions'!$E$6+Q210)) -> 0 | L211: =(K211/(1+'Scenario Assumptions'!$E$7)^('Scenario Assumptions'!$E$6+Q210)) -> 0 | N211: 0 | O211: 0 | P211: 0 | Q211: 44 | S211: 0 | T211: 0 | U211: 0
... 57 more rows

Sheet NPV County
F1: Benefits: | J1: Costs: | N1: Inflation and Discount Adjusted Stream: | S1: Cumulative:
F2: Raw | G2: Inflated | H2: Discounted | J2: Raw | K2: Inflated | L2: Discounted | N2: Benefit | O2: Cost | P2: Net PV | S2: Benefit | T2: Cost | U2: Net Ben
A5: Scen 1 | D5: Ramp-Up path:
B6: Year 1 | D6: =1/'Scenario Assumptions'!B$8 -> 0.03333333333 | F6: =D6*('Cost Module'!$D$95+'Cost Module'!$D$102) -> 0 | G6: =(F6*(1+'Scenario Assumptions'!$B$10)^'Scenario Assumptions'!$B$6) -> 0 | H6: =(G6/(1+'Scenario Assumptions'!$B$7)^('Scenario Assumptions'!$B$6)) -> 0 | J6: =D6*'Cost Module'!$D$114 -> 0 | K6: =D6*('Cost Module'!$D$105*(1+'Scenario Assumptions'!$B$11)^'Scenario Assumptions'!$B$6+('Cost Module'!$D$114-'Cost Module'!$D$105)*(1+'Scenario Assumptions'!$B$12)^'Scenario Assumptions'!$B$6) -> 0 | L6: =(K6/(1+'Scenario Assumptions'!$B$7)^('Scenario Assumptions'!$B$6)) -> 0 | N6: =H6 -> 0 | O6: =L6 -> 0 | P6: =N6-O6 -> 0 | Q6: 1 | S6: =N6 -> 0 | T6: =O6 -> 0 | U6: =P6 -> 0
B7: Year 2 | D7: =D6+$D$6 -> 0.06666666667 | F7: =D7*('Cost Module'!$D$95+'Cost Module'!$D$102) -> 0 | G7: =(F7*(1+'Scenario Assumptions'!$B$10)^('Scenario Assumptions'!$B$6+Q6)) -> 0 | H7: =(G7/(1+'Scenario Assumptions'!$B$7)^('Scenario Assumptions'!$B$6+Q6)) -> 0 | J7: =D7*'Cost Module'!$D$114 -> 0 | K7: =D7*('Cost Module'!$D$105*(1+'Scenario Assumptions'!$B$11)^'Scenario Assumptions'!$B$6+('Cost Module'!$D$114-'Cost Module'!$D$105)*(1+'Scenario Assumptions'!$B$12)^('Scenario Assumptions'!$B$6+Q6)) -> 0 | L7: =(K7/(1+'Scenario Assumptions'!$B$7)^('Scenario Assumptions'!$B$6+Q6)) -> 0 | N7: =H7 -> 0 | O7: 0 | P7: 0 | Q7: 2 | S7: =N7+S6 -> 0 | T7: 0 | U7: 0
B8: Year 3 | D8: =D7+$D$6 -> 0.1 | F8: =D8*('Cost Module'!$D$95+'Cost Module'!$D$102) -> 0 | G8: =(F8*(1+'Scenario Assumptions'!$B$10)^('Scenario Assumptions'!$B$6+Q7)) -> 0 | H8: =(G8/(1+'Scenario Assumptions'!$B$7)^('Scenario Assumptions'!$B$6+Q7)) -> 0 | J8: =D8*'Cost Module'!$D$114 -> 0 | K8: =D8*('Cost Module'!$D$105*(1+'Scenario Assumptions'!$B$11)^'Scenario Assumptions'!$B$6+('Cost Module'!$D$114-'Cost Module'!$D$105)*(1+'Scenario Assumptions'!$B$12)^('Scenario Assumptions'!$B$6+Q7)) -> 0 | L8: =(K8/(1+'Scenario Assumptions'!$B$7)^('Scenario Assumptions'!$B$6+Q7)) -> 0 | N8: 0 | O8: 0 | P8: 0 | Q8: 3 | S8: 0 | T8: 0 | U8: 0
B9: Year 4 | D9: 0.1333333333 | F9: =D9*('Cost Module'!$D$95+'Cost Module'!$D$102) -> 0 | G9: =(F9*(1+'Scenario Assumptions'!$B$10)^('Scenario Assumptions'!$B$6+Q8)) -> 0 | H9: =(G9/(1+'Scenario Assumptions'!$B$7)^('Scenario Assumptions'!$B$6+Q8)) -> 0 | J9: =D9*'Cost Module'!$D$114 -> 0 | K9: =D9*('Cost Module'!$D$105*(1+'Scenario Assumptions'!$B$11)^'Scenario Assumptions'!$B$6+('Cost Module'!$D$114-'Cost Module'!$D$105)*(1+'Scenario Assumptions'!$B$12)^('Scenario Assumptions'!$B$6+Q8)) -> 0 | L9: =(K9/(1+'Scenario Assumptions'!$B$7)^('Scenario Assumptions'!$B$6+Q8)) -> 0 | N9: 0 | O9: 0 | P9: 0 | Q9: 4 | S9: 0 | T9: 0 | U9: 0
B10: Year 5 | D10: 0.1666666667 | F10: =D10*('Cost Module'!$D$95+'Cost Module'!$D$102) -> 0 | G10: =(F10*(1+'Scenario Assumptions'!$B$10)^('Scenario Assumptions'!$B$6+Q9)) -> 0 | H10: =(G10/(1+'Scenario Assumptions'!$B$7)^('Scenario Assumptions'!$B$6+Q9)) -> 0 | J10: =D10*'Cost Module'!$D$114 -> 0 | K10: =D10*('Cost Module'!$D$105*(1+'Scenario Assumptions'!$B$11)^'Scenario Assumptions'!$B$6+('Cost Module'!$D$114-'Cost Module'!$D$105)*(1+'Scenario Assumptions'!$B$12)^('Scenario Assumptions'!$B$6+Q9)) -> 0 | L10: =(K10/(1+'Scenario Assumptions'!$B$7)^('Scenario Assumptions'!$B$6+Q9)) -> 0 | N10: 0 | O10: 0 | P10: 0 | Q10: 5 | S10: 0 | T10: 0 | U10: 0
B11: Year 6 | D11: 0.2 | F11: =D11*('Cost Module'!$D$95+'Cost Module'!$D$102) -> 0 | G11: =(F11*(1+'Scenario Assumptions'!$B$10)^('Scenario Assumptions'!$B$6+Q10)) -> 0 | H11: =(G11/(1+'Scenario Assumptions'!$B$7)^('Scenario Assumptions'!$B$6+Q10)) -> 0 | J11: =D11*'Cost Module'!$D$114 -> 0 | K11: =D11*('Cost Module'!$D$105*(1+'Scenario Assumptions'!$B$11)^'Scenario Assumptions'!$B$6+('Cost Module'!$D$114-'Cost Module'!$D$105)*(1+'Scenario Assumptions'!$B$12)^('Scenario Assumptions'!$B$6+Q10)) -> 0 | L11: =(K11/(1+'Scenario Assumptions'!$B$7)^('Scenario Assumptions'!$B$6+Q10)) -> 0 | N11: 0 | O11: 0 | P11: 0 | Q11: 6 | S11: 0 | T11: 0 | U11: 0
B12: Year 7 | D12: 0.2333333333 | F12: =D12*('Cost Module'!$D$95+'Cost Module'!$D$102) -> 0 | G12: =(F12*(1+'Scenario Assumptions'!$B$10)^('Scenario Assumptions'!$B$6+Q11)) -> 0 | H12: =(G12/(1+'Scenario Assumptions'!$B$7)^('Scenario Assumptions'!$B$6+Q11)) -> 0 | J12: =D12*'Cost Module'!$D$114 -> 0 | K12: =D12*('Cost Module'!$D$105*(1+'Scenario Assumptions'!$B$11)^'Scenario Assumptions'!$B$6+('Cost Module'!$D$114-'Cost Module'!$D$105)*(1+'Scenario Assumptions'!$B$12)^('Scenario Assumptions'!$B$6+Q11)) -> 0 | L12: =(K12/(1+'Scenario Assumptions'!$B$7)^('Scenario Assumptions'!$B$6+Q11)) -> 0 | N12: 0 | O12: 0 | P12: 0 | Q12: 7 | S12: 0 | T12: 0 | U12: 0
B13: Year 8 | D13: 0.2666666667 | F13: =D13*('Cost Module'!$D$95+'Cost Module'!$D$102) -> 0 | G13: =(F13*(1+'Scenario Assumptions'!$B$10)^('Scenario Assumptions'!$B$6+Q12)) -> 0 | H13: =(G13/(1+'Scenario Assumptions'!$B$7)^('Scenario Assumptions'!$B$6+Q12)) -> 0 | J13: =D13*'Cost Module'!$D$114 -> 0 | K13: =D13*('Cost Module'!$D$105*(1+'Scenario Assumptions'!$B$11)^'Scenario Assumptions'!$B$6+('Cost Module'!$D$114-'Cost Module'!$D$105)*(1+'Scenario Assumptions'!$B$12)^('Scenario Assumptions'!$B$6+Q12)) -> 0 | L13: =(K13/(1+'Scenario Assumptions'!$B$7)^('Scenario Assumptions'!$B$6+Q12)) -> 0 | N13: 0 | O13: 0 | P13: 0 | Q13: 8 | S13: 0 | T13: 0 | U13: 0
B14: Year 9 | D14: 0.3 | F14: =D14*('Cost Module'!$D$95+'Cost Module'!$D$102) -> 0 | G14: =(F14*(1+'Scenario Assumptions'!$B$10)^('Scenario Assumptions'!$B$6+Q13)) -> 0 | H14: =(G14/(1+'Scenario Assumptions'!$B$7)^('Scenario Assumptions'!$B$6+Q13)) -> 0 | J14: =D14*'Cost Module'!$D$114 -> 0 | K14: =D14*('Cost Module'!$D$105*(1+'Scenario Assumptions'!$B$11)^'Scenario Assumptions'!$B$6+('Cost Module'!$D$114-'Cost Module'!$D$105)*(1+'Scenario Assumptions'!$B$12)^('Scenario Assumptions'!$B$6+Q13)) -> 0 | L14: =(K14/(1+'Scenario Assumptions'!$B$7)^('Scenario Assumptions'!$B$6+Q13)) -> 0 | N14: 0 | O14: 0 | P14: 0 | Q14: 9 | S14: 0 | T14: 0 | U14: 0
B15: Year 10 | D15: 0.3333333333 | F15: =D15*('Cost Module'!$D$95+'Cost Module'!$D$102) -> 0 | G15: =(F15*(1+'Scenario Assumptions'!$B$10)^('Scenario Assumptions'!$B$6+Q14)) -> 0 | H15: =(G15/(1+'Scenario Assumptions'!$B$7)^('Scenario Assumptions'!$B$6+Q14)) -> 0 | J15: =D15*'Cost Module'!$D$114 -> 0 | K15: =D15*('Cost Module'!$D$105*(1+'Scenario Assumptions'!$B$11)^'Scenario Assumptions'!$B$6+('Cost Module'!$D$114-'Cost Module'!$D$105)*(1+'Scenario Assumptions'!$B$12)^('Scenario Assumptions'!$B$6+Q14)) -> 0 | L15: =(K15/(1+'Scenario Assumptions'!$B$7)^('Scenario Assumptions'!$B$6+Q14)) -> 0 | N15: 0 | O15: 0 | P15: 0 | Q15: 10 | S15: 0 | T15: 0 | U15: 0
B16: Year 11 | D16: 0.3666666667 | F16: =D16*('Cost Module'!$D$95+'Cost Module'!$D$102) -> 0 | G16: =(F16*(1+'Scenario Assumptions'!$B$10)^('Scenario Assumptions'!$B$6+Q15)) -> 0 | H16: =(G16/(1+'Scenario Assumptions'!$B$7)^('Scenario Assumptions'!$B$6+Q15)) -> 0 | J16: =D16*'Cost Module'!$D$114 -> 0 | K16: =D16*('Cost Module'!$D$105*(1+'Scenario Assumptions'!$B$11)^'Scenario Assumptions'!$B$6+('Cost Module'!$D$114-'Cost Module'!$D$105)*(1+'Scenario Assumptions'!$B$12)^('Scenario Assumptions'!$B$6+Q15)) -> 0 | L16: =(K16/(1+'Scenario Assumptions'!$B$7)^('Scenario Assumptions'!$B$6+Q15)) -> 0 | N16: 0 | O16: 0 | P16: 0 | Q16: 11 | S16: 0 | T16: 0 | U16: 0
B17: Year 12 | D17: 0.4 | F17: =D17*('Cost Module'!$D$95+'Cost Module'!$D$102) -> 0 | G17: =(F17*(1+'Scenario Assumptions'!$B$10)^('Scenario Assumptions'!$B$6+Q16)) -> 0 | H17: =(G17/(1+'Scenario Assumptions'!$B$7)^('Scenario Assumptions'!$B$6+Q16)) -> 0 | J17: =D17*'Cost Module'!$D$114 -> 0 | K17: =D17*('Cost Module'!$D$105*(1+'Scenario Assumptions'!$B$11)^'Scenario Assumptions'!$B$6+('Cost Module'!$D$114-'Cost Module'!$D$105)*(1+'Scenario Assumptions'!$B$12)^('Scenario Assumptions'!$B$6+Q16)) -> 0 | L17: =(K17/(1+'Scenario Assumptions'!$B$7)^('Scenario Assumptions'!$B$6+Q16)) -> 0 | N17: 0 | O17: 0 | P17: 0 | Q17: 12 | S17: 0 | T17: 0 | U17: 0
B18: Year 13 | D18: 0.4333333333 | F18: =D18*('Cost Module'!$D$95+'Cost Module'!$D$102) -> 0 | G18: =(F18*(1+'Scenario Assumptions'!$B$10)^('Scenario Assumptions'!$B$6+Q17)) -> 0 | H18: =(G18/(1+'Scenario Assumptions'!$B$7)^('Scenario Assumptions'!$B$6+Q17)) -> 0 | J18: =D18*'Cost Module'!$D$114 -> 0 | K18: =D18*('Cost Module'!$D$105*(1+'Scenario Assumptions'!$B$11)^'Scenario Assumptions'!$B$6+('Cost Module'!$D$114-'Cost Module'!$D$105)*(1+'Scenario Assumptions'!$B$12)^('Scenario Assumptions'!$B$6+Q17)) -> 0 | L18: =(K18/(1+'Scenario Assumptions'!$B$7)^('Scenario Assumptions'!$B$6+Q17)) -> 0 | N18: 0 | O18: 0 | P18: 0 | Q18: 13 | S18: 0 | T18: 0 | U18: 0
B19: Year 14 | D19: 0.4666666667 | F19: =D19*('Cost Module'!$D$95+'Cost Module'!$D$102) -> 0 | G19: =(F19*(1+'Scenario Assumptions'!$B$10)^('Scenario Assumptions'!$B$6+Q18)) -> 0 | H19: =(G19/(1+'Scenario Assumptions'!$B$7)^('Scenario Assumptions'!$B$6+Q18)) -> 0 | J19: =D19*'Cost Module'!$D$114 -> 0 | K19: =D19*('Cost Module'!$D$105*(1+'Scenario Assumptions'!$B$11)^'Scenario Assumptions'!$B$6+('Cost Module'!$D$114-'Cost Module'!$D$105)*(1+'Scenario Assumptions'!$B$12)^('Scenario Assumptions'!$B$6+Q18)) -> 0 | L19: =(K19/(1+'Scenario Assumptions'!$B$7)^('Scenario Assumptions'!$B$6+Q18)) -> 0 | N19: 0 | O19: 0 | P19: 0 | Q19: 14 | S19: 0 | T19: 0 | U19: 0
B20: Year 15 | D20: 0.5 | F20: =D20*('Cost Module'!$D$95+'Cost Module'!$D$102) -> 0 | G20: =(F20*(1+'Scenario Assumptions'!$B$10)^('Scenario Assumptions'!$B$6+Q19)) -> 0 | H20: =(G20/(1+'Scenario Assumptions'!$B$7)^('Scenario Assumptions'!$B$6+Q19)) -> 0 | J20: =D20*'Cost Module'!$D$114 -> 0 | K20: =D20*('Cost Module'!$D$105*(1+'Scenario Assumptions'!$B$11)^'Scenario Assumptions'!$B$6+('Cost Module'!$D$114-'Cost Module'!$D$105)*(1+'Scenario Assumptions'!$B$12)^('Scenario Assumptions'!$B$6+Q19)) -> 0 | L20: =(K20/(1+'Scenario Assumptions'!$B$7)^('Scenario Assumptions'!$B$6+Q19)) -> 0 | N20: 0 | O20: 0 | P20: 0 | Q20: 15 | S20: 0 | T20: 0 | U20: 0
B21: Year 16 | D21: 0.5333333333 | F21: =D21*('Cost Module'!$D$95+'Cost Module'!$D$102) -> 0 | G21: =(F21*(1+'Scenario Assumptions'!$B$10)^('Scenario Assumptions'!$B$6+Q20)) -> 0 | H21: =(G21/(1+'Scenario Assumptions'!$B$7)^('Scenario Assumptions'!$B$6+Q20)) -> 0 | J21: =D21*'Cost Module'!$D$114 -> 0 | K21: =D21*('Cost Module'!$D$105*(1+'Scenario Assumptions'!$B$11)^'Scenario Assumptions'!$B$6+('Cost Module'!$D$114-'Cost Module'!$D$105)*(1+'Scenario Assumptions'!$B$12)^('Scenario Assumptions'!$B$6+Q20)) -> 0 | L21: =(K21/(1+'Scenario Assumptions'!$B$7)^('Scenario Assumptions'!$B$6+Q20)) -> 0 | N21: 0 | O21: 0 | P21: 0 | Q21: 16 | S21: 0 | T21: 0 | U21: 0
B22: Year 17 | D22: 0.5666666667 | F22: =D22*('Cost Module'!$D$95+'Cost Module'!$D$102) -> 0 | G22: =(F22*(1+'Scenario Assumptions'!$B$10)^('Scenario Assumptions'!$B$6+Q21)) -> 0 | H22: =(G22/(1+'Scenario Assumptions'!$B$7)^('Scenario Assumptions'!$B$6+Q21)) -> 0 | J22: =D22*'Cost Module'!$D$114 -> 0 | K22: =D22*('Cost Module'!$D$105*(1+'Scenario Assumptions'!$B$11)^'Scenario Assumptions'!$B$6+('Cost Module'!$D$114-'Cost Module'!$D$105)*(1+'Scenario Assumptions'!$B$12)^('Scenario Assumptions'!$B$6+Q21)) -> 0 | L22: =(K22/(1+'Scenario Assumptions'!$B$7)^('Scenario Assumptions'!$B$6+Q21)) -> 0 | N22: 0 | O22: 0 | P22: 0 | Q22: 17 | S22: 0 | T22: 0 | U22: 0
B23: Year 18 | D23: 0.6 | F23: =D23*('Cost Module'!$D$95+'Cost Module'!$D$102) -> 0 | G23: =(F23*(1+'Scenario Assumptions'!$B$10)^('Scenario Assumptions'!$B$6+Q22)) -> 0 | H23: =(G23/(1+'Scenario Assumptions'!$B$7)^('Scenario Assumptions'!$B$6+Q22)) -> 0 | J23: =D23*'Cost Module'!$D$114 -> 0 | K23: =D23*('Cost Module'!$D$105*(1+'Scenario Assumptions'!$B$11)^'Scenario Assumptions'!$B$6+('Cost Module'!$D$114-'Cost Module'!$D$105)*(1+'Scenario Assumptions'!$B$12)^('Scenario Assumptions'!$B$6+Q22)) -> 0 | L23: =(K23/(1+'Scenario Assumptions'!$B$7)^('Scenario Assumptions'!$B$6+Q22)) -> 0 | N23: 0 | O23: 0 | P23: 0 | Q23: 18 | S23: =N23+S22 -> 0 | T23: 0 | U23: 0
B24: Year 19 | D24: 0.6333333333 | F24: =D24*('Cost Module'!$D$95+'Cost Module'!$D$102) -> 0 | G24: =(F24*(1+'Scenario Assumptions'!$B$10)^('Scenario Assumptions'!$B$6+Q23)) -> 0 | H24: =(G24/(1+'Scenario Assumptions'!$B$7)^('Scenario Assumptions'!$B$6+Q23)) -> 0 | J24: =D24*'Cost Module'!$D$114 -> 0 | K24: =D24*('Cost Module'!$D$105*(1+'Scenario Assumptions'!$B$11)^'Scenario Assumptions'!$B$6+('Cost Module'!$D$114-'Cost Module'!$D$105)*(1+'Scenario Assumptions'!$B$12)^('Scenario Assumptions'!$B$6+Q23)) -> 0 | L24: =(K24/(1+'Scenario Assumptions'!$B$7)^('Scenario Assumptions'!$B$6+Q23)) -> 0 | N24: 0 | O24: 0 | P24: 0 | Q24: 19 | S24: 0 | T24: 0 | U24: 0
B25: Year 20 | D25: 0.6666666667 | F25: =D25*('Cost Module'!$D$95+'Cost Module'!$D$102) -> 0 | G25: =(F25*(1+'Scenario Assumptions'!$B$10)^('Scenario Assumptions'!$B$6+Q24)) -> 0 | H25: =(G25/(1+'Scenario Assumptions'!$B$7)^('Scenario Assumptions'!$B$6+Q24)) -> 0 | J25: =D25*'Cost Module'!$D$114 -> 0 | K25: =D25*('Cost Module'!$D$105*(1+'Scenario Assumptions'!$B$11)^'Scenario Assumptions'!$B$6+('Cost Module'!$D$114-'Cost Module'!$D$105)*(1+'Scenario Assumptions'!$B$12)^('Scenario Assumptions'!$B$6+Q24)) -> 0 | L25: =(K25/(1+'Scenario Assumptions'!$B$7)^('Scenario Assumptions'!$B$6+Q24)) -> 0 | N25: 0 | O25: 0 | P25: 0 | Q25: 20 | S25: 0 | T25: 0 | U25: 0
B26: Year 21 | D26: 0.7 | F26: =D26*('Cost Module'!$D$95+'Cost Module'!$D$102) -> 0 | G26: =(F26*(1+'Scenario Assumptions'!$B$10)^('Scenario Assumptions'!$B$6+Q25)) -> 0 | H26: =(G26/(1+'Scenario Assumptions'!$B$7)^('Scenario Assumptions'!$B$6+Q25)) -> 0 | J26: =D26*'Cost Module'!$D$114 -> 0 | K26: =D26*('Cost Module'!$D$105*(1+'Scenario Assumptions'!$B$11)^'Scenario Assumptions'!$B$6+('Cost Module'!$D$114-'Cost Module'!$D$105)*(1+'Scenario Assumptions'!$B$12)^('Scenario Assumptions'!$B$6+Q25)) -> 0 | L26: =(K26/(1+'Scenario Assumptions'!$B$7)^('Scenario Assumptions'!$B$6+Q25)) -> 0 | N26: 0 | O26: 0 | P26: 0 | Q26: 21 | S26: 0 | T26: 0 | U26: 0
B27: Year 22 | D27: 0.7333333333 | F27: =D27*('Cost Module'!$D$95+'Cost Module'!$D$102) -> 0 | G27: =(F27*(1+'Scenario Assumptions'!$B$10)^('Scenario Assumptions'!$B$6+Q26)) -> 0 | H27: =(G27/(1+'Scenario Assumptions'!$B$7)^('Scenario Assumptions'!$B$6+Q26)) -> 0 | J27: =D27*'Cost Module'!$D$114 -> 0 | K27: =D27*('Cost Module'!$D$105*(1+'Scenario Assumptions'!$B$11)^'Scenario Assumptions'!$B$6+('Cost Module'!$D$114-'Cost Module'!$D$105)*(1+'Scenario Assumptions'!$B$12)^('Scenario Assumptions'!$B$6+Q26)) -> 0 | L27: =(K27/(1+'Scenario Assumptions'!$B$7)^('Scenario Assumptions'!$B$6+Q26)) -> 0 | N27: 0 | O27: 0 | P27: 0 | Q27: 22 | S27: 0 | T27: 0 | U27: 0
B28: Year 23 | D28: 0.7666666667 | F28: =D28*('Cost Module'!$D$95+'Cost Module'!$D$102) -> 0 | G28: =(F28*(1+'Scenario Assumptions'!$B$10)^('Scenario Assumptions'!$B$6+Q27)) -> 0 | H28: =(G28/(1+'Scenario Assumptions'!$B$7)^('Scenario Assumptions'!$B$6+Q27)) -> 0 | J28: =D28*'Cost Module'!$D$114 -> 0 | K28: =D28*('Cost Module'!$D$105*(1+'Scenario Assumptions'!$B$11)^'Scenario Assumptions'!$B$6+('Cost Module'!$D$114-'Cost Module'!$D$105)*(1+'Scenario Assumptions'!$B$12)^('Scenario Assumptions'!$B$6+Q27)) -> 0 | L28: =(K28/(1+'Scenario Assumptions'!$B$7)^('Scenario Assumptions'!$B$6+Q27)) -> 0 | N28: 0 | O28: 0 | P28: 0 | Q28: 23 | S28: 0 | T28: 0 | U28: 0
B29: Year 24 | D29: 0.8 | F29: =D29*('Cost Module'!$D$95+'Cost Module'!$D$102) -> 0 | G29: =(F29*(1+'Scenario Assumptions'!$B$10)^('Scenario Assumptions'!$B$6+Q28)) -> 0 | H29: =(G29/(1+'Scenario Assumptions'!$B$7)^('Scenario Assumptions'!$B$6+Q28)) -> 0 | J29: =D29*'Cost Module'!$D$114 -> 0 | K29: =D29*('Cost Module'!$D$105*(1+'Scenario Assumptions'!$B$11)^'Scenario Assumptions'!$B$6+('Cost Module'!$D$114-'Cost Module'!$D$105)*(1+'Scenario Assumptions'!$B$12)^('Scenario Assumptions'!$B$6+Q28)) -> 0 | L29: =(K29/(1+'Scenario Assumptions'!$B$7)^('Scenario Assumptions'!$B$6+Q28)) -> 0 | N29: 0 | O29: 0 | P29: 0 | Q29: 24 | S29: 0 | T29: 0 | U29: 0
B30: Year 25 | D30: 0.8333333333 | F30: =D30*('Cost Module'!$D$95+'Cost Module'!$D$102) -> 0 | G30: =(F30*(1+'Scenario Assumptions'!$B$10)^('Scenario Assumptions'!$B$6+Q29)) -> 0 | H30: =(G30/(1+'Scenario Assumptions'!$B$7)^('Scenario Assumptions'!$B$6+Q29)) -> 0 | J30: =D30*'Cost Module'!$D$114 -> 0 | K30: =D30*('Cost Module'!$D$105*(1+'Scenario Assumptions'!$B$11)^'Scenario Assumptions'!$B$6+('Cost Module'!$D$114-'Cost Module'!$D$105)*(1+'Scenario Assumptions'!$B$12)^('Scenario Assumptions'!$B$6+Q29)) -> 0 | L30: =(K30/(1+'Scenario Assumptions'!$B$7)^('Scenario Assumptions'!$B$6+Q29)) -> 0 | N30: 0 | O30: 0 | P30: 0 | Q30: 25 | S30: 0 | T30: 0 | U30: 0
B31: Year 26 | D31: 0.8666666667 | F31: =D31*('Cost Module'!$D$95+'Cost Module'!$D$102) -> 0 | G31: =(F31*(1+'Scenario Assumptions'!$B$10)^('Scenario Assumptions'!$B$6+Q30)) -> 0 | H31: =(G31/(1+'Scenario Assumptions'!$B$7)^('Scenario Assumptions'!$B$6+Q30)) -> 0 | J31: =D31*'Cost Module'!$D$114 -> 0 | K31: =D31*('Cost Module'!$D$105*(1+'Scenario Assumptions'!$B$11)^'Scenario Assumptions'!$B$6+('Cost Module'!$D$114-'Cost Module'!$D$105)*(1+'Scenario Assumptions'!$B$12)^('Scenario Assumptions'!$B$6+Q30)) -> 0 | L31: =(K31/(1+'Scenario Assumptions'!$B$7)^('Scenario Assumptions'!$B$6+Q30)) -> 0 | N31: 0 | O31: 0 | P31: 0 | Q31: 26 | S31: 0 | T31: 0 | U31: 0
B32: Year 27 | D32: 0.9 | F32: =D32*('Cost Module'!$D$95+'Cost Module'!$D$102) -> 0 | G32: =(F32*(1+'Scenario Assumptions'!$B$10)^('Scenario Assumptions'!$B$6+Q31)) -> 0 | H32: =(G32/(1+'Scenario Assumptions'!$B$7)^('Scenario Assumptions'!$B$6+Q31)) -> 0 | J32: =D32*'Cost Module'!$D$114 -> 0 | K32: =D32*('Cost Module'!$D$105*(1+'Scenario Assumptions'!$B$11)^'Scenario Assumptions'!$B$6+('Cost Module'!$D$114-'Cost Module'!$D$105)*(1+'Scenario Assumptions'!$B$12)^('Scenario Assumptions'!$B$6+Q31)) -> 0 | L32: =(K32/(1+'Scenario Assumptions'!$B$7)^('Scenario Assumptions'!$B$6+Q31)) -> 0 | N32: 0 | O32: 0 | P32: 0 | Q32: 27 | S32: 0 | T32: 0 | U32: 0
B33: Year 28 | D33: 0.9333333333 | F33: =D33*('Cost Module'!$D$95+'Cost Module'!$D$102) -> 0 | G33: =(F33*(1+'Scenario Assumptions'!$B$10)^('Scenario Assumptions'!$B$6+Q32)) -> 0 | H33: =(G33/(1+'Scenario Assumptions'!$B$7)^('Scenario Assumptions'!$B$6+Q32)) -> 0 | J33: =D33*'Cost Module'!$D$114 -> 0 | K33: =D33*('Cost Module'!$D$105*(1+'Scenario Assumptions'!$B$11)^'Scenario Assumptions'!$B$6+('Cost Module'!$D$114-'Cost Module'!$D$105)*(1+'Scenario Assumptions'!$B$12)^('Scenario Assumptions'!$B$6+Q32)) -> 0 | L33: =(K33/(1+'Scenario Assumptions'!$B$7)^('Scenario Assumptions'!$B$6+Q32)) -> 0 | N33: 0 | O33: 0 | P33: 0 | Q33: 28 | S33: 0 | T33: 0 | U33: 0
B34: Year 29 | D34: 0.9666666667 | F34: =D34*('Cost Module'!$D$95+'Cost Module'!$D$102) -> 0 | G34: =(F34*(1+'Scenario Assumptions'!$B$10)^('Scenario Assumptions'!$B$6+Q33)) -> 0 | H34: =(G34/(1+'Scenario Assumptions'!$B$7)^('Scenario Assumptions'!$B$6+Q33)) -> 0 | J34: =D34*'Cost Module'!$D$114 -> 0 | K34: =D34*('Cost Module'!$D$105*(1+'Scenario Assumptions'!$B$11)^'Scenario Assumptions'!$B$6+('Cost Module'!$D$114-'Cost Module'!$D$105)*(1+'Scenario Assumptions'!$B$12)^('Scenario Assumptions'!$B$6+Q33)) -> 0 | L34: =(K34/(1+'Scenario Assumptions'!$B$7)^('Scenario Assumptions'!$B$6+Q33)) -> 0 | N34: 0 | O34: 0 | P34: 0 | Q34: 29 | S34: 0 | T34: 0 | U34: 0
B35: Year 30 | D35: 1 | F35: =D35*('Cost Module'!$D$95+'Cost Module'!$D$102) -> 0 | G35: =(F35*(1+'Scenario Assumptions'!$B$10)^('Scenario Assumptions'!$B$6+Q34)) -> 0 | H35: =(G35/(1+'Scenario Assumptions'!$B$7)^('Scenario Assumptions'!$B$6+Q34)) -> 0 | J35: =D35*'Cost Module'!$D$114 -> 0 | K35: =D35*('Cost Module'!$D$105*(1+'Scenario Assumptions'!$B$11)^'Scenario Assumptions'!$B$6+('Cost Module'!$D$114-'Cost Module'!$D$105)*(1+'Scenario Assumptions'!$B$12)^('Scenario Assumptions'!$B$6+Q34)) -> 0 | L35: =(K35/(1+'Scenario Assumptions'!$B$7)^('Scenario Assumptions'!$B$6+Q34)) -> 0 | N35: 0 | O35: 0 | P35: 0 | Q35: 30 | S35: 0 | T35: 0 | U35: 0
B36: Year 31 | D36: 1.033333333 | F36: =D36*('Cost Module'!$D$95+'Cost Module'!$D$102) -> 0 | G36: =(F36*(1+'Scenario Assumptions'!$B$10)^('Scenario Assumptions'!$B$6+Q35)) -> 0 | H36: =(G36/(1+'Scenario Assumptions'!$B$7)^('Scenario Assumptions'!$B$6+Q35)) -> 0 | J36: =D36*'Cost Module'!$D$114 -> 0 | K36: =D36*('Cost Module'!$D$105*(1+'Scenario Assumptions'!$B$11)^'Scenario Assumptions'!$B$6+('Cost Module'!$D$114-'Cost Module'!$D$105)*(1+'Scenario Assumptions'!$B$12)^('Scenario Assumptions'!$B$6+Q35)) -> 0 | L36: =(K36/(1+'Scenario Assumptions'!$B$7)^('Scenario Assumptions'!$B$6+Q35)) -> 0 | N36: 0 | O36: 0 | P36: 0 | Q36: 31 | S36: 0 | T36: 0 | U36: 0
B37: Year 32 | D37: 1.066666667 | F37: =D37*('Cost Module'!$D$95+'Cost Module'!$D$102) -> 0 | G37: =(F37*(1+'Scenario Assumptions'!$B$10)^('Scenario Assumptions'!$B$6+Q36)) -> 0 | H37: =(G37/(1+'Scenario Assumptions'!$B$7)^('Scenario Assumptions'!$B$6+Q36)) -> 0 | J37: =D37*'Cost Module'!$D$114 -> 0 | K37: =D37*('Cost Module'!$D$105*(1+'Scenario Assumptions'!$B$11)^'Scenario Assumptions'!$B$6+('Cost Module'!$D$114-'Cost Module'!$D$105)*(1+'Scenario Assumptions'!$B$12)^('Scenario Assumptions'!$B$6+Q36)) -> 0 | L37: =(K37/(1+'Scenario Assumptions'!$B$7)^('Scenario Assumptions'!$B$6+Q36)) -> 0 | N37: 0 | O37: 0 | P37: 0 | Q37: 32 | S37: 0 | T37: 0 | U37: 0
B38: Year 33 | D38: 1.1 | F38: =D38*('Cost Module'!$D$95+'Cost Module'!$D$102) -> 0 | G38: =(F38*(1+'Scenario Assumptions'!$B$10)^('Scenario Assumptions'!$B$6+Q37)) -> 0 | H38: =(G38/(1+'Scenario Assumptions'!$B$7)^('Scenario Assumptions'!$B$6+Q37)) -> 0 | J38: =D38*'Cost Module'!$D$114 -> 0 | K38: =D38*('Cost Module'!$D$105*(1+'Scenario Assumptions'!$B$11)^'Scenario Assumptions'!$B$6+('Cost Module'!$D$114-'Cost Module'!$D$105)*(1+'Scenario Assumptions'!$B$12)^('Scenario Assumptions'!$B$6+Q37)) -> 0 | L38: =(K38/(1+'Scenario Assumptions'!$B$7)^('Scenario Assumptions'!$B$6+Q37)) -> 0 | N38: 0 | O38: 0 | P38: 0 | Q38: 33 | S38: 0 | T38: 0 | U38: 0
B39: Year 34 | D39: 1.133333333 | F39: =D39*('Cost Module'!$D$95+'Cost Module'!$D$102) -> 0 | G39: =(F39*(1+'Scenario Assumptions'!$B$10)^('Scenario Assumptions'!$B$6+Q38)) -> 0 | H39: =(G39/(1+'Scenario Assumptions'!$B$7)^('Scenario Assumptions'!$B$6+Q38)) -> 0 | J39: =D39*'Cost Module'!$D$114 -> 0 | K39: =D39*('Cost Module'!$D$105*(1+'Scenario Assumptions'!$B$11)^'Scenario Assumptions'!$B$6+('Cost Module'!$D$114-'Cost Module'!$D$105)*(1+'Scenario Assumptions'!$B$12)^('Scenario Assumptions'!$B$6+Q38)) -> 0 | L39: =(K39/(1+'Scenario Assumptions'!$B$7)^('Scenario Assumptions'!$B$6+Q38)) -> 0 | N39: 0 | O39: 0 | P39: 0 | Q39: 34 | S39: =N39+S38 -> 0 | T39: 0 | U39: 0
B40: Year 35 | D40: 1.166666667 | F40: =D40*('Cost Module'!$D$95+'Cost Module'!$D$102) -> 0 | G40: =(F40*(1+'Scenario Assumptions'!$B$10)^('Scenario Assumptions'!$B$6+Q39)) -> 0 | H40: =(G40/(1+'Scenario Assumptions'!$B$7)^('Scenario Assumptions'!$B$6+Q39)) -> 0 | J40: =D40*'Cost Module'!$D$114 -> 0 | K40: =D40*('Cost Module'!$D$105*(1+'Scenario Assumptions'!$B$11)^'Scenario Assumptions'!$B$6+('Cost Module'!$D$114-'Cost Module'!$D$105)*(1+'Scenario Assumptions'!$B$12)^('Scenario Assumptions'!$B$6+Q39)) -> 0 | L40: =(K40/(1+'Scenario Assumptions'!$B$7)^('Scenario Assumptions'!$B$6+Q39)) -> 0 | N40: 0 | O40: 0 | P40: 0 | Q40: 35 | S40: 0 | T40: 0 | U40: 0
B41: Year 36 | D41: 1.2 | F41: =D41*('Cost Module'!$D$95+'Cost Module'!$D$102) -> 0 | G41: =(F41*(1+'Scenario Assumptions'!$B$10)^('Scenario Assumptions'!$B$6+Q40)) -> 0 | H41: =(G41/(1+'Scenario Assumptions'!$B$7)^('Scenario Assumptions'!$B$6+Q40)) -> 0 | J41: =D41*'Cost Module'!$D$114 -> 0 | K41: =D41*('Cost Module'!$D$105*(1+'Scenario Assumptions'!$B$11)^'Scenario Assumptions'!$B$6+('Cost Module'!$D$114-'Cost Module'!$D$105)*(1+'Scenario Assumptions'!$B$12)^('Scenario Assumptions'!$B$6+Q40)) -> 0 | L41: =(K41/(1+'Scenario Assumptions'!$B$7)^('Scenario Assumptions'!$B$6+Q40)) -> 0 | N41: 0 | O41: 0 | P41: 0 | Q41: 36 | S41: 0 | T41: 0 | U41: 0
B42: Year 37 | D42: 1.233333333 | F42: =D42*('Cost Module'!$D$95+'Cost Module'!$D$102) -> 0 | G42: =(F42*(1+'Scenario Assumptions'!$B$10)^('Scenario Assumptions'!$B$6+Q41)) -> 0 | H42: =(G42/(1+'Scenario Assumptions'!$B$7)^('Scenario Assumptions'!$B$6+Q41)) -> 0 | J42: =D42*'Cost Module'!$D$114 -> 0 | K42: =D42*('Cost Module'!$D$105*(1+'Scenario Assumptions'!$B$11)^'Scenario Assumptions'!$B$6+('Cost Module'!$D$114-'Cost Module'!$D$105)*(1+'Scenario Assumptions'!$B$12)^('Scenario Assumptions'!$B$6+Q41)) -> 0 | L42: =(K42/(1+'Scenario Assumptions'!$B$7)^('Scenario Assumptions'!$B$6+Q41)) -> 0 | N42: 0 | O42: 0 | P42: 0 | Q42: 37 | S42: 0 | T42: 0 | U42: 0
B43: Year 38 | D43: 1.266666667 | F43: =D43*('Cost Module'!$D$95+'Cost Module'!$D$102) -> 0 | G43: =(F43*(1+'Scenario Assumptions'!$B$10)^('Scenario Assumptions'!$B$6+Q42)) -> 0 | H43: =(G43/(1+'Scenario Assumptions'!$B$7)^('Scenario Assumptions'!$B$6+Q42)) -> 0 | J43: =D43*'Cost Module'!$D$114 -> 0 | K43: =D43*('Cost Module'!$D$105*(1+'Scenario Assumptions'!$B$11)^'Scenario Assumptions'!$B$6+('Cost Module'!$D$114-'Cost Module'!$D$105)*(1+'Scenario Assumptions'!$B$12)^('Scenario Assumptions'!$B$6+Q42)) -> 0 | L43: =(K43/(1+'Scenario Assumptions'!$B$7)^('Scenario Assumptions'!$B$6+Q42)) -> 0 | N43: 0 | O43: 0 | P43: 0 | Q43: 38 | S43: 0 | T43: 0 | U43: 0
B44: Year 39 | D44: 1.3 | F44: =D44*('Cost Module'!$D$95+'Cost Module'!$D$102) -> 0 | G44: =(F44*(1+'Scenario Assumptions'!$B$10)^('Scenario Assumptions'!$B$6+Q43)) -> 0 | H44: =(G44/(1+'Scenario Assumptions'!$B$7)^('Scenario Assumptions'!$B$6+Q43)) -> 0 | J44: =D44*'Cost Module'!$D$114 -> 0 | K44: =D44*('Cost Module'!$D$105*(1+'Scenario Assumptions'!$B$11)^'Scenario Assumptions'!$B$6+('Cost Module'!$D$114-'Cost Module'!$D$105)*(1+'Scenario Assumptions'!$B$12)^('Scenario Assumptions'!$B$6+Q43)) -> 0 | L44: =(K44/(1+'Scenario Assumptions'!$B$7)^('Scenario Assumptions'!$B$6+Q43)) -> 0 | N44: 0 | O44: 0 | P44: 0 | Q44: 39 | S44: 0 | T44: 0 | U44: 0
B45: Year 40 | D45: 1.333333333 | F45: =D45*('Cost Module'!$D$95+'Cost Module'!$D$102) -> 0 | G45: =(F45*(1+'Scenario Assumptions'!$B$10)^('Scenario Assumptions'!$B$6+Q44)) -> 0 | H45: =(G45/(1+'Scenario Assumptions'!$B$7)^('Scenario Assumptions'!$B$6+Q44)) -> 0 | J45: =D45*'Cost Module'!$D$114 -> 0 | K45: =D45*('Cost Module'!$D$105*(1+'Scenario Assumptions'!$B$11)^'Scenario Assumptions'!$B$6+('Cost Module'!$D$114-'Cost Module'!$D$105)*(1+'Scenario Assumptions'!$B$12)^('Scenario Assumptions'!$B$6+Q44)) -> 0 | L45: =(K45/(1+'Scenario Assumptions'!$B$7)^('Scenario Assumptions'!$B$6+Q44)) -> 0 | N45: 0 | O45: 0 | P45: 0 | Q45: 40 | S45: 0 | T45: 0 | U45: 0
B46: Year 41 | D46: 1.366666667 | F46: =D46*('Cost Module'!$D$95+'Cost Module'!$D$102) -> 0 | G46: =(F46*(1+'Scenario Assumptions'!$B$10)^('Scenario Assumptions'!$B$6+Q45)) -> 0 | H46: =(G46/(1+'Scenario Assumptions'!$B$7)^('Scenario Assumptions'!$B$6+Q45)) -> 0 | J46: =D46*'Cost Module'!$D$114 -> 0 | K46: =D46*('Cost Module'!$D$105*(1+'Scenario Assumptions'!$B$11)^'Scenario Assumptions'!$B$6+('Cost Module'!$D$114-'Cost Module'!$D$105)*(1+'Scenario Assumptions'!$B$12)^('Scenario Assumptions'!$B$6+Q45)) -> 0 | L46: =(K46/(1+'Scenario Assumptions'!$B$7)^('Scenario Assumptions'!$B$6+Q45)) -> 0 | N46: 0 | O46: 0 | P46: 0 | Q46: 41 | S46: 0 | T46: 0 | U46: 0
B47: Year 42 | D47: 1.4 | F47: =D47*('Cost Module'!$D$95+'Cost Module'!$D$102) -> 0 | G47: =(F47*(1+'Scenario Assumptions'!$B$10)^('Scenario Assumptions'!$B$6+Q46)) -> 0 | H47: =(G47/(1+'Scenario Assumptions'!$B$7)^('Scenario Assumptions'!$B$6+Q46)) -> 0 | J47: =D47*'Cost Module'!$D$114 -> 0 | K47: =D47*('Cost Module'!$D$105*(1+'Scenario Assumptions'!$B$11)^'Scenario Assumptions'!$B$6+('Cost Module'!$D$114-'Cost Module'!$D$105)*(1+'Scenario Assumptions'!$B$12)^('Scenario Assumptions'!$B$6+Q46)) -> 0 | L47: =(K47/(1+'Scenario Assumptions'!$B$7)^('Scenario Assumptions'!$B$6+Q46)) -> 0 | N47: 0 | O47: 0 | P47: 0 | Q47: 42 | S47: 0 | T47: 0 | U47: 0
B48: Year 43 | D48: 1.433333333 | F48: =D48*('Cost Module'!$D$95+'Cost Module'!$D$102) -> 0 | G48: =(F48*(1+'Scenario Assumptions'!$B$10)^('Scenario Assumptions'!$B$6+Q47)) -> 0 | H48: =(G48/(1+'Scenario Assumptions'!$B$7)^('Scenario Assumptions'!$B$6+Q47)) -> 0 | J48: =D48*'Cost Module'!$D$114 -> 0 | K48: =D48*('Cost Module'!$D$105*(1+'Scenario Assumptions'!$B$11)^'Scenario Assumptions'!$B$6+('Cost Module'!$D$114-'Cost Module'!$D$105)*(1+'Scenario Assumptions'!$B$12)^('Scenario Assumptions'!$B$6+Q47)) -> 0 | L48: =(K48/(1+'Scenario Assumptions'!$B$7)^('Scenario Assumptions'!$B$6+Q47)) -> 0 | N48: 0 | O48: 0 | P48: 0 | Q48: 43 | S48: 0 | T48: 0 | U48: 0
B49: Year 44 | D49: 1.466666667 | F49: =D49*('Cost Module'!$D$95+'Cost Module'!$D$102) -> 0 | G49: =(F49*(1+'Scenario Assumptions'!$B$10)^('Scenario Assumptions'!$B$6+Q48)) -> 0 | H49: =(G49/(1+'Scenario Assumptions'!$B$7)^('Scenario Assumptions'!$B$6+Q48)) -> 0 | J49: =D49*'Cost Module'!$D$114 -> 0 | K49: =D49*('Cost Module'!$D$105*(1+'Scenario Assumptions'!$B$11)^'Scenario Assumptions'!$B$6+('Cost Module'!$D$114-'Cost Module'!$D$105)*(1+'Scenario Assumptions'!$B$12)^('Scenario Assumptions'!$B$6+Q48)) -> 0 | L49: =(K49/(1+'Scenario Assumptions'!$B$7)^('Scenario Assumptions'!$B$6+Q48)) -> 0 | N49: 0 | O49: 0 | P49: 0 | Q49: 44 | S49: 0 | T49: 0 | U49: 0
B50: Year 45 | D50: 1.5 | F50: =D50*('Cost Module'!$D$95+'Cost Module'!$D$102) -> 0 | G50: =(F50*(1+'Scenario Assumptions'!$B$10)^('Scenario Assumptions'!$B$6+Q49)) -> 0 | H50: =(G50/(1+'Scenario Assumptions'!$B$7)^('Scenario Assumptions'!$B$6+Q49)) -> 0 | J50: =D50*'Cost Module'!$D$114 -> 0 | K50: =D50*('Cost Module'!$D$105*(1+'Scenario Assumptions'!$B$11)^'Scenario Assumptions'!$B$6+('Cost Module'!$D$114-'Cost Module'!$D$105)*(1+'Scenario Assumptions'!$B$12)^('Scenario Assumptions'!$B$6+Q49)) -> 0 | L50: =(K50/(1+'Scenario Assumptions'!$B$7)^('Scenario Assumptions'!$B$6+Q49)) -> 0 | N50: 0 | O50: 0 | P50: 0 | Q50: 45 | S50: 0 | T50: 0 | U50: 0
B51: Year 46 | D51: 1.533333333 | F51: =D51*('Cost Module'!$D$95+'Cost Module'!$D$102) -> 0 | G51: =(F51*(1+'Scenario Assumptions'!$B$10)^('Scenario Assumptions'!$B$6+Q50)) -> 0 | H51: =(G51/(1+'Scenario Assumptions'!$B$7)^('Scenario Assumptions'!$B$6+Q50)) -> 0 | J51: =D51*'Cost Module'!$D$114 -> 0 | K51: =D51*('Cost Module'!$D$105*(1+'Scenario Assumptions'!$B$11)^'Scenario Assumptions'!$B$6+('Cost Module'!$D$114-'Cost Module'!$D$105)*(1+'Scenario Assumptions'!$B$12)^('Scenario Assumptions'!$B$6+Q50)) -> 0 | L51: =(K51/(1+'Scenario Assumptions'!$B$7)^('Scenario Assumptions'!$B$6+Q50)) -> 0 | N51: 0 | O51: 0 | P51: 0 | Q51: 46 | S51: 0 | T51: 0 | U51: 0
B52: Year 47 | D52: 1.566666667 | F52: =D52*('Cost Module'!$D$95+'Cost Module'!$D$102) -> 0 | G52: =(F52*(1+'Scenario Assumptions'!$B$10)^('Scenario Assumptions'!$B$6+Q51)) -> 0 | H52: =(G52/(1+'Scenario Assumptions'!$B$7)^('Scenario Assumptions'!$B$6+Q51)) -> 0 | J52: =D52*'Cost Module'!$D$114 -> 0 | K52: =D52*('Cost Module'!$D$105*(1+'Scenario Assumptions'!$B$11)^'Scenario Assumptions'!$B$6+('Cost Module'!$D$114-'Cost Module'!$D$105)*(1+'Scenario Assumptions'!$B$12)^('Scenario Assumptions'!$B$6+Q51)) -> 0 | L52: =(K52/(1+'Scenario Assumptions'!$B$7)^('Scenario Assumptions'!$B$6+Q51)) -> 0 | N52: 0 | O52: 0 | P52: 0 | Q52: 47 | S52: 0 | T52: 0 | U52: 0
B53: Year 48 | D53: 1.6 | F53: =D53*('Cost Module'!$D$95+'Cost Module'!$D$102) -> 0 | G53: =(F53*(1+'Scenario Assumptions'!$B$10)^('Scenario Assumptions'!$B$6+Q52)) -> 0 | H53: =(G53/(1+'Scenario Assumptions'!$B$7)^('Scenario Assumptions'!$B$6+Q52)) -> 0 | J53: =D53*'Cost Module'!$D$114 -> 0 | K53: =D53*('Cost Module'!$D$105*(1+'Scenario Assumptions'!$B$11)^'Scenario Assumptions'!$B$6+('Cost Module'!$D$114-'Cost Module'!$D$105)*(1+'Scenario Assumptions'!$B$12)^('Scenario Assumptions'!$B$6+Q52)) -> 0 | L53: =(K53/(1+'Scenario Assumptions'!$B$7)^('Scenario Assumptions'!$B$6+Q52)) -> 0 | N53: 0 | O53: 0 | P53: 0 | Q53: 48 | S53: 0 | T53: 0 | U53: 0
B54: Year 49 | D54: 1.633333333 | F54: =D54*('Cost Module'!$D$95+'Cost Module'!$D$102) -> 0 | G54: =(F54*(1+'Scenario Assumptions'!$B$10)^('Scenario Assumptions'!$B$6+Q53)) -> 0 | H54: =(G54/(1+'Scenario Assumptions'!$B$7)^('Scenario Assumptions'!$B$6+Q53)) -> 0 | J54: =D54*'Cost Module'!$D$114 -> 0 | K54: =D54*('Cost Module'!$D$105*(1+'Scenario Assumptions'!$B$11)^'Scenario Assumptions'!$B$6+('Cost Module'!$D$114-'Cost Module'!$D$105)*(1+'Scenario Assumptions'!$B$12)^('Scenario Assumptions'!$B$6+Q53)) -> 0 | L54: =(K54/(1+'Scenario Assumptions'!$B$7)^('Scenario Assumptions'!$B$6+Q53)) -> 0 | N54: 0 | O54: 0 | P54: 0 | Q54: 49 | S54: 0 | T54: 0 | U54: 0
B55: Year 50 | D55: 1.666666667 | F55: =D55*('Cost Module'!$D$95+'Cost Module'!$D$102) -> 0 | G55: =(F55*(1+'Scenario Assumptions'!$B$10)^('Scenario Assumptions'!$B$6+Q54)) -> 0 | H55: =(G55/(1+'Scenario Assumptions'!$B$7)^('Scenario Assumptions'!$B$6+Q54)) -> 0 | J55: =D55*'Cost Module'!$D$114 -> 0 | K55: =D55*('Cost Module'!$D$105*(1+'Scenario Assumptions'!$B$11)^'Scenario Assumptions'!$B$6+('Cost Module'!$D$114-'Cost Module'!$D$105)*(1+'Scenario Assumptions'!$B$12)^('Scenario Assumptions'!$B$6+Q54)) -> 0 | L55: =(K55/(1+'Scenario Assumptions'!$B$7)^('Scenario Assumptions'!$B$6+Q54)) -> 0 | N55: 0 | O55: 0 | P55: 0 | Q55: 50 | S55: =N55+S54 -> 0 | T55: 0 | U55: 0
A59: Scen 2 | D59: Ramp-Up path:
B60: Year 1 | D60: =1/'Scenario Assumptions'!C$8 -> 0.03333333333 | F60: =D60*('Cost Module'!G$95+'Cost Module'!G$102) -> 0 | G60: =(F60*(1+'Scenario Assumptions'!$C$10)^'Scenario Assumptions'!$C$6) -> 0 | H60: =(G60/(1+'Scenario Assumptions'!$C$7)^('Scenario Assumptions'!$C$6)) -> 0 | J60: =D60*'Cost Module'!$G$114 -> 0 | K60: =D60*('Cost Module'!$G$105*(1+'Scenario Assumptions'!$C$11)^'Scenario Assumptions'!$C$6+('Cost Module'!$G$114-'Cost Module'!$G$105)*(1+'Scenario Assumptions'!$C$12)^'Scenario Assumptions'!$C$6) -> 0 | L60: =(K60/(1+'Scenario Assumptions'!$C$7)^('Scenario Assumptions'!$C$6)) -> 0 | N60: =H60 -> 0 | O60: =L60 -> 0 | P60: =N60-O60 -> 0 | Q60: 1 | S60: =N60 -> 0 | T60: =O60 -> 0 | U60: =P60 -> 0
B61: Year 2 | D61: =D60+$D$6 -> 0.06666666667 | F61: =D61*('Cost Module'!G$95+'Cost Module'!G$102) -> 0 | G61: =(F61*(1+'Scenario Assumptions'!$C$10)^('Scenario Assumptions'!$C$6+Q60)) -> 0 | H61: =(G61/(1+'Scenario Assumptions'!$C$7)^('Scenario Assumptions'!$C$6+Q60)) -> 0 | J61: =D61*'Cost Module'!$G$114 -> 0 | K61: =D61*('Cost Module'!$G$105*(1+'Scenario Assumptions'!$C$11)^'Scenario Assumptions'!$C$6+('Cost Module'!$G$114-'Cost Module'!$G$105)*(1+'Scenario Assumptions'!$C$12)^('Scenario Assumptions'!$C$6+Q60)) -> 0 | L61: =(K61/(1+'Scenario Assumptions'!$C$7)^('Scenario Assumptions'!$C$6+Q60)) -> 0 | N61: 0 | O61: 0 | P61: 0 | Q61: 2 | S61: =N61+S60 -> 0 | T61: 0 | U61: 0
B62: Year 3 | D62: =D61+$D$6 -> 0.1 | F62: =D62*('Cost Module'!G$95+'Cost Module'!G$102) -> 0 | G62: =(F62*(1+'Scenario Assumptions'!$C$10)^('Scenario Assumptions'!$C$6+Q61)) -> 0 | H62: =(G62/(1+'Scenario Assumptions'!$C$7)^('Scenario Assumptions'!$C$6+Q61)) -> 0 | J62: =D62*'Cost Module'!$G$114 -> 0 | K62: =D62*('Cost Module'!$G$105*(1+'Scenario Assumptions'!$C$11)^'Scenario Assumptions'!$C$6+('Cost Module'!$G$114-'Cost Module'!$G$105)*(1+'Scenario Assumptions'!$C$12)^('Scenario Assumptions'!$C$6+Q61)) -> 0 | L62: =(K62/(1+'Scenario Assumptions'!$C$7)^('Scenario Assumptions'!$C$6+Q61)) -> 0 | N62: 0 | O62: 0 | P62: 0 | Q62: 3 | S62: 0 | T62: 0 | U62: 0
B63: Year 4 | D63: 0.1333333333 | F63: =D63*('Cost Module'!G$95+'Cost Module'!G$102) -> 0 | G63: =(F63*(1+'Scenario Assumptions'!$C$10)^('Scenario Assumptions'!$C$6+Q62)) -> 0 | H63: =(G63/(1+'Scenario Assumptions'!$C$7)^('Scenario Assumptions'!$C$6+Q62)) -> 0 | J63: =D63*'Cost Module'!$G$114 -> 0 | K63: =D63*('Cost Module'!$G$105*(1+'Scenario Assumptions'!$C$11)^'Scenario Assumptions'!$C$6+('Cost Module'!$G$114-'Cost Module'!$G$105)*(1+'Scenario Assumptions'!$C$12)^('Scenario Assumptions'!$C$6+Q62)) -> 0 | L63: =(K63/(1+'Scenario Assumptions'!$C$7)^('Scenario Assumptions'!$C$6+Q62)) -> 0 | N63: 0 | O63: 0 | P63: 0 | Q63: 4 | S63: 0 | T63: 0 | U63: 0
B64: Year 5 | D64: 0.1666666667 | F64: =D64*('Cost Module'!G$95+'Cost Module'!G$102) -> 0 | G64: =(F64*(1+'Scenario Assumptions'!$C$10)^('Scenario Assumptions'!$C$6+Q63)) -> 0 | H64: =(G64/(1+'Scenario Assumptions'!$C$7)^('Scenario Assumptions'!$C$6+Q63)) -> 0 | J64: =D64*'Cost Module'!$G$114 -> 0 | K64: =D64*('Cost Module'!$G$105*(1+'Scenario Assumptions'!$C$11)^'Scenario Assumptions'!$C$6+('Cost Module'!$G$114-'Cost Module'!$G$105)*(1+'Scenario Assumptions'!$C$12)^('Scenario Assumptions'!$C$6+Q63)) -> 0 | L64: =(K64/(1+'Scenario Assumptions'!$C$7)^('Scenario Assumptions'!$C$6+Q63)) -> 0 | N64: 0 | O64: 0 | P64: 0 | Q64: 5 | S64: 0 | T64: 0 | U64: 0
B65: Year 6 | D65: 0.2 | F65: =D65*('Cost Module'!G$95+'Cost Module'!G$102) -> 0 | G65: =(F65*(1+'Scenario Assumptions'!$C$10)^('Scenario Assumptions'!$C$6+Q64)) -> 0 | H65: =(G65/(1+'Scenario Assumptions'!$C$7)^('Scenario Assumptions'!$C$6+Q64)) -> 0 | J65: =D65*'Cost Module'!$G$114 -> 0 | K65: =D65*('Cost Module'!$G$105*(1+'Scenario Assumptions'!$C$11)^'Scenario Assumptions'!$C$6+('Cost Module'!$G$114-'Cost Module'!$G$105)*(1+'Scenario Assumptions'!$C$12)^('Scenario Assumptions'!$C$6+Q64)) -> 0 | L65: =(K65/(1+'Scenario Assumptions'!$C$7)^('Scenario Assumptions'!$C$6+Q64)) -> 0 | N65: 0 | O65: 0 | P65: 0 | Q65: 6 | S65: 0 | T65: 0 | U65: 0
B66: Year 7 | D66: 0.2333333333 | F66: =D66*('Cost Module'!G$95+'Cost Module'!G$102) -> 0 | G66: =(F66*(1+'Scenario Assumptions'!$C$10)^('Scenario Assumptions'!$C$6+Q65)) -> 0 | H66: =(G66/(1+'Scenario Assumptions'!$C$7)^('Scenario Assumptions'!$C$6+Q65)) -> 0 | J66: =D66*'Cost Module'!$G$114 -> 0 | K66: =D66*('Cost Module'!$G$105*(1+'Scenario Assumptions'!$C$11)^'Scenario Assumptions'!$C$6+('Cost Module'!$G$114-'Cost Module'!$G$105)*(1+'Scenario Assumptions'!$C$12)^('Scenario Assumptions'!$C$6+Q65)) -> 0 | L66: =(K66/(1+'Scenario Assumptions'!$C$7)^('Scenario Assumptions'!$C$6+Q65)) -> 0 | N66: 0 | O66: 0 | P66: 0 | Q66: 7 | S66: 0 | T66: 0 | U66: 0
B67: Year 8 | D67: 0.2666666667 | F67: =D67*('Cost Module'!G$95+'Cost Module'!G$102) -> 0 | G67: =(F67*(1+'Scenario Assumptions'!$C$10)^('Scenario Assumptions'!$C$6+Q66)) -> 0 | H67: =(G67/(1+'Scenario Assumptions'!$C$7)^('Scenario Assumptions'!$C$6+Q66)) -> 0 | J67: =D67*'Cost Module'!$G$114 -> 0 | K67: =D67*('Cost Module'!$G$105*(1+'Scenario Assumptions'!$C$11)^'Scenario Assumptions'!$C$6+('Cost Module'!$G$114-'Cost Module'!$G$105)*(1+'Scenario Assumptions'!$C$12)^('Scenario Assumptions'!$C$6+Q66)) -> 0 | L67: =(K67/(1+'Scenario Assumptions'!$C$7)^('Scenario Assumptions'!$C$6+Q66)) -> 0 | N67: 0 | O67: 0 | P67: 0 | Q67: 8 | S67: 0 | T67: 0 | U67: 0
B68: Year 9 | D68: 0.3 | F68: =D68*('Cost Module'!G$95+'Cost Module'!G$102) -> 0 | G68: =(F68*(1+'Scenario Assumptions'!$C$10)^('Scenario Assumptions'!$C$6+Q67)) -> 0 | H68: =(G68/(1+'Scenario Assumptions'!$C$7)^('Scenario Assumptions'!$C$6+Q67)) -> 0 | J68: =D68*'Cost Module'!$G$114 -> 0 | K68: =D68*('Cost Module'!$G$105*(1+'Scenario Assumptions'!$C$11)^'Scenario Assumptions'!$C$6+('Cost Module'!$G$114-'Cost Module'!$G$105)*(1+'Scenario Assumptions'!$C$12)^('Scenario Assumptions'!$C$6+Q67)) -> 0 | L68: =(K68/(1+'Scenario Assumptions'!$C$7)^('Scenario Assumptions'!$C$6+Q67)) -> 0 | N68: 0 | O68: 0 | P68: 0 | Q68: 9 | S68: 0 | T68: 0 | U68: 0
B69: Year 10 | D69: 0.3333333333 | F69: =D69*('Cost Module'!G$95+'Cost Module'!G$102) -> 0 | G69: =(F69*(1+'Scenario Assumptions'!$C$10)^('Scenario Assumptions'!$C$6+Q68)) -> 0 | H69: =(G69/(1+'Scenario Assumptions'!$C$7)^('Scenario Assumptions'!$C$6+Q68)) -> 0 | J69: =D69*'Cost Module'!$G$114 -> 0 | K69: =D69*('Cost Module'!$G$105*(1+'Scenario Assumptions'!$C$11)^'Scenario Assumptions'!$C$6+('Cost Module'!$G$114-'Cost Module'!$G$105)*(1+'Scenario Assumptions'!$C$12)^('Scenario Assumptions'!$C$6+Q68)) -> 0 | L69: =(K69/(1+'Scenario Assumptions'!$C$7)^('Scenario Assumptions'!$C$6+Q68)) -> 0 | N69: 0 | O69: 0 | P69: 0 | Q69: 10 | S69: 0 | T69: 0 | U69: 0
B70: Year 11 | D70: 0.3666666667 | F70: =D70*('Cost Module'!G$95+'Cost Module'!G$102) -> 0 | G70: =(F70*(1+'Scenario Assumptions'!$C$10)^('Scenario Assumptions'!$C$6+Q69)) -> 0 | H70: =(G70/(1+'Scenario Assumptions'!$C$7)^('Scenario Assumptions'!$C$6+Q69)) -> 0 | J70: =D70*'Cost Module'!$G$114 -> 0 | K70: =D70*('Cost Module'!$G$105*(1+'Scenario Assumptions'!$C$11)^'Scenario Assumptions'!$C$6+('Cost Module'!$G$114-'Cost Module'!$G$105)*(1+'Scenario Assumptions'!$C$12)^('Scenario Assumptions'!$C$6+Q69)) -> 0 | L70: =(K70/(1+'Scenario Assumptions'!$C$7)^('Scenario Assumptions'!$C$6+Q69)) -> 0 | N70: 0 | O70: 0 | P70: 0 | Q70: 11 | S70: 0 | T70: 0 | U70: 0
B71: Year 12 | D71: 0.4 | F71: =D71*('Cost Module'!G$95+'Cost Module'!G$102) -> 0 | G71: =(F71*(1+'Scenario Assumptions'!$C$10)^('Scenario Assumptions'!$C$6+Q70)) -> 0 | H71: =(G71/(1+'Scenario Assumptions'!$C$7)^('Scenario Assumptions'!$C$6+Q70)) -> 0 | J71: =D71*'Cost Module'!$G$114 -> 0 | K71: =D71*('Cost Module'!$G$105*(1+'Scenario Assumptions'!$C$11)^'Scenario Assumptions'!$C$6+('Cost Module'!$G$114-'Cost Module'!$G$105)*(1+'Scenario Assumptions'!$C$12)^('Scenario Assumptions'!$C$6+Q70)) -> 0 | L71: =(K71/(1+'Scenario Assumptions'!$C$7)^('Scenario Assumptions'!$C$6+Q70)) -> 0 | N71: 0 | O71: 0 | P71: 0 | Q71: 12 | S71: 0 | T71: 0 | U71: 0
B72: Year 13 | D72: 0.4333333333 | F72: =D72*('Cost Module'!G$95+'Cost Module'!G$102) -> 0 | G72: =(F72*(1+'Scenario Assumptions'!$C$10)^('Scenario Assumptions'!$C$6+Q71)) -> 0 | H72: =(G72/(1+'Scenario Assumptions'!$C$7)^('Scenario Assumptions'!$C$6+Q71)) -> 0 | J72: =D72*'Cost Module'!$G$114 -> 0 | K72: =D72*('Cost Module'!$G$105*(1+'Scenario Assumptions'!$C$11)^'Scenario Assumptions'!$C$6+('Cost Module'!$G$114-'Cost Module'!$G$105)*(1+'Scenario Assumptions'!$C$12)^('Scenario Assumptions'!$C$6+Q71)) -> 0 | L72: =(K72/(1+'Scenario Assumptions'!$C$7)^('Scenario Assumptions'!$C$6+Q71)) -> 0 | N72: 0 | O72: 0 | P72: 0 | Q72: 13 | S72: 0 | T72: 0 | U72: 0
B73: Year 14 | D73: 0.4666666667 | F73: =D73*('Cost Module'!G$95+'Cost Module'!G$102) -> 0 | G73: =(F73*(1+'Scenario Assumptions'!$C$10)^('Scenario Assumptions'!$C$6+Q72)) -> 0 | H73: =(G73/(1+'Scenario Assumptions'!$C$7)^('Scenario Assumptions'!$C$6+Q72)) -> 0 | J73: =D73*'Cost Module'!$G$114 -> 0 | K73: =D73*('Cost Module'!$G$105*(1+'Scenario Assumptions'!$C$11)^'Scenario Assumptions'!$C$6+('Cost Module'!$G$114-'Cost Module'!$G$105)*(1+'Scenario Assumptions'!$C$12)^('Scenario Assumptions'!$C$6+Q72)) -> 0 | L73: =(K73/(1+'Scenario Assumptions'!$C$7)^('Scenario Assumptions'!$C$6+Q72)) -> 0 | N73: 0 | O73: 0 | P73: 0 | Q73: 14 | S73: 0 | T73: 0 | U73: 0
B74: Year 15 | D74: 0.5 | F74: =D74*('Cost Module'!G$95+'Cost Module'!G$102) -> 0 | G74: =(F74*(1+'Scenario Assumptions'!$C$10)^('Scenario Assumptions'!$C$6+Q73)) -> 0 | H74: =(G74/(1+'Scenario Assumptions'!$C$7)^('Scenario Assumptions'!$C$6+Q73)) -> 0 | J74: =D74*'Cost Module'!$G$114 -> 0 | K74: =D74*('Cost Module'!$G$105*(1+'Scenario Assumptions'!$C$11)^'Scenario Assumptions'!$C$6+('Cost Module'!$G$114-'Cost Module'!$G$105)*(1+'Scenario Assumptions'!$C$12)^('Scenario Assumptions'!$C$6+Q73)) -> 0 | L74: =(K74/(1+'Scenario Assumptions'!$C$7)^('Scenario Assumptions'!$C$6+Q73)) -> 0 | N74: 0 | O74: 0 | P74: 0 | Q74: 15 | S74: 0 | T74: 0 | U74: 0
B75: Year 16 | D75: 0.5333333333 | F75: =D75*('Cost Module'!G$95+'Cost Module'!G$102) -> 0 | G75: =(F75*(1+'Scenario Assumptions'!$C$10)^('Scenario Assumptions'!$C$6+Q74)) -> 0 | H75: =(G75/(1+'Scenario Assumptions'!$C$7)^('Scenario Assumptions'!$C$6+Q74)) -> 0 | J75: =D75*'Cost Module'!$G$114 -> 0 | K75: =D75*('Cost Module'!$G$105*(1+'Scenario Assumptions'!$C$11)^'Scenario Assumptions'!$C$6+('Cost Module'!$G$114-'Cost Module'!$G$105)*(1+'Scenario Assumptions'!$C$12)^('Scenario Assumptions'!$C$6+Q74)) -> 0 | L75: =(K75/(1+'Scenario Assumptions'!$C$7)^('Scenario Assumptions'!$C$6+Q74)) -> 0 | N75: 0 | O75: 0 | P75: 0 | Q75: 16 | S75: 0 | T75: 0 | U75: 0
B76: Year 17 | D76: 0.5666666667 | F76: =D76*('Cost Module'!G$95+'Cost Module'!G$102) -> 0 | G76: =(F76*(1+'Scenario Assumptions'!$C$10)^('Scenario Assumptions'!$C$6+Q75)) -> 0 | H76: =(G76/(1+'Scenario Assumptions'!$C$7)^('Scenario Assumptions'!$C$6+Q75)) -> 0 | J76: =D76*'Cost Module'!$G$114 -> 0 | K76: =D76*('Cost Module'!$G$105*(1+'Scenario Assumptions'!$C$11)^'Scenario Assumptions'!$C$6+('Cost Module'!$G$114-'Cost Module'!$G$105)*(1+'Scenario Assumptions'!$C$12)^('Scenario Assumptions'!$C$6+Q75)) -> 0 | L76: =(K76/(1+'Scenario Assumptions'!$C$7)^('Scenario Assumptions'!$C$6+Q75)) -> 0 | N76: 0 | O76: 0 | P76: 0 | Q76: 17 | S76: 0 | T76: 0 | U76: 0
B77: Year 18 | D77: 0.6 | F77: =D77*('Cost Module'!G$95+'Cost Module'!G$102) -> 0 | G77: =(F77*(1+'Scenario Assumptions'!$C$10)^('Scenario Assumptions'!$C$6+Q76)) -> 0 | H77: =(G77/(1+'Scenario Assumptions'!$C$7)^('Scenario Assumptions'!$C$6+Q76)) -> 0 | J77: =D77*'Cost Module'!$G$114 -> 0 | K77: =D77*('Cost Module'!$G$105*(1+'Scenario Assumptions'!$C$11)^'Scenario Assumptions'!$C$6+('Cost Module'!$G$114-'Cost Module'!$G$105)*(1+'Scenario Assumptions'!$C$12)^('Scenario Assumptions'!$C$6+Q76)) -> 0 | L77: =(K77/(1+'Scenario Assumptions'!$C$7)^('Scenario Assumptions'!$C$6+Q76)) -> 0 | N77: 0 | O77: 0 | P77: 0 | Q77: 18 | S77: =N77+S76 -> 0 | T77: 0 | U77: 0
B78: Year 19 | D78: 0.6333333333 | F78: =D78*('Cost Module'!G$95+'Cost Module'!G$102) -> 0 | G78: =(F78*(1+'Scenario Assumptions'!$C$10)^('Scenario Assumptions'!$C$6+Q77)) -> 0 | H78: =(G78/(1+'Scenario Assumptions'!$C$7)^('Scenario Assumptions'!$C$6+Q77)) -> 0 | J78: =D78*'Cost Module'!$G$114 -> 0 | K78: =D78*('Cost Module'!$G$105*(1+'Scenario Assumptions'!$C$11)^'Scenario Assumptions'!$C$6+('Cost Module'!$G$114-'Cost Module'!$G$105)*(1+'Scenario Assumptions'!$C$12)^('Scenario Assumptions'!$C$6+Q77)) -> 0 | L78: =(K78/(1+'Scenario Assumptions'!$C$7)^('Scenario Assumptions'!$C$6+Q77)) -> 0 | N78: 0 | O78: 0 | P78: 0 | Q78: 19 | S78: 0 | T78: 0 | U78: 0
B79: Year 20 | D79: 0.6666666667 | F79: =D79*('Cost Module'!G$95+'Cost Module'!G$102) -> 0 | G79: =(F79*(1+'Scenario Assumptions'!$C$10)^('Scenario Assumptions'!$C$6+Q78)) -> 0 | H79: =(G79/(1+'Scenario Assumptions'!$C$7)^('Scenario Assumptions'!$C$6+Q78)) -> 0 | J79: =D79*'Cost Module'!$G$114 -> 0 | K79: =D79*('Cost Module'!$G$105*(1+'Scenario Assumptions'!$C$11)^'Scenario Assumptions'!$C$6+('Cost Module'!$G$114-'Cost Module'!$G$105)*(1+'Scenario Assumptions'!$C$12)^('Scenario Assumptions'!$C$6+Q78)) -> 0 | L79: =(K79/(1+'Scenario Assumptions'!$C$7)^('Scenario Assumptions'!$C$6+Q78)) -> 0 | N79: 0 | O79: 0 | P79: 0 | Q79: 20 | S79: 0 | T79: 0 | U79: 0
B80: Year 21 | D80: 0.7 | F80: =D80*('Cost Module'!G$95+'Cost Module'!G$102) -> 0 | G80: =(F80*(1+'Scenario Assumptions'!$C$10)^('Scenario Assumptions'!$C$6+Q79)) -> 0 | H80: =(G80/(1+'Scenario Assumptions'!$C$7)^('Scenario Assumptions'!$C$6+Q79)) -> 0 | J80: =D80*'Cost Module'!$G$114 -> 0 | K80: =D80*('Cost Module'!$G$105*(1+'Scenario Assumptions'!$C$11)^'Scenario Assumptions'!$C$6+('Cost Module'!$G$114-'Cost Module'!$G$105)*(1+'Scenario Assumptions'!$C$12)^('Scenario Assumptions'!$C$6+Q79)) -> 0 | L80: =(K80/(1+'Scenario Assumptions'!$C$7)^('Scenario Assumptions'!$C$6+Q79)) -> 0 | N80: 0 | O80: 0 | P80: 0 | Q80: 21 | S80: 0 | T80: 0 | U80: 0
B81: Year 22 | D81: 0.7333333333 | F81: =D81*('Cost Module'!G$95+'Cost Module'!G$102) -> 0 | G81: =(F81*(1+'Scenario Assumptions'!$C$10)^('Scenario Assumptions'!$C$6+Q80)) -> 0 | H81: =(G81/(1+'Scenario Assumptions'!$C$7)^('Scenario Assumptions'!$C$6+Q80)) -> 0 | J81: =D81*'Cost Module'!$G$114 -> 0 | K81: =D81*('Cost Module'!$G$105*(1+'Scenario Assumptions'!$C$11)^'Scenario Assumptions'!$C$6+('Cost Module'!$G$114-'Cost Module'!$G$105)*(1+'Scenario Assumptions'!$C$12)^('Scenario Assumptions'!$C$6+Q80)) -> 0 | L81: =(K81/(1+'Scenario Assumptions'!$C$7)^('Scenario Assumptions'!$C$6+Q80)) -> 0 | N81: 0 | O81: 0 | P81: 0 | Q81: 22 | S81: 0 | T81: 0 | U81: 0
B82: Year 23 | D82: 0.7666666667 | F82: =D82*('Cost Module'!G$95+'Cost Module'!G$102) -> 0 | G82: =(F82*(1+'Scenario Assumptions'!$C$10)^('Scenario Assumptions'!$C$6+Q81)) -> 0 | H82: =(G82/(1+'Scenario Assumptions'!$C$7)^('Scenario Assumptions'!$C$6+Q81)) -> 0 | J82: =D82*'Cost Module'!$G$114 -> 0 | K82: =D82*('Cost Module'!$G$105*(1+'Scenario Assumptions'!$C$11)^'Scenario Assumptions'!$C$6+('Cost Module'!$G$114-'Cost Module'!$G$105)*(1+'Scenario Assumptions'!$C$12)^('Scenario Assumptions'!$C$6+Q81)) -> 0 | L82: =(K82/(1+'Scenario Assumptions'!$C$7)^('Scenario Assumptions'!$C$6+Q81)) -> 0 | N82: 0 | O82: 0 | P82: 0 | Q82: 23 | S82: 0 | T82: 0 | U82: 0
B83: Year 24 | D83: 0.8 | F83: =D83*('Cost Module'!G$95+'Cost Module'!G$102) -> 0 | G83: =(F83*(1+'Scenario Assumptions'!$C$10)^('Scenario Assumptions'!$C$6+Q82)) -> 0 | H83: =(G83/(1+'Scenario Assumptions'!$C$7)^('Scenario Assumptions'!$C$6+Q82)) -> 0 | J83: =D83*'Cost Module'!$G$114 -> 0 | K83: =D83*('Cost Module'!$G$105*(1+'Scenario Assumptions'!$C$11)^'Scenario Assumptions'!$C$6+('Cost Module'!$G$114-'Cost Module'!$G$105)*(1+'Scenario Assumptions'!$C$12)^('Scenario Assumptions'!$C$6+Q82)) -> 0 | L83: =(K83/(1+'Scenario Assumptions'!$C$7)^('Scenario Assumptions'!$C$6+Q82)) -> 0 | N83: 0 | O83: 0 | P83: 0 | Q83: 24 | S83: 0 | T83: 0 | U83: 0
B84: Year 25 | D84: 0.8333333333 | F84: =D84*('Cost Module'!G$95+'Cost Module'!G$102) -> 0 | G84: =(F84*(1+'Scenario Assumptions'!$C$10)^('Scenario Assumptions'!$C$6+Q83)) -> 0 | H84: =(G84/(1+'Scenario Assumptions'!$C$7)^('Scenario Assumptions'!$C$6+Q83)) -> 0 | J84: =D84*'Cost Module'!$G$114 -> 0 | K84: =D84*('Cost Module'!$G$105*(1+'Scenario Assumptions'!$C$11)^'Scenario Assumptions'!$C$6+('Cost Module'!$G$114-'Cost Module'!$G$105)*(1+'Scenario Assumptions'!$C$12)^('Scenario Assumptions'!$C$6+Q83)) -> 0 | L84: =(K84/(1+'Scenario Assumptions'!$C$7)^('Scenario Assumptions'!$C$6+Q83)) -> 0 | N84: 0 | O84: 0 | P84: 0 | Q84: 25 | S84: 0 | T84: 0 | U84: 0
B85: Year 26 | D85: 0.8666666667 | F85: =D85*('Cost Module'!G$95+'Cost Module'!G$102) -> 0 | G85: =(F85*(1+'Scenario Assumptions'!$C$10)^('Scenario Assumptions'!$C$6+Q84)) -> 0 | H85: =(G85/(1+'Scenario Assumptions'!$C$7)^('Scenario Assumptions'!$C$6+Q84)) -> 0 | J85: =D85*'Cost Module'!$G$114 -> 0 | K85: =D85*('Cost Module'!$G$105*(1+'Scenario Assumptions'!$C$11)^'Scenario Assumptions'!$C$6+('Cost Module'!$G$114-'Cost Module'!$G$105)*(1+'Scenario Assumptions'!$C$12)^('Scenario Assumptions'!$C$6+Q84)) -> 0 | L85: =(K85/(1+'Scenario Assumptions'!$C$7)^('Scenario Assumptions'!$C$6+Q84)) -> 0 | N85: 0 | O85: 0 | P85: 0 | Q85: 26 | S85: 0 | T85: 0 | U85: 0
B86: Year 27 | D86: 0.9 | F86: =D86*('Cost Module'!G$95+'Cost Module'!G$102) -> 0 | G86: =(F86*(1+'Scenario Assumptions'!$C$10)^('Scenario Assumptions'!$C$6+Q85)) -> 0 | H86: =(G86/(1+'Scenario Assumptions'!$C$7)^('Scenario Assumptions'!$C$6+Q85)) -> 0 | J86: =D86*'Cost Module'!$G$114 -> 0 | K86: =D86*('Cost Module'!$G$105*(1+'Scenario Assumptions'!$C$11)^'Scenario Assumptions'!$C$6+('Cost Module'!$G$114-'Cost Module'!$G$105)*(1+'Scenario Assumptions'!$C$12)^('Scenario Assumptions'!$C$6+Q85)) -> 0 | L86: =(K86/(1+'Scenario Assumptions'!$C$7)^('Scenario Assumptions'!$C$6+Q85)) -> 0 | N86: 0 | O86: 0 | P86: 0 | Q86: 27 | S86: 0 | T86: 0 | U86: 0
B87: Year 28 | D87: 0.9333333333 | F87: =D87*('Cost Module'!G$95+'Cost Module'!G$102) -> 0 | G87: =(F87*(1+'Scenario Assumptions'!$C$10)^('Scenario Assumptions'!$C$6+Q86)) -> 0 | H87: =(G87/(1+'Scenario Assumptions'!$C$7)^('Scenario Assumptions'!$C$6+Q86)) -> 0 | J87: =D87*'Cost Module'!$G$114 -> 0 | K87: =D87*('Cost Module'!$G$105*(1+'Scenario Assumptions'!$C$11)^'Scenario Assumptions'!$C$6+('Cost Module'!$G$114-'Cost Module'!$G$105)*(1+'Scenario Assumptions'!$C$12)^('Scenario Assumptions'!$C$6+Q86)) -> 0 | L87: =(K87/(1+'Scenario Assumptions'!$C$7)^('Scenario Assumptions'!$C$6+Q86)) -> 0 | N87: 0 | O87: 0 | P87: 0 | Q87: 28 | S87: 0 | T87: 0 | U87: 0
B88: Year 29 | D88: 0.9666666667 | F88: =D88*('Cost Module'!G$95+'Cost Module'!G$102) -> 0 | G88: =(F88*(1+'Scenario Assumptions'!$C$10)^('Scenario Assumptions'!$C$6+Q87)) -> 0 | H88: =(G88/(1+'Scenario Assumptions'!$C$7)^('Scenario Assumptions'!$C$6+Q87)) -> 0 | J88: =D88*'Cost Module'!$G$114 -> 0 | K88: =D88*('Cost Module'!$G$105*(1+'Scenario Assumptions'!$C$11)^'Scenario Assumptions'!$C$6+('Cost Module'!$G$114-'Cost Module'!$G$105)*(1+'Scenario Assumptions'!$C$12)^('Scenario Assumptions'!$C$6+Q87)) -> 0 | L88: =(K88/(1+'Scenario Assumptions'!$C$7)^('Scenario Assumptions'!$C$6+Q87)) -> 0 | N88: 0 | O88: 0 | P88: 0 | Q88: 29 | S88: 0 | T88: 0 | U88: 0
B89: Year 30 | D89: 1 | F89: =D89*('Cost Module'!G$95+'Cost Module'!G$102) -> 0 | G89: =(F89*(1+'Scenario Assumptions'!$C$10)^('Scenario Assumptions'!$C$6+Q88)) -> 0 | H89: =(G89/(1+'Scenario Assumptions'!$C$7)^('Scenario Assumptions'!$C$6+Q88)) -> 0 | J89: =D89*'Cost Module'!$G$114 -> 0 | K89: =D89*('Cost Module'!$G$105*(1+'Scenario Assumptions'!$C$11)^'Scenario Assumptions'!$C$6+('Cost Module'!$G$114-'Cost Module'!$G$105)*(1+'Scenario Assumptions'!$C$12)^('Scenario Assumptions'!$C$6+Q88)) -> 0 | L89: =(K89/(1+'Scenario Assumptions'!$C$7)^('Scenario Assumptions'!$C$6+Q88)) -> 0 | N89: 0 | O89: 0 | P89: 0 | Q89: 30 | S89: 0 | T89: 0 | U89: 0
B90: Year 31 | D90: 1.033333333 | F90: =D90*('Cost Module'!G$95+'Cost Module'!G$102) -> 0 | G90: =(F90*(1+'Scenario Assumptions'!$C$10)^('Scenario Assumptions'!$C$6+Q89)) -> 0 | H90: =(G90/(1+'Scenario Assumptions'!$C$7)^('Scenario Assumptions'!$C$6+Q89)) -> 0 | J90: =D90*'Cost Module'!$G$114 -> 0 | K90: =D90*('Cost Module'!$G$105*(1+'Scenario Assumptions'!$C$11)^'Scenario Assumptions'!$C$6+('Cost Module'!$G$114-'Cost Module'!$G$105)*(1+'Scenario Assumptions'!$C$12)^('Scenario Assumptions'!$C$6+Q89)) -> 0 | L90: =(K90/(1+'Scenario Assumptions'!$C$7)^('Scenario Assumptions'!$C$6+Q89)) -> 0 | N90: 0 | O90: 0 | P90: 0 | Q90: 31 | S90: 0 | T90: 0 | U90: 0
B91: Year 32 | D91: 1.066666667 | F91: =D91*('Cost Module'!G$95+'Cost Module'!G$102) -> 0 | G91: =(F91*(1+'Scenario Assumptions'!$C$10)^('Scenario Assumptions'!$C$6+Q90)) -> 0 | H91: =(G91/(1+'Scenario Assumptions'!$C$7)^('Scenario Assumptions'!$C$6+Q90)) -> 0 | J91: =D91*'Cost Module'!$G$114 -> 0 | K91: =D91*('Cost Module'!$G$105*(1+'Scenario Assumptions'!$C$11)^'Scenario Assumptions'!$C$6+('Cost Module'!$G$114-'Cost Module'!$G$105)*(1+'Scenario Assumptions'!$C$12)^('Scenario Assumptions'!$C$6+Q90)) -> 0 | L91: =(K91/(1+'Scenario Assumptions'!$C$7)^('Scenario Assumptions'!$C$6+Q90)) -> 0 | N91: 0 | O91: 0 | P91: 0 | Q91: 32 | S91: 0 | T91: 0 | U91: 0
B92: Year 33 | D92: 1.1 | F92: =D92*('Cost Module'!G$95+'Cost Module'!G$102) -> 0 | G92: =(F92*(1+'Scenario Assumptions'!$C$10)^('Scenario Assumptions'!$C$6+Q91)) -> 0 | H92: =(G92/(1+'Scenario Assumptions'!$C$7)^('Scenario Assumptions'!$C$6+Q91)) -> 0 | J92: =D92*'Cost Module'!$G$114 -> 0 | K92: =D92*('Cost Module'!$G$105*(1+'Scenario Assumptions'!$C$11)^'Scenario Assumptions'!$C$6+('Cost Module'!$G$114-'Cost Module'!$G$105)*(1+'Scenario Assumptions'!$C$12)^('Scenario Assumptions'!$C$6+Q91)) -> 0 | L92: =(K92/(1+'Scenario Assumptions'!$C$7)^('Scenario Assumptions'!$C$6+Q91)) -> 0 | N92: 0 | O92: 0 | P92: 0 | Q92: 33 | S92: 0 | T92: 0 | U92: 0
B93: Year 34 | D93: 1.133333333 | F93: =D93*('Cost Module'!G$95+'Cost Module'!G$102) -> 0 | G93: =(F93*(1+'Scenario Assumptions'!$C$10)^('Scenario Assumptions'!$C$6+Q92)) -> 0 | H93: =(G93/(1+'Scenario Assumptions'!$C$7)^('Scenario Assumptions'!$C$6+Q92)) -> 0 | J93: =D93*'Cost Module'!$G$114 -> 0 | K93: =D93*('Cost Module'!$G$105*(1+'Scenario Assumptions'!$C$11)^'Scenario Assumptions'!$C$6+('Cost Module'!$G$114-'Cost Module'!$G$105)*(1+'Scenario Assumptions'!$C$12)^('Scenario Assumptions'!$C$6+Q92)) -> 0 | L93: =(K93/(1+'Scenario Assumptions'!$C$7)^('Scenario Assumptions'!$C$6+Q92)) -> 0 | N93: 0 | O93: 0 | P93: 0 | Q93: 34 | S93: =N93+S92 -> 0 | T93: 0 | U93: 0
B94: Year 35 | D94: 1.166666667 | F94: =D94*('Cost Module'!G$95+'Cost Module'!G$102) -> 0 | G94: =(F94*(1+'Scenario Assumptions'!$C$10)^('Scenario Assumptions'!$C$6+Q93)) -> 0 | H94: =(G94/(1+'Scenario Assumptions'!$C$7)^('Scenario Assumptions'!$C$6+Q93)) -> 0 | J94: =D94*'Cost Module'!$G$114 -> 0 | K94: =D94*('Cost Module'!$G$105*(1+'Scenario Assumptions'!$C$11)^'Scenario Assumptions'!$C$6+('Cost Module'!$G$114-'Cost Module'!$G$105)*(1+'Scenario Assumptions'!$C$12)^('Scenario Assumptions'!$C$6+Q93)) -> 0 | L94: =(K94/(1+'Scenario Assumptions'!$C$7)^('Scenario Assumptions'!$C$6+Q93)) -> 0 | N94: 0 | O94: 0 | P94: 0 | Q94: 35 | S94: 0 | T94: 0 | U94: 0
B95: Year 36 | D95: 1.2 | F95: =D95*('Cost Module'!G$95+'Cost Module'!G$102) -> 0 | G95: =(F95*(1+'Scenario Assumptions'!$C$10)^('Scenario Assumptions'!$C$6+Q94)) -> 0 | H95: =(G95/(1+'Scenario Assumptions'!$C$7)^('Scenario Assumptions'!$C$6+Q94)) -> 0 | J95: =D95*'Cost Module'!$G$114 -> 0 | K95: =D95*('Cost Module'!$G$105*(1+'Scenario Assumptions'!$C$11)^'Scenario Assumptions'!$C$6+('Cost Module'!$G$114-'Cost Module'!$G$105)*(1+'Scenario Assumptions'!$C$12)^('Scenario Assumptions'!$C$6+Q94)) -> 0 | L95: =(K95/(1+'Scenario Assumptions'!$C$7)^('Scenario Assumptions'!$C$6+Q94)) -> 0 | N95: 0 | O95: 0 | P95: 0 | Q95: 36 | S95: 0 | T95: 0 | U95: 0
B96: Year 37 | D96: 1.233333333 | F96: =D96*('Cost Module'!G$95+'Cost Module'!G$102) -> 0 | G96: =(F96*(1+'Scenario Assumptions'!$C$10)^('Scenario Assumptions'!$C$6+Q95)) -> 0 | H96: =(G96/(1+'Scenario Assumptions'!$C$7)^('Scenario Assumptions'!$C$6+Q95)) -> 0 | J96: =D96*'Cost Module'!$G$114 -> 0 | K96: =D96*('Cost Module'!$G$105*(1+'Scenario Assumptions'!$C$11)^'Scenario Assumptions'!$C$6+('Cost Module'!$G$114-'Cost Module'!$G$105)*(1+'Scenario Assumptions'!$C$12)^('Scenario Assumptions'!$C$6+Q95)) -> 0 | L96: =(K96/(1+'Scenario Assumptions'!$C$7)^('Scenario Assumptions'!$C$6+Q95)) -> 0 | N96: 0 | O96: 0 | P96: 0 | Q96: 37 | S96: 0 | T96: 0 | U96: 0
B97: Year 38 | D97: 1.266666667 | F97: =D97*('Cost Module'!G$95+'Cost Module'!G$102) -> 0 | G97: =(F97*(1+'Scenario Assumptions'!$C$10)^('Scenario Assumptions'!$C$6+Q96)) -> 0 | H97: =(G97/(1+'Scenario Assumptions'!$C$7)^('Scenario Assumptions'!$C$6+Q96)) -> 0 | J97: =D97*'Cost Module'!$G$114 -> 0 | K97: =D97*('Cost Module'!$G$105*(1+'Scenario Assumptions'!$C$11)^'Scenario Assumptions'!$C$6+('Cost Module'!$G$114-'Cost Module'!$G$105)*(1+'Scenario Assumptions'!$C$12)^('Scenario Assumptions'!$C$6+Q96)) -> 0 | L97: =(K97/(1+'Scenario Assumptions'!$C$7)^('Scenario Assumptions'!$C$6+Q96)) -> 0 | N97: 0 | O97: 0 | P97: 0 | Q97: 38 | S97: 0 | T97: 0 | U97: 0
B98: Year 39 | D98: 1.3 | F98: =D98*('Cost Module'!G$95+'Cost Module'!G$102) -> 0 | G98: =(F98*(1+'Scenario Assumptions'!$C$10)^('Scenario Assumptions'!$C$6+Q97)) -> 0 | H98: =(G98/(1+'Scenario Assumptions'!$C$7)^('Scenario Assumptions'!$C$6+Q97)) -> 0 | J98: =D98*'Cost Module'!$G$114 -> 0 | K98: =D98*('Cost Module'!$G$105*(1+'Scenario Assumptions'!$C$11)^'Scenario Assumptions'!$C$6+('Cost Module'!$G$114-'Cost Module'!$G$105)*(1+'Scenario Assumptions'!$C$12)^('Scenario Assumptions'!$C$6+Q97)) -> 0 | L98: =(K98/(1+'Scenario Assumptions'!$C$7)^('Scenario Assumptions'!$C$6+Q97)) -> 0 | N98: 0 | O98: 0 | P98: 0 | Q98: 39 | S98: 0 | T98: 0 | U98: 0
B99: Year 40 | D99: 1.333333333 | F99: =D99*('Cost Module'!G$95+'Cost Module'!G$102) -> 0 | G99: =(F99*(1+'Scenario Assumptions'!$C$10)^('Scenario Assumptions'!$C$6+Q98)) -> 0 | H99: =(G99/(1+'Scenario Assumptions'!$C$7)^('Scenario Assumptions'!$C$6+Q98)) -> 0 | J99: =D99*'Cost Module'!$G$114 -> 0 | K99: =D99*('Cost Module'!$G$105*(1+'Scenario Assumptions'!$C$11)^'Scenario Assumptions'!$C$6+('Cost Module'!$G$114-'Cost Module'!$G$105)*(1+'Scenario Assumptions'!$C$12)^('Scenario Assumptions'!$C$6+Q98)) -> 0 | L99: =(K99/(1+'Scenario Assumptions'!$C$7)^('Scenario Assumptions'!$C$6+Q98)) -> 0 | N99: 0 | O99: 0 | P99: 0 | Q99: 40 | S99: 0 | T99: 0 | U99: 0
B100: Year 41 | D100: 1.366666667 | F100: =D100*('Cost Module'!G$95+'Cost Module'!G$102) -> 0 | G100: =(F100*(1+'Scenario Assumptions'!$C$10)^('Scenario Assumptions'!$C$6+Q99)) -> 0 | H100: =(G100/(1+'Scenario Assumptions'!$C$7)^('Scenario Assumptions'!$C$6+Q99)) -> 0 | J100: =D100*'Cost Module'!$G$114 -> 0 | K100: =D100*('Cost Module'!$G$105*(1+'Scenario Assumptions'!$C$11)^'Scenario Assumptions'!$C$6+('Cost Module'!$G$114-'Cost Module'!$G$105)*(1+'Scenario Assumptions'!$C$12)^('Scenario Assumptions'!$C$6+Q99)) -> 0 | L100: =(K100/(1+'Scenario Assumptions'!$C$7)^('Scenario Assumptions'!$C$6+Q99)) -> 0 | N100: 0 | O100: 0 | P100: 0 | Q100: 41 | S100: 0 | T100: 0 | U100: 0
B101: Year 42 | D101: 1.4 | F101: =D101*('Cost Module'!G$95+'Cost Module'!G$102) -> 0 | G101: =(F101*(1+'Scenario Assumptions'!$C$10)^('Scenario Assumptions'!$C$6+Q100)) -> 0 | H101: =(G101/(1+'Scenario Assumptions'!$C$7)^('Scenario Assumptions'!$C$6+Q100)) -> 0 | J101: =D101*'Cost Module'!$G$114 -> 0 | K101: =D101*('Cost Module'!$G$105*(1+'Scenario Assumptions'!$C$11)^'Scenario Assumptions'!$C$6+('Cost Module'!$G$114-'Cost Module'!$G$105)*(1+'Scenario Assumptions'!$C$12)^('Scenario Assumptions'!$C$6+Q100)) -> 0 | L101: =(K101/(1+'Scenario Assumptions'!$C$7)^('Scenario Assumptions'!$C$6+Q100)) -> 0 | N101: 0 | O101: 0 | P101: 0 | Q101: 42 | S101: 0 | T101: 0 | U101: 0
B102: Year 43 | D102: 1.433333333 | F102: =D102*('Cost Module'!G$95+'Cost Module'!G$102) -> 0 | G102: =(F102*(1+'Scenario Assumptions'!$C$10)^('Scenario Assumptions'!$C$6+Q101)) -> 0 | H102: =(G102/(1+'Scenario Assumptions'!$C$7)^('Scenario Assumptions'!$C$6+Q101)) -> 0 | J102: =D102*'Cost Module'!$G$114 -> 0 | K102: =D102*('Cost Module'!$G$105*(1+'Scenario Assumptions'!$C$11)^'Scenario Assumptions'!$C$6+('Cost Module'!$G$114-'Cost Module'!$G$105)*(1+'Scenario Assumptions'!$C$12)^('Scenario Assumptions'!$C$6+Q101)) -> 0 | L102: =(K102/(1+'Scenario Assumptions'!$C$7)^('Scenario Assumptions'!$C$6+Q101)) -> 0 | N102: 0 | O102: 0 | P102: 0 | Q102: 43 | S102: 0 | T102: 0 | U102: 0
B103: Year 44 | D103: 1.466666667 | F103: =D103*('Cost Module'!G$95+'Cost Module'!G$102) -> 0 | G103: =(F103*(1+'Scenario Assumptions'!$C$10)^('Scenario Assumptions'!$C$6+Q102)) -> 0 | H103: =(G103/(1+'Scenario Assumptions'!$C$7)^('Scenario Assumptions'!$C$6+Q102)) -> 0 | J103: =D103*'Cost Module'!$G$114 -> 0 | K103: =D103*('Cost Module'!$G$105*(1+'Scenario Assumptions'!$C$11)^'Scenario Assumptions'!$C$6+('Cost Module'!$G$114-'Cost Module'!$G$105)*(1+'Scenario Assumptions'!$C$12)^('Scenario Assumptions'!$C$6+Q102)) -> 0 | L103: =(K103/(1+'Scenario Assumptions'!$C$7)^('Scenario Assumptions'!$C$6+Q102)) -> 0 | N103: 0 | O103: 0 | P103: 0 | Q103: 44 | S103: 0 | T103: 0 | U103: 0
B104: Year 45 | D104: 1.5 | F104: =D104*('Cost Module'!G$95+'Cost Module'!G$102) -> 0 | G104: =(F104*(1+'Scenario Assumptions'!$C$10)^('Scenario Assumptions'!$C$6+Q103)) -> 0 | H104: =(G104/(1+'Scenario Assumptions'!$C$7)^('Scenario Assumptions'!$C$6+Q103)) -> 0 | J104: =D104*'Cost Module'!$G$114 -> 0 | K104: =D104*('Cost Module'!$G$105*(1+'Scenario Assumptions'!$C$11)^'Scenario Assumptions'!$C$6+('Cost Module'!$G$114-'Cost Module'!$G$105)*(1+'Scenario Assumptions'!$C$12)^('Scenario Assumptions'!$C$6+Q103)) -> 0 | L104: =(K104/(1+'Scenario Assumptions'!$C$7)^('Scenario Assumptions'!$C$6+Q103)) -> 0 | N104: 0 | O104: 0 | P104: 0 | Q104: 45 | S104: 0 | T104: 0 | U104: 0
B105: Year 46 | D105: 1.533333333 | F105: =D105*('Cost Module'!G$95+'Cost Module'!G$102) -> 0 | G105: =(F105*(1+'Scenario Assumptions'!$C$10)^('Scenario Assumptions'!$C$6+Q104)) -> 0 | H105: =(G105/(1+'Scenario Assumptions'!$C$7)^('Scenario Assumptions'!$C$6+Q104)) -> 0 | J105: =D105*'Cost Module'!$G$114 -> 0 | K105: =D105*('Cost Module'!$G$105*(1+'Scenario Assumptions'!$C$11)^'Scenario Assumptions'!$C$6+('Cost Module'!$G$114-'Cost Module'!$G$105)*(1+'Scenario Assumptions'!$C$12)^('Scenario Assumptions'!$C$6+Q104)) -> 0 | L105: =(K105/(1+'Scenario Assumptions'!$C$7)^('Scenario Assumptions'!$C$6+Q104)) -> 0 | N105: 0 | O105: 0 | P105: 0 | Q105: 46 | S105: 0 | T105: 0 | U105: 0
B106: Year 47 | D106: 1.566666667 | F106: =D106*('Cost Module'!G$95+'Cost Module'!G$102) -> 0 | G106: =(F106*(1+'Scenario Assumptions'!$C$10)^('Scenario Assumptions'!$C$6+Q105)) -> 0 | H106: =(G106/(1+'Scenario Assumptions'!$C$7)^('Scenario Assumptions'!$C$6+Q105)) -> 0 | J106: =D106*'Cost Module'!$G$114 -> 0 | K106: =D106*('Cost Module'!$G$105*(1+'Scenario Assumptions'!$C$11)^'Scenario Assumptions'!$C$6+('Cost Module'!$G$114-'Cost Module'!$G$105)*(1+'Scenario Assumptions'!$C$12)^('Scenario Assumptions'!$C$6+Q105)) -> 0 | L106: =(K106/(1+'Scenario Assumptions'!$C$7)^('Scenario Assumptions'!$C$6+Q105)) -> 0 | N106: 0 | O106: 0 | P106: 0 | Q106: 47 | S106: 0 | T106: 0 | U106: 0
B107: Year 48 | D107: 1.6 | F107: =D107*('Cost Module'!G$95+'Cost Module'!G$102) -> 0 | G107: =(F107*(1+'Scenario Assumptions'!$C$10)^('Scenario Assumptions'!$C$6+Q106)) -> 0 | H107: =(G107/(1+'Scenario Assumptions'!$C$7)^('Scenario Assumptions'!$C$6+Q106)) -> 0 | J107: =D107*'Cost Module'!$G$114 -> 0 | K107: =D107*('Cost Module'!$G$105*(1+'Scenario Assumptions'!$C$11)^'Scenario Assumptions'!$C$6+('Cost Module'!$G$114-'Cost Module'!$G$105)*(1+'Scenario Assumptions'!$C$12)^('Scenario Assumptions'!$C$6+Q106)) -> 0 | L107: =(K107/(1+'Scenario Assumptions'!$C$7)^('Scenario Assumptions'!$C$6+Q106)) -> 0 | N107: 0 | O107: 0 | P107: 0 | Q107: 48 | S107: 0 | T107: 0 | U107: 0
B108: Year 49 | D108: 1.633333333 | F108: =D108*('Cost Module'!G$95+'Cost Module'!G$102) -> 0 | G108: =(F108*(1+'Scenario Assumptions'!$C$10)^('Scenario Assumptions'!$C$6+Q107)) -> 0 | H108: =(G108/(1+'Scenario Assumptions'!$C$7)^('Scenario Assumptions'!$C$6+Q107)) -> 0 | J108: =D108*'Cost Module'!$G$114 -> 0 | K108: =D108*('Cost Module'!$G$105*(1+'Scenario Assumptions'!$C$11)^'Scenario Assumptions'!$C$6+('Cost Module'!$G$114-'Cost Module'!$G$105)*(1+'Scenario Assumptions'!$C$12)^('Scenario Assumptions'!$C$6+Q107)) -> 0 | L108: =(K108/(1+'Scenario Assumptions'!$C$7)^('Scenario Assumptions'!$C$6+Q107)) -> 0 | N108: 0 | O108: 0 | P108: 0 | Q108: 49 | S108: 0 | T108: 0 | U108: 0
